Workbook

Sheet Briza 22 & 26
B2: Selectiontool | G2: Taal/Language/Sprache/Språk/Jazyk | H2: 0 | I2: 0 | J2: 0 | K2: English | Z2: Heating | AA2: Cooling
B3: Briza 22 & Briza 26 | G3: =cal!G5 -> Hydronic mix: | H3: =cal!H5 -> Hydronic mix: | I3: =cal!I5 -> 0 | J3: =cal!J5 -> 0 | K3: Fresh water | M3: 100%
G4: =cal!G6 -> Device - Ventilator - Utilization: | H4: =cal!H6 -> Device - Ventilator - Utilization: | I4: =cal!I6 -> 0 | J4: =cal!J6 -> 0 | K4: Briza 22 2-pipe | M4: Standard 230V (EU) | P4: Built-in
B6: =cal!B8 -> Temperatures | Z6: =cal!V9 -> Temp | AA6: =cal!BI9 -> Temp
B7: =cal!B9 -> Heating: | G7: =cal!G9 -> Cooling: | Z7: =cal!V10 -> 65 | AA7: =cal!BI10 -> 16
B8: =cal!B10 -> Supply water | C8: =cal!C10 -> 0 | D8: =cal!D10 -> 0 | E8: 65 | F8: =IF(cal!$Z$5=1,"°C",IF(cal!$Z$5=2,"°F")) -> °C | G8: =cal!G10 -> Supply water | H8: =cal!H10 -> 0 | I8: =cal!I10 -> 0 | J8: =cal!J10 -> 0 | K8: 16 | L8: =F8 -> °C | M8: =cal!M8 -> Static pressure | N8: =cal!N8 -> 0 | P8: =cal!P7 -> Unit conversion | R8: =cal!R7 -> Known variables | Z8: =cal!V11 -> 55 | AA8: =cal!BI11 -> 18
B9: =cal!B11 -> Return water | C9: =cal!C11 -> 0 | D9: =cal!D11 -> 0 | E9: 55 | F9: =F8 -> °C | G9: =cal!G11 -> Return water | H9: =cal!H11 -> 0 | I9: =cal!I11 -> 0 | J9: =cal!J11 -> 0 | K9: 18 | L9: =F8 -> °C | M9: 0.000 | O9: =IF(cal!$Z$5=1,"Pa",IF(cal!$Z$5=2,"inchH2O")) -> Pa | Z9: =cal!V12 -> 20 | AA9: =cal!BI12 -> 27
B10: =cal!B12 -> Entering air (dry bulb) | E10: 20 | F10: =F8 -> °C | G10: =cal!G12 -> Entering air (dry bulb) | H10: =cal!H12 -> 0 | I10: =cal!I12 -> 0 | J10: =cal!J12 -> 0 | K10: 27 | L10: =F8 -> °C | M10: =cal!M11 -> Altitude | Z10: =cal!V13 -> 0.0 | AA10: =cal!BI13 -> 19.4
G11: =cal!G13 -> Entering air (wet bulb) | H11: =cal!H13 -> 0 | I11: =cal!I13 -> 0 | J11: =cal!J13 -> 0 | K11: 19.4 | L11: =F8 -> °C | M11: 0 | O11: =IF(cal!$Z$5=1,"m",IF(cal!$Z$5=2,"ft")) -> m | Z11: Patm= | AA11: =p_atm -> 101325
G12: =cal!G14 -> Relative humidity | K12: 50%
B15: =cal!B16 -> Speed level | C15: =cal!C16 -> Control voltage [V] | D15: =cal!D16 -> Heat output * 65/55/20 [W] | E15: =cal!E16 -> Water flowrate, heating [l/h] | F15: =cal!F16 -> Water side pressure loss [kPa] | G15: =cal!G16 -> Sens. cooling capacity * 16/18/27 [W] | H15: =cal!H16 -> Tot. cooling capacity 16/18/27 [W] | I15: =cal!I16 -> Water flowrate, cooling [l/h] | J15: =cal!J16 -> Water side pressure loss [kPa] | K15: =cal!K16 -> Sound pressure *** [dB(A)] | L15: =cal!L16 -> Sound power ** [dB(A)] | M15: =cal!M16 -> Electrical power [W] | N15: =cal!N16 -> Air flowrate [m³/h] | O15: =cal!O16 -> Face velocity [m/s] | P15: =cal!P16 -> Air exhaust temp. heating [°C] | Q15: =cal!R16 -> Air exhaust temp. cooling (dry bulb) [°C] | R15: =cal!S16 -> Air exhaust temp. cooling (wet bulb) [°C] | S15: =cal!T16 -> Rel. humid. cooled air [%] **** | T15: =cal!U16 -> fan rotation frequency [revolutions/minute] | U15: =cal!V16 -> Specific fan power [J/l] | W15: =cal!$B$68 -> Briza has multiple airflow supply and return air connection options. Visit our website for more information.
B16: =IF(cal!$BK$17="11",cal!B17,IF(cal!$BK$17="21",cal!B17,IF(cal!$BK$17="12",cal!B17,IF(cal!$BK$17="22",cal!B17,IF(cal!$BK$17="13",cal!B17,IF(cal!$BK$17="23",cal!B17,IF(cal!$BK$17="14",cal!B17,IF(cal!$BK$17="24",cal!B17,IF(cal!$BK$17="31","",IF(cal!$BK$17="32","",IF(cal!$BK$17="33","",IF(cal!$BK$17="34","",IF(cal!$BK$17="41","",IF(cal!$BK$17="42","",IF(cal!$BK$17="43","",IF(cal!$BK$17="44","",)))))))))))))))) -> Briza 22 (230V) height 54,5 cm, width 22 cm, length 55 cm (Type 02)
B17: =cal!B18 -> 20% | C17: =cal!C18 -> 2 | D17: =IF($E$8<=$E$9,cal!$AC$6,cal!D18) -> 1758 | E17: =IF($E$8<=$E$9,"",cal!E18) -> 151 | F17: =IF($E$8<=$E$9,"",cal!F18) -> 0.59 | G17: =IF($K$8>=$K$9,cal!$AC$6,cal!G18) -> 367 | H17: =IF($K$8>=$K$9,"",cal!H18) -> 367 | I17: =IF($K$8>=$K$9,"",cal!I18) -> 158 | J17: =IF($K$8>=$K$9,"",cal!J18) -> 0.64 | K17: =cal!K18 -> 25.5 | L17: =cal!L18 -> 33.5 | M17: =cal!M18 -> 3.7 | N17: =cal!N18 -> 134 | O17: =cal!O18 -> 0.3 | P17: =IF($E$8<=$E$9,"",cal!P18) -> 58.6 | Q17: =IF($K$8>=$K$9,"",cal!R18) -> 18.8 | R17: =IF($K$8>=$K$9,"",cal!S18) -> 16.8 | S17: =IF($K$8>=$K$9,"",cal!T18) -> 82% | T17: =IF($K$8>=$K$9,"",cal!U18) -> 481 | U17: =IF($K$8>=$K$9,"",cal!V18) -> 0.10
B18: =cal!B19 -> 40% | C18: =cal!C19 -> 4 | D18: =IF($E$8<=$E$9,cal!$AC$7,cal!D19) -> 3119 | E18: =IF($E$8<=$E$9,"",cal!E19) -> 268 | F18: =IF($E$8<=$E$9,"",cal!F19) -> 1.70 | G18: =IF($K$8>=$K$9,cal!$AC$8,cal!G19) -> 659 | H18: =IF($K$8>=$K$9,"",cal!H19) -> 659 | I18: =IF($K$8>=$K$9,"",cal!I19) -> 283 | J18: =IF($K$8>=$K$9,"",cal!J19) -> 1.87 | K18: =cal!K19 -> 35.0 | L18: =cal!L19 -> 43.0 | M18: =cal!M19 -> 8.7 | N18: =cal!N19 -> 254 | O18: =cal!O19 -> 0.6 | P18: =IF($E$8<=$E$9,"",cal!P19) -> 56.0 | Q18: =IF($K$8>=$K$9,"",cal!R19) -> 19.3 | R18: =IF($K$8>=$K$9,"",cal!S19) -> 16.9 | S18: =IF($K$8>=$K$9,"",cal!T19) -> 80% | T18: =IF($K$8>=$K$9,"",cal!U19) -> 730 | U18: =IF($K$8>=$K$9,"",cal!V19) -> 0.12
B19: =cal!B20 -> 60% | C19: =cal!C20 -> 6 | D19: =IF($E$8<=$E$9,"",cal!D20) -> 4071 | E19: =IF($E$8<=$E$9,"",cal!E20) -> 350 | F19: =IF($E$8<=$E$9,"",cal!F20) -> 2.77 | G19: =IF($K$8>=$K$9,"",cal!G20) -> 882 | H19: =IF($K$8>=$K$9,"",cal!H20) -> 882 | I19: =IF($K$8>=$K$9,"",cal!I20) -> 379 | J19: =IF($K$8>=$K$9,"",cal!J20) -> 3.21 | K19: =cal!K20 -> 42.5 | L19: =cal!L20 -> 50.5 | M19: =cal!M20 -> 17.2 | N19: =cal!N20 -> 355 | O19: =cal!O20 -> 0.8 | P19: =IF($E$8<=$E$9,"",cal!P20) -> 53.7 | Q19: =IF($K$8>=$K$9,"",cal!R20) -> 19.6 | R19: =IF($K$8>=$K$9,"",cal!S20) -> 17.0 | S19: =IF($K$8>=$K$9,"",cal!T20) -> 78% | T19: =IF($K$8>=$K$9,"",cal!U20) -> 940 | U19: =IF($K$8>=$K$9,"",cal!V20) -> 0.17
B20: =cal!B21 -> 80% | C20: =cal!C21 -> 8 | D20: =IF($E$8<=$E$9,"",cal!D21) -> 4971 | E20: =IF($E$8<=$E$9,"",cal!E21) -> 427 | F20: =IF($E$8<=$E$9,"",cal!F21) -> 3.99 | G20: =IF($K$8>=$K$9,"",cal!G21) -> 1075 | H20: =IF($K$8>=$K$9,"",cal!H21) -> 1075 | I20: =IF($K$8>=$K$9,"",cal!I21) -> 462 | J20: =IF($K$8>=$K$9,"",cal!J21) -> 4.61 | K20: =cal!K21 -> 46.5 | L20: =cal!L21 -> 54.5 | M20: =cal!M21 -> 31.1 | N20: =cal!N21 -> 450 | O20: =cal!O21 -> 1.0 | P20: =IF($E$8<=$E$9,"",cal!P21) -> 52.4 | Q20: =IF($K$8>=$K$9,"",cal!R21) -> 19.9 | R20: =IF($K$8>=$K$9,"",cal!S21) -> 17.1 | S20: =IF($K$8>=$K$9,"",cal!T21) -> 77% | T20: =IF($K$8>=$K$9,"",cal!U21) -> 1143 | U20: =IF($K$8>=$K$9,"",cal!V21) -> 0.25
B21: =cal!B22 -> 100% | C21: =cal!C22 -> 10 | D21: =IF($E$8<=$E$9,"",cal!D22) -> 5491 | E21: =IF($E$8<=$E$9,"",cal!E22) -> 472 | F21: =IF($E$8<=$E$9,"",cal!F22) -> 4.80 | G21: =IF($K$8>=$K$9,"",cal!G22) -> 1169 | H21: =IF($K$8>=$K$9,"",cal!H22) -> 1169 | I21: =IF($K$8>=$K$9,"",cal!I22) -> 503 | J21: =IF($K$8>=$K$9,"",cal!J22) -> 5.39 | K21: =cal!K22 -> 51.0 | L21: =cal!L22 -> 59.0 | M21: =cal!M22 -> 41.1 | N21: =cal!N22 -> 500 | O21: =cal!O22 -> 1.1 | P21: =IF($E$8<=$E$9,"",cal!P22) -> 52.2 | Q21: =IF($K$8>=$K$9,"",cal!R22) -> 20.1 | R21: =IF($K$8>=$K$9,"",cal!S22) -> 17.2 | S21: =IF($K$8>=$K$9,"",cal!T22) -> 76% | T21: =IF($K$8>=$K$9,"",cal!U22) -> 1247 | U21: =IF($K$8>=$K$9,"",cal!V22) -> 0.30
B22: =IF(cal!$BK$17="11",cal!B23,IF(cal!$BK$17="21",cal!B23,IF(cal!$BK$17="12",cal!B23,IF(cal!$BK$17="22",cal!B23,IF(cal!$BK$17="13",cal!B23,IF(cal!$BK$17="23",cal!B23,IF(cal!$BK$17="14",cal!B23,IF(cal!$BK$17="24",cal!B23,IF(cal!$BK$17="31","",IF(cal!$BK$17="32","",IF(cal!$BK$17="33","",IF(cal!$BK$17="34","",IF(cal!$BK$17="41","",IF(cal!$BK$17="42","",IF(cal!$BK$17="43","",IF(cal!$BK$17="44","",)))))))))))))))) -> Briza 22 (230V) height 54,5 cm, width 22 cm, length 75 cm (Type 03)
B23: =cal!B24 -> 20% | C23: =cal!C24 -> 2 | D23: =IF($E$8<=$E$9,cal!$AC$6,cal!D24) -> 2414 | E23: =IF($E$8<=$E$9,"",cal!E24) -> 208 | F23: =IF($E$8<=$E$9,"",cal!F24) -> 1.30 | G23: =IF($K$8>=$K$9,cal!$AC$6,cal!G24) -> 508 | H23: =IF($K$8>=$K$9,"",cal!H24) -> 508 | I23: =IF($K$8>=$K$9,"",cal!I24) -> 218 | J23: =IF($K$8>=$K$9,"",cal!J24) -> 1.42 | K23: =cal!K24 -> 20.5 | L23: =cal!L24 -> 28.5 | M23: =cal!M24 -> 3.7 | N23: =cal!N24 -> 178 | O23: =cal!O24 -> 0.3 | P23: =IF($E$8<=$E$9,"",cal!P24) -> 59.7 | Q23: =IF($K$8>=$K$9,"",cal!R24) -> 18.5 | R23: =IF($K$8>=$K$9,"",cal!S24) -> 16.6 | S23: =IF($K$8>=$K$9,"",cal!T24) -> 83% | T23: =IF($K$8>=$K$9,"",cal!U24) -> 438 | U23: =IF($K$8>=$K$9,"",cal!V24) -> 0.07
B24: =cal!B25 -> 40% | C24: =cal!C25 -> 4 | D24: =IF($E$8<=$E$9,cal!$AC$7,cal!D25) -> 4256 | E24: =IF($E$8<=$E$9,"",cal!E25) -> 366 | F24: =IF($E$8<=$E$9,"",cal!F25) -> 3.65 | G24: =IF($K$8>=$K$9,cal!$AC$8,cal!G25) -> 870 | H24: =IF($K$8>=$K$9,"",cal!H25) -> 870 | I24: =IF($K$8>=$K$9,"",cal!I25) -> 374 | J24: =IF($K$8>=$K$9,"",cal!J25) -> 3.80 | K24: =cal!K25 -> 29.5 | L24: =cal!L25 -> 37.5 | M24: =cal!M25 -> 8.8 | N24: =cal!N25 -> 327 | O24: =cal!O25 -> 0.5 | P24: =IF($E$8<=$E$9,"",cal!P25) -> 58.2 | Q24: =IF($K$8>=$K$9,"",cal!R25) -> 19.1 | R24: =IF($K$8>=$K$9,"",cal!S25) -> 16.8 | S24: =IF($K$8>=$K$9,"",cal!T25) -> 81% | T24: =IF($K$8>=$K$9,"",cal!U25) -> 652 | U24: =IF($K$8>=$K$9,"",cal!V25) -> 0.10
B25: =cal!B26 -> 50% | C25: =cal!C26 -> 5 | D25: =IF($E$8<=$E$9,"",cal!D26) -> -177 | E25: =IF($E$8<=$E$9,"",cal!E26) -> -15 | F25: =IF($E$8<=$E$9,"",cal!F26) ->  | G25: =IF($K$8>=$K$9,"",cal!G26) -> 6 | H25: =IF($K$8>=$K$9,"",IF($M$4="High Perform. 208/230V (US/EU)",cal!HK26,cal!H26)) -> 6 | I25: =IF($K$8>=$K$9,"",cal!I26) -> 3 | J25: =IF($K$8>=$K$9,"",cal!J26) -> 0.00 | K25: =cal!K26 -> 0.0 | L25: =cal!L26 -> 0.0 | M25: =cal!M26 -> 0.0 | N25: =cal!N26 -> 0 | O25: =cal!O26 -> 0.0 | P25: =IF($E$8<=$E$9,"",cal!P26) ->  | Q25: =IF($K$8>=$K$9,"",cal!R26) ->  | R25: =IF($K$8>=$K$9,"",cal!S26) ->  | S25: =IF($K$8>=$K$9,"",cal!T26) ->  | T25: =IF($K$8>=$K$9,"",cal!U26) -> 0 | U25: =IF($K$8>=$K$9,"",cal!V26) -> 
B26: =cal!B27 -> 60% | C26: =cal!C27 -> 6 | D26: =IF($E$8<=$E$9,"",cal!D27) -> 5635 | E26: =IF($E$8<=$E$9,"",cal!E27) -> 485 | F26: =IF($E$8<=$E$9,"",cal!F27) -> 6.11 | G26: =IF($K$8>=$K$9,"",cal!G27) -> 1146 | H26: =IF($K$8>=$K$9,"",IF($M$4="High Perform. 208/230V (US/EU)",cal!HK27,cal!H27)) -> 1146 | I26: =IF($K$8>=$K$9,"",cal!I27) -> 493 | J26: =IF($K$8>=$K$9,"",cal!J27) -> 6.30 | K26: =cal!K27 -> 39.0 | L26: =cal!L27 -> 47.0 | M26: =cal!M27 -> 17.7 | N26: =cal!N27 -> 456 | O26: =cal!O27 -> 0.8 | P26: =IF($E$8<=$E$9,"",cal!P27) -> 56.3 | Q26: =IF($K$8>=$K$9,"",cal!R27) -> 19.5 | R26: =IF($K$8>=$K$9,"",cal!S27) -> 17.0 | S26: =IF($K$8>=$K$9,"",cal!T27) -> 78% | T26: =IF($K$8>=$K$9,"",cal!U27) -> 833 | U26: =IF($K$8>=$K$9,"",cal!V27) -> 0.14
B27: =cal!B28 -> 70% | C27: =cal!C28 -> 7 | D27: =IF($E$8<=$E$9,"",cal!D28) -> -177 | E27: =IF($E$8<=$E$9,"",cal!E28) -> -15 | F27: =IF($E$8<=$E$9,"",cal!F28) ->  | G27: =IF($K$8>=$K$9,"",cal!G28) -> 6 | H27: =IF($K$8>=$K$9,"",IF($M$4="High Perform. 208/230V (US/EU)",cal!HK28,cal!H28)) -> 6 | I27: =IF($K$8>=$K$9,"",cal!I28) -> 3 | J27: =IF($K$8>=$K$9,"",cal!J28) -> 0.00 | K27: =cal!K28 -> 0.0 | L27: =cal!L28 -> 0.0 | M27: =cal!M28 -> 0.0 | N27: =cal!N28 -> 0 | O27: =cal!O28 -> 0.0 | P27: =IF($E$8<=$E$9,"",cal!P28) ->  | Q27: =IF($K$8>=$K$9,"",cal!R28) ->  | R27: =IF($K$8>=$K$9,"",cal!S28) ->  | S27: =IF($K$8>=$K$9,"",cal!T28) ->  | T27: =IF($K$8>=$K$9,"",cal!U28) -> 0 | U27: =IF($K$8>=$K$9,"",cal!V28) -> 
B28: =cal!B29 -> 80% | C28: =cal!C29 -> 8 | D28: =IF($E$8<=$E$9,"",cal!D29) -> 6744 | E28: =IF($E$8<=$E$9,"",cal!E29) -> 580 | F28: =IF($E$8<=$E$9,"",cal!F29) -> 8.48 | G28: =IF($K$8>=$K$9,"",cal!G29) -> 1372 | H28: =IF($K$8>=$K$9,"",IF($M$4="High Perform. 208/230V (US/EU)",cal!HK29,cal!H29)) -> 1372 | I28: =IF($K$8>=$K$9,"",cal!I29) -> 590 | J28: =IF($K$8>=$K$9,"",cal!J29) -> 8.75 | K28: =cal!K29 -> 45.0 | L28: =cal!L29 -> 53.0 | M28: =cal!M29 -> 31.9 | N28: =cal!N29 -> 579 | O28: =cal!O29 -> 1.0 | P28: =IF($E$8<=$E$9,"",cal!P29) -> 54.2 | Q28: =IF($K$8>=$K$9,"",cal!R29) -> 20.0 | R28: =IF($K$8>=$K$9,"",cal!S29) -> 17.1 | S28: =IF($K$8>=$K$9,"",cal!T29) -> 76% | T28: =IF($K$8>=$K$9,"",cal!U29) -> 1003 | U28: =IF($K$8>=$K$9,"",cal!V29) -> 0.20
B29: =cal!B30 -> 100% | C29: =cal!C30 -> 10 | D29: =IF($E$8<=$E$9,"",cal!D30) -> 7515 | E29: =IF($E$8<=$E$9,"",cal!E30) -> 646 | F29: =IF($E$8<=$E$9,"",cal!F30) -> 10.33 | G29: =IF($K$8>=$K$9,"",cal!G30) -> 1533 | H29: =IF($K$8>=$K$9,"",cal!H30) -> 1533 | I29: =IF($K$8>=$K$9,"",cal!I30) -> 659 | J29: =IF($K$8>=$K$9,"",cal!J30) -> 10.71 | K29: =cal!K30 -> 49.0 | L29: =cal!L30 -> 57.0 | M29: =cal!M30 -> 46.4 | N29: =cal!N30 -> 681 | O29: =cal!O30 -> 1.1 | P29: =IF($E$8<=$E$9,"",cal!P30) -> 52.4 | Q29: =IF($K$8>=$K$9,"",cal!R30) -> 20.3 | R29: =IF($K$8>=$K$9,"",cal!S30) -> 17.2 | S29: =IF($K$8>=$K$9,"",cal!T30) -> 75% | T29: =IF($K$8>=$K$9,"",cal!U30) -> 1119 | U29: =IF($K$8>=$K$9,"",cal!V30) -> 0.25
B30: =IF(cal!$BK$17="11",cal!B31,IF(cal!$BK$17="21",cal!B31,IF(cal!$BK$17="12",cal!B31,IF(cal!$BK$17="22",cal!B31,IF(cal!$BK$17="13",cal!B31,IF(cal!$BK$17="23",cal!B31,IF(cal!$BK$17="14",cal!B31,IF(cal!$BK$17="24",cal!B31,IF(cal!$BK$17="31","",IF(cal!$BK$17="32","",IF(cal!$BK$17="33","",IF(cal!$BK$17="34","",IF(cal!$BK$17="41","",IF(cal!$BK$17="42","",IF(cal!$BK$17="43","",IF(cal!$BK$17="44","",)))))))))))))))) -> Briza 22 (230V) height 54,5 cm, width 22 cm, length 95 cm (Type 04)
B31: =cal!B32 -> 20% | C31: =cal!C32 -> 2 | D31: =IF($E$8<=$E$9,cal!$AC$6,cal!D32) -> 3211 | E31: =IF($E$8<=$E$9,"",cal!E32) -> 276 | F31: =IF($E$8<=$E$9,"",cal!F32) -> 2.56 | G31: =IF($K$8>=$K$9,cal!$AC$6,cal!G32) -> 747 | H31: =IF($K$8>=$K$9,"",cal!H32) -> 747 | I31: =IF($K$8>=$K$9,"",cal!I32) -> 321 | J31: =IF($K$8>=$K$9,"",cal!J32) -> 3.37 | K31: =cal!K32 -> 22.0 | L31: =cal!L32 -> 30.0 | M31: =cal!M32 -> 3.9 | N31: =cal!N32 -> 247 | O31: =cal!O32 -> 0.3 | P31: =IF($E$8<=$E$9,"",cal!P32) -> 58.1 | Q31: =IF($K$8>=$K$9,"",cal!R32) -> 18.0 | R31: =IF($K$8>=$K$9,"",cal!S32) -> 16.5 | S31: =IF($K$8>=$K$9,"",cal!T32) -> 86% | T31: =IF($K$8>=$K$9,"",cal!U32) -> 417 | U31: =IF($K$8>=$K$9,"",cal!V32) -> 0.06
B32: =cal!B33 -> 40% | C32: =cal!C33 -> 4 | D32: =IF($E$8<=$E$9,cal!$AC$7,cal!D33) -> 5520 | E32: =IF($E$8<=$E$9,"",cal!E33) -> 475 | F32: =IF($E$8<=$E$9,"",cal!F33) -> 6.91 | G32: =IF($K$8>=$K$9,cal!$AC$8,cal!G33) -> 1266 | H32: =IF($K$8>=$K$9,"",cal!H33) -> 1266 | I32: =IF($K$8>=$K$9,"",cal!I33) -> 544 | J32: =IF($K$8>=$K$9,"",cal!J33) -> 8.86 | K32: =cal!K33 -> 29.5 | L32: =cal!L33 -> 37.5 | M32: =cal!M33 -> 9.9 | N32: =cal!N33 -> 413 | O32: =cal!O33 -> 0.5 | P32: =IF($E$8<=$E$9,"",cal!P33) -> 59.2 | Q32: =IF($K$8>=$K$9,"",cal!R33) -> 17.9 | R32: =IF($K$8>=$K$9,"",cal!S33) -> 16.4 | S32: =IF($K$8>=$K$9,"",cal!T33) -> 87% | T32: =IF($K$8>=$K$9,"",cal!U33) -> 624 | U32: =IF($K$8>=$K$9,"",cal!V33) -> 0.09
B33: =cal!B34 -> 50% | C33: =cal!C34 -> 5 | D33: =IF($E$8<=$E$9,"",cal!D34) -> -829 | E33: =IF($E$8<=$E$9,"",cal!E34) -> -71 | F33: =IF($E$8<=$E$9,"",cal!F34) ->  | G33: =IF($K$8>=$K$9,"",cal!G34) -> -169 | H33: =IF($K$8>=$K$9,"",IF($M$4="High Perform. 208/230V (US/EU)",cal!HK34,cal!H34)) -> -169 | I33: =IF($K$8>=$K$9,"",cal!I34) -> -73 | J33: =IF($K$8>=$K$9,"",cal!J34) ->  | K33: =cal!K34 -> 0.0 | L33: =cal!L34 -> 0.0 | M33: =cal!M34 -> 0.0 | N33: =cal!N34 -> 0 | O33: =cal!O34 -> 0.0 | P33: =IF($E$8<=$E$9,"",cal!P34) ->  | Q33: =IF($K$8>=$K$9,"",cal!R34) ->  | R33: =IF($K$8>=$K$9,"",cal!S34) ->  | S33: =IF($K$8>=$K$9,"",cal!T34) ->  | T33: =IF($K$8>=$K$9,"",cal!U34) -> 0 | U33: =IF($K$8>=$K$9,"",cal!V34) -> 
B34: =cal!B35 -> 60% | C34: =cal!C35 -> 6 | D34: =IF($E$8<=$E$9,"",cal!D35) -> 7360 | E34: =IF($E$8<=$E$9,"",cal!E35) -> 633 | F34: =IF($E$8<=$E$9,"",cal!F35) -> 11.69 | G34: =IF($K$8>=$K$9,"",cal!G35) -> 1675 | H34: =IF($K$8>=$K$9,"",IF($M$4="High Perform. 208/230V (US/EU)",cal!HK35,cal!H35)) -> 1675 | I34: =IF($K$8>=$K$9,"",cal!I35) -> 720 | J34: =IF($K$8>=$K$9,"",cal!J35) -> 14.80 | K34: =cal!K35 -> 37.0 | L34: =cal!L35 -> 45.0 | M34: =cal!M35 -> 20.6 | N34: =cal!N35 -> 565 | O34: =cal!O35 -> 0.8 | P34: =IF($E$8<=$E$9,"",cal!P35) -> 58.2 | Q34: =IF($K$8>=$K$9,"",cal!R35) -> 18.2 | R34: =IF($K$8>=$K$9,"",cal!S35) -> 16.5 | S34: =IF($K$8>=$K$9,"",cal!T35) -> 85% | T34: =IF($K$8>=$K$9,"",cal!U35) -> 798 | U34: =IF($K$8>=$K$9,"",cal!V35) -> 0.13
B35: =cal!B36 -> 70% | C35: =cal!C36 -> 7 | D35: =IF($E$8<=$E$9,"",cal!D36) -> -829 | E35: =IF($E$8<=$E$9,"",cal!E36) -> -71 | F35: =IF($E$8<=$E$9,"",cal!F36) ->  | G35: =IF($K$8>=$K$9,"",cal!G36) -> -169 | H35: =IF($K$8>=$K$9,"",IF($M$4="High Perform. 208/230V (US/EU)",cal!HK36,cal!H36)) -> -169 | I35: =IF($K$8>=$K$9,"",cal!I36) -> -73 | J35: =IF($K$8>=$K$9,"",cal!J36) ->  | K35: =cal!K36 -> 0.0 | L35: =cal!L36 -> 0.0 | M35: =cal!M36 -> 0.0 | N35: =cal!N36 -> 0 | O35: =cal!O36 -> 0.0 | P35: =IF($E$8<=$E$9,"",cal!P36) ->  | Q35: =IF($K$8>=$K$9,"",cal!R36) ->  | R35: =IF($K$8>=$K$9,"",cal!S36) ->  | S35: =IF($K$8>=$K$9,"",cal!T36) ->  | T35: =IF($K$8>=$K$9,"",cal!U36) -> 0 | U35: =IF($K$8>=$K$9,"",cal!V36) -> 
B36: =cal!B37 -> 80% | C36: =cal!C37 -> 8 | D36: =IF($E$8<=$E$9,"",cal!D37) -> 8837 | E36: =IF($E$8<=$E$9,"",cal!E37) -> 760 | F36: =IF($E$8<=$E$9,"",cal!F37) -> 16.34 | G36: =IF($K$8>=$K$9,"",cal!G37) -> 2000 | H36: =IF($K$8>=$K$9,"",IF($M$4="High Perform. 208/230V (US/EU)",cal!HK37,cal!H37)) -> 2000 | I36: =IF($K$8>=$K$9,"",cal!I37) -> 860 | J36: =IF($K$8>=$K$9,"",cal!J37) -> 20.49 | K36: =cal!K37 -> 42.5 | L36: =cal!L37 -> 50.5 | M36: =cal!M37 -> 35.9 | N36: =cal!N37 -> 707 | O36: =cal!O37 -> 0.9 | P36: =IF($E$8<=$E$9,"",cal!P37) -> 56.7 | Q36: =IF($K$8>=$K$9,"",cal!R37) -> 18.6 | R36: =IF($K$8>=$K$9,"",cal!S37) -> 16.7 | S36: =IF($K$8>=$K$9,"",cal!T37) -> 83% | T36: =IF($K$8>=$K$9,"",cal!U37) -> 947 | U36: =IF($K$8>=$K$9,"",cal!V37) -> 0.18
B37: =cal!B38 -> 100% | C37: =cal!C38 -> 10 | D37: =IF($E$8<=$E$9,"",cal!D38) -> 9758 | E37: =IF($E$8<=$E$9,"",cal!E38) -> 839 | F37: =IF($E$8<=$E$9,"",cal!F38) -> 19.58 | G37: =IF($K$8>=$K$9,"",cal!G38) -> 2200 | H37: =IF($K$8>=$K$9,"",cal!H38) -> 2200 | I37: =IF($K$8>=$K$9,"",cal!I38) -> 946 | J37: =IF($K$8>=$K$9,"",cal!J38) -> 24.39 | K37: =cal!K38 -> 46.5 | L37: =cal!L38 -> 54.5 | M37: =cal!M38 -> 51.2 | N37: =cal!N38 -> 809 | O37: =cal!O38 -> 1.1 | P37: =IF($E$8<=$E$9,"",cal!P38) -> 55.4 | Q37: =IF($K$8>=$K$9,"",cal!R38) -> 18.9 | R37: =IF($K$8>=$K$9,"",cal!S38) -> 16.8 | S37: =IF($K$8>=$K$9,"",cal!T38) -> 81% | T37: =IF($K$8>=$K$9,"",cal!U38) -> 1049 | U37: =IF($K$8>=$K$9,"",cal!V38) -> 0.23
B38: =cal!B39 -> Briza 22 (230V) height 54,5 cm, width 22 cm, length 125 cm (Type 06)
B39: =cal!B40 -> 20% | C39: =cal!C40 -> 2 | D39: =IF($E$8<=$E$9,cal!$AC$6,cal!D40) -> 4291 | E39: =IF($E$8<=$E$9,"",cal!E40) -> 369 | F39: =IF($E$8<=$E$9,"",cal!F40) -> 1.55 | G39: =IF($K$8>=$K$9,cal!$AC$6,cal!G40) -> 787 | H39: =IF($K$8>=$K$9,"",cal!H40) -> 787 | I39: =IF($K$8>=$K$9,"",cal!I40) -> 339 | J39: =IF($K$8>=$K$9,"",cal!J40) -> 1.32 | K39: =cal!K40 -> 28.0 | L39: =cal!L40 -> 36.0 | M39: =cal!M40 -> 7.2 | N39: =cal!N40 -> 334 | O39: =cal!O40 -> 0.3 | P39: =IF($E$8<=$E$9,"",cal!P40) -> 57.7 | Q39: =IF($K$8>=$K$9,"",cal!R40) -> 20.0 | R39: =IF($K$8>=$K$9,"",cal!S40) -> 17.1 | S39: =IF($K$8>=$K$9,"",cal!T40) -> 76% | T39: =IF($K$8>=$K$9,"",cal!U40) -> 433 | U39: =IF($K$8>=$K$9,"",cal!V40) -> 0.08
B40: =cal!B41 -> 40% | C40: =cal!C41 -> 4 | D40: =IF($E$8<=$E$9,cal!$AC$7,cal!D41) -> 7376 | E40: =IF($E$8<=$E$9,"",cal!E41) -> 634 | F40: =IF($E$8<=$E$9,"",cal!F41) -> 4.20 | G40: =IF($K$8>=$K$9,cal!$AC$8,cal!G41) -> 1367 | H40: =IF($K$8>=$K$9,"",cal!H41) -> 1367 | I40: =IF($K$8>=$K$9,"",cal!I41) -> 588 | J40: =IF($K$8>=$K$9,"",cal!J41) -> 3.66 | K40: =cal!K41 -> 36.0 | L40: =cal!L41 -> 44.0 | M40: =cal!M41 -> 17.5 | N40: =cal!N41 -> 614 | O40: =cal!O41 -> 0.6 | P40: =IF($E$8<=$E$9,"",cal!P41) -> 55.2 | Q40: =IF($K$8>=$K$9,"",cal!R41) -> 20.4 | R40: =IF($K$8>=$K$9,"",cal!S41) -> 17.3 | S40: =IF($K$8>=$K$9,"",cal!T41) -> 74% | T40: =IF($K$8>=$K$9,"",cal!U41) -> 646 | U40: =IF($K$8>=$K$9,"",cal!V41) -> 0.10
B41: =cal!B42 -> 50% | C41: =cal!C42 -> 5 | D41: =IF($E$8<=$E$9,"",cal!D42) -> 150 | E41: =IF($E$8<=$E$9,"",cal!E42) -> 13 | F41: =IF($E$8<=$E$9,"",cal!F42) -> 0.00 | G41: =IF($K$8>=$K$9,"",cal!G42) -> 61 | H41: =IF($K$8>=$K$9,"",IF($M$4="High Perform. 208/230V (US/EU)",cal!HK42,cal!H42)) -> 61 | I41: =IF($K$8>=$K$9,"",cal!I42) -> 26 | J41: =IF($K$8>=$K$9,"",cal!J42) -> 0.01 | K41: =cal!K42 -> 0.0 | L41: =cal!L42 -> 0.0 | M41: =cal!M42 -> 0.0 | N41: =cal!N42 -> 0 | O41: =cal!O42 -> 0.0 | P41: =IF($E$8<=$E$9,"",cal!P42) ->  | Q41: =IF($K$8>=$K$9,"",cal!R42) ->  | R41: =IF($K$8>=$K$9,"",cal!S42) ->  | S41: =IF($K$8>=$K$9,"",cal!T42) ->  | T41: =IF($K$8>=$K$9,"",cal!U42) -> 0 | U41: =IF($K$8>=$K$9,"",cal!V42) -> 
B42: =cal!B43 -> 60% | C42: =cal!C43 -> 6 | D42: =IF($E$8<=$E$9,"",cal!D43) -> 9595 | E42: =IF($E$8<=$E$9,"",cal!E43) -> 825 | F42: =IF($E$8<=$E$9,"",cal!F43) -> 6.84 | G42: =IF($K$8>=$K$9,"",cal!G43) -> 1812 | H42: =IF($K$8>=$K$9,"",IF($M$4="High Perform. 208/230V (US/EU)",cal!HK43,cal!H43)) -> 1812 | I42: =IF($K$8>=$K$9,"",cal!I43) -> 779 | J42: =IF($K$8>=$K$9,"",cal!J43) -> 6.15 | K42: =cal!K43 -> 43.0 | L42: =cal!L43 -> 51.0 | M42: =cal!M43 -> 35.7 | N42: =cal!N43 -> 840 | O42: =cal!O43 -> 0.8 | P42: =IF($E$8<=$E$9,"",cal!P43) -> 53.5 | Q42: =IF($K$8>=$K$9,"",cal!R43) -> 20.6 | R42: =IF($K$8>=$K$9,"",cal!S43) -> 17.3 | S42: =IF($K$8>=$K$9,"",cal!T43) -> 73% | T42: =IF($K$8>=$K$9,"",cal!U43) -> 828 | U42: =IF($K$8>=$K$9,"",cal!V43) -> 0.15
B43: =cal!B44 -> 70% | C43: =cal!C44 -> 7 | D43: =IF($E$8<=$E$9,"",cal!D44) -> 150 | E43: =IF($E$8<=$E$9,"",cal!E44) -> 13 | F43: =IF($E$8<=$E$9,"",cal!F44) -> 0.00 | G43: =IF($K$8>=$K$9,"",cal!G44) -> 61 | H43: =IF($K$8>=$K$9,"",IF($M$4="High Perform. 208/230V (US/EU)",cal!HK44,cal!H44)) -> 61 | I43: =IF($K$8>=$K$9,"",cal!I44) -> 26 | J43: =IF($K$8>=$K$9,"",cal!J44) -> 0.01 | K43: =cal!K44 -> 0.0 | L43: =cal!L44 -> 0.0 | M43: =cal!M44 -> 0.0 | N43: =cal!N44 -> 0 | O43: =cal!O44 -> 0.0 | P43: =IF($E$8<=$E$9,"",cal!P44) ->  | Q43: =IF($K$8>=$K$9,"",cal!R44) ->  | R43: =IF($K$8>=$K$9,"",cal!S44) ->  | S43: =IF($K$8>=$K$9,"",cal!T44) ->  | T43: =IF($K$8>=$K$9,"",cal!U44) -> 0 | U43: =IF($K$8>=$K$9,"",cal!V44) -> 
B44: =cal!B45 -> 80% | C44: =cal!C45 -> 8 | D44: =IF($E$8<=$E$9,"",cal!D45) -> 11634 | E44: =IF($E$8<=$E$9,"",cal!E45) -> 1000 | F44: =IF($E$8<=$E$9,"",cal!F45) -> 9.77 | G44: =IF($K$8>=$K$9,"",cal!G45) -> 2251 | H44: =IF($K$8>=$K$9,"",IF($M$4="High Perform. 208/230V (US/EU)",cal!HK45,cal!H45)) -> 2251 | I44: =IF($K$8>=$K$9,"",cal!I45) -> 968 | J44: =IF($K$8>=$K$9,"",cal!J45) -> 9.20 | K44: =cal!K45 -> 49.0 | L44: =cal!L45 -> 57.0 | M44: =cal!M45 -> 62.8 | N44: =cal!N45 -> 1072 | O44: =cal!O45 -> 1.1 | P44: =IF($E$8<=$E$9,"",cal!P45) -> 51.9 | Q44: =IF($K$8>=$K$9,"",cal!R45) -> 20.8 | R44: =IF($K$8>=$K$9,"",cal!S45) -> 17.4 | S44: =IF($K$8>=$K$9,"",cal!T45) -> 73% | T44: =IF($K$8>=$K$9,"",cal!U45) -> 990 | U44: =IF($K$8>=$K$9,"",cal!V45) -> 0.21
B45: =cal!B46 -> 100% | C45: =cal!C46 -> 10 | D45: =IF($E$8<=$E$9,"",cal!D46) -> 12856 | E45: =IF($E$8<=$E$9,"",cal!E46) -> 1105 | F45: =IF($E$8<=$E$9,"",cal!F46) -> 11.75 | G45: =IF($K$8>=$K$9,"",cal!G46) -> 2533 | H45: =IF($K$8>=$K$9,"",cal!H46) -> 2533 | I45: =IF($K$8>=$K$9,"",cal!I46) -> 1089 | J45: =IF($K$8>=$K$9,"",cal!J46) -> 11.43 | K45: =cal!K46 -> 52.5 | L45: =cal!L46 -> 60.5 | M45: =cal!M46 -> 88.5 | N45: =cal!N46 -> 1226 | O45: =cal!O46 -> 1.2 | P45: =IF($E$8<=$E$9,"",cal!P46) -> 50.8 | Q45: =IF($K$8>=$K$9,"",cal!R46) -> 20.9 | R45: =IF($K$8>=$K$9,"",cal!S46) -> 17.4 | S45: =IF($K$8>=$K$9,"",cal!T46) -> 72% | T45: =IF($K$8>=$K$9,"",cal!U46) -> 1090 | U45: =IF($K$8>=$K$9,"",cal!V46) -> 0.26
B46: =cal!B47 -> Briza 22 (230V) height 54,5 cm, width 22 cm, length 155 cm (Type 08)
B47: =cal!B48 -> 20% | C47: =cal!C48 -> 2 | D47: =IF($E$8<=$E$9,cal!$AC$6,cal!D48) -> 4329 | E47: =IF($E$8<=$E$9,"",cal!E48) -> 372 | F47: =IF($E$8<=$E$9,"",cal!F48) -> 1.27 | G47: =IF($K$8>=$K$9,cal!$AC$6,cal!G48) -> 851 | H47: =IF($K$8>=$K$9,"",cal!H48) -> 851 | I47: =IF($K$8>=$K$9,"",cal!I48) -> 366 | J47: =IF($K$8>=$K$9,"",cal!J48) -> 1.22 | K47: =cal!K48 -> 25.0 | L47: =cal!L48 -> 33.0 | M47: =cal!M48 -> 7.2 | N47: =cal!N48 -> 392 | O47: =cal!O48 -> 0.3 | P47: =IF($E$8<=$E$9,"",cal!P48) -> 52.4 | Q47: =IF($K$8>=$K$9,"",cal!R48) -> 20.6 | R47: =IF($K$8>=$K$9,"",cal!S48) -> 17.3 | S47: =IF($K$8>=$K$9,"",cal!T48) -> 74% | T47: =IF($K$8>=$K$9,"",cal!U48) -> 431 | U47: =IF($K$8>=$K$9,"",cal!V48) -> 0.07
B48: =cal!B49 -> 40% | C48: =cal!C49 -> 4 | D48: =IF($E$8<=$E$9,cal!$AC$7,cal!D49) -> 7707 | E48: =IF($E$8<=$E$9,"",cal!E49) -> 663 | F48: =IF($E$8<=$E$9,"",cal!F49) -> 4.62 | G48: =IF($K$8>=$K$9,cal!$AC$8,cal!G49) -> 1533 | H48: =IF($K$8>=$K$9,"",cal!H49) -> 1533 | I48: =IF($K$8>=$K$9,"",cal!I49) -> 659 | J48: =IF($K$8>=$K$9,"",cal!J49) -> 4.56 | K48: =cal!K49 -> 34.0 | L48: =cal!L49 -> 42.0 | M48: =cal!M49 -> 17.8 | N48: =cal!N49 -> 706 | O48: =cal!O49 -> 0.6 | P48: =IF($E$8<=$E$9,"",cal!P49) -> 52.0 | Q48: =IF($K$8>=$K$9,"",cal!R49) -> 20.6 | R48: =IF($K$8>=$K$9,"",cal!S49) -> 17.3 | S48: =IF($K$8>=$K$9,"",cal!T49) -> 74% | T48: =IF($K$8>=$K$9,"",cal!U49) -> 642 | U48: =IF($K$8>=$K$9,"",cal!V49) -> 0.09
B49: =cal!B50 -> 50% | C49: =cal!C50 -> 5 | D49: =IF($E$8<=$E$9,"",cal!D50) -> -78 | E49: =IF($E$8<=$E$9,"",cal!E50) -> -7 | F49: =IF($E$8<=$E$9,"",cal!F50) ->  | G49: =IF($K$8>=$K$9,"",cal!G50) -> -33 | H49: =IF($K$8>=$K$9,"",IF($M$4="High Perform. 208/230V (US/EU)",cal!HK50,cal!H50)) -> -33 | I49: =IF($K$8>=$K$9,"",cal!I50) -> -14 | J49: =IF($K$8>=$K$9,"",cal!J50) ->  | K49: =cal!K50 -> 0.0 | L49: =cal!L50 -> 0.0 | M49: =cal!M50 -> 0.0 | N49: =cal!N50 -> 0 | O49: =cal!O50 -> 0.0 | P49: =IF($E$8<=$E$9,"",cal!P50) ->  | Q49: =IF($K$8>=$K$9,"",cal!R50) ->  | R49: =IF($K$8>=$K$9,"",cal!S50) ->  | S49: =IF($K$8>=$K$9,"",cal!T50) ->  | T49: =IF($K$8>=$K$9,"",cal!U50) -> 0 | U49: =IF($K$8>=$K$9,"",cal!V50) -> 
B50: =cal!B51 -> 60% | C50: =cal!C51 -> 6 | D50: =IF($E$8<=$E$9,"",cal!D51) -> 10638 | E50: =IF($E$8<=$E$9,"",cal!E51) -> 915 | F50: =IF($E$8<=$E$9,"",cal!F51) -> 9.48 | G50: =IF($K$8>=$K$9,"",cal!G51) -> 2127 | H50: =IF($K$8>=$K$9,"",IF($M$4="High Perform. 208/230V (US/EU)",cal!HK51,cal!H51)) -> 2127 | I50: =IF($K$8>=$K$9,"",cal!I51) -> 914 | J50: =IF($K$8>=$K$9,"",cal!J51) -> 9.46 | K50: =cal!K51 -> 41.0 | L50: =cal!L51 -> 49.0 | M50: =cal!M51 -> 37.1 | N50: =cal!N51 -> 990 | O50: =cal!O51 -> 0.8 | P50: =IF($E$8<=$E$9,"",cal!P51) -> 51.5 | Q50: =IF($K$8>=$K$9,"",cal!R51) -> 20.6 | R50: =IF($K$8>=$K$9,"",cal!S51) -> 17.3 | S50: =IF($K$8>=$K$9,"",cal!T51) -> 73% | T50: =IF($K$8>=$K$9,"",cal!U51) -> 835 | U50: =IF($K$8>=$K$9,"",cal!V51) -> 0.13
B51: =cal!B52 -> 70% | C51: =cal!C52 -> 7 | D51: =IF($E$8<=$E$9,"",cal!D52) -> -78 | E51: =IF($E$8<=$E$9,"",cal!E52) -> -7 | F51: =IF($E$8<=$E$9,"",cal!F52) ->  | G51: =IF($K$8>=$K$9,"",cal!G52) -> -33 | H51: =IF($K$8>=$K$9,"",IF($M$4="High Perform. 208/230V (US/EU)",cal!HK52,cal!H52)) -> -33 | I51: =IF($K$8>=$K$9,"",cal!I52) -> -14 | J51: =IF($K$8>=$K$9,"",cal!J52) ->  | K51: =cal!K52 -> 0.0 | L51: =cal!L52 -> 0.0 | M51: =cal!M52 -> 0.0 | N51: =cal!N52 -> 0 | O51: =cal!O52 -> 0.0 | P51: =IF($E$8<=$E$9,"",cal!P52) ->  | Q51: =IF($K$8>=$K$9,"",cal!R52) ->  | R51: =IF($K$8>=$K$9,"",cal!S52) ->  | S51: =IF($K$8>=$K$9,"",cal!T52) ->  | T51: =IF($K$8>=$K$9,"",cal!U52) -> 0 | U51: =IF($K$8>=$K$9,"",cal!V52) -> 
B52: =cal!B53 -> 80% | C52: =cal!C53 -> 8 | D52: =IF($E$8<=$E$9,"",cal!D53) -> 13250 | E52: =IF($E$8<=$E$9,"",cal!E53) -> 1139 | F52: =IF($E$8<=$E$9,"",cal!F53) -> 15.46 | G52: =IF($K$8>=$K$9,"",cal!G53) -> 2660 | H52: =IF($K$8>=$K$9,"",IF($M$4="High Perform. 208/230V (US/EU)",cal!HK53,cal!H53)) -> 2660 | I52: =IF($K$8>=$K$9,"",cal!I53) -> 1143 | J52: =IF($K$8>=$K$9,"",cal!J53) -> 15.58 | K52: =cal!K53 -> 47.0 | L52: =cal!L53 -> 55.0 | M52: =cal!M53 -> 65.8 | N52: =cal!N53 -> 1252 | O52: =cal!O53 -> 1.0 | P52: =IF($E$8<=$E$9,"",cal!P53) -> 51.1 | Q52: =IF($K$8>=$K$9,"",cal!R53) -> 20.7 | R52: =IF($K$8>=$K$9,"",cal!S53) -> 17.4 | S52: =IF($K$8>=$K$9,"",cal!T53) -> 73% | T52: =IF($K$8>=$K$9,"",cal!U53) -> 999 | U52: =IF($K$8>=$K$9,"",cal!V53) -> 0.19
B53: =cal!B54 -> 100% | C53: =cal!C54 -> 10 | D53: =IF($E$8<=$E$9,"",cal!D54) -> 15025 | E53: =IF($E$8<=$E$9,"",cal!E54) -> 1292 | F53: =IF($E$8<=$E$9,"",cal!F54) -> 20.49 | G53: =IF($K$8>=$K$9,"",cal!G54) -> 3023 | H53: =IF($K$8>=$K$9,"",cal!H54) -> 3023 | I53: =IF($K$8>=$K$9,"",cal!I54) -> 1300 | J53: =IF($K$8>=$K$9,"",cal!J54) -> 20.77 | K53: =cal!K54 -> 51.0 | L53: =cal!L54 -> 59.0 | M53: =cal!M54 -> 95.0 | N53: =cal!N54 -> 1436 | O53: =cal!O54 -> 1.2 | P53: =IF($E$8<=$E$9,"",cal!P54) -> 50.7 | Q53: =IF($K$8>=$K$9,"",cal!R54) -> 20.7 | R53: =IF($K$8>=$K$9,"",cal!S54) -> 17.4 | S53: =IF($K$8>=$K$9,"",cal!T54) -> 73% | T53: =IF($K$8>=$K$9,"",cal!U54) -> 1126 | U53: =IF($K$8>=$K$9,"",cal!V54) -> 0.24
B54: =cal!B55 -> Briza 22 (230V) height 54,5 cm, width 22 cm, length 190 cm (Type 10)
B55: =cal!B56 -> 20% | C55: =cal!C56 -> 2 | D55: =IF($E$8<=$E$9,cal!$AC$6,cal!D56) -> 7002 | E55: =IF($E$8<=$E$9,"",cal!E56) -> 602 | F55: =IF($E$8<=$E$9,"",cal!F56) -> 3.89 | G55: =IF($K$8>=$K$9,cal!$AC$6,cal!G56) -> 1450 | H55: =IF($K$8>=$K$9,"",cal!H56) -> 1450 | I55: =IF($K$8>=$K$9,"",cal!I56) -> 623 | J55: =IF($K$8>=$K$9,"",cal!J56) -> 4.14 | K55: =cal!K56 -> 31.5 | L55: =cal!L56 -> 39.5 | M55: =cal!M56 -> 11.1 | N55: =cal!N56 -> 549 | O55: =cal!O56 -> 0.4 | P55: =IF($E$8<=$E$9,"",cal!P56) -> 57.4 | Q55: =IF($K$8>=$K$9,"",cal!R56) -> 19.1 | R55: =IF($K$8>=$K$9,"",cal!S56) -> 16.9 | S55: =IF($K$8>=$K$9,"",cal!T56) -> 80% | T55: =IF($K$8>=$K$9,"",cal!U56) -> 430 | U55: =IF($K$8>=$K$9,"",cal!V56) -> 0.07
B56: =cal!B57 -> 40% | C56: =cal!C57 -> 4 | D56: =IF($E$8<=$E$9,cal!$AC$7,cal!D57) -> 12039 | E56: =IF($E$8<=$E$9,"",cal!E57) -> 1035 | F56: =IF($E$8<=$E$9,"",cal!F57) -> 10.42 | G56: =IF($K$8>=$K$9,cal!$AC$8,cal!G57) -> 2486 | H56: =IF($K$8>=$K$9,"",cal!H57) -> 2486 | I56: =IF($K$8>=$K$9,"",cal!I57) -> 1069 | J56: =IF($K$8>=$K$9,"",cal!J57) -> 11.06 | K56: =cal!K57 -> 39.0 | L56: =cal!L57 -> 47.0 | M56: =cal!M57 -> 25.9 | N56: =cal!N57 -> 972 | O56: =cal!O57 -> 0.6 | P56: =IF($E$8<=$E$9,"",cal!P57) -> 56.3 | Q56: =IF($K$8>=$K$9,"",cal!R57) -> 19.4 | R56: =IF($K$8>=$K$9,"",cal!S57) -> 16.9 | S56: =IF($K$8>=$K$9,"",cal!T57) -> 79% | T56: =IF($K$8>=$K$9,"",cal!U57) -> 695 | U56: =IF($K$8>=$K$9,"",cal!V57) -> 0.10
B57: =cal!B58 -> 50% | C57: =cal!C58 -> 5 | D57: =IF($E$8<=$E$9,"",cal!D58) -> 5 | E57: =IF($E$8<=$E$9,"",cal!E58) -> 0 | F57: =IF($E$8<=$E$9,"",cal!F58) -> 0.00 | G57: =IF($K$8>=$K$9,"",cal!G58) -> -5 | H57: =IF($K$8>=$K$9,"",IF($M$4="High Perform. 208/230V (US/EU)",cal!HK58,cal!H58)) -> -5 | I57: =IF($K$8>=$K$9,"",cal!I58) -> -2 | J57: =IF($K$8>=$K$9,"",cal!J58) ->  | K57: =cal!K58 -> 0.0 | L57: =cal!L58 -> 0.0 | M57: =cal!M58 -> 0.0 | N57: =cal!N58 -> 0 | O57: =cal!O58 -> 0.0 | P57: =IF($E$8<=$E$9,"",cal!P58) ->  | Q57: =IF($K$8>=$K$9,"",cal!R58) ->  | R57: =IF($K$8>=$K$9,"",cal!S58) ->  | S57: =IF($K$8>=$K$9,"",cal!T58) ->  | T57: =IF($K$8>=$K$9,"",cal!U58) -> 0 | U57: =IF($K$8>=$K$9,"",cal!V58) -> 
B58: =cal!B59 -> 60% | C58: =cal!C59 -> 6 | D58: =IF($E$8<=$E$9,"",cal!D59) -> 16233 | E58: =IF($E$8<=$E$9,"",cal!E59) -> 1396 | F58: =IF($E$8<=$E$9,"",cal!F59) -> 17.97 | G58: =IF($K$8>=$K$9,"",cal!G59) -> 3341 | H58: =IF($K$8>=$K$9,"",IF($M$4="High Perform. 208/230V (US/EU)",cal!HK59,cal!H59)) -> 3341 | I58: =IF($K$8>=$K$9,"",cal!I59) -> 1436 | J58: =IF($K$8>=$K$9,"",cal!J59) -> 18.92 | K58: =cal!K59 -> 46.5 | L58: =cal!L59 -> 54.5 | M58: =cal!M59 -> 52.8 | N58: =cal!N59 -> 1347 | O58: =cal!O59 -> 0.9 | P58: =IF($E$8<=$E$9,"",cal!P59) -> 55.4 | Q58: =IF($K$8>=$K$9,"",cal!R59) -> 19.6 | R58: =IF($K$8>=$K$9,"",cal!S59) -> 17.0 | S58: =IF($K$8>=$K$9,"",cal!T59) -> 78% | T58: =IF($K$8>=$K$9,"",cal!U59) -> 836 | U58: =IF($K$8>=$K$9,"",cal!V59) -> 0.14
B59: =cal!B60 -> 70% | C59: =cal!C60 -> 7 | D59: =IF($E$8<=$E$9,"",cal!D60) -> 5 | E59: =IF($E$8<=$E$9,"",cal!E60) -> 0 | F59: =IF($E$8<=$E$9,"",cal!F60) -> 0.00 | G59: =IF($K$8>=$K$9,"",cal!G60) -> -5 | H59: =IF($K$8>=$K$9,"",IF($M$4="High Perform. 208/230V (US/EU)",cal!HK60,cal!H60)) -> -5 | I59: =IF($K$8>=$K$9,"",cal!I60) -> -2 | J59: =IF($K$8>=$K$9,"",cal!J60) ->  | K59: =cal!K60 -> 0.0 | L59: =cal!L60 -> 0.0 | M59: =cal!M60 -> 0.0 | N59: =cal!N60 -> 0 | O59: =cal!O60 -> 0.0 | P59: =IF($E$8<=$E$9,"",cal!P60) ->  | Q59: =IF($K$8>=$K$9,"",cal!R60) ->  | R59: =IF($K$8>=$K$9,"",cal!S60) ->  | S59: =IF($K$8>=$K$9,"",cal!T60) ->  | T59: =IF($K$8>=$K$9,"",cal!U60) -> 0 | U59: =IF($K$8>=$K$9,"",cal!V60) -> 
B60: =cal!B61 -> 80% | C60: =cal!C61 -> 8 | D60: =IF($E$8<=$E$9,"",cal!D61) -> 19968 | E60: =IF($E$8<=$E$9,"",cal!E61) -> 1717 | F60: =IF($E$8<=$E$9,"",cal!F61) -> 26.20 | G60: =IF($K$8>=$K$9,"",cal!G61) -> 4094 | H60: =IF($K$8>=$K$9,"",IF($M$4="High Perform. 208/230V (US/EU)",cal!HK61,cal!H61)) -> 4094 | I60: =IF($K$8>=$K$9,"",cal!I61) -> 1760 | J60: =IF($K$8>=$K$9,"",cal!J61) -> 27.41 | K60: =cal!K61 -> 52.0 | L60: =cal!L61 -> 60.0 | M60: =cal!M61 -> 93.0 | N60: =cal!N61 -> 1700 | O60: =cal!O61 -> 1.1 | P60: =IF($E$8<=$E$9,"",cal!P61) -> 54.5 | Q60: =IF($K$8>=$K$9,"",cal!R61) -> 19.8 | R60: =IF($K$8>=$K$9,"",cal!S61) -> 17.1 | S60: =IF($K$8>=$K$9,"",cal!T61) -> 77% | T60: =IF($K$8>=$K$9,"",cal!U61) -> 964 | U60: =IF($K$8>=$K$9,"",cal!V61) -> 0.20
B61: =cal!B62 -> 100% | C61: =cal!C62 -> 10 | D61: =IF($E$8<=$E$9,"",cal!D62) -> 22200 | E61: =IF($E$8<=$E$9,"",cal!E62) -> 1909 | F61: =IF($E$8<=$E$9,"",cal!F62) -> 31.78 | G61: =IF($K$8>=$K$9,"",cal!G62) -> 4540 | H61: =IF($K$8>=$K$9,"",cal!H62) -> 4540 | I61: =IF($K$8>=$K$9,"",cal!I62) -> 1952 | J61: =IF($K$8>=$K$9,"",cal!J62) -> 33.10 | K61: =cal!K62 -> 55.0 | L61: =cal!L62 -> 63.0 | M61: =cal!M62 -> 131.5 | N61: =cal!N62 -> 1922 | O61: =cal!O62 -> 1.3 | P61: =IF($E$8<=$E$9,"",cal!P62) -> 53.9 | Q61: =IF($K$8>=$K$9,"",cal!R62) -> 20.0 | R61: =IF($K$8>=$K$9,"",cal!S62) -> 17.1 | S61: =IF($K$8>=$K$9,"",cal!T62) -> 76% | T61: =IF($K$8>=$K$9,"",cal!U62) -> 1100 | U61: =IF($K$8>=$K$9,"",cal!V62) -> 0.25
B62: =cal!B63 -> *Values according to EN 1397 equipped with a G2 filter. | U62: v2023-01-31
B63: =cal!B64 -> **Sound power according to ISO 3741:2010
B64: =cal!B65 -> ***Sound pressure with an assumed room damping of 8dB(A)
B65: =cal!B66 -> ****Calculated RH directly after the heat exchanger, assumed with a location-independent surface temperature.

Sheet cal (hidden)
I1: Nederlands | J1: English | K1: Deutsch | L1: Français | M1: Norsk | N1: Español | O1: Svenska | P1: Čeština | Q1: ExtraTaal1 | R1: ExtraTaal2 | S1: ExtraTaal3 | AF1: =IF(LangNo=1,cal!$K$2,IF(LangNo=2,cal!$M$2,IF(LangNo=3,cal!$O$2,IF(LangNo=4,cal!$Q$2,IF(LangNo=5,cal!$I$2,IF(LangNo=6,cal!$S$2,IF(LangNo=7,cal!$I$2,IF(LangNo=8,cal!$U$2,IF(LangNo=9,cal!$S$2,IF(LangNo=10,cal!$S$2,IF(LangNo=11,cal!$S$2,))))))))))) -> Built-in | AK1: =CONCATENATE("Briza 22 2-",$AC$9) -> Briza 22 2-pipe | AL1: 120V (US) - LOW FLOW
I2: Innebygd | J2: Med hus | K2: Inbouw | L2: Met omkasting | M2: Built-in | N2: With casing | O2: Einbau | P2: Mit verkleidung | Q2: Intégré | R2: Avec caisson | S2: Empotrado | T2: con carcasa | U2: Vestavba | V2: s pouzdrem | X2: Selection Case | Z2: =CONCATENATE(AK5,AL5,Z6) -> 121 | AC2: T,kantel dry,wet | AF2: =IF(LangNo=1,cal!$L$2,IF(LangNo=2,cal!$N$2,IF(LangNo=3,cal!$P$2,IF(LangNo=4,cal!$R$2,IF(LangNo=5,cal!$J$2,IF(LangNo=6,cal!$T$2,IF(LangNo=7,cal!$J$2,IF(LangNo=8,cal!$V$2,IF(LangNo=9,cal!$T$2,IF(LangNo=10,cal!$T$2,IF(LangNo=11,cal!$T$2,))))))))))) -> With casing | AI2: =IF(LangNo=1,AI7,IF(LangNo=2,AI8,IF(LangNo=3,AI9,IF(LangNo=4,AI10,IF(LangNo=5,AI11,IF(LangNo=6,AI12,IF(LangNo=7,AI11,IF(LangNo=8,AI13,IF(LangNo=9,AI7,IF(LangNo=10,AI7,IF(LangNo=11,AI7,))))))))))) -> Fresh water | AK2: =CONCATENATE("Briza 22 4-",$AC$9) -> Briza 22 4-pipe | AL2: Standard 120V (US) | AO2: =AI2 -> Fresh water | AP2: =AI3 -> Eth. Glycol | AQ2: =AI4 -> Prop. Glycol | AR2: Choice 1 | AS2: Choice 2 | AW2: =AI2 -> Fresh water | AX2: =AI3 -> Eth. Glycol | AY2: =AI4 -> Prop. Glycol | AZ2: Choice 1 | BA2: Choice 2 | BC2: T02 | BD2: =IF(LangNo=1,NL!U24,IF(LangNo=2,EN!U24,IF(LangNo=3,DE!U24,IF(LangNo=4,FR!U24,IF(LangNo=5,NR!U24,IF(LangNo=6,SP!U24,IF(LangNo=7,SW!U24,IF(LangNo=8,TS!U24,IF(LangNo=9,ExtraTaal1!U24,IF(LangNo=10,ExtraTaal2!U24,IF(LangNo=11,ExtraTaal3!U24,))))))))))) -> Ceiling model | BE2: =NL!U24 -> Plafondmodel | BF2: =EN!U24 -> Ceiling model | BG2: =DE!U24 -> Deckenmodell | BH2: =FR!U24 -> Modèle de plafond | BI2: =NR!U24 -> Takmodell | BJ2: =SP!U24 -> Modelo de techo | BK2: Casing added height | BN2: =62.5-54.5 -> 8 | BO2: mm
Z3: 2 | AC3: =(237.3*LN((RH*EXP(17.27*(Tl_cool/(Tl_cool+237.3))))))/(17.27-LN((RH*EXP(17.27*(Tl_cool/(Tl_cool+237.3)))))) -> 15.69066559 | AD3: °C | AI3: Eth. Glycol | AK3: =CONCATENATE("Briza 26 2-",$AC$9) -> Briza 26 2-pipe | AL3: Standard 230V (EU) | AN3: 0% | AO3: 1 | AP3: 1 | AQ3: 1 | AR3: =IF(AdditNo=1,$AO3,IF(AdditNo=2,$AP3,IF(AdditNo=3,$AQ3))) -> 1 | AS3: =IF('Briza 22 & 26'!$M$3=cal!$AN$3,cal!$AR$3,IF('Briza 22 & 26'!$M$3=cal!$AN$4,cal!$AR$4,IF('Briza 22 & 26'!$M$3=cal!$AN$5,cal!$AR$5,IF('Briza 22 & 26'!$M$3=cal!$AN$6,cal!$AR$6,IF('Briza 22 & 26'!$M$3=cal!$AN$7,cal!$AR$7,IF('Briza 22 & 26'!$M$3=cal!$AN$8,cal!$AR$8,)))))) -> 1 | AV3: =AN3 -> 0% | AW3: 15 | AX3: 15 | AY3: 15 | AZ3: =IF(AdditNo=1,$AW3,IF(AdditNo=2,$AX3,IF(AdditNo=3,$AY3))) -> 15 | BA3: =IF('Briza 22 & 26'!$M$3=cal!$AN$3,cal!$AZ$3,IF('Briza 22 & 26'!$M$3=cal!$AN$4,cal!$AZ$4,IF('Briza 22 & 26'!$M$3=cal!$AN$5,cal!$AZ$5,IF('Briza 22 & 26'!$M$3=cal!$AN$6,cal!$AZ$6,IF('Briza 22 & 26'!$M$3=cal!$AN$7,cal!$AZ$7,IF('Briza 22 & 26'!$M$3=cal!$AN$8,cal!$AZ$8,)))))) -> 15 | BC3: T03 | BD3: =IF(LangNo=1,NL!U25,IF(LangNo=2,EN!U25,IF(LangNo=3,DE!U25,IF(LangNo=4,FR!U25,IF(LangNo=5,NR!U25,IF(LangNo=6,SP!U25,IF(LangNo=7,SW!U25,IF(LangNo=8,TS!U25,IF(LangNo=9,ExtraTaal1!U25,IF(LangNo=10,ExtraTaal2!U25,IF(LangNo=11,ExtraTaal3!U25,))))))))))) -> Wall model | BE3: =NL!U25 -> Muurmodel | BF3: =EN!U25 -> Wall model | BG3: =DE!U25 -> Wandmodell | BH3: =FR!U25 -> Modèle mural | BI3: =NR!U25 -> Veggmodell | BJ3: =SP!U25 -> Modelo de pared | BK3: Casing added width | BN3: 1.15 | BO3: mm
B4: =IF(LangNo=1,NL!A2,IF(LangNo=2,EN!A2,IF(LangNo=3,DE!A2,IF(LangNo=4,FR!A2,IF(LangNo=5,NR!A2,IF(LangNo=6,SP!A2,IF(LangNo=7,SW!A2,IF(LangNo=8,TS!A2,IF(LangNo=9,ExtraTaal1!A2,IF(LangNo=10,ExtraTaal2!A2,IF(LangNo=11,ExtraTaal3!A2,))))))))))) -> Formulary | Z4: =IF('Briza 22 & 26'!$K$3=cal!$AI$7,1,IF('Briza 22 & 26'!$K$3=cal!$AI$8,1,IF('Briza 22 & 26'!$K$3=cal!$AI$9,1,IF('Briza 22 & 26'!$K$3=cal!$AI$10,1,IF('Briza 22 & 26'!$K$3=cal!$AI$11,1,IF('Briza 22 & 26'!$K$3=cal!$AI$12,1,IF('Briza 22 & 26'!$K$3=cal!$AI$13,1,IF('Briza 22 & 26'!$K$3=cal!$AI$3,2,IF('Briza 22 & 26'!$K$3=cal!$AI$4,3,))))))))) -> 1 | AI4: Prop. Glycol | AK4: =CONCATENATE("Briza 26 4-",$AC$9) -> Briza 26 4-pipe | AL4: High Perform. 208/230V (US/EU) | AN4: 20% | AO4: 1 | AP4: 0.95 | AQ4: 0.98 | AR4: =IF(AdditNo=1,$AO4,IF(AdditNo=2,$AP4,IF(AdditNo=3,$AQ4))) -> 1 | AV4: =AN4 -> 20% | AW4: 15 | AX4: 0 | AY4: 0 | AZ4: =IF(AdditNo=1,$AW4,IF(AdditNo=2,$AX4,IF(AdditNo=3,$AY4))) -> 15 | BA4: =(BA3*1.8)+32 -> 59 | BC4: T04 | BE4: =SW!U24 -> Takmodell | BF4: =TS!U24 -> Stropní model | BM4: Casing added length | BN4: =17.5*2 -> 35 | BO4: mm
G5: =IF(LangNo=1,NL!G3,IF(LangNo=2,EN!G3,IF(LangNo=3,DE!G3,IF(LangNo=4,FR!G3,IF(LangNo=5,NR!G3,IF(LangNo=6,SP!G3,IF(LangNo=7,SW!G3,IF(LangNo=8,TS!G3,IF(LangNo=9,ExtraTaal1!G3,IF(LangNo=10,ExtraTaal2!G3,IF(LangNo=11,ExtraTaal3!G3,))))))))))) -> Hydronic mix: | H5: =IF(LangNo=1,NL!G3,IF(LangNo=2,EN!G3,IF(LangNo=3,DE!G3,IF(LangNo=4,FR!G3,IF(LangNo=5,NR!G3,IF(LangNo=6,SP!G3,IF(LangNo=7,SW!G3,IF(LangNo=8,TS!G3,IF(LangNo=9,ExtraTaal1!G3,IF(LangNo=10,ExtraTaal2!G3,IF(LangNo=11,ExtraTaal3!G3,))))))))))) -> Hydronic mix: | I5: =IF(LangNo=1,NL!H3,IF(LangNo=2,EN!H3,IF(LangNo=3,DE!H3,IF(LangNo=4,FR!H3,IF(LangNo=5,NR!H3,IF(LangNo=6,SP!H3,IF(LangNo=7,SW!H3,IF(LangNo=8,TS!H3,IF(LangNo=9,ExtraTaal1!H3,IF(LangNo=10,ExtraTaal2!H3,IF(LangNo=11,ExtraTaal3!H3,))))))))))) -> 0 | J5: =IF(LangNo=1,NL!I3,IF(LangNo=2,EN!I3,IF(LangNo=3,DE!I3,IF(LangNo=4,FR!I3,IF(LangNo=5,NR!I3,IF(LangNo=6,SP!I3,IF(LangNo=7,SW!I3,IF(LangNo=8,TS!I3,IF(LangNo=9,ExtraTaal1!I3,IF(LangNo=10,ExtraTaal2!I3,IF(LangNo=11,ExtraTaal3!I3,))))))))))) -> 0 | Z5: 1 | AC5: =IF(LangNo=1,NL!$U16,IF(LangNo=2,EN!$U16,IF(LangNo=3,DE!$U16,IF(LangNo=4,FR!$U16,IF(LangNo=5,NR!$U16,IF(LangNo=6,SP!$U16,IF(LangNo=7,SW!$U16,IF(LangNo=8,TS!$U16,IF(LangNo=9,ExtraTaal1!$U16,IF(LangNo=10,ExtraTaal2!$U16,IF(LangNo=11,ExtraTaal3!$U16,))))))))))) -> Δp high! | AF5: =IF(LangNo=1,NL!W16,IF(LangNo=2,EN!W16,IF(LangNo=3,DE!W16,IF(LangNo=4,FR!W16,IF(LangNo=5,NR!W16,IF(LangNo=6,SP!W16,IF(LangNo=7,SW!W16,IF(LangNo=8,TS!W16,IF(LangNo=9,ExtraTaal1!W16,IF(LangNo=10,ExtraTaal2!W16,IF(LangNo=11,ExtraTaal3!W16,))))))))))) -> Copy all data | AK5: =IF('Briza 22 & 26'!$K$4=cal!$AK$1,1,IF('Briza 22 & 26'!$K$4=cal!$AK$2,2,IF('Briza 22 & 26'!$K$4=cal!$AK$3,3,IF('Briza 22 & 26'!$K$4=cal!$AK$4,4,)))) -> 1 | AL5: =IF('Briza 22 & 26'!$M$4=cal!$AL$1,1,IF('Briza 22 & 26'!$M$4=cal!$AL$3,2,IF('Briza 22 & 26'!$M$4=cal!$AL$4,3,IF('Briza 22 & 26'!$M$4=cal!$AL$2,4,)))) -> 2 | AN5: 30% | AO5: 1 | AP5: 0.91 | AQ5: 0.96 | AR5: =IF(AdditNo=1,$AO5,IF(AdditNo=2,$AP5,IF(AdditNo=3,$AQ5))) -> 1 | AV5: =AN5 -> 30% | AW5: 15 | AX5: =-5 -> -5 | AY5: =-5 -> -5 | AZ5: =IF(AdditNo=1,$AW5,IF(AdditNo=2,$AX5,IF(AdditNo=3,$AY5))) -> 15 | BC5: T06 | BE5: =SW!U25 -> Väggmodell | BF5: =TS!U25 -> Nástěnný model | BK5: h | BL5: cf_hoogte_Qtot
B6: =IF(LangNo=1,NL!A4,IF(LangNo=2,EN!A4,IF(LangNo=3,DE!A4,IF(LangNo=4,FR!A4,IF(LangNo=5,NR!A4,IF(LangNo=6,SP!A4,IF(LangNo=7,SW!A4,IF(LangNo=8,TS!A4,IF(LangNo=9,ExtraTaal1!A4,IF(LangNo=10,ExtraTaal2!A4,IF(LangNo=11,ExtraTaal3!A4,))))))))))) -> Conditions | G6: =IF(LangNo=1,NL!G4,IF(LangNo=2,EN!G4,IF(LangNo=3,DE!G4,IF(LangNo=4,FR!G4,IF(LangNo=5,NR!G4,IF(LangNo=6,SP!G4,IF(LangNo=7,SW!G4,IF(LangNo=8,TS!G4,IF(LangNo=9,ExtraTaal1!G4,IF(LangNo=10,ExtraTaal2!G4,IF(LangNo=11,ExtraTaal3!G4,))))))))))) -> Device - Ventilator - Utilization: | H6: =IF(LangNo=1,NL!G4,IF(LangNo=2,EN!G4,IF(LangNo=3,DE!G4,IF(LangNo=4,FR!G4,IF(LangNo=5,NR!G4,IF(LangNo=6,SP!G4,IF(LangNo=7,SW!G4,IF(LangNo=8,TS!G4,IF(LangNo=9,ExtraTaal1!G4,IF(LangNo=10,ExtraTaal2!G4,IF(LangNo=11,ExtraTaal3!G4,))))))))))) -> Device - Ventilator - Utilization: | I6: =IF(LangNo=1,NL!H4,IF(LangNo=2,EN!H4,IF(LangNo=3,DE!H4,IF(LangNo=4,FR!H4,IF(LangNo=5,NR!H4,IF(LangNo=6,SP!H4,IF(LangNo=7,SW!H4,IF(LangNo=8,TS!H4,IF(LangNo=9,ExtraTaal1!H4,IF(LangNo=10,ExtraTaal2!H4,IF(LangNo=11,ExtraTaal3!H4,))))))))))) -> 0 | J6: =IF(LangNo=1,NL!I4,IF(LangNo=2,EN!I4,IF(LangNo=3,DE!I4,IF(LangNo=4,FR!I4,IF(LangNo=5,NR!I4,IF(LangNo=6,SP!I4,IF(LangNo=7,SW!I4,IF(LangNo=8,TS!I4,IF(LangNo=9,ExtraTaal1!I4,IF(LangNo=10,ExtraTaal2!I4,IF(LangNo=11,ExtraTaal3!I4,))))))))))) -> 0 | Z6: =IF('Briza 22 & 26'!$P$4=cal!$K$2,1,IF('Briza 22 & 26'!$P$4=cal!$M$2,1,IF('Briza 22 & 26'!$P$4=cal!$O$2,1,IF('Briza 22 & 26'!$P$4=cal!$Q$2,1,IF('Briza 22 & 26'!$P$4=cal!$I$2,1,IF('Briza 22 & 26'!$P$4=cal!$S$2,1,IF('Briza 22 & 26'!$P$4=cal!$U$2,1,IF('Briza 22 & 26'!$P$4=cal!$L$2,2,IF('Briza 22 & 26'!$P$4=cal!$N$2,2,IF('Briza 22 & 26'!$P$4=cal!$P$2,2,IF('Briza 22 & 26'!$P$4=cal!$R$2,2,IF('Briza 22 & 26'!$P$4=cal!$J$2,2,IF('Briza 22 & 26'!$P$4=cal!$T$2,2,IF('Briza 22 & 26'!$P$4=cal!$V$2,2,)))))))))))))) -> 1 | AC6: =IF(LangNo=1,NL!$U17,IF(LangNo=2,EN!$U17,IF(LangNo=3,DE!$U17,IF(LangNo=4,FR!$U17,IF(LangNo=5,NR!$U17,IF(LangNo=6,SP!$U17,IF(LangNo=7,SW!$U17,IF(LangNo=8,TS!$U17,IF(LangNo=9,ExtraTaal1!$U17,IF(LangNo=10,ExtraTaal2!$U17,IF(LangNo=11,ExtraTaal3!$U17,))))))))))) -> Temp. | AF6: =IF(LangNo=1,NL!W17,IF(LangNo=2,EN!W17,IF(LangNo=3,DE!W17,IF(LangNo=4,FR!W17,IF(LangNo=5,NR!W17,IF(LangNo=6,SP!W17,IF(LangNo=7,SW!W17,IF(LangNo=8,TS!W17,IF(LangNo=9,ExtraTaal1!W17,IF(LangNo=10,ExtraTaal2!W17,IF(LangNo=11,ExtraTaal3!W17,))))))))))) -> SI-units | AN6: 40% | AO6: 1 | AP6: 0.88 | AQ6: 0.93 | AR6: =IF(AdditNo=1,$AO6,IF(AdditNo=2,$AP6,IF(AdditNo=3,$AQ6))) -> 1 | AV6: =AN6 -> 40% | AW6: 15 | AX6: =-15 -> -15 | AY6: -15 | AZ6: =IF(AdditNo=1,$AW6,IF(AdditNo=2,$AX6,IF(AdditNo=3,$AY6))) -> 15 | BC6: T08 | BK6: =IF(UnitsNo=1,Geg_Altit/1000,IF(UnitsNo=2,Geg_Altit*0.0003048)) -> 0 | BL6: =-0.000265264729874266*BK6^6+0.000957582908802335*BK6^5+0.00470250661483425*BK6^4-0.0298716926548353*BK6^3+0.0557086806557086*BK6^2-0.0484008125693582*BK6+1 -> 1.000
P7: =IF(LangNo=1,NL!Q7,IF(LangNo=2,EN!Q7,IF(LangNo=3,DE!Q7,IF(LangNo=4,FR!Q7,IF(LangNo=5,NR!Q7,IF(LangNo=6,SP!Q7,IF(LangNo=7,SW!Q7,IF(LangNo=8,TS!Q7,IF(LangNo=9,ExtraTaal1!Q7,IF(LangNo=10,ExtraTaal2!Q7,IF(LangNo=11,ExtraTaal3!Q7,))))))))))) -> Unit conversion | Q7: =IF(LangNo=1,NL!P5,IF(LangNo=2,EN!P5,IF(LangNo=3,DE!P5,IF(LangNo=4,FR!P5,IF(LangNo=5,NR!P5,IF(LangNo=6,SP!P5,IF(LangNo=7,SW!P5,IF(LangNo=8,TS!P5,IF(LangNo=9,ExtraTaal1!P5,IF(LangNo=10,ExtraTaal2!P5,IF(LangNo=11,ExtraTaal3!P5,))))))))))) -> 0 | R7: =IF(LangNo=1,NL!S7,IF(LangNo=2,EN!S7,IF(LangNo=3,DE!S7,IF(LangNo=4,FR!S7,IF(LangNo=5,NR!S7,IF(LangNo=6,SP!S7,IF(LangNo=7,SW!S7,IF(LangNo=8,TS!S7,IF(LangNo=9,ExtraTaal1!S7,IF(LangNo=10,ExtraTaal2!S7,IF(LangNo=11,ExtraTaal3!S7,))))))))))) -> Known variables | S7: =IF(LangNo=1,NL!R5,IF(LangNo=2,EN!R5,IF(LangNo=3,DE!R5,IF(LangNo=4,FR!R5,IF(LangNo=5,NR!R5,IF(LangNo=6,SP!R5,IF(LangNo=7,SW!R5,IF(LangNo=8,TS!R5,IF(LangNo=9,ExtraTaal1!R5,IF(LangNo=10,ExtraTaal2!R5,IF(LangNo=11,ExtraTaal3!R5,))))))))))) -> 0 | Z7: =IF('Briza 22 & 26'!$K$2=cal!$I$1,1,IF('Briza 22 & 26'!$K$2=cal!$J$1,2,IF('Briza 22 & 26'!$K$2=cal!K1,3,IF('Briza 22 & 26'!$K$2=cal!L1,4,IF('Briza 22 & 26'!$K$2=cal!M1,5,IF('Briza 22 & 26'!$K$2=cal!N1,6,IF('Briza 22 & 26'!$K$2=cal!O1,7,IF('Briza 22 & 26'!$K$2=cal!P1,8,IF('Briza 22 & 26'!$K$2=cal!Q1,9,IF('Briza 22 & 26'!$K$2=cal!R1,10,IF('Briza 22 & 26'!$K$2=cal!S1,11,))))))))))) -> 2 | AC7: =IF(LangNo=1,NL!$U18,IF(LangNo=2,EN!$U18,IF(LangNo=3,DE!$U18,IF(LangNo=4,FR!$U18,IF(LangNo=5,NR!$U18,IF(LangNo=6,SP!$U18,IF(LangNo=7,SW!$U18,IF(LangNo=8,TS!$U18,IF(LangNo=9,ExtraTaal1!$U18,IF(LangNo=10,ExtraTaal2!$U18,IF(LangNo=11,ExtraTaal3!$U18,))))))))))) -> heating! | AF7: =IF(LangNo=1,NL!W18,IF(LangNo=2,EN!W18,IF(LangNo=3,DE!W18,IF(LangNo=4,FR!W18,IF(LangNo=5,NR!W18,IF(LangNo=6,SP!W18,IF(LangNo=7,SW!W18,IF(LangNo=8,TS!W18,IF(LangNo=9,ExtraTaal1!W18,IF(LangNo=10,ExtraTaal2!W18,IF(LangNo=11,ExtraTaal3!W18,))))))))))) -> Imperial-units | AI7: Zuiver water | AK7: =IF($BK$17="11","Briza 22 (120V)",IF($BK$17="21","Briza 22 (120V)",IF($BK$17="12","Briza 22 (230V)",IF($BK$17="22","Briza 22 (230V)",IF($BK$17="13","Briza 22 HP",IF($BK$17="23","Briza 22 HP",IF($BK$17="14","Briza 22 (120V-HP)",IF($BK$17="24","Briza 22 (120V-HP)",IF($BK$17="31","Briza 26 (120V)",IF($BK$17="41","Briza 26 (120V)",IF($BK$17="32","Briza 26 (230V)",IF($BK$17="42","Briza 26 (230V)",IF($BK$17="33","Briza 26 HP",IF($BK$17="43","Briza 26 HP",IF($BK$17="34","Briza 26 (120V-HP)",IF($BK$17="44","Briza 26 (120V-HP)",)))))))))))))))) -> Briza 22 (230V) | AN7: 50% | AO7: 1 | AP7: 0.84 | AQ7: 0.9 | AR7: =IF(AdditNo=1,$AO7,IF(AdditNo=2,$AP7,IF(AdditNo=3,$AQ7))) -> 1 | AV7: =AN7 -> 50% | AW7: 15 | AX7: -25 | AY7: -25 | AZ7: =IF(AdditNo=1,$AW7,IF(AdditNo=2,$AX7,IF(AdditNo=3,$AY7))) -> 15 | BC7: T10
B8: =IF(LangNo=1,NL!A6,IF(LangNo=2,EN!A6,IF(LangNo=3,DE!A6,IF(LangNo=4,FR!A6,IF(LangNo=5,NR!A6,IF(LangNo=6,SP!A6,IF(LangNo=7,SW!A6,IF(LangNo=8,TS!A6,IF(LangNo=9,ExtraTaal1!A6,IF(LangNo=10,ExtraTaal2!A6,IF(LangNo=11,ExtraTaal3!A6,))))))))))) -> Temperatures | M8: =IF(LangNo=1,NL!L6,IF(LangNo=2,EN!L6,IF(LangNo=3,DE!L6,IF(LangNo=4,FR!L6,IF(LangNo=5,NR!L6,IF(LangNo=6,SP!L6,IF(LangNo=7,SW!L6,IF(LangNo=8,TS!L6,IF(LangNo=9,ExtraTaal1!L6,IF(LangNo=10,ExtraTaal2!L6,IF(LangNo=11,ExtraTaal3!L6,))))))))))) -> Static pressure | N8: =IF(LangNo=1,NL!M6,IF(LangNo=2,EN!M6,IF(LangNo=3,DE!M6,IF(LangNo=4,FR!M6,IF(LangNo=5,NR!M6,IF(LangNo=6,SP!M6,IF(LangNo=7,SW!M6,IF(LangNo=8,TS!M6,IF(LangNo=9,ExtraTaal1!M6,IF(LangNo=10,ExtraTaal2!M6,IF(LangNo=11,ExtraTaal3!M6,))))))))))) -> 0 | Z8: =IF('Briza 22 & 26'!$R$4=cal!BE2,1,IF('Briza 22 & 26'!$R$4=cal!BF2,1,IF('Briza 22 & 26'!$R$4=cal!BG2,1,IF('Briza 22 & 26'!$R$4=cal!BH2,1,IF('Briza 22 & 26'!$R$4=cal!BI2,1,IF('Briza 22 & 26'!$R$4=cal!BJ2,1,IF('Briza 22 & 26'!$R$4=cal!BE3,2,IF('Briza 22 & 26'!$R$4=cal!BF3,2,IF('Briza 22 & 26'!$R$4=cal!BG3,2,IF('Briza 22 & 26'!$R$4=cal!BH3,2,IF('Briza 22 & 26'!$R$4=cal!BI3,2,IF('Briza 22 & 26'!$R$4=cal!BJ3,2,)))))))))))) -> 0 | AC8: =IF(LangNo=1,NL!$U19,IF(LangNo=2,EN!$U19,IF(LangNo=3,DE!$U19,IF(LangNo=4,FR!$U19,IF(LangNo=5,NR!$U19,IF(LangNo=6,SP!$U19,IF(LangNo=7,SW!$U19,IF(LangNo=8,TS!$U19,IF(LangNo=9,ExtraTaal1!$U19,IF(LangNo=10,ExtraTaal2!$U19,IF(LangNo=11,ExtraTaal3!$U19,))))))))))) -> cooling! | AF8: =IF(LangNo=1,NL!W19,IF(LangNo=2,EN!W19,IF(LangNo=3,DE!W19,IF(LangNo=4,FR!W19,IF(LangNo=5,NR!W19,IF(LangNo=6,SP!W19,IF(LangNo=7,SW!W19,IF(LangNo=8,TS!W19,IF(LangNo=9,ExtraTaal1!W19,IF(LangNo=10,ExtraTaal2!W19,IF(LangNo=11,ExtraTaal3!W19,))))))))))) -> T,wb & RH | AI8: Fresh water | AN8: 100% | AO8: 1 | AR8: 1 | AV8: 100% | AW8: 15 | AZ8: 15
B9: =IF(LangNo=1,NL!A7,IF(LangNo=2,EN!A7,IF(LangNo=3,DE!A7,IF(LangNo=4,FR!A7,IF(LangNo=5,NR!A7,IF(LangNo=6,SP!A7,IF(LangNo=7,SW!A7,IF(LangNo=8,TS!A7,IF(LangNo=9,ExtraTaal1!A7,IF(LangNo=10,ExtraTaal2!A7,IF(LangNo=11,ExtraTaal3!A7,))))))))))) -> Heating: | G9: =IF(LangNo=1,NL!F7,IF(LangNo=2,EN!F7,IF(LangNo=3,DE!F7,IF(LangNo=4,FR!F7,IF(LangNo=5,NR!F7,IF(LangNo=6,SP!F7,IF(LangNo=7,SW!F7,IF(LangNo=8,TS!F7,IF(LangNo=9,ExtraTaal1!F7,IF(LangNo=10,ExtraTaal2!F7,IF(LangNo=11,ExtraTaal3!F7,))))))))))) -> Cooling: | M9: =IF(UnitsNo=1,'Briza 22 & 26'!$M$9,IF(UnitsNo=2,'Briza 22 & 26'!$M$9*249.08890833333,)) -> 0.000 | V9: Temp | X9: Flow loss casing | Z9: 1 | AC9: =IF(LangNo=1,"pijp",IF(LangNo=2,"pipe",IF(LangNo=3,"rohr",IF(LangNo=4,"conduite",IF(LangNo=5,"rør",IF(LangNo=6,"tubos",IF(LangNo=7,"ror",IF(LangNo=8,"trubka",IF(LangNo=9,"ExtraTaal1",IF(LangNo=10,"ExtraTaal2",IF(LangNo=11,"ExtraTaal3",))))))))))) -> pipe | AF9: =IF(LangNo=1,NL!W20,IF(LangNo=2,EN!W20,IF(LangNo=3,DE!W20,IF(LangNo=4,FR!W20,IF(LangNo=5,NR!W20,IF(LangNo=6,SP!W20,IF(LangNo=7,SW!W20,IF(LangNo=8,TS!W20,IF(LangNo=9,ExtraTaal1!W20,IF(LangNo=10,ExtraTaal2!W20,IF(LangNo=11,ExtraTaal3!W20,))))))))))) -> T,db & RH | AI9: Reines Wasser | AK9: =IF(LangNo=1,NL!W16,IF(LangNo=2,EN!W16,IF(LangNo=3,DE!W16,IF(LangNo=4,FR!W16,IF(LangNo=5,NR!W16,IF(LangNo=6,SP!W16,IF(LangNo=7,SW!W16,IF(LangNo=8,TS!W16,IF(LangNo=9,ExtraTaal1!W16,IF(LangNo=10,ExtraTaal2!W16,IF(LangNo=11,ExtraTaal3!W16,))))))))))) -> Copy all data | AN9: BPF | BI9: Temp | BK9: dP
B10: =IF(LangNo=1,NL!A8,IF(LangNo=2,EN!A8,IF(LangNo=3,DE!A8,IF(LangNo=4,FR!A8,IF(LangNo=5,NR!A8,IF(LangNo=6,SP!A8,IF(LangNo=7,SW!A8,IF(LangNo=8,TS!A8,IF(LangNo=9,ExtraTaal1!A8,IF(LangNo=10,ExtraTaal2!A8,IF(LangNo=11,ExtraTaal3!A8,))))))))))) -> Supply water | C10: =IF(LangNo=1,NL!B8,IF(LangNo=2,EN!B8,IF(LangNo=3,DE!B8,IF(LangNo=4,FR!B8,IF(LangNo=5,NR!B8,IF(LangNo=6,SP!B8,IF(LangNo=7,SW!B8,IF(LangNo=8,TS!B8,IF(LangNo=9,ExtraTaal1!B8,IF(LangNo=10,ExtraTaal2!B8,IF(LangNo=11,ExtraTaal3!B8,))))))))))) -> 0 | D10: =IF(LangNo=1,NL!C8,IF(LangNo=2,EN!C8,IF(LangNo=3,DE!C8,IF(LangNo=4,FR!C8,IF(LangNo=5,NR!C8,IF(LangNo=6,SP!C8,IF(LangNo=7,SW!C8,IF(LangNo=8,TS!C8,IF(LangNo=9,ExtraTaal1!C8,IF(LangNo=10,ExtraTaal2!C8,IF(LangNo=11,ExtraTaal3!C8,))))))))))) -> 0 | E10: ='Briza 22 & 26'!E8 -> 65 | F10: =IF(UnitsNo=1,"°C",IF(UnitsNo=2,"°F")) -> °C | G10: =B10 -> Supply water | H10: =IF(LangNo=1,NL!G8,IF(LangNo=2,EN!G8,IF(LangNo=3,DE!G8,IF(LangNo=4,FR!G8,IF(LangNo=5,NR!G8,IF(LangNo=6,SP!G8,)))))) -> 0 | I10: =IF(LangNo=1,NL!H8,IF(LangNo=2,EN!H8,IF(LangNo=3,DE!H8,IF(LangNo=4,FR!H8,IF(LangNo=5,NR!H8,IF(LangNo=6,SP!H8,)))))) -> 0 | J10: =IF(LangNo=1,NL!I8,IF(LangNo=2,EN!I8,IF(LangNo=3,DE!I8,IF(LangNo=4,FR!I8,IF(LangNo=5,NR!I8,IF(LangNo=6,SP!I8,)))))) -> 0 | K10: ='Briza 22 & 26'!K8 -> 16 | V10: =IF(UnitsNo=1,$E10,IF(UnitsNo=2,($E10-Celc2)/Celc1)) -> 65.00 | AC10: =IF(LangNo=1,NL!$U10,IF(LangNo=2,EN!$U10,IF(LangNo=3,DE!$U10,IF(LangNo=4,FR!$U10,IF(LangNo=5,NR!$U10,IF(LangNo=6,SP!$U10,IF(LangNo=7,SW!$U10,IF(LangNo=8,TS!$U10,IF(LangNo=9,ExtraTaal1!$U10,IF(LangNo=10,ExtraTaal2!$U10,IF(LangNo=11,ExtraTaal3!$U10,))))))))))) -> Desired flow rate | AF10: =IF(LangNo=1,NL!W21,IF(LangNo=2,EN!W21,IF(LangNo=3,DE!W21,IF(LangNo=4,FR!W21,IF(LangNo=5,NR!W21,IF(LangNo=6,SP!W21,IF(LangNo=7,SW!W21,IF(LangNo=8,TS!W21,IF(LangNo=9,ExtraTaal1!W21,IF(LangNo=10,ExtraTaal2!W21,IF(LangNo=11,ExtraTaal3!W21,))))))))))) -> T,db & T,wb | AI10: Eau pure | AK10: =IF(LangNo=1,NL!W17,IF(LangNo=2,EN!W17,IF(LangNo=3,DE!W17,IF(LangNo=4,FR!W17,IF(LangNo=5,NR!W17,IF(LangNo=6,SP!W17,IF(LangNo=7,SW!W17,IF(LangNo=8,TS!W17,IF(LangNo=9,ExtraTaal1!W17,IF(LangNo=10,ExtraTaal2!W17,IF(LangNo=11,ExtraTaal3!W17,))))))))))) -> SI-units | AN10: 1.2 | BI10: =IF(UnitsNo=1,$K10,IF(UnitsNo=2,($K10-Celc2)/Celc1)) -> 16.00 | BK10: =IF(UnitsNo=1,M9/10,IF(UnitsNo=2,M9*24.90889083)) -> 0.00
B11: =IF(LangNo=1,NL!A9,IF(LangNo=2,EN!A9,IF(LangNo=3,DE!A9,IF(LangNo=4,FR!A9,IF(LangNo=5,NR!A9,IF(LangNo=6,SP!A9,IF(LangNo=7,SW!A9,IF(LangNo=8,TS!A9,IF(LangNo=9,ExtraTaal1!A9,IF(LangNo=10,ExtraTaal2!A9,IF(LangNo=11,ExtraTaal3!A9,))))))))))) -> Return water | C11: =IF(LangNo=1,NL!B9,IF(LangNo=2,EN!B9,IF(LangNo=3,DE!B9,IF(LangNo=4,FR!B9,IF(LangNo=5,NR!B9,IF(LangNo=6,SP!B9,IF(LangNo=7,SW!B9,IF(LangNo=8,TS!B9,IF(LangNo=9,ExtraTaal1!B9,IF(LangNo=10,ExtraTaal2!B9,IF(LangNo=11,ExtraTaal3!B9,))))))))))) -> 0 | D11: =IF(LangNo=1,NL!C9,IF(LangNo=2,EN!C9,IF(LangNo=3,DE!C9,IF(LangNo=4,FR!C9,IF(LangNo=5,NR!C9,IF(LangNo=6,SP!C9,IF(LangNo=7,SW!C9,IF(LangNo=8,TS!C9,IF(LangNo=9,ExtraTaal1!C9,IF(LangNo=10,ExtraTaal2!C9,IF(LangNo=11,ExtraTaal3!C9,))))))))))) -> 0 | E11: ='Briza 22 & 26'!E9 -> 55 | F11: =F10 -> °C | G11: =B11 -> Return water | H11: =IF(LangNo=1,NL!G9,IF(LangNo=2,EN!G9,IF(LangNo=3,DE!G9,IF(LangNo=4,FR!G9,IF(LangNo=5,NR!G9,IF(LangNo=6,SP!G9,)))))) -> 0 | I11: =IF(LangNo=1,NL!H9,IF(LangNo=2,EN!H9,IF(LangNo=3,DE!H9,IF(LangNo=4,FR!H9,IF(LangNo=5,NR!H9,IF(LangNo=6,SP!H9,)))))) -> 0 | J11: =IF(LangNo=1,NL!I9,IF(LangNo=2,EN!I9,IF(LangNo=3,DE!I9,IF(LangNo=4,FR!I9,IF(LangNo=5,NR!I9,IF(LangNo=6,SP!I9,)))))) -> 0 | K11: ='Briza 22 & 26'!K9 -> 18 | M11: =IF(LangNo=1,NL!L9,IF(LangNo=2,EN!L9,IF(LangNo=3,DE!L9,IF(LangNo=4,FR!L9,IF(LangNo=5,NR!L9,IF(LangNo=6,SP!L9,IF(LangNo=7,SW!L9,IF(LangNo=8,TS!L9,IF(LangNo=9,ExtraTaal1!L9,IF(LangNo=10,ExtraTaal2!L9,IF(LangNo=11,ExtraTaal3!L9,))))))))))) -> Altitude | N11: =IF(LangNo=1,NL!M9,IF(LangNo=2,EN!M9,IF(LangNo=3,DE!M9,IF(LangNo=4,FR!M9,IF(LangNo=5,NR!M9,IF(LangNo=6,SP!M9,IF(LangNo=7,SW!M9,IF(LangNo=8,TS!M9,IF(LangNo=9,ExtraTaal1!M9,IF(LangNo=10,ExtraTaal2!M9,IF(LangNo=11,ExtraTaal3!M9,))))))))))) -> 0 | V11: =IF(UnitsNo=1,$E11,IF(UnitsNo=2,($E11-Celc2)/Celc1)) -> 55.00 | AC11: =IF(LangNo=1,NL!$U11,IF(LangNo=2,EN!$U11,IF(LangNo=3,DE!$U11,IF(LangNo=4,FR!$U11,IF(LangNo=5,NR!$U11,IF(LangNo=6,SP!$U11,IF(LangNo=7,SW!$U11,IF(LangNo=8,TS!$U11,IF(LangNo=9,ExtraTaal1!$U11,IF(LangNo=10,ExtraTaal2!$U11,IF(LangNo=11,ExtraTaal3!$U11,))))))))))) -> To calculate on | AF11: =IF(LangNo=1,NL!W22,IF(LangNo=2,EN!W22,IF(LangNo=3,DE!W22,IF(LangNo=4,FR!W22,IF(LangNo=5,NR!W22,IF(LangNo=6,SP!W22,IF(LangNo=7,SW!W22,IF(LangNo=8,TS!W22,IF(LangNo=9,ExtraTaal1!W22,IF(LangNo=10,ExtraTaal2!W22,IF(LangNo=11,ExtraTaal3!W22,))))))))))) -> Only on request! | AI11: Ferskvann | AK11: =IF(LangNo=1,NL!W18,IF(LangNo=2,EN!W18,IF(LangNo=3,DE!W18,IF(LangNo=4,FR!W18,IF(LangNo=5,NR!W18,IF(LangNo=6,SP!W18,IF(LangNo=7,SW!W18,IF(LangNo=8,TS!W18,IF(LangNo=9,ExtraTaal1!W18,IF(LangNo=10,ExtraTaal2!W18,IF(LangNo=11,ExtraTaal3!W18,))))))))))) -> Imperial-units | BI11: =IF(UnitsNo=1,$K11,IF(UnitsNo=2,($K11-Celc2)/Celc1)) -> 18.00 | BK11: p_atm
B12: =IF(LangNo=1,NL!A10,IF(LangNo=2,EN!A10,IF(LangNo=3,DE!A10,IF(LangNo=4,FR!A10,IF(LangNo=5,NR!A10,IF(LangNo=6,SP!A10,IF(LangNo=7,SW!A10,IF(LangNo=8,TS!A10,IF(LangNo=9,ExtraTaal1!A10,IF(LangNo=10,ExtraTaal2!A10,IF(LangNo=11,ExtraTaal3!A10,))))))))))) -> Entering air (dry bulb) | C12: =IF(LangNo=1,NL!B10,IF(LangNo=2,EN!B10,IF(LangNo=3,DE!B10,IF(LangNo=4,FR!B10,IF(LangNo=5,NR!B10,IF(LangNo=6,SP!B10,IF(LangNo=7,SW!B10,IF(LangNo=8,TS!B10,IF(LangNo=9,ExtraTaal1!B10,IF(LangNo=10,ExtraTaal2!B10,IF(LangNo=11,ExtraTaal3!B10,))))))))))) -> 0 | D12: =IF(LangNo=1,NL!C10,IF(LangNo=2,EN!C10,IF(LangNo=3,DE!C10,IF(LangNo=4,FR!C10,IF(LangNo=5,NR!C10,IF(LangNo=6,SP!C10,IF(LangNo=7,SW!C10,IF(LangNo=8,TS!C10,IF(LangNo=9,ExtraTaal1!C10,IF(LangNo=10,ExtraTaal2!C10,IF(LangNo=11,ExtraTaal3!C10,))))))))))) -> 0 | E12: ='Briza 22 & 26'!E10 -> 20 | F12: =F10 -> °C | G12: Entering air (dry bulb) | H12: =IF(LangNo=1,NL!G10,IF(LangNo=2,EN!G10,IF(LangNo=3,DE!G10,IF(LangNo=4,FR!G10,IF(LangNo=5,NR!G10,IF(LangNo=6,SP!G10,)))))) -> 0 | I12: =IF(LangNo=1,NL!H10,IF(LangNo=2,EN!H10,IF(LangNo=3,DE!H10,IF(LangNo=4,FR!H10,IF(LangNo=5,NR!H10,IF(LangNo=6,SP!H10,)))))) -> 0 | J12: =IF(LangNo=1,NL!I10,IF(LangNo=2,EN!I10,IF(LangNo=3,DE!I10,IF(LangNo=4,FR!I10,IF(LangNo=5,NR!I10,IF(LangNo=6,SP!I10,)))))) -> 0 | K12: ='Briza 22 & 26'!K10 -> 27 | M12: ='Briza 22 & 26'!M11:N11 -> 0 | V12: =IF(UnitsNo=1,$E12,IF(UnitsNo=2,($E12-Celc2)/Celc1)) -> 20.00 | X12: =IF(CaseNo=1,1,IF(CaseNo=2,0.868616242602513)) -> 1 | AC12: =IF(UnitsNo=1,"[l/h]","[GPM]") -> [l/h] | AF12: =IF(LangNo=1,NL!W23,IF(LangNo=2,EN!W23,IF(LangNo=3,DE!W23,IF(LangNo=4,FR!W23,IF(LangNo=5,NR!W23,IF(LangNo=6,SP!W23,IF(LangNo=7,SW!W23,IF(LangNo=8,TS!W23,IF(LangNo=9,ExtraTaal1!W23,IF(LangNo=10,ExtraTaal2!W23,IF(LangNo=11,ExtraTaal3!W23,))))))))))) -> Product not available with casing! | AI12: Agua dulce | BI12: =IF(UnitsNo=1,$K12,IF(UnitsNo=2,($K12-Celc2)/Celc1)) -> 27.00 | BK12: =IF(UnitsNo=1,(101325*(1-((0.0065*Geg_Altit)/288.15))^((9.81*0.028964)/(8.31447*0.0065))),IF(UnitsNo=2,(101325*(1-((0.0065*(Geg_Altit*0.3048))/288.15))^((9.81*0.028964)/(8.31447*0.0065))))) -> 101325
B13: =IF(LangNo=1,NL!A11,IF(LangNo=2,EN!A11,IF(LangNo=3,DE!A11,IF(LangNo=4,FR!A11,IF(LangNo=5,NR!A11,IF(LangNo=6,SP!A11,IF(LangNo=7,SW!A11,IF(LangNo=8,TS!A11,IF(LangNo=9,ExtraTaal1!A11,IF(LangNo=10,ExtraTaal2!A11,IF(LangNo=11,ExtraTaal3!A11,))))))))))) -> Entering air (wet bulb) | C13: =IF(LangNo=1,NL!B11,IF(LangNo=2,EN!B11,IF(LangNo=3,DE!B11,IF(LangNo=4,FR!B11,IF(LangNo=5,NR!B11,IF(LangNo=6,SP!B11,IF(LangNo=7,SW!B11,IF(LangNo=8,TS!B11,IF(LangNo=9,ExtraTaal1!B11,IF(LangNo=10,ExtraTaal2!B11,IF(LangNo=11,ExtraTaal3!B11,))))))))))) -> 0 | D13: =IF(LangNo=1,NL!C11,IF(LangNo=2,EN!C11,IF(LangNo=3,DE!C11,IF(LangNo=4,FR!C11,IF(LangNo=5,NR!C11,IF(LangNo=6,SP!C11,IF(LangNo=7,SW!C11,IF(LangNo=8,TS!C11,IF(LangNo=9,ExtraTaal1!C11,IF(LangNo=10,ExtraTaal2!C11,IF(LangNo=11,ExtraTaal3!C11,))))))))))) -> 0 | G13: =B13 -> Entering air (wet bulb) | H13: =IF(LangNo=1,NL!G11,IF(LangNo=2,EN!G11,IF(LangNo=3,DE!G11,IF(LangNo=4,FR!G11,IF(LangNo=5,NR!G11,IF(LangNo=6,SP!G11,)))))) -> 0 | I13: =IF(LangNo=1,NL!H11,IF(LangNo=2,EN!H11,IF(LangNo=3,DE!H11,IF(LangNo=4,FR!H11,IF(LangNo=5,NR!H11,IF(LangNo=6,SP!H11,)))))) -> 0 | J13: =IF(LangNo=1,NL!I11,IF(LangNo=2,EN!I11,IF(LangNo=3,DE!I11,IF(LangNo=4,FR!I11,IF(LangNo=5,NR!I11,IF(LangNo=6,SP!I11,)))))) -> 0 | K13: ='Briza 22 & 26'!K11 -> 19.4 | V13: =IF(UnitsNo=1,$E13,IF(UnitsNo=2,($E13-Celc2)/Celc1)) -> 0.00 | AI13: Sladká voda | BI13: =IF(UnitsNo=1,$K13,IF(UnitsNo=2,($K13-Celc2)/Celc1)) -> 19.42 | ER13: BRIZA 22 | EV13: BRIZA 26 | FA13: BRIZA 22 | FE13: BRIZA 26
E14: 50% | F14: ='Briza 22 & 26'!$E$11 -> 0.0 | G14: =IF(LangNo=1,NL!F11,IF(LangNo=2,EN!F11,IF(LangNo=3,DE!F11,IF(LangNo=4,FR!F11,IF(LangNo=5,NR!F11,IF(LangNo=6,SP!F11,IF(LangNo=7,SW!F11,IF(LangNo=8,TS!F11,IF(LangNo=9,ExtraTaal1!F11,IF(LangNo=10,ExtraTaal2!F11,IF(LangNo=11,ExtraTaal3!F11,))))))))))) -> Relative humidity | K14: ='Briza 22 & 26'!K12 -> 50% | AC14: BRIZA 22 | AS14: BRIZA 26
D15: =IF(UnitsNo=1,1,IF(UnitsNo=2,3.412141633)) -> 1.0000 | E15: =IF(UnitsNo=1,1,IF(UnitsNo=2,0.004403)) -> 1.0000 | F15: =IF(UnitsNo=1,1,IF(UnitsNo=2,0.334562)) -> 1.0000 | H15: =IF(UnitsNo=1,5,9) -> 5.0000 | K15: =IF(UnitsNo=2,1,IF(UnitsNo=1,0.588575)) -> 0.5886 | L15: =IF(UnitsNo=1,0.000334444444444444,IF(UnitsNo=2,0.000568224721372)) -> 0.0003344444444 | M15: =IF(UnitsNo=1,1,IF(UnitsNo=2,196.85039370079)) -> 1.0000 | N15: =IF(UnitsNo=1,1,IF(UnitsNo=2,0.588575)) -> 1.0000 | O15: =IF(UnitsNo=1,1,IF(UnitsNo=2,1.8)) -> 1.0000 | Q15: =IF(UnitsNo=1,0,IF(UnitsNo=2,32)) -> 0.0000 | R15: =IF(UnitsNo=1,1,IF(UnitsNo=2,0.393700787)) -> 1 | W15: 87.5% | X15: CALC | AC15: 115V | AG15: 115V-HP | AK15: 230V | AO15: 230V-HP | AS15: 115V | AW15: 115V-HP | BA15: 230V | BE15: 230V-HP | BK15: CALC | BN15: BRIZA 22 | BT15: BRIZA 26 | BZ15: CALC | CN15: 115V | DB15: 115V-HP | DP15: 230V | ED15: 230V-HP | ER15: 115V | ES15: 115HP | ET15: 230V | EU15: 230HP | EV15: 115V | EW15: 115HP | EX15: 230V | EY15: 230HP | EZ15: CALC | FA15: 115V | FB15: 115HP | FC15: 230V | FD15: 230HP | FE15: 115V | FF15: 115HP | FG15: 230V | FH15: 230HP
B16: =IF(LangNo=1,NL!A14,IF(LangNo=2,EN!A14,IF(LangNo=3,DE!A14,IF(LangNo=4,FR!A14,IF(LangNo=5,NR!A14,IF(LangNo=6,SP!A14,IF(LangNo=7,SW!A14,IF(LangNo=8,TS!A14,IF(LangNo=9,ExtraTaal1!A14,IF(LangNo=10,ExtraTaal2!A14,IF(LangNo=11,ExtraTaal3!A14,))))))))))) -> Speed level | C16: =IF(LangNo=1,NL!B14,IF(LangNo=2,EN!B14,IF(LangNo=3,DE!B14,IF(LangNo=4,FR!B14,IF(LangNo=5,NR!B14,IF(LangNo=6,SP!B14,IF(LangNo=7,SW!B14,IF(LangNo=8,TS!B14,IF(LangNo=9,ExtraTaal1!B14,IF(LangNo=10,ExtraTaal2!B14,IF(LangNo=11,ExtraTaal3!B14,))))))))))) -> Control voltage [V] | D16: =IF(LangNo=1,NL!C14,IF(LangNo=2,EN!C14,IF(LangNo=3,DE!C14,IF(LangNo=4,FR!C14,IF(LangNo=5,NR!C14,IF(LangNo=6,SP!C14,IF(LangNo=7,SW!C14,IF(LangNo=8,TS!C14,IF(LangNo=9,ExtraTaal1!C14,IF(LangNo=10,ExtraTaal2!C14,IF(LangNo=11,ExtraTaal3!C14,))))))))))) -> Heat output * 65/55/20 [W] | E16: =IF(LangNo=1,NL!D14,IF(LangNo=2,EN!D14,IF(LangNo=3,DE!D14,IF(LangNo=4,FR!D14,IF(LangNo=5,NR!D14,IF(LangNo=6,SP!D14,IF(LangNo=7,SW!D14,IF(LangNo=8,TS!D14,IF(LangNo=9,ExtraTaal1!D14,IF(LangNo=10,ExtraTaal2!D14,IF(LangNo=11,ExtraTaal3!D14,))))))))))) -> Water flowrate, heating [l/h] | F16: =IF(LangNo=1,NL!E14,IF(LangNo=2,EN!E14,IF(LangNo=3,DE!E14,IF(LangNo=4,FR!E14,IF(LangNo=5,NR!E14,IF(LangNo=6,SP!E14,IF(LangNo=7,SW!E14,IF(LangNo=8,TS!E14,IF(LangNo=9,ExtraTaal1!E14,IF(LangNo=10,ExtraTaal2!E14,IF(LangNo=11,ExtraTaal3!E14,))))))))))) -> Water side pressure loss [kPa] | G16: =IF(LangNo=1,NL!F14,IF(LangNo=2,EN!F14,IF(LangNo=3,DE!F14,IF(LangNo=4,FR!F14,IF(LangNo=5,NR!F14,IF(LangNo=6,SP!F14,IF(LangNo=7,SW!F14,IF(LangNo=8,TS!F14,IF(LangNo=9,ExtraTaal1!F14,IF(LangNo=10,ExtraTaal2!F14,IF(LangNo=11,ExtraTaal3!F14,))))))))))) -> Sens. cooling capacity * 16/18/27 [W] | H16: =IF(LangNo=1,NL!G14,IF(LangNo=2,EN!G14,IF(LangNo=3,DE!G14,IF(LangNo=4,FR!G14,IF(LangNo=5,NR!G14,IF(LangNo=6,SP!G14,IF(LangNo=7,SW!G14,IF(LangNo=8,TS!G14,IF(LangNo=9,ExtraTaal1!G14,IF(LangNo=10,ExtraTaal2!G14,IF(LangNo=11,ExtraTaal3!G14,))))))))))) -> Tot. cooling capacity 16/18/27 [W] | I16: =IF(LangNo=1,NL!H14,IF(LangNo=2,EN!H14,IF(LangNo=3,DE!H14,IF(LangNo=4,FR!H14,IF(LangNo=5,NR!H14,IF(LangNo=6,SP!H14,IF(LangNo=7,SW!H14,IF(LangNo=8,TS!H14,IF(LangNo=9,ExtraTaal1!H14,IF(LangNo=10,ExtraTaal2!H14,IF(LangNo=11,ExtraTaal3!H14,))))))))))) -> Water flowrate, cooling [l/h] | J16: =IF(LangNo=1,NL!I14,IF(LangNo=2,EN!I14,IF(LangNo=3,DE!I14,IF(LangNo=4,FR!I14,IF(LangNo=5,NR!I14,IF(LangNo=6,SP!I14,IF(LangNo=7,SW!I14,IF(LangNo=8,TS!I14,IF(LangNo=9,ExtraTaal1!I14,IF(LangNo=10,ExtraTaal2!I14,IF(LangNo=11,ExtraTaal3!I14,))))))))))) -> Water side pressure loss [kPa] | K16: =IF(LangNo=1,NL!J14,IF(LangNo=2,EN!J14,IF(LangNo=3,DE!J14,IF(LangNo=4,FR!J14,IF(LangNo=5,NR!J14,IF(LangNo=6,SP!J14,IF(LangNo=7,SW!J14,IF(LangNo=8,TS!J14,IF(LangNo=9,ExtraTaal1!J14,IF(LangNo=10,ExtraTaal2!J14,IF(LangNo=11,ExtraTaal3!J14,))))))))))) -> Sound pressure *** [dB(A)] | L16: =IF(LangNo=1,NL!K14,IF(LangNo=2,EN!K14,IF(LangNo=3,DE!K14,IF(LangNo=4,FR!K14,IF(LangNo=5,NR!K14,IF(LangNo=6,SP!K14,IF(LangNo=7,SW!K14,IF(LangNo=8,TS!K14,IF(LangNo=9,ExtraTaal1!K14,IF(LangNo=10,ExtraTaal2!K14,IF(LangNo=11,ExtraTaal3!K14,))))))))))) -> Sound power ** [dB(A)] | M16: =IF(LangNo=1,NL!L14,IF(LangNo=2,EN!L14,IF(LangNo=3,DE!L14,IF(LangNo=4,FR!L14,IF(LangNo=5,NR!L14,IF(LangNo=6,SP!L14,IF(LangNo=7,SW!L14,IF(LangNo=8,TS!L14,IF(LangNo=9,ExtraTaal1!L14,IF(LangNo=10,ExtraTaal2!L14,IF(LangNo=11,ExtraTaal3!L14,))))))))))) -> Electrical power [W] | N16: =IF(LangNo=1,NL!M14,IF(LangNo=2,EN!M14,IF(LangNo=3,DE!M14,IF(LangNo=4,FR!M14,IF(LangNo=5,NR!M14,IF(LangNo=6,SP!M14,IF(LangNo=7,SW!M14,IF(LangNo=8,TS!M14,IF(LangNo=9,ExtraTaal1!M14,IF(LangNo=10,ExtraTaal2!M14,IF(LangNo=11,ExtraTaal3!M14,))))))))))) -> Air flowrate [m³/h] | O16: =IF(LangNo=1,NL!N14,IF(LangNo=2,EN!N14,IF(LangNo=3,DE!N14,IF(LangNo=4,FR!N14,IF(LangNo=5,NR!N14,IF(LangNo=6,SP!N14,IF(LangNo=7,SW!N14,IF(LangNo=8,TS!N14,IF(LangNo=9,ExtraTaal1!N14,IF(LangNo=10,ExtraTaal2!N14,IF(LangNo=11,ExtraTaal3!N14,))))))))))) -> Face velocity [m/s] | P16: =IF(LangNo=1,NL!O14,IF(LangNo=2,EN!O14,IF(LangNo=3,DE!O14,IF(LangNo=4,FR!O14,IF(LangNo=5,NR!O14,IF(LangNo=6,SP!O14,IF(LangNo=7,SW!O14,IF(LangNo=8,TS!O14,IF(LangNo=9,ExtraTaal1!O14,IF(LangNo=10,ExtraTaal2!O14,IF(LangNo=11,ExtraTaal3!O14,))))))))))) -> Air exhaust temp. heating [°C] | Q16: =IF(LangNo=1,NL!P14,IF(LangNo=2,EN!P14,IF(LangNo=3,DE!P14,IF(LangNo=4,FR!P14,IF(LangNo=5,NR!P14,IF(LangNo=6,SP!P14,IF(LangNo=7,SW!P14,IF(LangNo=8,TS!P14,IF(LangNo=9,ExtraTaal1!P14,IF(LangNo=10,ExtraTaal2!P14,IF(LangNo=11,ExtraTaal3!P14,))))))))))) -> Air exhaust temp. heating (wet bulb) [°C] | R16: =IF(LangNo=1,NL!Q14,IF(LangNo=2,EN!Q14,IF(LangNo=3,DE!Q14,IF(LangNo=4,FR!Q14,IF(LangNo=5,NR!Q14,IF(LangNo=6,SP!Q14,IF(LangNo=7,SW!Q14,IF(LangNo=8,TS!Q14,IF(LangNo=9,ExtraTaal1!Q14,IF(LangNo=10,ExtraTaal2!Q14,IF(LangNo=11,ExtraTaal3!Q14,))))))))))) -> Air exhaust temp. cooling (dry bulb) [°C] | S16: =IF(LangNo=1,NL!R14,IF(LangNo=2,EN!R14,IF(LangNo=3,DE!R14,IF(LangNo=4,FR!R14,IF(LangNo=5,NR!R14,IF(LangNo=6,SP!R14,IF(LangNo=7,SW!R14,IF(LangNo=8,TS!R14,IF(LangNo=9,ExtraTaal1!R14,IF(LangNo=10,ExtraTaal2!R14,IF(LangNo=11,ExtraTaal3!R14,))))))))))) -> Air exhaust temp. cooling (wet bulb) [°C] | T16: =IF(LangNo=1,NL!S14,IF(LangNo=2,EN!S14,IF(LangNo=3,DE!S14,IF(LangNo=4,FR!S14,IF(LangNo=5,NR!S14,IF(LangNo=6,SP!S14,IF(LangNo=7,SW!S14,IF(LangNo=8,TS!S14,IF(LangNo=9,ExtraTaal1!S14,IF(LangNo=10,ExtraTaal2!S14,IF(LangNo=11,ExtraTaal3!S14,)))))))))))&" ****" -> Rel. humid. cooled air [%] **** | U16: =IF(LangNo=1,NL!T14,IF(LangNo=2,EN!T14,IF(LangNo=3,DE!T14,IF(LangNo=4,FR!T14,IF(LangNo=5,NR!T14,IF(LangNo=6,SP!T14,IF(LangNo=7,SW!T14,IF(LangNo=8,TS!T14,IF(LangNo=9,ExtraTaal1!T14,IF(LangNo=10,ExtraTaal2!T14,IF(LangNo=11,ExtraTaal3!T14,))))))))))) -> fan rotation frequency [revolutions/minute] | V16: =IF(LangNo=1,NL!U14,IF(LangNo=2,EN!U14,IF(LangNo=3,DE!U14,IF(LangNo=4,FR!U14,IF(LangNo=5,NR!U14,IF(LangNo=6,SP!U14,IF(LangNo=7,SW!U14,IF(LangNo=8,TS!U14,IF(LangNo=9,ExtraTaal1!U14,IF(LangNo=10,ExtraTaal2!U14,IF(LangNo=11,ExtraTaal3!U14,)))))))))))&" [J/l]" -> Specific fan power [J/l] | W16: 5% | X16: Heating 2p | Y16: Cooling | Z16: Heating 4p | AA16: n-calc | AB16: p-limit | AC16: Heating 2p | AD16: Cooling | AE16: Heating 4p | AF16: p-limit | AG16: Heating 2p | AH16: Cooling | AI16: Heating 4p | AJ16: p-limit | AK16: Heating 2p | AL16: Cooling | AM16: Heating 4p | AN16: p-limit | AO16: Heating 2p | AP16: Cooling | AQ16: Heating 4p | AR16: p-limit | AS16: Heating 2p | AT16: Cooling | AU16: Heating 4p | AV16: p-limit | AW16: Heating 2p | AX16: Cooling | AY16: Heating 4p | AZ16: p-limit | BA16: Heating 2p | BB16: Cooling | BC16: Heating 4p | BD16: p-limit | BE16: Heating 2p | BF16: Cooling | BG16: Heating 4p | BH16: p-limit | BK16: Q_h_cal | BL16: Q_c_cal | BM16: dP_H2O | BN16: Q_h_cal | BO16: Q_c_cal | BP16: dP_H20 | BQ16: Q_h_cal | BR16: Q_c_cal | BS16: dP_H2O | BT16: Q_h_cal | BU16: Q_c_cal | BV16: dP_H20 | BW16: Q_h_cal | BX16: Q_c_cal | BY16: dP_H2O | BZ16: Ventilatorcurve | CF16: Powercurve | CK16: Toerental | CN16: Ventilatorcurve | CO16: Ventilatorcurve | CT16: Powercurve | CY16: Toerental | DB16: Ventilatorcurve | DC16: Ventilatorcurve | DH16: Powercurve | DM16: Toerental | DP16: Ventilatorcurve | DQ16: Ventilatorcurve | DV16: Powercurve | EA16: Toerental | ED16: Ventilatorcurve | EJ16: Powercurve | EO16: Toerental | ER16: Geluidsvermogen [dB(A)] | ES16: Geluidsvermogen [dB(A)] | ET16: Geluidsvermogen [dB(A)] | EU16: Geluidsvermogen [dB(A)] | EV16: Geluidsvermogen [dB(A)] | EW16: Geluidsvermogen [dB(A)] | EX16: Geluidsvermogen [dB(A)] | EY16: Geluidsvermogen [dB(A)] | EZ16: Uitblaastemp,WW koeling [°C] | FA16: Uitblaastemp,WW koeling [°C] | FB16: Uitblaastemp,WW koeling [°C] | FC16: Uitblaastemp,WW koeling [°C] | FD16: Uitblaastemp,WW koeling [°C] | FE16: Uitblaastemp,WW koeling [°C] | FF16: Uitblaastemp,WW koeling [°C] | FG16: Uitblaastemp,WW koeling [°C] | FH16: Uitblaastemp,WW koeling [°C] | FJ16: Factor Standard BR22 | FK16: Factor HP BR22 | FL16: Factor HP BR26 | FM16: V% (werkpunt) | FN16: Standard,max (luchtdebiet) | FO16: HP,max (luchtdebiet) | FP16: C% (kantelpunt) | FQ16: V (werkdebiet) | FR16: V%-C% (werkpunt verschil) | FS16: V,max-C% (maximaal verschil) | FT16: Procentueel verschil | FU16: Standaard exhaust temp | FV16: HP-22 exhaust temp ifv regime | FW16: Verschil HP-22 | FX16: HP-26 exhaust temp ifv regime | FY16: Verschil HP-26 | FZ16: Nieuwe exhaust temp HP-22 | GA16: Nieuwe exhaust temp HP-26 | GC16: Tkantel | GE16: Diff Qc | GG16: Pvs,heat,in | GH16: Pvs,heat,out | GI16: Pv,heat,in | GJ16: Pv,heat,out | GK16: X,heat,in | GL16: X,heat,out | GM16: h,heat,in | GN16: h,heat,out | GO16: RH,heat,out | GQ16: Pvs,cool,in | GR16: Pvs,cool,out | GS16: Pv,cool,in | GT16: Pv,cool,out | GU16: Pv,cool,out,BLOW | GV16: X,cool,in | GW16: X,cool,out | GX16: X,cool,out,BLOW | GY16: h,cool,in | GZ16: h,cool,out | HA16: h,cool,out,BLOW | HB16: T,wb,cool,in | HC16: T,wb,cool,in | HD16: old cooling | HE16: luchtdebiet op 0 PA | HF16: sensible cooling | HG16: Uitblaastemp,WW koeling [°C] | HH16: Uitblaastemp,WW koeling [°C] | HI16: total cooling | HJ16: percentage | HK16: new cooling with dp | HL16: Factor Standard BR22 | HM16: Factor HP BR22 | HN16: Factor HP BR26 | HO16: V% (werkpunt) | HP16: Standard,max (luchtdebiet) | HQ16: HP,max (luchtdebiet) | HR16: C% (kantelpunt) | HS16: V (werkdebiet) | HT16: V%-C% (werkpunt verschil) | HU16: V,max-C% (maximaal verschil) | HV16: Procentueel verschil | HW16: Standaard exhaust temp | HX16: HP-22 exhaust temp ifv regime | HY16: Verschil HP-22 | HZ16: HP-26 exhaust temp ifv regime | IA16: Verschil HP-26 | IB16: Nieuwe exhaust temp HP-22 | IC16: Nieuwe exhaust temp HP-26
B17: =IF(LangNo=1,NL!A15,IF(LangNo=2,EN!A15,IF(LangNo=3,DE!A15,IF(LangNo=4,FR!A15,IF(LangNo=5,NR!A15,IF(LangNo=6,SP!A15,IF(LangNo=7,SW!A15,IF(LangNo=8,TS!A15,IF(LangNo=9,ExtraTaal1!A15,IF(LangNo=10,ExtraTaal2!A15,IF(LangNo=11,ExtraTaal3!A15,))))))))))) -> Briza 22 (230V) height 54,5 cm, width 22 cm, length 55 cm (Type 02) | C17: =IF(LangNo=1,NL!B15,IF(LangNo=2,EN!B15,IF(LangNo=3,DE!B15,IF(LangNo=4,FR!B15,IF(LangNo=5,NR!B15,IF(LangNo=6,SP!B15,IF(LangNo=7,SW!B15,IF(LangNo=8,TS!B15,IF(LangNo=9,ExtraTaal1!B15,IF(LangNo=10,ExtraTaal2!B15,IF(LangNo=11,ExtraTaal3!B15,))))))))))) -> 0 | D17: =IF(LangNo=1,NL!C15,IF(LangNo=2,EN!C15,IF(LangNo=3,DE!C15,IF(LangNo=4,FR!C15,IF(LangNo=5,NR!C15,IF(LangNo=6,SP!C15,IF(LangNo=7,SW!C15,IF(LangNo=8,TS!C15,IF(LangNo=9,ExtraTaal1!C15,IF(LangNo=10,ExtraTaal2!C15,IF(LangNo=11,ExtraTaal3!C15,))))))))))) -> 0 | E17: =IF(LangNo=1,NL!D15,IF(LangNo=2,EN!D15,IF(LangNo=3,DE!D15,IF(LangNo=4,FR!D15,IF(LangNo=5,NR!D15,IF(LangNo=6,SP!D15,IF(LangNo=7,SW!D15,IF(LangNo=8,TS!D15,IF(LangNo=9,ExtraTaal1!D15,IF(LangNo=10,ExtraTaal2!D15,IF(LangNo=11,ExtraTaal3!D15,))))))))))) -> 0 | F17: =IF(LangNo=1,NL!E15,IF(LangNo=2,EN!E15,IF(LangNo=3,DE!E15,IF(LangNo=4,FR!E15,IF(LangNo=5,NR!E15,IF(LangNo=6,SP!E15,IF(LangNo=7,SW!E15,IF(LangNo=8,TS!E15,IF(LangNo=9,ExtraTaal1!E15,IF(LangNo=10,ExtraTaal2!E15,IF(LangNo=11,ExtraTaal3!E15,))))))))))) -> 0 | G17: =IF(LangNo=1,NL!F15,IF(LangNo=2,EN!F15,IF(LangNo=3,DE!F15,IF(LangNo=4,FR!F15,IF(LangNo=5,NR!F15,IF(LangNo=6,SP!F15,IF(LangNo=7,SW!F15,IF(LangNo=8,TS!F15,IF(LangNo=9,ExtraTaal1!F15,IF(LangNo=10,ExtraTaal2!F15,IF(LangNo=11,ExtraTaal3!F15,))))))))))) -> 0 | H17: =IF(LangNo=1,NL!G15,IF(LangNo=2,EN!G15,IF(LangNo=3,DE!G15,IF(LangNo=4,FR!G15,IF(LangNo=5,NR!G15,IF(LangNo=6,SP!G15,IF(LangNo=7,SW!G15,IF(LangNo=8,TS!G15,IF(LangNo=9,ExtraTaal1!G15,IF(LangNo=10,ExtraTaal2!G15,IF(LangNo=11,ExtraTaal3!G15,))))))))))) -> 0 | I17: =IF(LangNo=1,NL!H15,IF(LangNo=2,EN!H15,IF(LangNo=3,DE!H15,IF(LangNo=4,FR!H15,IF(LangNo=5,NR!H15,IF(LangNo=6,SP!H15,IF(LangNo=7,SW!H15,IF(LangNo=8,TS!H15,IF(LangNo=9,ExtraTaal1!H15,IF(LangNo=10,ExtraTaal2!H15,IF(LangNo=11,ExtraTaal3!H15,))))))))))) -> 0 | J17: =IF(LangNo=1,NL!I15,IF(LangNo=2,EN!I15,IF(LangNo=3,DE!I15,IF(LangNo=4,FR!I15,IF(LangNo=5,NR!I15,IF(LangNo=6,SP!I15,IF(LangNo=7,SW!I15,IF(LangNo=8,TS!I15,IF(LangNo=9,ExtraTaal1!I15,IF(LangNo=10,ExtraTaal2!I15,IF(LangNo=11,ExtraTaal3!I15,))))))))))) -> 0 | K17: =IF(LangNo=1,NL!J15,IF(LangNo=2,EN!J15,IF(LangNo=3,DE!J15,IF(LangNo=4,FR!J15,IF(LangNo=5,NR!J15,IF(LangNo=6,SP!J15,IF(LangNo=7,SW!J15,IF(LangNo=8,TS!J15,IF(LangNo=9,ExtraTaal1!J15,IF(LangNo=10,ExtraTaal2!J15,IF(LangNo=11,ExtraTaal3!J15,))))))))))) -> 0 | L17: =IF(LangNo=1,NL!K15,IF(LangNo=2,EN!K15,IF(LangNo=3,DE!K15,IF(LangNo=4,FR!K15,IF(LangNo=5,NR!K15,IF(LangNo=6,SP!K15,IF(LangNo=7,SW!K15,IF(LangNo=8,TS!K15,IF(LangNo=9,ExtraTaal1!K15,IF(LangNo=10,ExtraTaal2!K15,IF(LangNo=11,ExtraTaal3!K15,))))))))))) -> 0 | M17: =IF(LangNo=1,NL!L15,IF(LangNo=2,EN!L15,IF(LangNo=3,DE!L15,IF(LangNo=4,FR!L15,IF(LangNo=5,NR!L15,IF(LangNo=6,SP!L15,IF(LangNo=7,SW!L15,IF(LangNo=8,TS!L15,IF(LangNo=9,ExtraTaal1!L15,IF(LangNo=10,ExtraTaal2!L15,IF(LangNo=11,ExtraTaal3!L15,))))))))))) -> 0 | W17: W/cube | AA17: =IF($BK$17="11",X17,IF($BK$17="21",Z17,IF($BK$17="12",X17,IF($BK$17="22",Z17,IF($BK$17="13",X17,IF($BK$17="23",Z17,IF($BK$17="14",X17,IF($BK$17="24",Z17,IF($BK$17="31",X17,IF($BK$17="41",Z17,IF($BK$17="32",X17,IF($BK$17="42",Z17,IF($BK$17="33",X17,IF($BK$17="43",Z17,IF($BK$17="34",X17,IF($BK$17="44",Z17,)))))))))))))))) -> 0 | AB17: =IF($BK$17="11",AF17,IF($BK$17="21",AF17,IF($BK$17="12",AN17,IF($BK$17="22",AN17,IF($BK$17="13",AR17,IF($BK$17="23",AR17,IF($BK$17="14",AJ17,IF($BK$17="24",AJ17,IF($BK$17="31",AV17,IF($BK$17="41",AV17,IF($BK$17="32",BD17,IF($BK$17="42",BD17,IF($BK$17="33",BH17,IF($BK$17="43",BH17,IF($BK$17="34",AZ17,IF($BK$17="44",AZ17,)))))))))))))))) -> m³/h | AC17: n-value | AD17: n-value | AE17: n-value | AF17: m³/h | AG17: n-value | AH17: n-value | AI17: n-value | AJ17: m³/h | AK17: n-value | AL17: n-value | AM17: n-value | AN17: m³/h | AO17: n-value | AP17: n-value | AQ17: n-value | AR17: m³/h | AS17: n-value | AT17: n-value | AU17: n-value | AV17: m³/h | AW17: n-value | AX17: n-value | AY17: n-value | AZ17: m³/h | BA17: n-value | BB17: n-value | BC17: n-value | BD17: m³/h | BE17: n-value | BF17: n-value | BG17: n-value | BH17: m³/h | BK17: =CONCATENATE(AK5,AL5) -> 12 | BN17: Briza 22 2P | BQ17: Briza 22 4P | BT17: Briza 26 2P | BW17: Briza 26 4P | BZ17: x5 | CA17: x4 | CB17: x3 | CC17: x2 | CD17: x1 | CE17: x0 | CF17: w4 | CG17: w3 | CH17: w2 | CI17: w1 | CJ17: w0 | CK17: z2 | CL17: z1 | CM17: z0 | CN17: x5 | CO17: x4 | CP17: x3 | CQ17: x2 | CR17: x1 | CS17: x0 | CT17: w4 | CU17: w3 | CV17: w2 | CW17: w1 | CX17: w0 | CY17: z2 | CZ17: z1 | DA17: z0 | DB17: x5 | DC17: x4 | DD17: x3 | DE17: x2 | DF17: x1 | DG17: x0 | DH17: w4 | DI17: w3 | DJ17: w2 | DK17: w1 | DL17: w0 | DM17: z2 | DN17: z1 | DO17: z0 | DP17: x5 | DQ17: x4 | DR17: x3 | DS17: x2 | DT17: x1 | DU17: x0 | DV17: w4 | DW17: w3 | DX17: w2 | DY17: w1 | DZ17: w0 | EA17: z2 | EB17: z1 | EC17: z0 | ED17: x5 | EE17: x4 | EF17: x3 | EG17: x2 | EH17: x1 | EI17: x0 | EJ17: w4 | EK17: w3 | EL17: w2 | EM17: w1 | EN17: w0 | EO17: z2 | EP17: z1 | EQ17: z0 | ER17: T02 | FA17: =+ER17 -> T02 | HG17: Standaard | HH17: HP | HL17: T02
B18: 20% | C18: 2 | D18: =IF(Geg_dP<AB18,((($BK$18*($N18/Cubics)^4+$BK$19*($N18/Cubics)^3+$BK$20*($N18/Cubics)^2+$BK$21*($N18/Cubics)^1+$BK$22)*(CF_Regime_Heat_noExp^$AA18)))*CF_Addit*Watts*CF_Altit,Lim_dP) -> 1758 | E18: =IF(Geg_dP<$AB18,ROUND((($D18/Watts)/((Tv_heat-Tr_heat)*1.163))*FlowH2O,IF(UnitsNo=1,0,IF(UnitsNo=2,2))),"") -> 151 | F18: =IF(Geg_dP<$AB18,IF((($BM$18*(E18/FlowH2O)^$BM$19))*kPa>0,(($BM$18*(E18/FlowH2O)^$BM$19))*kPa,0),"") -> 0.6 | G18: =IF(Geg_dP<$AB18,((($BL$18*($N18/Cubics)^4+$BL$19*($N18/Cubics)^3+$BL$20*($N18/Cubics)^2+$BL$21*($N18/Cubics)^1+$BL$22)*((CF_Regime_Cool_noExp)^$Y18)))*CF_Addit*Watts*CF_Altit,Lim_dP) -> 367 | H18: =IF(Geg_dP<$AB18,((G18/Watts)/(IF((237.3*LN((RH*EXP(17.27*(Tl_cool/(Tl_cool+237.3))))))/(17.27-LN((RH*EXP(17.27*(Tl_cool/(Tl_cool+237.3))))))<EZ18,1,IF(1/(1+((2258*((0.622/((101325/(1*611*EXP(17.27*(EZ18/(EZ18+237.3))))))-1)*1000-(0.622/((101325/(RH*611*EXP(17.27*(Tl_cool/(Tl_cool+237.3))))))-1)*1000))/(1005*(Tavg_cold-Tl_cool))))>1,1,1/(1+((2258*((0.622/((101325/(1*611*EXP(17.27*(EZ18/(EZ18+237.3))))))-1)*1000-(0.622/((101325/(RH*611*EXP(17.27*(Tl_cool/(Tl_cool+237.3))))))-1)*1000))/(1005*(Tavg_cold-Tl_cool))))))))*Watts,"") -> 367 | I18: =IF(Geg_dP<AB18,ROUND(((H18/Watts)/((Tr_cool-Tv_cool)*1.163))*FlowH2O,IF(UnitsNo=1,0,IF(UnitsNo=2,2))),"") -> 158 | J18: =IF(Geg_dP<$AB18,IF((($BM$21*(I18/Watts)^$BM$22))*kPa>0,(($BM$21*(I18/FlowH2O)^$BM$22))*kPa,0),"") -> 0.6 | K18: =IF(Geg_dP<AB18,IF($L18-8<0,0,$L18-8),"") -> 25.5 | L18: =IF(Geg_dP<$AB18,IF(CalcNo="12",$ET18,IF(CalcNo="22",$ET18,IF(CalcNo="13",$EU18,IF(CalcNo="23",$EU18,IF(CalcNo="11",$ER18,IF(CalcNo="21",$ER18,IF(CalcNo="14",$ES18,IF(CalcNo="24",$ES18,IF(CalcNo="32",$EX18,IF(CalcNo="42",$EX18,IF(CalcNo="33",$EY18,IF(CalcNo="43",$EY18,IF(CalcNo="31",$EV18,IF(CalcNo="41",$EV18,IF(CalcNo="34",$EW18,IF(CalcNo="44",$EW18,)))))))))))))))),"") -> 33.5 | M18: =IF(Geg_dP<$AB18,($CF18*(($N18/Cubics)^4))+($CG18*(($N18/Cubics)^3))+($CH18*(($N18/Cubics)^2))+($CI18*($N18/Cubics))+$CJ18,"") -> 3.7 | N18: =IF(Geg_dP<$AB18,(BZ18*Geg_dP^5+CA18*Geg_dP^4+CB18*Geg_dP^3+CC18*Geg_dP^2+CD18*Geg_dP+CE18)*CF_Case*Cubics,"") -> 134 | O18: =IF(Geg_dP<$AB18,(($N18/Cubics)/3600)/(($BJ$23/100)*($BP$23/100))*FeetMins,"") -> 0.31 | P18: =IF(Geg_dP<$AB18,((($D18/Watts)/(((p_atm*0.028964)/(8.31447*(20+273.15)))*(($N18/3600)/Cubics)*(1005+1870*((0.622)/(((p_atm)/($E$14*pvs_heat_in))-1)))))+Tl_heat)*Celc1+Celc2,"") -> 58.6 | Q18: =IF(Geg_dP<$AB18,(27.8*LN(($GN18+36)/45.5))*Celc1+Celc2,"") -> 25.5 | R18: =IF(Geg_dP<$AB18,(Tl_cool-(($G18/Watts)/(1006*$N18*kgss)))*Celc1+Celc2,"") -> 18.8 | S18: =IF(Geg_dP<$AB18,IF((27.8*LN(($HA18+36)/45.5))*Celc1+Celc2>R18,R18,(27.8*LN(($HA18+36)/45.5))*Celc1+Celc2),"") -> 16.8 | T18: =IF(Geg_dP<$AB18,IF($H18>$G18,1,IF(($GT18/$GR18)<0,0,$GT18/$GR18)),"") -> 82% | U18: =IF(Geg_dP<$AB18,$CK18*($N18/Cubics)^2+$CL18*($N18/Cubics)^1+$CM18,"") -> 481 | V18: =M18/((N18/Cubics)/3.6) -> 0.10 | W18: =(G18/Watts)/(N18/Cubics) -> 2.744 | X18: =IF($BK$17="11",AC18,IF($BK$17="21",AC18,IF($BK$17="12",AK18,IF($BK$17="22",AK18,IF($BK$17="13",AO18,IF($BK$17="23",AO18,IF($BK$17="14",AG18,IF($BK$17="24",AG18,IF($BK$17="31",AS18,IF($BK$17="41",AS18,IF($BK$17="32",BA18,IF($BK$17="42",BA18,IF($BK$17="33",BE18,IF($BK$17="43",BE18,IF($BK$17="34",AW18,IF($BK$17="44",AW18,)))))))))))))))) -> 1.02106 | Y18: =IF($BK$17="11",AD18,IF($BK$17="21",AD18,IF($BK$17="12",AL18,IF($BK$17="22",AL18,IF($BK$17="13",AP18,IF($BK$17="23",AP18,IF($BK$17="14",AH18,IF($BK$17="24",AH18,IF($BK$17="31",AT18,IF($BK$17="41",AT18,IF($BK$17="32",BB18,IF($BK$17="42",BB18,IF($BK$17="33",BF18,IF($BK$17="43",BF18,IF($BK$17="34",AX18,IF($BK$17="44",AX18,)))))))))))))))) -> 1.10028 | Z18: 1.13249 | AA18: =IF($BK$17="11",X18,IF($BK$17="21",Z18,IF($BK$17="12",X18,IF($BK$17="22",Z18,IF($BK$17="13",X18,IF($BK$17="23",Z18,IF($BK$17="14",X18,IF($BK$17="24",Z18,IF($BK$17="31",X18,IF($BK$17="41",Z18,IF($BK$17="32",X18,IF($BK$17="42",Z18,IF($BK$17="33",X18,IF($BK$17="43",Z18,IF($BK$17="34",X18,IF($BK$17="44",Z18,)))))))))))))))) -> 1.02106 | AB18: =IF($BK$17="11",AF18,IF($BK$17="21",AF18,IF($BK$17="12",AN18,IF($BK$17="22",AN18,IF($BK$17="13",AR18,IF($BK$17="23",AR18,IF($BK$17="14",AJ18,IF($BK$17="24",AJ18,IF($BK$17="31",AV18,IF($BK$17="41",AV18,IF($BK$17="32",BD18,IF($BK$17="42",BD18,IF($BK$17="33",BH18,IF($BK$17="43",BH18,IF($BK$17="34",AZ18,IF($BK$17="44",AZ18,)))))))))))))))) -> 11 | AC18: 1.02106 | AD18: 1.10028 | AE18: 1.13249 | AF18: 10.00 | AG18: 1.02106 | AH18: 1.10028 | AI18: 1.13249 | AJ18: 11.00 | AK18: 1.02106 | AL18: 1.10028 | AM18: 1.13249 | AN18: 11.00 | AR18: 1000 | AV18: 1000 | AZ18: 1000 | BD18: 1000 | BH18: 1000 | BK18: =IF($BK$17="11",BN18,IF($BK$17="21",BQ18,IF($BK$17="12",BN18,IF($BK$17="22",BQ18,IF($BK$17="13",0,IF($BK$17="23",0,IF($BK$17="14",BN18,IF($BK$17="24",BQ18,IF($BK$17="31",BT18,IF($BK$17="41",BW18,IF($BK$17="32",BT18,IF($BK$17="42",BW18,IF($BK$17="33",BT18,IF($BK$17="43",BW18,IF($BK$17="34",BT18,IF($BK$17="44",BW18,)))))))))))))))) -> 0.00E+00 | BL18: 0.00E+00 | BM18: 5.86E-05 | BP18: =BP21 -> 5.86E-05 | BR18: =BO18 -> 0 | BS18: 5.49E-04 | BT18: 0 | BU18: 0 | BV18: 0 | BW18: 0 | BX18: 0 | BY18: 0 | BZ18: =IF($BK$17="11",CN18,IF($BK$17="21",CN18,IF($BK$17="12",DP18,IF($BK$17="22",DP18,IF($BK$17="13",ED18,IF($BK$17="23",ED18,IF($BK$17="14",DB18,IF($BK$17="24",DB18,IF($BK$17="31",0,IF($BK$17="41",0,IF($BK$17="32",0,IF($BK$17="42",0,IF($BK$17="33",0,IF($BK$17="43",0,IF($BK$17="34",DB18,IF($BK$17="44",DB18,)))))))))))))))) -> 0.00E+00 | CA18: 1.42E-03 | CB18: -3.93E-02 | CC18: 1.74E-01 | CD18: -7.93E+00 | CE18: 1.34E+02 | CF18: =IF($BK$17="11",CT18,IF($BK$17="21",CT18,IF($BK$17="12",DV18,IF($BK$17="22",DV18,IF($BK$17="13",EJ18,IF($BK$17="23",EJ18,IF($BK$17="14",DH18,IF($BK$17="24",DH18,IF($BK$17="31",0,IF($BK$17="41",0,IF($BK$17="32",0,IF($BK$17="42",0,IF($BK$17="33",0,IF($BK$17="43",0,IF($BK$17="34",DH18,IF($BK$17="44",DH18,)))))))))))))))) -> 0.00E+00 | CG18: -2.22E-07 | CH18: 4.82E-05 | CI18: 2.93E-03 | CJ18: =IF($BK$17="11",CX18,IF($BK$17="21",CX18,IF($BK$17="12",DZ18,IF($BK$17="22",DZ18,IF($BK$17="13",EN18,IF($BK$17="23",EN18,IF($BK$17="14",DL18,IF($BK$17="24",DL18,IF($BK$17="31",0,IF($BK$17="41",0,IF($BK$17="32",0,IF($BK$17="42",0,IF($BK$17="33",0,IF($BK$17="43",0,IF($BK$17="34",DL18,IF($BK$17="44",DL18,)))))))))))))))) -> 2.94E+00 | CK18: 4.86E-04 | CL18: -6.09E-01 | CM18: 5.54E+02 | CO18: 4.48E-03 | CP18: -1.08E-01 | CQ18: 6.83E-01 | CR18: -9.94E+00 | CS18: 9.79E+01 | CU18: -5.80E-07 | CV18: 1.01E-04 | CW18: 8.96E-04 | CX18: 2.39E+00 | CY18: -3.66E-04 | CZ18: -2.91E-01 | DA18: 4.82E+02 | DC18: -1.41E-03 | DD18: -2.11E-03 | DE18: 8.15E-02 | DF18: -1.04E+01 | DG18: 1.43E+02 | DI18: 3.98E-09 | DJ18: -1.82E-06 | DK18: 6.46E-03 | DL18: 2.77E+00 | DM18: 1.15E-04 | DN18: -2.97E-01 | DO18: 5.21E+02 | DQ18: 1.42E-03 | DR18: -3.93E-02 | DS18: 1.74E-01 | DT18: -7.93E+00 | DU18: 1.34E+02 | DW18: -2.22E-07 | DX18: 4.82E-05 | DY18: 2.93E-03 | DZ18: 2.94E+00 | EA18: =0.000485609906 -> 4.86E-04 | EB18: -6.09E-01 | EC18: 5.54E+02 | ER18: 33.5 | ET18: 33.5 | EZ18: =IF($BK$17="11",FA18,IF($BK$17="21",FA18,IF($BK$17="12",FC18,IF($BK$17="22",FC18,IF($BK$17="13",FD18,IF($BK$17="23",FD18,IF($BK$17="14",FB18,IF($BK$17="24",FB18,IF($BK$17="31",FE18,IF($BK$17="41",FE18,IF($BK$17="32",FG18,IF($BK$17="42",FG18,IF($BK$17="33",FH18,IF($BK$17="43",FH18,IF($BK$17="34",FF18,IF($BK$17="44",FF18,)))))))))))))))) -> 17.5 | FA18: =Tavg_cold -> 17 | FB18: =IF($GC18<=$FC18,$FC18,IF($FM18<=$FP18,$FC18,$FZ18)) -> 17.5 | FC18: =IF($N18>$FN18,Tavg_cold+(0.5*(Tr_cool-Tavg_cold)),Tavg_cold+($FJ18*(Tr_cool-Tavg_cold))) -> 17.5 | FJ18: =0.5*(1-((FN18-N18)/FN18)) -> 0.5 | FK18: =(0.025*Tl_cool)+0.5 -> 1.18 | FM18: =FQ18/FO18 -> 55.56% | FN18: =DU18 -> 133.8 | FO18: =FN18*1.8 -> 240.8 | FP18: =FN18/FO18 -> 55.56% | FQ18: =N18/Cubics -> 133.77 | FR18: =IF(FQ18-(FP18*FO18)<=0,0,FQ18-(FP18*FO18)) -> 0.00 | FS18: =FO18*(1-FP18) -> 107.01 | FT18: =IF((FR18/FS18)>1,1,FR18/FS18) -> 0.00% | FU18: =FC18 -> 17.50 | FV18: =Tr_cool*FK18 -> 21.15 | FW18: =ABS(FV18-FU18) -> 3.65 | FZ18: =IF(FM18<=FP18,FU18,FU18+(FT18*FW18)) -> 17.50 | GC18: =(237.3*LN((RH*EXP(17.27*(Tl_cool/(Tl_cool+237.3))))))/(17.27-LN((RH*EXP(17.27*(Tl_cool/(Tl_cool+237.3)))))) -> 15.69066559 | GE18: =(H18-G18)/H18 -> 0.0% | GG18: =(611*EXP(17.27*(Tl_heat/(Tl_heat+237.7)))) -> 2334.18 | GH18: =(611*EXP(17.27*((($P18-Celc2)/Celc1)/((($P18-Celc2)/Celc1)+237.7)))) -> 18582.80 | GI18: =RH*$GG18 -> 1167.09 | GJ18: =(GL18*p_atm)/(GL18+0.622) -> 1167.09 | GK18: =0.622*($GI18/(p_atm-$GI18)) -> 0.01 | GL18: =GK18 -> 0.01 | GM18: =(1.005*Tl_heat)+($GK18*(2500+(1.87*Tl_heat))) -> 38.49 | GN18: =(1.005*(($P18-Celc2)/Celc1))+($GL18*(2500+(1.87*(($P18-Celc2)/Celc1)))) -> 77.79 | GO18: =GJ18/GH18 -> 6% | GQ18: =pvs_cool_in -> 3566.51 | GR18: =(611*EXP(17.27*((($R18-Celc2)/Celc1)/((($R18-Celc2)/Celc1)+237.7)))) -> 2172.74 | GS18: =RH*$GQ18 -> 1783.25 | GT18: =(GW18*p_atm)/(GW18+0.622) -> 1783.25 | GU18: =T18*GR18 -> 1783.25 | GV18: =0.622*($GS18/(p_atm-$GS18)) -> 0.0111 | GW18: =IF(H18=G18,GV18,(0.53475935828878*($GZ18-(1.005*(($R18-Celc2)/Celc1))))/(1336.8983957219)) -> 0.0111 | GX18: =0.622*($GU18/(p_atm-$GU18)) -> 0.01 | GY18: =(1.005*Tl_cool)+($GV18*(2500+(1.87*Tl_cool))) -> 55.55 | GZ18: =GY18-((((H18-G18)/Watts)/1000)/(N18/$L$15)) -> 55.55 | HA18: =(1.005*(($R18-Celc2)/Celc1))+($GX18*(2500+(1.87*(($R18-Celc2)/Celc1)))) -> 47.19 | HB18: =27.8*LN((GY18+36)/45.5) -> 19.44 | HC18: =27.8*LN((GZ18+36)/45.5) -> 19.44 | HE18: =IF(Geg_dP<$AB18,(BZ18*0^5+CA18*0^4+CB18*0^3+CC18*0^2+CD18*0+CE18)*CF_Case*Cubics,"") -> 133.768339 | HF18: =IF(Geg_dP<$AB18,((($BL$18*($HE18/Cubics)^4+$BL$19*($HE18/Cubics)^3+$BL$20*($HE18/Cubics)^2+$BL$21*($HE18/Cubics)^1+$BL$22)*((CF_Regime_Cool_noExp)^$Y18)))*CF_Addit*Watts*CF_Altit,Lim_dP) -> 366.9946963 | HG18: =IF($HE18>HP18,Tavg_cold+(0.5*(Tr_cool-Tavg_cold)),Tavg_cold+(HL18*(Tr_cool-Tavg_cold))) -> 17.5 | HH18: =IF($IE18<=$HG18,$HG18,IF($HO18<=$HR18,$HG18,$IB18)) -> 17.5 | HL18: =0.5*(1-((HP18-HE18)/HP18)) -> 0.5 | HM18: =(0.025*Tl_cool)+0.5 -> 1.18 | HO18: =HS18/HQ18 -> 55.56% | HP18: =DU18 -> 133.8 | HQ18: =HP18*1.8 -> 240.8 | HR18: =HP18/HQ18 -> 55.56% | HS18: =HE18/Cubics -> 133.77 | HT18: =IF(HS18-(HR18*HQ18)<=0,0,HS18-(HR18*HQ18)) -> 0.00 | HU18: =HQ18*(1-HR18) -> 107.01 | HV18: =IF((HT18/HU18)>1,1,HT18/HU18) -> 0.00% | HW18: =FC18 -> 17.50 | HX18: =Tr_cool*HM18 -> 21.15 | HY18: =ABS(HX18-HW18) -> 3.65 | IB18: =IF(HO18<=HR18,HW18,HW18+(HV18*HY18)) -> 17.50 | IE18: =(237.3*LN((RH*EXP(17.27*(Tl_cool/(Tl_cool+237.3))))))/(17.27-LN((RH*EXP(17.27*(Tl_cool/(Tl_cool+237.3)))))) -> 15.69066559 | IG18: =(BG18-BF18)/BG18 ->  | II18: =(611*EXP(17.27*(Tl_heat/(Tl_heat+237.7)))) -> 2334.18 | IJ18: =(611*EXP(17.27*((($P18-Celc2)/Celc1)/((($P18-Celc2)/Celc1)+237.7)))) -> 18582.80
B19: 40% | C19: 4 | D19: =IF(Geg_dP<AB19,((($BK$18*($N19/Cubics)^4+$BK$19*($N19/Cubics)^3+$BK$20*($N19/Cubics)^2+$BK$21*($N19/Cubics)^1+$BK$22)*((CF_Regime_Heat_noExp)^$AA19)))*CF_Addit*Watts*CF_Altit,Lim_dP) -> 3119 | E19: =IF(Geg_dP<$AB19,ROUND((($D19/Watts)/((Tv_heat-Tr_heat)*1.163))*FlowH2O,IF(UnitsNo=1,0,IF(UnitsNo=2,2))),"") -> 268 | F19: =IF(Geg_dP<$AB19,IF((($BM$18*(E19/FlowH2O)^$BM$19))*kPa>0,(($BM$18*(E19/FlowH2O)^$BM$19))*kPa,0),"") -> 1.7 | G19: =IF(Geg_dP<$AB19,((($BL$18*($N19/Cubics)^4+$BL$19*($N19/Cubics)^3+$BL$20*($N19/Cubics)^2+$BL$21*($N19/Cubics)^1+$BL$22)*((CF_Regime_Cool_noExp)^$Y19)))*CF_Addit*Watts*CF_Altit,Lim_dP) -> 659 | H19: =IF(Geg_dP<$AB19,((G19/Watts)/(IF((237.3*LN((RH*EXP(17.27*(Tl_cool/(Tl_cool+237.3))))))/(17.27-LN((RH*EXP(17.27*(Tl_cool/(Tl_cool+237.3))))))<EZ19,1,IF(1/(1+((2258*((0.622/((101325/(1*611*EXP(17.27*(EZ19/(EZ19+237.3))))))-1)*1000-(0.622/((101325/(RH*611*EXP(17.27*(Tl_cool/(Tl_cool+237.3))))))-1)*1000))/(1005*(Tavg_cold-Tl_cool))))>1,1,1/(1+((2258*((0.622/((101325/(1*611*EXP(17.27*(EZ19/(EZ19+237.3))))))-1)*1000-(0.622/((101325/(RH*611*EXP(17.27*(Tl_cool/(Tl_cool+237.3))))))-1)*1000))/(1005*(Tavg_cold-Tl_cool))))))))*Watts,"") -> 659 | I19: =IF(Geg_dP<AB19,ROUND(((H19/Watts)/((Tr_cool-Tv_cool)*1.163))*FlowH2O,IF(UnitsNo=1,0,IF(UnitsNo=2,2))),"") -> 283 | J19: =IF(Geg_dP<$AB19,IF((($BM$21*(I19/FlowH2O)^$BM$22))*kPa>0,(($BM$21*(I19/FlowH2O)^$BM$22))*kPa,0),"") -> 1.9 | K19: =IF(Geg_dP<AB19,IF($L19-8<0,0,$L19-8),"") -> 35.0 | L19: =IF(Geg_dP<$AB19,IF(CalcNo="12",$ET19,IF(CalcNo="22",$ET19,IF(CalcNo="13",$EU19,IF(CalcNo="23",$EU19,IF(CalcNo="11",$ER19,IF(CalcNo="21",$ER19,IF(CalcNo="14",$ES19,IF(CalcNo="24",$ES19,IF(CalcNo="32",$EX19,IF(CalcNo="42",$EX19,IF(CalcNo="33",$EY19,IF(CalcNo="43",$EY19,IF(CalcNo="31",$EV19,IF(CalcNo="41",$EV19,IF(CalcNo="34",$EW19,IF(CalcNo="44",$EW19,)))))))))))))))),"") -> 43.0 | M19: =IF(Geg_dP<$AB19,($CF19*(($N19/Cubics)^4))+($CG19*(($N19/Cubics)^3))+($CH19*(($N19/Cubics)^2))+($CI19*($N19/Cubics))+$CJ19,"") -> 8.7 | N19: =IF(Geg_dP<$AB19,(BZ19*Geg_dP^5+CA19*Geg_dP^4+CB19*Geg_dP^3+CC19*Geg_dP^2+CD19*Geg_dP+CE19)*CF_Case*Cubics,"") -> 254 | O19: =IF(Geg_dP<$AB19,(($N19/Cubics)/3600)/(($BJ$23/100)*($BP$23/100))*FeetMins,"") -> 0.58 | P19: =IF(Geg_dP<$AB19,((($D19/Watts)/(((p_atm*0.028964)/(8.31447*(20+273.15)))*(($N19/3600)/Cubics)*(1005+1870*((0.622)/(((p_atm)/($E$14*pvs_heat_in))-1)))))+Tl_heat)*Celc1+Celc2,"") -> 56.0 | Q19: =IF(Geg_dP<$AB19,(27.8*LN(($GN19+36)/45.5))*Celc1+Celc2,"") -> 24.8 | R19: =IF(Geg_dP<$AB19,(Tl_cool-(($G19/Watts)/(1006*$N19*kgss)))*Celc1+Celc2,"") -> 19.3 | S19: =IF(Geg_dP<$AB19,IF((27.8*LN(($HA19+36)/45.5))*Celc1+Celc2>R19,R19,(27.8*LN(($HA19+36)/45.5))*Celc1+Celc2),"") -> 16.9 | T19: =IF(Geg_dP<$AB19,IF($H19>$G19,1,IF(($GT19/$GR19)<0,0,$GT19/$GR19)),"") -> 80% | U19: =IF(Geg_dP<$AB19,$CK19*($N19/Cubics)^2+$CL19*($N19/Cubics)^1+$CM19,"") -> 730 | V19: =M19/((N19/Cubics)/3.6) -> 0.12 | W19: =(G19/Watts)/(N19/Cubics) -> 2.591 | X19: 1.02106 | Y19: 1.10028 | Z19: 1.13249 | AA19: =IF($BK$17="11",X19,IF($BK$17="21",Z19,IF($BK$17="12",X19,IF($BK$17="22",Z19,IF($BK$17="13",X19,IF($BK$17="23",Z19,IF($BK$17="14",X19,IF($BK$17="24",Z19,IF($BK$17="31",X19,IF($BK$17="41",Z19,IF($BK$17="32",X19,IF($BK$17="42",Z19,IF($BK$17="33",X19,IF($BK$17="43",Z19,IF($BK$17="34",X19,IF($BK$17="44",Z19,)))))))))))))))) -> 1.02106 | AB19: =IF($BK$17="11",AF19,IF($BK$17="21",AF19,IF($BK$17="12",AN19,IF($BK$17="22",AN19,IF($BK$17="13",AR19,IF($BK$17="23",AR19,IF($BK$17="14",AJ19,IF($BK$17="24",AJ19,IF($BK$17="31",AV19,IF($BK$17="41",AV19,IF($BK$17="32",BD19,IF($BK$17="42",BD19,IF($BK$17="33",BH19,IF($BK$17="43",BH19,IF($BK$17="34",AZ19,IF($BK$17="44",AZ19,)))))))))))))))) -> 33.42 | AC19: 1.02106 | AD19: 1.10028 | AE19: 1.13249 | AF19: 31.00 | AG19: 1.02106 | AH19: 1.10028 | AI19: 1.13249 | AJ19: 43.00 | AK19: 1.02106 | AL19: 1.10028 | AM19: 1.13249 | AN19: 33.42 | AR19: 1000 | AV19: 1000 | AZ19: 1000 | BD19: 1000 | BH19: 1000 | BK19: 1.48E-05 | BL19: 0.00E+00 | BM19: 1.84E+00 | BN19: 1.48E-05 | BP19: =BP22 -> 1.84E+00 | BR19: =BO19 -> 0 | BS19: 1.80E+00 | BT19: 0 | BU19: 0 | BV19: 0 | BW19: 0 | BX19: 0 | BY19: 0 | BZ19: 0.00E+00 | CA19: 5.35E-05 | CB19: -4.16E-03 | CC19: 5.38E-02 | CD19: -6.04E+00 | CE19: 2.54E+02 | CF19: 0.00E+00 | CG19: -1.50E-07 | CH19: 6.12E-05 | CI19: 9.09E-03 | CJ19: 4.93E+00 | CK19: 2.82E-04 | CL19: -5.81E-01 | CM19: 8.59E+02 | CO19: 5.77E-05 | CP19: -4.18E-03 | CQ19: 5.93E-02 | CR19: -5.87E+00 | CS19: 2.02E+02 | CU19: -2.43E-07 | CV19: 8.30E-05 | CW19: 7.26E-03 | CX19: 4.27E+00 | CY19: -4.66E-05 | CZ19: -4.26E-01 | DA19: 8.03E+02 | DC19: -2.98E-05 | DD19: 2.19E-03 | DE19: -1.05E-01 | DF19: -4.15E+00 | DG19: 3.13E+02 | DI19: 8.14E-09 | DJ19: -6.88E-06 | DK19: 2.32E-02 | DL19: 5.65E+00 | DM19: 2.26E-04 | DN19: -4.52E-01 | DO19: 9.63E+02 | DQ19: 5.35E-05 | DR19: -4.16E-03 | DS19: 5.38E-02 | DT19: -6.04E+00 | DU19: 2.54E+02 | DW19: -1.50E-07 | DX19: 6.12E-05 | DY19: 9.09E-03 | DZ19: 4.93E+00 | EA19: 2.82E-04 | EB19: -5.81E-01 | EC19: 8.59E+02 | ER19: 43 | ET19: 43 | EZ19: =IF($BK$17="11",FA19,IF($BK$17="21",FA19,IF($BK$17="12",FC19,IF($BK$17="22",FC19,IF($BK$17="13",FD19,IF($BK$17="23",FD19,IF($BK$17="14",FB19,IF($BK$17="24",FB19,IF($BK$17="31",FE19,IF($BK$17="41",FE19,IF($BK$17="32",FG19,IF($BK$17="42",FG19,IF($BK$17="33",FH19,IF($BK$17="43",FH19,IF($BK$17="34",FF19,IF($BK$17="44",FF19,)))))))))))))))) -> 17.5 | FA19: =Tavg_cold -> 17 | FB19: =IF($GC19<=$FC19,$FC19,IF($FM19<=$FP19,$FC19,$FZ19)) -> 17.5 | FC19: =IF($N19>$FN19,Tavg_cold+(0.5*(Tr_cool-Tavg_cold)),Tavg_cold+($FJ19*(Tr_cool-Tavg_cold))) -> 17.5 | FJ19: =0.5*(1-((FN19-N19)/FN19)) -> 0.5 | FK19: =(0.025*Tl_cool)+0.5 -> 1.18 | FM19: =FQ19/FO19 -> 55.56% | FN19: =DU19 -> 254.2 | FO19: =FN19*1.8 -> 457.5 | FP19: =FN19/FO19 -> 55.56% | FQ19: =N19/Cubics -> 254.19 | FR19: =IF(FQ19-(FP19*FO19)<=0,0,FQ19-(FP19*FO19)) -> 0.00 | FS19: =FO19*(1-FP19) -> 203.35 | FT19: =IF((FR19/FS19)>1,1,FR19/FS19) -> 0.00% | FU19: =FC19 -> 17.50 | FV19: =Tr_cool*FK19 -> 21.15 | FW19: =ABS(FV19-FU19) -> 3.65 | FZ19: =IF(FM19<=FP19,FU19,FU19+(FT19*FW19)) -> 17.50 | GC19: =(237.3*LN((RH*EXP(17.27*(Tl_cool/(Tl_cool+237.3))))))/(17.27-LN((RH*EXP(17.27*(Tl_cool/(Tl_cool+237.3)))))) -> 15.69066559 | GE19: =(H19-G19)/H19 -> 0.0% | GG19: =(611*EXP(17.27*(Tl_heat/(Tl_heat+237.7)))) -> 2334.18 | GH19: =(611*EXP(17.27*((($P19-Celc2)/Celc1)/((($P19-Celc2)/Celc1)+237.7)))) -> 16460.56 | GI19: =RH*$GG19 -> 1167.09 | GJ19: =(GL19*p_atm)/(GL19+0.622) -> 1167.09 | GK19: =0.622*($GI19/(p_atm-$GI19)) -> 0.01 | GL19: =GK19 -> 0.01 | GM19: =(1.005*Tl_heat)+($GK19*(2500+(1.87*Tl_heat))) -> 38.49 | GN19: =(1.005*(($P19-Celc2)/Celc1))+($GL19*(2500+(1.87*(($P19-Celc2)/Celc1)))) -> 75.17 | GO19: =GJ19/GH19 -> 7% | GQ19: =(611*EXP(17.27*(Tl_cool/(Tl_cool+237.7)))) -> 3557.01 | GR19: =(611*EXP(17.27*((($R19-Celc2)/Celc1)/((($R19-Celc2)/Celc1)+237.7)))) -> 2234.86 | GS19: =RH*$GQ19 -> 1778.51 | GT19: =(GW19*p_atm)/(GW19+0.622) -> 1778.51 | GU19: =T19*GR19 -> 1778.51 | GV19: =0.622*($GS19/(p_atm-$GS19)) -> 0.0111 | GW19: =IF(H19=G19,GV19,(0.53475935828878*($GZ19-(1.005*(($R19-Celc2)/Celc1))))/(1336.8983957219)) -> 0.0111 | GX19: =0.622*($GU19/(p_atm-$GU19)) -> 0.01 | GY19: =(1.005*Tl_cool)+($GV19*(2500+(1.87*Tl_cool))) -> 55.48 | GZ19: =GY19-((((H19-G19)/Watts)/1000)/(N19/$L$15)) -> 55.48 | HA19: =(1.005*(($R19-Celc2)/Celc1))+($GX19*(2500+(1.87*(($R19-Celc2)/Celc1)))) -> 47.58 | HB19: =27.8*LN((GY19+36)/45.5) -> 19.42 | HC19: =27.8*LN((GZ19+36)/45.5) -> 19.42 | HE19: 254.186551 | HF19: 658.6396558 | HG19: 17.5 | HH19: 17.5 | HL19: =0.5*(1-((HP19-HE19)/HP19)) -> 0.5 | HM19: =(0.025*Tl_cool)+0.5 -> 1.18 | HO19: =HS19/HQ19 -> 55.56% | HP19: =DU19 -> 254.2 | HQ19: =HP19*1.8 -> 457.5 | HR19: =HP19/HQ19 -> 55.56% | HS19: 254.19 | HT19: =IF(HS19-(HR19*HQ19)<=0,0,HS19-(HR19*HQ19)) -> 0.00 | HU19: =HQ19*(1-HR19) -> 203.35 | HV19: =IF((HT19/HU19)>1,1,HT19/HU19) -> 0.00% | HW19: 17.50 | HX19: =Tr_cool*HM19 -> 21.15 | HY19: =ABS(HX19-HW19) -> 3.65 | IB19: =IF(HO19<=HR19,HW19,HW19+(HV19*HY19)) -> 17.50 | IE19: =(237.3*LN((RH*EXP(17.27*(Tl_cool/(Tl_cool+237.3))))))/(17.27-LN((RH*EXP(17.27*(Tl_cool/(Tl_cool+237.3)))))) -> 15.69066559 | IG19: =(BG19-BF19)/BG19 ->  | II19: =(611*EXP(17.27*(Tl_heat/(Tl_heat+237.7)))) -> 2334.18 | IJ19: =(611*EXP(17.27*((($P19-Celc2)/Celc1)/((($P19-Celc2)/Celc1)+237.7)))) -> 16460.56
B20: 60% | C20: 6 | D20: =IF(Geg_dP<AB20,((($BK$18*($N20/Cubics)^4+$BK$19*($N20/Cubics)^3+$BK$20*($N20/Cubics)^2+$BK$21*($N20/Cubics)^1+$BK$22)*((CF_Regime_Heat_noExp)^$AA20)))*CF_Addit*Watts*CF_Altit,Lim_dP) -> 4071 | E20: =IF(Geg_dP<$AB20,ROUND((($D20/Watts)/((Tv_heat-Tr_heat)*1.163))*FlowH2O,IF(UnitsNo=1,0,IF(UnitsNo=2,2))),"") -> 350 | F20: =IF(Geg_dP<$AB20,IF((($BM$18*(E20/FlowH2O)^$BM$19))*kPa>0,(($BM$18*(E20/FlowH2O)^$BM$19))*kPa,0),"") -> 2.8 | G20: =IF(Geg_dP<$AB20,((($BL$18*($N20/Cubics)^4+$BL$19*($N20/Cubics)^3+$BL$20*($N20/Cubics)^2+$BL$21*($N20/Cubics)^1+$BL$22)*((CF_Regime_Cool_noExp)^$Y20)))*CF_Addit*Watts*CF_Altit,Lim_dP) -> 882 | H20: =IF(Geg_dP<$AB20,((G20/Watts)/(IF((237.3*LN((RH*EXP(17.27*(Tl_cool/(Tl_cool+237.3))))))/(17.27-LN((RH*EXP(17.27*(Tl_cool/(Tl_cool+237.3))))))<EZ20,1,IF(1/(1+((2258*((0.622/((101325/(1*611*EXP(17.27*(EZ20/(EZ20+237.3))))))-1)*1000-(0.622/((101325/(RH*611*EXP(17.27*(Tl_cool/(Tl_cool+237.3))))))-1)*1000))/(1005*(Tavg_cold-Tl_cool))))>1,1,1/(1+((2258*((0.622/((101325/(1*611*EXP(17.27*(EZ20/(EZ20+237.3))))))-1)*1000-(0.622/((101325/(RH*611*EXP(17.27*(Tl_cool/(Tl_cool+237.3))))))-1)*1000))/(1005*(Tavg_cold-Tl_cool))))))))*Watts,"") -> 882 | I20: =IF(Geg_dP<AB20,ROUND(((H20/Watts)/((Tr_cool-Tv_cool)*1.163))*FlowH2O,IF(UnitsNo=1,0,IF(UnitsNo=2,2))),"") -> 379 | J20: =IF(Geg_dP<$AB20,IF((($BM$21*(I20/FlowH2O)^$BM$22))*kPa>0,(($BM$21*(I20/FlowH2O)^$BM$22))*kPa,0),"") -> 3.2 | K20: =IF(Geg_dP<AB20,IF($L20-8<0,0,$L20-8),"") -> 42.5 | L20: =IF(Geg_dP<$AB20,IF(CalcNo="12",$ET20,IF(CalcNo="22",$ET20,IF(CalcNo="13",$EU20,IF(CalcNo="23",$EU20,IF(CalcNo="11",$ER20,IF(CalcNo="21",$ER20,IF(CalcNo="14",$ES20,IF(CalcNo="24",$ES20,IF(CalcNo="32",$EX20,IF(CalcNo="42",$EX20,IF(CalcNo="33",$EY20,IF(CalcNo="43",$EY20,IF(CalcNo="31",$EV20,IF(CalcNo="41",$EV20,IF(CalcNo="34",$EW20,IF(CalcNo="44",$EW20,)))))))))))))))),"") -> 50.5 | M20: =IF(Geg_dP<$AB20,($CF20*(($N20/Cubics)^4))+($CG20*(($N20/Cubics)^3))+($CH20*(($N20/Cubics)^2))+($CI20*($N20/Cubics))+$CJ20,"") -> 17.2 | N20: =IF(Geg_dP<$AB20,(BZ20*Geg_dP^5+CA20*Geg_dP^4+CB20*Geg_dP^3+CC20*Geg_dP^2+CD20*Geg_dP+CE20)*CF_Case*Cubics,"") -> 355 | O20: =IF(Geg_dP<$AB20,(($N20/Cubics)/3600)/(($BJ$23/100)*($BP$23/100))*FeetMins,"") -> 0.81 | P20: =IF(Geg_dP<$AB20,((($D20/Watts)/(((p_atm*0.028964)/(8.31447*(20+273.15)))*(($N20/3600)/Cubics)*(1005+1870*((0.622)/(((p_atm)/($E$14*pvs_heat_in))-1)))))+Tl_heat)*Celc1+Celc2,"") -> 53.7 | Q20: =IF(Geg_dP<$AB20,(27.8*LN(($GN20+36)/45.5))*Celc1+Celc2,"") -> 24.2 | R20: =IF(Geg_dP<$AB20,(Tl_cool-(($G20/Watts)/(1006*$N20*kgss)))*Celc1+Celc2,"") -> 19.6 | S20: =IF(Geg_dP<$AB20,IF((27.8*LN(($HA20+36)/45.5))*Celc1+Celc2>R20,R20,(27.8*LN(($HA20+36)/45.5))*Celc1+Celc2),"") -> 17.0 | T20: =IF(Geg_dP<$AB20,IF($H20>$G20,1,IF(($GT20/$GR20)<0,0,$GT20/$GR20)),"") -> 78% | U20: =IF(Geg_dP<$AB20,$CK20*($N20/Cubics)^2+$CL20*($N20/Cubics)^1+$CM20,"") -> 940 | V20: =M20/((N20/Cubics)/3.6) -> 0.17 | W20: =(G20/Watts)/(N20/Cubics) -> 2.484 | X20: 1.02106 | Y20: 1.10028 | Z20: 1.13249 | AA20: 1.02106 | AB20: 64.62 | AC20: 1.02106 | AD20: 1.10028 | AE20: 1.13249 | AF20: 62.00 | AG20: 1.02106 | AH20: 1.10028 | AI20: 1.13249 | AJ20: 95.00 | AK20: 1.02106 | AL20: 1.10028 | AM20: 1.13249 | AN20: 64.62 | AR20: 1000 | AV20: 1000 | AZ20: 1000 | BD20: 1000 | BH20: 1000 | BK20: =IF($BK$17="11",BN20,IF($BK$17="21",BQ20,IF($BK$17="12",BN20,IF($BK$17="22",BQ20,IF($BK$17="13",0,IF($BK$17="23",0,IF($BK$17="14",BN20,IF($BK$17="24",BQ20,IF($BK$17="31",BT20,IF($BK$17="41",BW20,IF($BK$17="32",BT20,IF($BK$17="42",BW20,IF($BK$17="33",BT20,IF($BK$17="43",BW20,IF($BK$17="34",BT20,IF($BK$17="44",BW20,)))))))))))))))) -> -1.57E-02 | BL20: -1.75E-03 | BN20: -1.57E-02 | BO20: -1.75E-03 | BQ20: -1.04E-03 | BR20: =BO20 -> -1.75E-03 | BT20: 0 | BU20: 0 | BW20: 0 | BX20: 0 | BZ20: 0.00E+00 | CA20: -7.35E-07 | CB20: 7.11E-05 | CC20: -2.28E-02 | CD20: -3.81E+00 | CE20: 3.55E+02 | CF20: =IF($BK$17="11",CT20,IF($BK$17="21",CT20,IF($BK$17="12",DV20,IF($BK$17="22",DV20,IF($BK$17="13",EJ20,IF($BK$17="23",EJ20,IF($BK$17="14",DH20,IF($BK$17="24",DH20,IF($BK$17="31",0,IF($BK$17="41",0,IF($BK$17="32",0,IF($BK$17="42",0,IF($BK$17="33",0,IF($BK$17="43",0,IF($BK$17="34",DH20,IF($BK$17="44",DH20,)))))))))))))))) -> 0.00E+00 | CG20: -1.21E-07 | CH20: 6.86E-05 | CI20: 1.70E-02 | CJ20: 7.93E+00 | CK20: 2.86E-04 | CL20: -7.18E-01 | CM20: 1.16E+03 | CO20: 1.33E-05 | CP20: -1.75E-03 | CQ20: 5.47E-02 | CR20: -4.73E+00 | CS20: 3.02E+02 | CU20: -1.75E-07 | CV20: 8.71E-05 | CW20: 1.53E-02 | CX20: 7.22E+00 | CY20: 1.91E-04 | CZ20: -6.32E-01 | DA20: 1.12E+03 | DC20: -2.45E-07 | DD20: 1.64E-05 | DE20: -2.03E-02 | DF20: -2.80E+00 | DG20: 4.64E+02 | DI20: -3.96E-08 | DJ20: 2.85E-05 | DK20: 3.73E-02 | DL20: 1.18E+01 | DM20: 1.83E-04 | DN20: -5.93E-01 | DO20: 1.40E+03 | DQ20: -7.35E-07 | DR20: 7.11E-05 | DS20: -2.28E-02 | DT20: -3.81E+00 | DU20: 3.55E+02 | DW20: -1.21E-07 | DX20: 6.86E-05 | DY20: 1.70E-02 | DZ20: 7.93E+00 | EA20: 2.86E-04 | EB20: -7.18E-01 | EC20: 1.16E+03 | ER20: 50.5 | ET20: 50.5 | EZ20: =IF($BK$17="11",FA20,IF($BK$17="21",FA20,IF($BK$17="12",FC20,IF($BK$17="22",FC20,IF($BK$17="13",FD20,IF($BK$17="23",FD20,IF($BK$17="14",FB20,IF($BK$17="24",FB20,IF($BK$17="31",FE20,IF($BK$17="41",FE20,IF($BK$17="32",FG20,IF($BK$17="42",FG20,IF($BK$17="33",FH20,IF($BK$17="43",FH20,IF($BK$17="34",FF20,IF($BK$17="44",FF20,)))))))))))))))) -> 17.5 | FA20: =Tavg_cold -> 17 | FB20: =IF($GC20<=$FC20,$FC20,IF($FM20<=$FP20,$FC20,$FZ20)) -> 17.5 | FC20: =IF($N20>$FN20,Tavg_cold+(0.5*(Tr_cool-Tavg_cold)),Tavg_cold+($FJ20*(Tr_cool-Tavg_cold))) -> 17.5 | FJ20: =0.5*(1-((FN20-N20)/FN20)) -> 0.5 | FK20: =(0.025*Tl_cool)+0.5 -> 1.18 | FM20: =FQ20/FO20 -> 55.56% | FN20: =DU20 -> 355.0 | FO20: =FN20*1.8 -> 639.0 | FP20: =FN20/FO20 -> 55.56% | FQ20: =N20/Cubics -> 354.99 | FR20: =IF(FQ20-(FP20*FO20)<=0,0,FQ20-(FP20*FO20)) -> 0.00 | FS20: =FO20*(1-FP20) -> 283.99 | FT20: =IF((FR20/FS20)>1,1,FR20/FS20) -> 0.00% | FU20: =FC20 -> 17.50 | FV20: =Tr_cool*FK20 -> 21.15 | FW20: =ABS(FV20-FU20) -> 3.65 | FZ20: =IF(FM20<=FP20,FU20,FU20+(FT20*FW20)) -> 17.50 | GC20: =(237.3*LN((RH*EXP(17.27*(Tl_cool/(Tl_cool+237.3))))))/(17.27-LN((RH*EXP(17.27*(Tl_cool/(Tl_cool+237.3)))))) -> 15.69066559 | GE20: =(H20-G20)/H20 -> 0.0% | GG20: =(611*EXP(17.27*(Tl_heat/(Tl_heat+237.7)))) -> 2334.18 | GH20: =(611*EXP(17.27*((($P20-Celc2)/Celc1)/((($P20-Celc2)/Celc1)+237.7)))) -> 14702.47 | GI20: =RH*$GG20 -> 1167.09 | GJ20: =(GL20*p_atm)/(GL20+0.622) -> 1167.09 | GK20: =0.622*($GI20/(p_atm-$GI20)) -> 0.01 | GL20: 0.01 | GM20: =(1.005*Tl_heat)+($GK20*(2500+(1.87*Tl_heat))) -> 38.49 | GN20: =(1.005*(($P20-Celc2)/Celc1))+($GL20*(2500+(1.87*(($P20-Celc2)/Celc1)))) -> 72.78 | GO20: 8% | GQ20: =(611*EXP(17.27*(Tl_cool/(Tl_cool+237.7)))) -> 3557.01 | GR20: =(611*EXP(17.27*((($R20-Celc2)/Celc1)/((($R20-Celc2)/Celc1)+237.7)))) -> 2279.65 | GS20: =RH*$GQ20 -> 1778.51 | GT20: =(GW20*p_atm)/(GW20+0.622) -> 1778.51 | GU20: =T20*GR20 -> 1778.51 | GV20: =0.622*($GS20/(p_atm-$GS20)) -> 0.0111 | GW20: =IF(H20=G20,GV20,(0.53475935828878*($GZ20-(1.005*(($R20-Celc2)/Celc1))))/(1336.8983957219)) -> 0.0111 | GX20: =0.622*($GU20/(p_atm-$GU20)) -> 0.01 | GY20: =(1.005*Tl_cool)+($GV20*(2500+(1.87*Tl_cool))) -> 55.48 | GZ20: =GY20-((((H20-G20)/Watts)/1000)/(N20/$L$15)) -> 55.48 | HA20: =(1.005*(($R20-Celc2)/Celc1))+($GX20*(2500+(1.87*(($R20-Celc2)/Celc1)))) -> 47.91 | HB20: 19.42 | HC20: 19.42 | HE20: 354.986764 | HF20: 881.6515824 | HG20: 17.5 | HH20: 17.5 | HL20: =0.5*(1-((HP20-HE20)/HP20)) -> 0.5 | HM20: =(0.025*Tl_cool)+0.5 -> 1.18 | HO20: =HS20/HQ20 -> 55.56% | HP20: =DU20 -> 355.0 | HQ20: 639.0 | HR20: =HP20/HQ20 -> 55.56% | HS20: 354.99 | HT20: =IF(HS20-(HR20*HQ20)<=0,0,HS20-(HR20*HQ20)) -> 0.00 | HU20: =HQ20*(1-HR20) -> 283.99 | HV20: =IF((HT20/HU20)>1,1,HT20/HU20) -> 0.00% | HW20: 17.50 | HX20: =Tr_cool*HM20 -> 21.15 | HY20: =ABS(HX20-HW20) -> 3.65 | IB20: =IF(HO20<=HR20,HW20,HW20+(HV20*HY20)) -> 17.50 | IE20: =(237.3*LN((RH*EXP(17.27*(Tl_cool/(Tl_cool+237.3))))))/(17.27-LN((RH*EXP(17.27*(Tl_cool/(Tl_cool+237.3)))))) -> 15.69066559 | IG20: =(BG20-BF20)/BG20 ->  | II20: =(611*EXP(17.27*(Tl_heat/(Tl_heat+237.7)))) -> 2334.18 | IJ20: =(611*EXP(17.27*((($P20-Celc2)/Celc1)/((($P20-Celc2)/Celc1)+237.7)))) -> 14702.47
B21: 80% | C21: 8 | D21: =IF(Geg_dP<AB21,((($BK$18*($N21/Cubics)^4+$BK$19*($N21/Cubics)^3+$BK$20*($N21/Cubics)^2+$BK$21*($N21/Cubics)^1+$BK$22)*((CF_Regime_Heat_noExp)^$AA21)))*CF_Addit*Watts*CF_Altit,Lim_dP) -> 4971 | E21: =IF(Geg_dP<$AB21,ROUND((($D21/Watts)/((Tv_heat-Tr_heat)*1.163))*FlowH2O,IF(UnitsNo=1,0,IF(UnitsNo=2,2))),"") -> 427 | F21: =IF(Geg_dP<$AB21,IF((($BM$18*(E21/FlowH2O)^$BM$19))*kPa>0,(($BM$18*(E21/FlowH2O)^$BM$19))*kPa,0),"") -> 4.0 | G21: =IF(Geg_dP<$AB21,((($BL$18*($N21/Cubics)^4+$BL$19*($N21/Cubics)^3+$BL$20*($N21/Cubics)^2+$BL$21*($N21/Cubics)^1+$BL$22)*((CF_Regime_Cool_noExp)^$Y21)))*CF_Addit*Watts*CF_Altit,Lim_dP) -> 1075 | H21: =IF(Geg_dP<$AB21,((G21/Watts)/(IF((237.3*LN((RH*EXP(17.27*(Tl_cool/(Tl_cool+237.3))))))/(17.27-LN((RH*EXP(17.27*(Tl_cool/(Tl_cool+237.3))))))<EZ21,1,IF(1/(1+((2258*((0.622/((101325/(1*611*EXP(17.27*(EZ21/(EZ21+237.3))))))-1)*1000-(0.622/((101325/(RH*611*EXP(17.27*(Tl_cool/(Tl_cool+237.3))))))-1)*1000))/(1005*(Tavg_cold-Tl_cool))))>1,1,1/(1+((2258*((0.622/((101325/(1*611*EXP(17.27*(EZ21/(EZ21+237.3))))))-1)*1000-(0.622/((101325/(RH*611*EXP(17.27*(Tl_cool/(Tl_cool+237.3))))))-1)*1000))/(1005*(Tavg_cold-Tl_cool))))))))*Watts,"") -> 1075 | I21: =IF(Geg_dP<AB21,ROUND(((H21/Watts)/((Tr_cool-Tv_cool)*1.163))*FlowH2O,IF(UnitsNo=1,0,IF(UnitsNo=2,2))),"") -> 462 | J21: =IF(Geg_dP<$AB21,IF((($BM$21*(I21/FlowH2O)^$BM$22))*kPa>0,(($BM$21*(I21/FlowH2O)^$BM$22))*kPa,0),"") -> 4.6 | K21: =IF(Geg_dP<AB21,IF($L21-8<0,0,$L21-8),"") -> 46.5 | L21: =IF(Geg_dP<$AB21,IF(CalcNo="12",$ET21,IF(CalcNo="22",$ET21,IF(CalcNo="13",$EU21,IF(CalcNo="23",$EU21,IF(CalcNo="11",$ER21,IF(CalcNo="21",$ER21,IF(CalcNo="14",$ES21,IF(CalcNo="24",$ES21,IF(CalcNo="32",$EX21,IF(CalcNo="42",$EX21,IF(CalcNo="33",$EY21,IF(CalcNo="43",$EY21,IF(CalcNo="31",$EV21,IF(CalcNo="41",$EV21,IF(CalcNo="34",$EW21,IF(CalcNo="44",$EW21,)))))))))))))))),"") -> 54.5 | M21: =IF(Geg_dP<$AB21,($CF21*(($N21/Cubics)^4))+($CG21*(($N21/Cubics)^3))+($CH21*(($N21/Cubics)^2))+($CI21*($N21/Cubics))+$CJ21,"") -> 31.1 | N21: =IF(Geg_dP<$AB21,(BZ21*Geg_dP^5+CA21*Geg_dP^4+CB21*Geg_dP^3+CC21*Geg_dP^2+CD21*Geg_dP+CE21)*CF_Case*Cubics,"") -> 450 | O21: =IF(Geg_dP<$AB21,(($N21/Cubics)/3600)/(($BJ$23/100)*($BP$23/100))*FeetMins,"") -> 1.03 | P21: =IF(Geg_dP<$AB21,((($D21/Watts)/(((p_atm*0.028964)/(8.31447*(20+273.15)))*(($N21/3600)/Cubics)*(1005+1870*((0.622)/(((p_atm)/($E$14*pvs_heat_in))-1)))))+Tl_heat)*Celc1+Celc2,"") -> 52.4 | Q21: =IF(Geg_dP<$AB21,(27.8*LN(($GN21+36)/45.5))*Celc1+Celc2,"") -> 23.9 | R21: =IF(Geg_dP<$AB21,(Tl_cool-(($G21/Watts)/(1006*$N21*kgss)))*Celc1+Celc2,"") -> 19.9 | S21: =IF(Geg_dP<$AB21,IF((27.8*LN(($HA21+36)/45.5))*Celc1+Celc2>R21,R21,(27.8*LN(($HA21+36)/45.5))*Celc1+Celc2),"") -> 17.1 | T21: =IF(Geg_dP<$AB21,IF($H21>$G21,1,IF(($GT21/$GR21)<0,0,$GT21/$GR21)),"") -> 77% | U21: =IF(Geg_dP<$AB21,$CK21*($N21/Cubics)^2+$CL21*($N21/Cubics)^1+$CM21,"") -> 1143 | V21: =M21/((N21/Cubics)/3.6) -> 0.25 | W21: =(G21/Watts)/(N21/Cubics) -> 2.387 | X21: 1.02106 | Y21: 1.10028 | Z21: 1.13249 | AA21: 1.02106 | AB21: 106.76 | AC21: 1.02106 | AD21: 1.10028 | AE21: 1.13249 | AF21: 104.00 | AG21: 1.02106 | AH21: 1.10028 | AI21: 1.13249 | AJ21: 158.00 | AK21: 1.02106 | AL21: 1.10028 | AM21: 1.13249 | AN21: 106.76 | AR21: 1000 | AV21: 1000 | AZ21: 1000 | BD21: 1000 | BH21: 1000 | BK21: 1.06E+01 | BL21: 5.14E+00 | BM21: 5.86E-05 | BN21: 1.06E+01 | BO21: 5.14E+00 | BP21: 5.86E-05 | BQ21: 2.15E+00 | BR21: =BO21 -> 5.14E+00 | BS21: =BP21 -> 5.86E-05 | BT21: 0 | BU21: 0 | BV21: 0 | BW21: 0 | BX21: 0 | BY21: 0 | BZ21: 0.00E+00 | CA21: -6.58E-07 | CB21: 1.35E-04 | CC21: -1.91E-02 | CD21: -2.78E+00 | CE21: 4.50E+02 | CF21: 0.00E+00 | CG21: -1.01E-07 | CH21: 7.43E-05 | CI21: 2.77E-02 | CJ21: 1.28E+01 | CK21: 2.21E-04 | CL21: -8.26E-01 | CM21: 1.47E+03 | CO21: -1.75E-06 | CP21: 3.59E-04 | CQ21: -3.06E-02 | CR21: -2.51E+00 | CS21: 3.94E+02 | CU21: -1.61E-07 | CV21: 1.05E-04 | CW21: 2.30E-02 | CX21: 1.20E+01 | CY21: 1.26E-04 | CZ21: -7.32E-01 | DA21: 1.43E+03 | DC21: -1.14E-07 | DD21: 2.99E-05 | DE21: -1.16E-02 | DF21: -2.13E+00 | DG21: 5.87E+02 | DI21: -4.54E-08 | DJ21: 3.88E-05 | DK21: 5.68E-02 | DL21: 2.06E+01 | DM21: 1.17E-04 | DN21: -6.95E-01 | DO21: 1.79E+03 | DQ21: -6.58E-07 | DR21: 1.35E-04 | DS21: -1.91E-02 | DT21: -2.78E+00 | DU21: 4.50E+02 | DW21: -1.01E-07 | DX21: 7.43E-05 | DY21: 2.77E-02 | DZ21: 1.28E+01 | EA21: 2.21E-04 | EB21: -8.26E-01 | EC21: 1.47E+03 | ER21: 54.5 | ET21: 54.5 | EZ21: =IF($BK$17="11",FA21,IF($BK$17="21",FA21,IF($BK$17="12",FC21,IF($BK$17="22",FC21,IF($BK$17="13",FD21,IF($BK$17="23",FD21,IF($BK$17="14",FB21,IF($BK$17="24",FB21,IF($BK$17="31",FE21,IF($BK$17="41",FE21,IF($BK$17="32",FG21,IF($BK$17="42",FG21,IF($BK$17="33",FH21,IF($BK$17="43",FH21,IF($BK$17="34",FF21,IF($BK$17="44",FF21,)))))))))))))))) -> 17.5 | FA21: =Tavg_cold -> 17 | FB21: =IF($GC21<=$FC21,$FC21,IF($FM21<=$FP21,$FC21,$FZ21)) -> 17.5 | FC21: =IF($N21>$FN21,Tavg_cold+(0.5*(Tr_cool-Tavg_cold)),Tavg_cold+($FJ21*(Tr_cool-Tavg_cold))) -> 17.5 | FJ21: =0.5*(1-((FN21-N21)/FN21)) -> 0.5 | FK21: =(0.025*Tl_cool)+0.5 -> 1.18 | FM21: =FQ21/FO21 -> 55.56% | FN21: =DU21 -> 450.2 | FO21: =FN21*1.8 -> 810.3 | FP21: =FN21/FO21 -> 55.56% | FQ21: =N21/Cubics -> 450.17 | FR21: =IF(FQ21-(FP21*FO21)<=0,0,FQ21-(FP21*FO21)) -> 0.00 | FS21: =FO21*(1-FP21) -> 360.14 | FT21: =IF((FR21/FS21)>1,1,FR21/FS21) -> 0.00% | FU21: =FC21 -> 17.50 | FV21: =Tr_cool*FK21 -> 21.15 | FW21: =ABS(FV21-FU21) -> 3.65 | FZ21: =IF(FM21<=FP21,FU21,FU21+(FT21*FW21)) -> 17.50 | GC21: =(237.3*LN((RH*EXP(17.27*(Tl_cool/(Tl_cool+237.3))))))/(17.27-LN((RH*EXP(17.27*(Tl_cool/(Tl_cool+237.3)))))) -> 15.69066559 | GE21: =(H21-G21)/H21 -> 0.0% | GG21: =(611*EXP(17.27*(Tl_heat/(Tl_heat+237.7)))) -> 2334.18 | GH21: =(611*EXP(17.27*((($P21-Celc2)/Celc1)/((($P21-Celc2)/Celc1)+237.7)))) -> 13836.22 | GI21: =RH*$GG21 -> 1167.09 | GJ21: =(GL21*p_atm)/(GL21+0.622) -> 1167.09 | GK21: =0.622*($GI21/(p_atm-$GI21)) -> 0.01 | GL21: 0.01 | GM21: =(1.005*Tl_heat)+($GK21*(2500+(1.87*Tl_heat))) -> 38.49 | GN21: =(1.005*(($P21-Celc2)/Celc1))+($GL21*(2500+(1.87*(($P21-Celc2)/Celc1)))) -> 71.50 | GO21: 8% | GQ21: =(611*EXP(17.27*(Tl_cool/(Tl_cool+237.7)))) -> 3557.01 | GR21: =(611*EXP(17.27*((($R21-Celc2)/Celc1)/((($R21-Celc2)/Celc1)+237.7)))) -> 2320.55 | GS21: =RH*$GQ21 -> 1778.51 | GT21: =(GW21*p_atm)/(GW21+0.622) -> 1778.51 | GU21: =T21*GR21 -> 1778.51 | GV21: =0.622*($GS21/(p_atm-$GS21)) -> 0.0111 | GW21: =IF(H21=G21,GV21,(0.53475935828878*($GZ21-(1.005*(($R21-Celc2)/Celc1))))/(1336.8983957219)) -> 0.0111 | GX21: =0.622*($GU21/(p_atm-$GU21)) -> 0.01 | GY21: =(1.005*Tl_cool)+($GV21*(2500+(1.87*Tl_cool))) -> 55.48 | GZ21: =GY21-((((H21-G21)/Watts)/1000)/(N21/$L$15)) -> 55.48 | HA21: =(1.005*(($R21-Celc2)/Celc1))+($GX21*(2500+(1.87*(($R21-Celc2)/Celc1)))) -> 48.20 | HB21: 19.42 | HC21: 19.42 | HE21: 450.174779 | HF21: 1074.57792 | HG21: 17.5 | HH21: 17.5 | HL21: =0.5*(1-((HP21-HE21)/HP21)) -> 0.5 | HM21: =(0.025*Tl_cool)+0.5 -> 1.18 | HO21: =HS21/HQ21 -> 55.56% | HP21: =DU21 -> 450.2 | HQ21: 810.3 | HR21: =HP21/HQ21 -> 55.56% | HS21: 450.17 | HT21: =IF(HS21-(HR21*HQ21)<=0,0,HS21-(HR21*HQ21)) -> 0.00 | HU21: =HQ21*(1-HR21) -> 360.14 | HV21: =IF((HT21/HU21)>1,1,HT21/HU21) -> 0.00% | HW21: 17.50 | HX21: =Tr_cool*HM21 -> 21.15 | HY21: =ABS(HX21-HW21) -> 3.65 | IB21: =IF(HO21<=HR21,HW21,HW21+(HV21*HY21)) -> 17.50 | IE21: =(237.3*LN((RH*EXP(17.27*(Tl_cool/(Tl_cool+237.3))))))/(17.27-LN((RH*EXP(17.27*(Tl_cool/(Tl_cool+237.3)))))) -> 15.69066559 | IG21: =(BG21-BF21)/BG21 ->  | II21: =(611*EXP(17.27*(Tl_heat/(Tl_heat+237.7)))) -> 2334.18 | IJ21: =(611*EXP(17.27*((($P21-Celc2)/Celc1)/((($P21-Celc2)/Celc1)+237.7)))) -> 13836.22
B22: 100% | C22: 10 | D22: =IF(Geg_dP<AB22,((($BK$18*($N22/Cubics)^4+$BK$19*($N22/Cubics)^3+$BK$20*($N22/Cubics)^2+$BK$21*($N22/Cubics)^1+$BK$22)*((CF_Regime_Heat_noExp)^$AA22)))*CF_Addit*Watts*CF_Altit,Lim_dP) -> 5491 | E22: =IF(Geg_dP<$AB22,ROUND((($D22/Watts)/((Tv_heat-Tr_heat)*1.163))*FlowH2O,IF(UnitsNo=1,0,IF(UnitsNo=2,2))),"") -> 472 | F22: =IF(Geg_dP<$AB22,IF((($BM$18*(E22/FlowH2O)^$BM$19))*kPa>0,(($BM$18*(E22/FlowH2O)^$BM$19))*kPa,0),"") -> 4.8 | G22: =IF(Geg_dP<$AB22,((($BL$18*($N22/Cubics)^4+$BL$19*($N22/Cubics)^3+$BL$20*($N22/Cubics)^2+$BL$21*($N22/Cubics)^1+$BL$22)*((CF_Regime_Cool_noExp)^$Y22)))*CF_Addit*Watts*CF_Altit,Lim_dP) -> 1169 | H22: =IF(Geg_dP<$AB22,((G22/Watts)/(IF((237.3*LN((RH*EXP(17.27*(Tl_cool/(Tl_cool+237.3))))))/(17.27-LN((RH*EXP(17.27*(Tl_cool/(Tl_cool+237.3))))))<EZ22,1,IF(1/(1+((2258*((0.622/((101325/(1*611*EXP(17.27*(EZ22/(EZ22+237.3))))))-1)*1000-(0.622/((101325/(RH*611*EXP(17.27*(Tl_cool/(Tl_cool+237.3))))))-1)*1000))/(1005*(Tavg_cold-Tl_cool))))>1,1,1/(1+((2258*((0.622/((101325/(1*611*EXP(17.27*(EZ22/(EZ22+237.3))))))-1)*1000-(0.622/((101325/(RH*611*EXP(17.27*(Tl_cool/(Tl_cool+237.3))))))-1)*1000))/(1005*(Tavg_cold-Tl_cool))))))))*Watts,"") -> 1169 | I22: =IF(Geg_dP<AB22,ROUND(((H22/Watts)/((Tr_cool-Tv_cool)*1.163))*FlowH2O,IF(UnitsNo=1,0,IF(UnitsNo=2,2))),"") -> 503 | J22: =IF(Geg_dP<$AB22,IF((($BM$21*(I22/FlowH2O)^$BM$22))*kPa>0,(($BM$21*(I22/FlowH2O)^$BM$22))*kPa,0),"") -> 5.4 | K22: =IF(Geg_dP<AB22,IF($L22-8<0,0,$L22-8),"") -> 51.0 | L22: =IF(Geg_dP<$AB22,IF(CalcNo="12",$ET22,IF(CalcNo="22",$ET22,IF(CalcNo="13",$EU22,IF(CalcNo="23",$EU22,IF(CalcNo="11",$ER22,IF(CalcNo="21",$ER22,IF(CalcNo="14",$ES22,IF(CalcNo="24",$ES22,IF(CalcNo="32",$EX22,IF(CalcNo="42",$EX22,IF(CalcNo="33",$EY22,IF(CalcNo="43",$EY22,IF(CalcNo="31",$EV22,IF(CalcNo="41",$EV22,IF(CalcNo="34",$EW22,IF(CalcNo="44",$EW22,)))))))))))))))),"") -> 59.0 | M22: =IF(Geg_dP<$AB22,($CF22*(($N22*CFMs)^4))+($CG22*(($N22*CFMs)^3))+($CH22*(($N22*CFMs)^2))+($CI22*($N22*CFMs))+$CJ22,"") -> 41.1 | N22: =IF(Geg_dP<$AB22,(BZ22*Geg_dP^5+CA22*Geg_dP^4+CB22*Geg_dP^3+CC22*Geg_dP^2+CD22*Geg_dP+CE22)*CF_Case*Cubics,"") -> 500 | O22: =IF(Geg_dP<$AB22,(($N22/Cubics)/3600)/(($BJ$23/100)*($BP$23/100))*FeetMins,"") -> 1.15 | P22: =IF(Geg_dP<$AB22,((($D22/Watts)/(((p_atm*0.028964)/(8.31447*(20+273.15)))*(($N22/3600)/Cubics)*(1005+1870*((0.622)/(((p_atm)/($E$14*pvs_heat_in))-1)))))+Tl_heat)*Celc1+Celc2,"") -> 52.2 | Q22: =IF(Geg_dP<$AB22,(27.8*LN(($GN22+36)/45.5))*Celc1+Celc2,"") -> 23.9 | R22: =IF(Geg_dP<$AB22,(Tl_cool-(($G22/Watts)/(1006*$N22*kgss)))*Celc1+Celc2,"") -> 20.1 | S22: =IF(Geg_dP<$AB22,IF((27.8*LN(($HA22+36)/45.5))*Celc1+Celc2>R22,R22,(27.8*LN(($HA22+36)/45.5))*Celc1+Celc2),"") -> 17.2 | T22: =IF(Geg_dP<$AB22,IF($H22>$G22,1,IF(($GT22/$GR22)<0,0,$GT22/$GR22)),"") -> 76% | U22: =IF(Geg_dP<$AB22,$CK22*($N22/Cubics)^2+$CL22*($N22/Cubics)^1+$CM22,"") -> 1247 | V22: =M22/((N22/Cubics)/3.6) -> 0.30 | W22: =(G22/Watts)/(N22/Cubics) -> 2.337 | X22: 1.02106 | Y22: 1.10028 | Z22: 1.13249 | AA22: 1.02106 | AB22: 132.32 | AC22: 1.02106 | AD22: 1.10028 | AE22: 1.13249 | AF22: 130.00 | AG22: 1.02106 | AH22: 1.10028 | AI22: 1.13249 | AJ22: 160.00 | AK22: 1.02106 | AL22: 1.10028 | AM22: 1.13249 | AN22: 132.32 | AR22: 1000 | AV22: 1000 | AZ22: 1000 | BD22: 1000 | BH22: 1000 | BK22: -1.99E+02 | BL22: 1.99E+01 | BM22: 1.84E+00 | BN22: -1.99E+02 | BO22: 1.99E+01 | BP22: 1.84E+00 | BQ22: 2.84E+02 | BR22: 1.99E+01 | BS22: =BP22 -> 1.84E+00 | BT22: 0 | BU22: 0 | BV22: 0 | BW22: 0 | BX22: 0 | BY22: 0 | BZ22: 0.00E+00 | CA22: -5.94E-07 | CB22: 1.53E-04 | CC22: -1.99E-02 | CD22: -2.32E+00 | CE22: 5.00E+02 | CF22: 0.00E+00 | CG22: -4.13E-07 | CH22: 1.91E-04 | CI22: 6.39E-02 | CJ22: 1.62E+01 | CK22: 2.21E-04 | CL22: -8.99E-01 | CM22: 1.64E+03 | CO22: -2.31E-06 | CP22: 5.43E-04 | CQ22: -4.46E-02 | CR22: -1.77E+00 | CS22: 4.53E+02 | CU22: -7.42E-07 | CV22: 3.32E-04 | CW22: 4.65E-02 | CX22: 1.64E+01 | CY22: -2.46E-05 | CZ22: -7.26E-01 | DA22: 1.62E+03 | DC22: -3.52E-06 | DD22: 8.43E-04 | DE22: -6.56E-02 | DF22: -6.99E-01 | DG22: 6.77E+02 | DI22: -6.46E-07 | DJ22: 3.00E-04 | DK22: 1.48E-01 | DL22: 2.09E+01 | DM22: -8.74E-04 | DN22: 2.95E-01 | DO22: 1.81E+03 | DQ22: -5.94E-07 | DR22: 1.53E-04 | DS22: -1.99E-02 | DT22: -2.32E+00 | DU22: 5.00E+02 | DW22: -4.13E-07 | DX22: 1.91E-04 | DY22: 6.39E-02 | DZ22: 1.62E+01 | EA22: 2.21E-04 | EB22: -8.99E-01 | EC22: 1.64E+03 | ER22: 59 | ET22: 59 | EZ22: =IF($BK$17="11",FA22,IF($BK$17="21",FA22,IF($BK$17="12",FC22,IF($BK$17="22",FC22,IF($BK$17="13",FD22,IF($BK$17="23",FD22,IF($BK$17="14",FB22,IF($BK$17="24",FB22,IF($BK$17="31",FE22,IF($BK$17="41",FE22,IF($BK$17="32",FG22,IF($BK$17="42",FG22,IF($BK$17="33",FH22,IF($BK$17="43",FH22,IF($BK$17="34",FF22,IF($BK$17="44",FF22,)))))))))))))))) -> 17.5 | FA22: =Tavg_cold -> 17 | FB22: =IF($GC22<=$FC22,$FC22,IF($FM22<=$FP22,$FC22,$FZ22)) -> 17.5 | FC22: =IF($N22>$FN22,Tavg_cold+(0.5*(Tr_cool-Tavg_cold)),Tavg_cold+($FJ22*(Tr_cool-Tavg_cold))) -> 17.5 | FJ22: =0.5*(1-((FN22-N22)/FN22)) -> 0.5 | FK22: =(0.025*Tl_cool)+0.5 -> 1.18 | FM22: =FQ22/FO22 -> 55.56% | FN22: =DU22 -> 500.1 | FO22: =FN22*1.8 -> 900.2 | FP22: =FN22/FO22 -> 55.56% | FQ22: =N22/Cubics -> 500.13 | FR22: =IF(FQ22-(FP22*FO22)<=0,0,FQ22-(FP22*FO22)) -> 0.00 | FS22: =FO22*(1-FP22) -> 400.11 | FT22: =IF((FR22/FS22)>1,1,FR22/FS22) -> 0.00% | FU22: =FC22 -> 17.50 | FV22: =Tr_cool*FK22 -> 21.15 | FW22: =ABS(FV22-FU22) -> 3.65 | FZ22: =IF(FM22<=FP22,FU22,FU22+(FT22*FW22)) -> 17.50 | GC22: =(237.3*LN((RH*EXP(17.27*(Tl_cool/(Tl_cool+237.3))))))/(17.27-LN((RH*EXP(17.27*(Tl_cool/(Tl_cool+237.3)))))) -> 15.69066559 | GE22: =(H22-G22)/H22 -> 0.0% | GG22: =(611*EXP(17.27*(Tl_heat/(Tl_heat+237.7)))) -> 2334.18 | GH22: =(611*EXP(17.27*((($P22-Celc2)/Celc1)/((($P22-Celc2)/Celc1)+237.7)))) -> 13711.42 | GI22: =RH*$GG22 -> 1167.09 | GJ22: =(GL22*p_atm)/(GL22+0.622) -> 1167.09 | GK22: =0.622*($GI22/(p_atm-$GI22)) -> 0.01 | GL22: 0.01 | GM22: =(1.005*Tl_heat)+($GK22*(2500+(1.87*Tl_heat))) -> 38.49 | GN22: =(1.005*(($P22-Celc2)/Celc1))+($GL22*(2500+(1.87*(($P22-Celc2)/Celc1)))) -> 71.31 | GO22: 9% | GQ22: =(611*EXP(17.27*(Tl_cool/(Tl_cool+237.7)))) -> 3557.01 | GR22: =(611*EXP(17.27*((($R22-Celc2)/Celc1)/((($R22-Celc2)/Celc1)+237.7)))) -> 2341.84 | GS22: =RH*$GQ22 -> 1778.51 | GT22: =(GW22*p_atm)/(GW22+0.622) -> 1778.51 | GU22: =T22*GR22 -> 1778.51 | GV22: =0.622*($GS22/(p_atm-$GS22)) -> 0.0111 | GW22: =IF(H22=G22,GV22,(0.53475935828878*($GZ22-(1.005*(($R22-Celc2)/Celc1))))/(1336.8983957219)) -> 0.0111 | GX22: =0.622*($GU22/(p_atm-$GU22)) -> 0.01 | GY22: =(1.005*Tl_cool)+($GV22*(2500+(1.87*Tl_cool))) -> 55.48 | GZ22: =GY22-((((H22-G22)/Watts)/1000)/(N22/$L$15)) -> 55.48 | HA22: =(1.005*(($R22-Celc2)/Celc1))+($GX22*(2500+(1.87*(($R22-Celc2)/Celc1)))) -> 48.35 | HB22: 19.42 | HC22: 19.42 | HE22: 500.134295 | HF22: 1168.967496 | HG22: 17.5 | HH22: 17.5 | HL22: =0.5*(1-((HP22-HE22)/HP22)) -> 0.5 | HM22: =(0.025*Tl_cool)+0.5 -> 1.18 | HO22: =HS22/HQ22 -> 55.56% | HP22: =DU22 -> 500.1 | HQ22: 900.2 | HR22: =HP22/HQ22 -> 55.56% | HS22: 500.13 | HT22: =IF(HS22-(HR22*HQ22)<=0,0,HS22-(HR22*HQ22)) -> 0.00 | HU22: =HQ22*(1-HR22) -> 400.11 | HV22: =IF((HT22/HU22)>1,1,HT22/HU22) -> 0.00% | HW22: 17.50 | HX22: =Tr_cool*HM22 -> 21.15 | HY22: =ABS(HX22-HW22) -> 3.65 | IB22: =IF(HO22<=HR22,HW22,HW22+(HV22*HY22)) -> 17.50 | IE22: =(237.3*LN((RH*EXP(17.27*(Tl_cool/(Tl_cool+237.3))))))/(17.27-LN((RH*EXP(17.27*(Tl_cool/(Tl_cool+237.3)))))) -> 15.69066559 | IG22: =(BG22-BF22)/BG22 ->  | II22: =(611*EXP(17.27*(Tl_heat/(Tl_heat+237.7)))) -> 2334.18 | IJ22: =(611*EXP(17.27*((($P22-Celc2)/Celc1)/((($P22-Celc2)/Celc1)+237.7)))) -> 13711.42
B23: =IF(LangNo=1,NL!A23,IF(LangNo=2,EN!A23,IF(LangNo=3,DE!A23,IF(LangNo=4,FR!A23,IF(LangNo=5,NR!A23,IF(LangNo=6,SP!A23,IF(LangNo=7,SW!A23,IF(LangNo=8,TS!A23,IF(LangNo=9,ExtraTaal1!A23,IF(LangNo=10,ExtraTaal2!A23,IF(LangNo=11,ExtraTaal3!A23,))))))))))) -> Briza 22 (230V) height 54,5 cm, width 22 cm, length 75 cm (Type 03) | C23: =IF(LangNo=1,NL!B21,IF(LangNo=2,EN!B21,IF(LangNo=3,DE!B21,IF(LangNo=4,FR!B21,IF(LangNo=5,NR!B21,IF(LangNo=6,SP!B21,IF(LangNo=7,SW!B21,IF(LangNo=8,TS!B21,IF(LangNo=9,ExtraTaal1!B21,IF(LangNo=10,ExtraTaal2!B21,IF(LangNo=11,ExtraTaal3!B21,))))))))))) -> 0 | D23: =IF(LangNo=1,NL!C21,IF(LangNo=2,EN!C21,IF(LangNo=3,DE!C21,IF(LangNo=4,FR!C21,IF(LangNo=5,NR!C21,IF(LangNo=6,SP!C21,IF(LangNo=7,SW!C21,IF(LangNo=8,TS!C21,IF(LangNo=9,ExtraTaal1!C21,IF(LangNo=10,ExtraTaal2!C21,IF(LangNo=11,ExtraTaal3!C21,))))))))))) -> 0 | E23: =IF(LangNo=1,NL!D21,IF(LangNo=2,EN!D21,IF(LangNo=3,DE!D21,IF(LangNo=4,FR!D21,IF(LangNo=5,NR!D21,IF(LangNo=6,SP!D21,IF(LangNo=7,SW!D21,IF(LangNo=8,TS!D21,IF(LangNo=9,ExtraTaal1!D21,IF(LangNo=10,ExtraTaal2!D21,IF(LangNo=11,ExtraTaal3!D21,))))))))))) -> 0 | F23: =IF(LangNo=1,NL!E21,IF(LangNo=2,EN!E21,IF(LangNo=3,DE!E21,IF(LangNo=4,FR!E21,IF(LangNo=5,NR!E21,IF(LangNo=6,SP!E21,IF(LangNo=7,SW!E21,IF(LangNo=8,TS!E21,IF(LangNo=9,ExtraTaal1!E21,IF(LangNo=10,ExtraTaal2!E21,IF(LangNo=11,ExtraTaal3!E21,))))))))))) -> 0 | G23: =IF(LangNo=1,NL!F21,IF(LangNo=2,EN!F21,IF(LangNo=3,DE!F21,IF(LangNo=4,FR!F21,IF(LangNo=5,NR!F21,IF(LangNo=6,SP!F21,IF(LangNo=7,SW!F21,IF(LangNo=8,TS!F21,IF(LangNo=9,ExtraTaal1!F21,IF(LangNo=10,ExtraTaal2!F21,IF(LangNo=11,ExtraTaal3!F21,))))))))))) -> 0 | H23: =IF(LangNo=1,NL!G21,IF(LangNo=2,EN!G21,IF(LangNo=3,DE!G21,IF(LangNo=4,FR!G21,IF(LangNo=5,NR!G21,IF(LangNo=6,SP!G21,IF(LangNo=7,SW!G21,IF(LangNo=8,TS!G21,IF(LangNo=9,ExtraTaal1!G21,IF(LangNo=10,ExtraTaal2!G21,IF(LangNo=11,ExtraTaal3!G21,))))))))))) -> 0 | I23: =IF(LangNo=1,NL!H21,IF(LangNo=2,EN!H21,IF(LangNo=3,DE!H21,IF(LangNo=4,FR!H21,IF(LangNo=5,NR!H21,IF(LangNo=6,SP!H21,IF(LangNo=7,SW!H21,IF(LangNo=8,TS!H21,IF(LangNo=9,ExtraTaal1!H21,IF(LangNo=10,ExtraTaal2!H21,IF(LangNo=11,ExtraTaal3!H21,))))))))))) -> 0 | J23: =IF(LangNo=1,NL!I21,IF(LangNo=2,EN!I21,IF(LangNo=3,DE!I21,IF(LangNo=4,FR!I21,IF(LangNo=5,NR!I21,IF(LangNo=6,SP!I21,IF(LangNo=7,SW!I21,IF(LangNo=8,TS!I21,IF(LangNo=9,ExtraTaal1!I21,IF(LangNo=10,ExtraTaal2!I21,IF(LangNo=11,ExtraTaal3!I21,))))))))))) -> 0 | K23: =IF(LangNo=1,NL!J21,IF(LangNo=2,EN!J21,IF(LangNo=3,DE!J21,IF(LangNo=4,FR!J21,IF(LangNo=5,NR!J21,IF(LangNo=6,SP!J21,IF(LangNo=7,SW!J21,IF(LangNo=8,TS!J21,IF(LangNo=9,ExtraTaal1!J21,IF(LangNo=10,ExtraTaal2!J21,IF(LangNo=11,ExtraTaal3!J21,))))))))))) -> 0 | L23: =IF(LangNo=1,NL!K21,IF(LangNo=2,EN!K21,IF(LangNo=3,DE!K21,IF(LangNo=4,FR!K21,IF(LangNo=5,NR!K21,IF(LangNo=6,SP!K21,IF(LangNo=7,SW!K21,IF(LangNo=8,TS!K21,IF(LangNo=9,ExtraTaal1!K21,IF(LangNo=10,ExtraTaal2!K21,IF(LangNo=11,ExtraTaal3!K21,))))))))))) -> 0 | M23: =IF(LangNo=1,NL!L21,IF(LangNo=2,EN!L21,IF(LangNo=3,DE!L21,IF(LangNo=4,FR!L21,IF(LangNo=5,NR!L21,IF(LangNo=6,SP!L21,IF(LangNo=7,SW!L21,IF(LangNo=8,TS!L21,IF(LangNo=9,ExtraTaal1!L21,IF(LangNo=10,ExtraTaal2!L21,IF(LangNo=11,ExtraTaal3!L21,))))))))))) -> 0 | AA23: 0 | AB23: m³/h | AC23: n-value | AD23: n-value | AE23: n-value | AF23: m³/h | AG23: n-value | AH23: n-value | AI23: n-value | AJ23: m³/h | AK23: n-value | AL23: n-value | AM23: n-value | AN23: m³/h | AO23: n-value | AP23: n-value | AQ23: n-value | AR23: m³/h | AS23: n-value | AT23: n-value | AU23: n-value | AV23: m³/h | AW23: n-value | AX23: n-value | AY23: n-value | AZ23: m³/h | BA23: n-value | BB23: n-value | BC23: n-value | BD23: m³/h | BE23: n-value | BF23: n-value | BG23: n-value | BH23: m³/h | BJ23: =IF($BK$17="11",BO23,IF($BK$17="21",BR23,IF($BK$17="12",BO23,IF($BK$17="22",BR23,IF($BK$17="13",BO23,IF($BK$17="23",BR23,IF($BK$17="14",BO23,IF($BK$17="24",BR23,IF($BK$17="31",BU23,IF($BK$17="41",BX23,IF($BK$17="32",BU23,IF($BK$17="42",BX23,IF($BK$17="33",BU23,IF($BK$17="43",BX23,IF($BK$17="34",BU23,IF($BK$17="44",BX23,)))))))))))))))) -> 22 | BK23: =(BN23+IF(CaseNo=1,0,IF(CaseNo=2,$BN$2,)))*MilInch -> 54.5 | BL23: =(BJ23+IF(CaseNo=1,0,IF(CaseNo=2,$BN$3,)))*MilInch -> 22 | BM23: =(BP23+IF(CaseNo=1,0,IF(CaseNo=2,$BN$4,)))*MilInch -> 55 | BN23: 54.5 | BO23: 22 | BP23: 55 | BQ23: 54.5 | BR23: 22 | BS23: 55 | BT23: 54.5 | BU23: 26 | BV23: 55 | BW23: 54.5 | BX23: 26 | BY23: 55 | BZ23: =CF23 -> T03 | CF23: T03 | CN23: =CF23 -> T03 | DB23: =CF23 -> T03 | DP23: =CF23 -> T03 | ED23: =CF23 -> T03 | ER23: T03 | FA23: =ER23 -> T03 | HL23: T03
B24: =IF($AL$5=1,$C24/10,IF($AL$5=2,$C24/10,IF($AL$5=3,0,IF($AL$5=4,$C24/10,)))) -> 20% | C24: 2 | D24: =IF(Geg_dP<AB24,((($BK$24*($N24/Cubics)^4+$BK$25*($N24/Cubics)^3+$BK$27*($N24/Cubics)^2+$BK$29*($N24/Cubics)^1+$BK$30)*((CF_Regime_Heat_noExp)^$AA24)))*CF_Addit*Watts*CF_Altit,Lim_dP) -> 2414 | E24: =IF(Geg_dP<$AB24,ROUND((($D24/Watts)/((Tv_heat-Tr_heat)*1.163))*FlowH2O,IF(UnitsNo=1,0,IF(UnitsNo=2,2))),"") -> 208 | F24: =IF(Geg_dP<$AB24,IF((($BM$24*(E24/FlowH2O)^$BM$25))*kPa>0,(($BM$24*(E24/FlowH2O)^$BM$25))*kPa,0),"") -> 1.3 | G24: =IF(Geg_dP<$AB24,((($BL$24*($N24/Cubics)^4+$BL$25*($N24/Cubics)^3+$BL$27*($N24/Cubics)^2+$BL$29*($N24/Cubics)^1+$BL$30)*((CF_Regime_Cool_noExp)^$Y24)))*CF_Addit*Watts*CF_Altit,Lim_dP) -> 508 | H24: =IF(Geg_dP<$AB24,((G24/Watts)/(IF((237.3*LN((RH*EXP(17.27*(Tl_cool/(Tl_cool+237.3))))))/(17.27-LN((RH*EXP(17.27*(Tl_cool/(Tl_cool+237.3))))))<EZ24,1,IF(1/(1+((2258*((0.622/((101325/(1*611*EXP(17.27*(EZ24/(EZ24+237.3))))))-1)*1000-(0.622/((101325/(RH*611*EXP(17.27*(Tl_cool/(Tl_cool+237.3))))))-1)*1000))/(1005*(Tavg_cold-Tl_cool))))>1,1,1/(1+((2258*((0.622/((101325/(1*611*EXP(17.27*(EZ24/(EZ24+237.3))))))-1)*1000-(0.622/((101325/(RH*611*EXP(17.27*(Tl_cool/(Tl_cool+237.3))))))-1)*1000))/(1005*(Tavg_cold-Tl_cool))))))))*Watts,"") -> 508 | I24: =IF(Geg_dP<AB24,ROUND(((IF('Briza 22 & 26'!$M$4="High Perform. 208/230V (US/EU)",cal!HK24,H24)/Watts)/((Tr_cool-Tv_cool)*1.163))*FlowH2O,IF(UnitsNo=1,0,IF(UnitsNo=2,2))),"") -> 218 | J24: =IF(Geg_dP<$AB24,IF((($BM$29*(I24/FlowH2O)^$BM$30))*kPa>0,(($BM$29*(I24/FlowH2O)^$BM$30))*kPa,0),"") -> 1.4 | K24: =IF(Geg_dP<AB24,IF($L24-8<0,0,$L24-8),"") -> 20.5 | L24: =IF(Geg_dP<$AB24,IF(CalcNo="12",$ET24,IF(CalcNo="22",$ET24,IF(CalcNo="13",$EU24,IF(CalcNo="23",$EU24,IF(CalcNo="11",$ER24,IF(CalcNo="21",$ER24,IF(CalcNo="14",$ES24,IF(CalcNo="24",$ES24,IF(CalcNo="32",$EX24,IF(CalcNo="42",$EX24,IF(CalcNo="33",$EY24,IF(CalcNo="43",$EY24,IF(CalcNo="31",$EV24,IF(CalcNo="41",$EV24,IF(CalcNo="34",$EW24,IF(CalcNo="44",$EW24,)))))))))))))))),"") -> 28.5 | M24: =IF(Geg_dP<$AB24,($CF24*(($N24/Cubics)^4))+($CG24*(($N24/Cubics)^3))+($CH24*(($N24/Cubics)^2))+($CI24*($N24/Cubics))+$CJ24,"") -> 3.7 | N24: =IF(Geg_dP<$AB24,(BZ24*Geg_dP^5+CA24*Geg_dP^4+CB24*Geg_dP^3+CC24*Geg_dP^2+CD24*Geg_dP+CE24)*CF_Case*Cubics,"") -> 178 | O24: =IF(Geg_dP<$AB24,(($N24/Cubics)/3600)/(($BJ$31/100)*($BP$31/100))*FeetMins,"") -> 0.30 | P24: =IF(Geg_dP<$AB24,((($D24/Watts)/(((p_atm*0.028964)/(8.31447*(20+273.15)))*(($N24/3600)/Cubics)*(1005+1870*((0.622)/(((p_atm)/($E$14*pvs_heat_in))-1)))))+Tl_heat)*Celc1+Celc2,"") -> 59.7 | Q24: =IF(Geg_dP<$AB24,(27.8*LN(($GN24+36)/45.5))*Celc1+Celc2,"") -> 25.8 | R24: =IF(Geg_dP<$AB24,(Tl_cool-(($G24/Watts)/(1006*$N24*kgss)))*Celc1+Celc2,"") -> 18.5 | S24: =IF(Geg_dP<$AB24,IF((27.8*LN(($HA24+36)/45.5))*Celc1+Celc2>R24,R24,(27.8*LN(($HA24+36)/45.5))*Celc1+Celc2),"") -> 16.6 | T24: =IF(Geg_dP<$AB24,IF($H24>$G24,1,IF(($GT24/$GR24)<0,0,$GT24/$GR24)),"") -> 83% | U24: =IF(Geg_dP<$AB24,$CK24*($N24/Cubics)^2+$CL24*($N24/Cubics)^1+$CM24,"") -> 438 | V24: =M24/((N24/Cubics)/3.6) -> 0.07 | W24: =(G24/Watts)/(N24/Cubics) -> 2.848 | X24: 0.980228 | Y24: 1.29011 | Z24: 1.13171 | AA24: 0.980228 | AB24: 9.74 | AC24: 0.980228 | AD24: 1.29011 | AE24: 1.13171 | AF24: 5.00 | AG24: 0.980228 | AH24: 1.29011 | AI24: 1.13171 | AJ24: 7.50 | AK24: 0.980228 | AL24: 1.29011 | AM24: 1.13171 | AN24: 9.74 | AO24: 1.047198867 | AP24: 1.20218749 | AQ24: 1.158454135 | AR24: 20.68 | AV24: 1000 | AZ24: 1000 | BD24: 1000 | BH24: 1000 | BK24: =IF($BK$17="11",BN24,IF($BK$17="21",BQ24,IF($BK$17="12",BN24,IF($BK$17="22",BQ24,IF($BK$17="13",BN24,IF($BK$17="23",BQ24,IF($BK$17="14",BN24,IF($BK$17="24",BQ24,IF($BK$17="31",BT24,IF($BK$17="41",BW24,IF($BK$17="32",BT24,IF($BK$17="42",BW24,IF($BK$17="33",BT24,IF($BK$17="43",BW24,IF($BK$17="34",BT24,IF($BK$17="44",BW24,)))))))))))))))) -> 0.00E+00 | BL24: 0.00E+00 | BM24: 7.48E-05 | BP24: =BP29 -> 7.48E-05 | BR24: =BO24 -> 0 | BS24: 6.81E-04 | BT24: 0 | BU24: 0 | BV24: 0 | BW24: 0 | BX24: 0 | BY24: 0 | BZ24: =IF($BK$17="11",CN24,IF($BK$17="21",CN24,IF($BK$17="12",DP24,IF($BK$17="22",DP24,IF($BK$17="13",ED24,IF($BK$17="23",ED24,IF($BK$17="14",DB24,IF($BK$17="24",DB24,IF($BK$17="31",0,IF($BK$17="41",0,IF($BK$17="32",0,IF($BK$17="42",0,IF($BK$17="33",0,IF($BK$17="43",0,IF($BK$17="34",DB24,IF($BK$17="44",DB24,)))))))))))))))) -> 0.00E+00 | CA24: 5.83E-03 | CB24: -1.32E-01 | CC24: 7.72E-01 | CD24: -1.44E+01 | CE24: 1.78E+02 | CF24: =IF($BK$17="11",CT24,IF($BK$17="21",CT24,IF($BK$17="12",DV24,IF($BK$17="22",DV24,IF($BK$17="13",EJ24,IF($BK$17="23",EJ24,IF($BK$17="14",DH24,IF($BK$17="24",DH24,IF($BK$17="31",0,IF($BK$17="41",0,IF($BK$17="32",0,IF($BK$17="42",0,IF($BK$17="33",0,IF($BK$17="43",0,IF($BK$17="34",DH24,IF($BK$17="44",DH24,)))))))))))))))) -> 0.00E+00 | CG24: -2.84E-08 | CH24: 2.09E-05 | CI24: 1.08E-03 | CJ24: =IF($BK$17="11",CX24,IF($BK$17="21",CX24,IF($BK$17="12",DZ24,IF($BK$17="22",DZ24,IF($BK$17="13",EN24,IF($BK$17="23",EN24,IF($BK$17="14",DL24,IF($BK$17="24",DL24,IF($BK$17="31",0,IF($BK$17="41",0,IF($BK$17="32",0,IF($BK$17="42",0,IF($BK$17="33",0,IF($BK$17="43",0,IF($BK$17="34",DL24,IF($BK$17="44",DL24,)))))))))))))))) -> 2.97E+00 | CK24: -6.87E-04 | CL24: -2.65E-01 | CM24: 5.08E+02 | CO24: 2.25E-02 | CP24: -3.03E-01 | CQ24: 1.29E+00 | CR24: -1.68E+01 | CS24: 7.97E+01 | CU24: -1.62E-08 | CV24: 2.14E-05 | CW24: 5.86E-04 | CX24: 2.15E+00 | CY24: -5.11E-04 | CZ24: -6.33E-02 | DA24: 3.41E+02 | DC24: 3.02E-02 | DD24: -4.14E-01 | DE24: 1.27E+00 | DF24: -1.65E+01 | DG24: 1.38E+02 | DI24: -2.17E-07 | DJ24: 5.59E-05 | DK24: -2.13E-04 | DL24: 2.60E+00 | DM24: -3.42E-04 | DN24: -1.08E-01 | DO24: 4.01E+02 | DQ24: 5.83E-03 | DR24: -1.32E-01 | DS24: 7.72E-01 | DT24: -1.44E+01 | DU24: 1.78E+02 | DW24: -2.84E-08 | DX24: 2.09E-05 | DY24: 1.08E-03 | DZ24: 2.97E+00 | EA24: -6.87E-04 | EB24: -2.65E-01 | EC24: 5.08E+02 | EE24: 1.46E-03 | EF24: -6.45E-02 | EG24: 7.62E-01 | EH24: -1.43E+01 | EI24: 3.07E+02 | EK24: -1.11E-07 | EL24: 7.62E-05 | EM24: -3.16E-03 | EN24: 8.64E+00 | EO24: -1E-04 | EP24: -9E-02 | EQ24: 7E+02 | ER24: 28.5 | ET24: 28.5 | EV24: =ER24-5 -> 23.5 | EZ24: =IF($BK$17="11",FA24,IF($BK$17="21",FA24,IF($BK$17="12",FC24,IF($BK$17="22",FC24,IF($BK$17="13",FD24,IF($BK$17="23",FD24,IF($BK$17="14",FB24,IF($BK$17="24",FB24,IF($BK$17="31",FE24,IF($BK$17="41",FE24,IF($BK$17="32",FG24,IF($BK$17="42",FG24,IF($BK$17="33",FH24,IF($BK$17="43",FH24,IF($BK$17="34",FF24,IF($BK$17="44",FF24,)))))))))))))))) -> 17.5 | FA24: =Tavg_cold -> 17 | FB24: =IF($GC24<=$FC24,$FC24,IF($FM24<=$FP24,$FC24,$FZ24)) -> 17.5 | FC24: =IF($N24>$FN24,Tavg_cold+(0.5*(Tr_cool-Tavg_cold)),Tavg_cold+($FJ24*(Tr_cool-Tavg_cold))) -> 17.5 | FD24: 17.5 | FJ24: =0.5*(1-((FN24-N24)/FN24)) -> 0.5 | FK24: =(0.025*Tl_cool)+0.5 -> 1.18 | FM24: =FQ24/FO24 -> 58.04% | FN24: =DU24 -> 178.4 | FO24: =EI24 -> 307.4 | FP24: =FN24/FO24 -> 58.04% | FQ24: =N24/Cubics -> 178.41 | FR24: =IF(FQ24-(FP24*FO24)<=0,0,FQ24-(FP24*FO24)) -> 0.00 | FS24: =FO24*(1-FP24) -> 128.98 | FT24: =IF((FR24/FS24)>1,1,FR24/FS24) -> 0.00% | FU24: =FC24 -> 17.50 | FV24: =Tr_cool*FK24 -> 21.15 | FW24: =ABS(FV24-FU24) -> 3.65 | FZ24: =IF(FM24<=FP24,FU24,FU24+(FT24*FW24)) -> 17.50 | GC24: =(237.3*LN((RH*EXP(17.27*(Tl_cool/(Tl_cool+237.3))))))/(17.27-LN((RH*EXP(17.27*(Tl_cool/(Tl_cool+237.3)))))) -> 15.69066559 | GE24: =(H24-G24)/H24 -> 0.0% | GG24: =(611*EXP(17.27*(Tl_heat/(Tl_heat+237.7)))) -> 2334.18 | GH24: =(611*EXP(17.27*((($P24-Celc2)/Celc1)/((($P24-Celc2)/Celc1)+237.7)))) -> 19587.53 | GI24: =RH*$GG24 -> 1167.09 | GJ24: =(GL24*p_atm)/(GL24+0.622) -> 1167.09 | GK24: =0.622*($GI24/(p_atm-$GI24)) -> 0.01 | GL24: 0.01 | GM24: =(1.005*Tl_heat)+($GK24*(2500+(1.87*Tl_heat))) -> 38.49 | GN24: =(1.005*(($P24-Celc2)/Celc1))+($GL24*(2500+(1.87*(($P24-Celc2)/Celc1)))) -> 78.94 | GO24: 6% | GQ24: =(611*EXP(17.27*(Tl_cool/(Tl_cool+237.7)))) -> 3557.01 | GR24: =(611*EXP(17.27*((($R24-Celc2)/Celc1)/((($R24-Celc2)/Celc1)+237.7)))) -> 2130.87 | GS24: =RH*$GQ24 -> 1778.51 | GT24: =(GW24*p_atm)/(GW24+0.622) -> 1778.51 | GU24: =T24*GR24 -> 1778.51 | GV24: =0.622*($GS24/(p_atm-$GS24)) -> 0.0111 | GW24: =IF(H24=G24,GV24,(0.53475935828878*($GZ24-(1.005*(($R24-Celc2)/Celc1))))/(1336.8983957219)) -> 0.0111 | GX24: =0.622*($GU24/(p_atm-$GU24)) -> 0.01 | GY24: =(1.005*Tl_cool)+($GV24*(2500+(1.87*Tl_cool))) -> 55.48 | GZ24: =GY24-((((H24-G24)/Watts)/1000)/(N24/$L$15)) -> 55.48 | HA24: =(1.005*(($R24-Celc2)/Celc1))+($GX24*(2500+(1.87*(($R24-Celc2)/Celc1)))) -> 46.79 | HB24: 19.42 | HC24: 19.42 | HD24: =H24 -> 508 | HE24: 178.414262 | HF24: =IF(Geg_dP<$AB24,((($BL$24*($HE24/Cubics)^4+$BL$25*($HE24/Cubics)^3+$BL$27*($HE24/Cubics)^2+$BL$29*($HE24/Cubics)^1+$BL$30)*((CF_Regime_Cool_noExp)^$Y24)))*CF_Addit*Watts*CF_Altit,Lim_dP) -> 508.1829702 | HG24: 17.5 | HH24: 17.5 | HI24: =IF(Geg_dP<$AB24,((HF24/Watts)/(IF((237.3*LN((RH*EXP(17.27*(Tl_cool/(Tl_cool+237.3))))))/(17.27-LN((RH*EXP(17.27*(Tl_cool/(Tl_cool+237.3))))))<HH24,1,IF(1/(1+((2258*((0.622/((101325/(1*611*EXP(17.27*(HH24/(HH24+237.3))))))-1)*1000-(0.622/((101325/(RH*611*EXP(17.27*(Tl_cool/(Tl_cool+237.3))))))-1)*1000))/(1005*(Tavg_cold-Tl_cool))))>1,1,1/(1+((2258*((0.622/((101325/(1*611*EXP(17.27*(HH24/(HH24+237.3))))))-1)*1000-(0.622/((101325/(RH*611*EXP(17.27*(Tl_cool/(Tl_cool+237.3))))))-1)*1000))/(1005*(Tavg_cold-Tl_cool))))))))*Watts,"") -> 508 | HJ24: =HI24/HF24 -> 1 | HK24: =HJ24*G24 -> 508 | HL24: =0.5*(1-((HP24-HE24)/HP24)) -> 0.5 | HM24: =(0.025*Tl_cool)+0.5 -> 1.18 | HO24: =HS24/HQ24 -> 58.04% | HP24: =DU24 -> 178.4 | HQ24: =EI24 -> 307.4 | HR24: =HP24/HQ24 -> 58.04% | HS24: 178.41 | HT24: =IF(HS24-(HR24*HQ24)<=0,0,HS24-(HR24*HQ24)) -> 0.00 | HU24: =HQ24*(1-HR24) -> 128.98 | HV24: =IF((HT24/HU24)>1,1,HT24/HU24) -> 0.00% | HW24: 17.50 | HX24: =Tr_cool*HM24 -> 21.15 | HY24: =ABS(HX24-HW24) -> 3.65 | IB24: =IF(HO24<=HR24,HW24,HW24+(HV24*HY24)) -> 17.50 | IE24: =(237.3*LN((RH*EXP(17.27*(Tl_cool/(Tl_cool+237.3))))))/(17.27-LN((RH*EXP(17.27*(Tl_cool/(Tl_cool+237.3)))))) -> 15.69066559 | IG24: =(BG24-BF24)/BG24 ->  | II24: =(611*EXP(17.27*(Tl_heat/(Tl_heat+237.7)))) -> 2334.18 | IJ24: =(611*EXP(17.27*((($P24-Celc2)/Celc1)/((($P24-Celc2)/Celc1)+237.7)))) -> 19587.53
B25: =IF($AL$5=1,$C25/10,IF($AL$5=2,$C25/10,IF($AL$5=3,0,IF($AL$5=4,$C25/10,)))) -> 40% | C25: 4 | D25: 4256 | E25: 366 | F25: 3.7 | G25: 870 | H25: 870 | I25: =IF(Geg_dP<AB25,ROUND(((IF('Briza 22 & 26'!$M$4="High Perform. 208/230V (US/EU)",cal!HK25,H25)/Watts)/((Tr_cool-Tv_cool)*1.163))*FlowH2O,IF(UnitsNo=1,0,IF(UnitsNo=2,2))),"") -> 374 | J25: 3.8 | K25: 29.5 | L25: =IF(Geg_dP<$AB25,IF(CalcNo="12",$ET25,IF(CalcNo="22",$ET25,IF(CalcNo="13",$EU25,IF(CalcNo="23",$EU25,IF(CalcNo="11",$ER25,IF(CalcNo="21",$ER25,IF(CalcNo="14",$ES25,IF(CalcNo="24",$ES25,IF(CalcNo="32",$EX25,IF(CalcNo="42",$EX25,IF(CalcNo="33",$EY25,IF(CalcNo="43",$EY25,IF(CalcNo="31",$EV25,IF(CalcNo="41",$EV25,IF(CalcNo="34",$EW25,IF(CalcNo="44",$EW25,)))))))))))))))),"") -> 37.5 | M25: 8.8 | N25: 327 | O25: 0.55 | P25: 58.2 | Q25: 25.4 | R25: 19.1 | S25: 16.8 | T25: 81% | U25: 652 | V25: 0.10 | W25: 2.664 | X25: 0.980228 | Y25: 1.29011 | Z25: 1.13171 | AA25: 0.980228 | AB25: 27.88 | AC25: 0.980228 | AD25: 1.29011 | AE25: 1.13171 | AF25: 17.00 | AG25: 0.980228 | AH25: 1.29011 | AI25: 1.13171 | AJ25: 27.00 | AK25: 0.980228 | AL25: 1.29011 | AM25: 1.13171 | AN25: 27.88 | AO25: 1.047198867 | AP25: 1.20218749 | AQ25: 1.158454135 | AR25: 72.12 | AV25: 1000 | AZ25: 1000 | BD25: 1000 | BH25: 1000 | BK25: 0.00E+00 | BL25: 0.00E+00 | BM25: 1.83E+00 | BP25: =BP30 -> 1.83E+00 | BQ25: 1.03E-06 | BR25: =BO25 -> 0 | BS25: 1.80E+00 | BT25: 0 | BU25: 0 | BV25: 0 | BW25: 0 | BX25: 0 | BY25: 0 | BZ25: 0.00E+00 | CA25: 1.93E-04 | CB25: -1.20E-02 | CC25: 1.78E-01 | CD25: -1.03E+01 | CE25: 3.27E+02 | CF25: 0.00E+00 | CG25: -8.62E-08 | CH25: 5.54E-05 | CI25: 1.51E-03 | CJ25: 5.42E+00 | CK25: -2.89E-04 | CL25: -2.86E-01 | CM25: 7.77E+02 | CO25: 1.56E-03 | CP25: -4.22E-02 | CQ25: 1.94E-01 | CR25: -9.88E+00 | CS25: 1.90E+02 | CU25: -1.41E-07 | CV25: 6.12E-05 | CW25: 1.96E-04 | CX25: 3.85E+00 | CY25: -3.45E-04 | CZ25: -9.61E-02 | DA25: 5.86E+02 | DC25: 3.61E-04 | DD25: -1.78E-02 | DE25: 1.34E-01 | DF25: -9.17E+00 | DG25: 3.19E+02 | DI25: -1.29E-07 | DJ25: 7.31E-05 | DK25: 1.25E-03 | DL25: 5.44E+00 | DM25: -1.52E-04 | DN25: -1.52E-01 | DO25: 7.31E+02 | DQ25: 1.93E-04 | DR25: -1.20E-02 | DS25: 1.78E-01 | DT25: -1.03E+01 | DU25: 3.27E+02 | DW25: -8.62E-08 | DX25: 5.54E-05 | DY25: 1.51E-03 | DZ25: 5.42E+00 | EA25: -2.89E-04 | EB25: -2.86E-01 | EC25: 7.77E+02 | EE25: 2.18E-05 | EF25: -2.81E-03 | EG25: 6.17E-02 | EH25: -6.69E+00 | EI25: 6.45E+02 | EK25: -5.51E-08 | EL25: 7.14E-05 | EM25: 7.26E-03 | EN25: 1.89E+01 | EO25: -7E-05 | EP25: -7E-02 | EQ25: 1E+03 | ER25: 37.5 | ET25: 37.5 | EV25: =ER25-5 -> 32.5 | EZ25: =IF($BK$17="11",FA25,IF($BK$17="21",FA25,IF($BK$17="12",FC25,IF($BK$17="22",FC25,IF($BK$17="13",FD25,IF($BK$17="23",FD25,IF($BK$17="14",FB25,IF($BK$17="24",FB25,IF($BK$17="31",FE25,IF($BK$17="41",FE25,IF($BK$17="32",FG25,IF($BK$17="42",FG25,IF($BK$17="33",FH25,IF($BK$17="43",FH25,IF($BK$17="34",FF25,IF($BK$17="44",FF25,)))))))))))))))) -> 17.5 | FA25: =Tavg_cold -> 17 | FB25: 17.5 | FC25: 17.5 | FD25: 17.5 | FJ25: 0.5 | FK25: 1.18 | FM25: =FQ25/FO25 -> 50.61% | FN25: =DU25 -> 326.7 | FO25: =EI25 -> 645.5 | FP25: =FN25/FO25 -> 50.61% | FQ25: 326.68 | FR25: 0.00 | FS25: =FO25*(1-FP25) -> 318.79 | FT25: =IF((FR25/FS25)>1,1,FR25/FS25) -> 0.00% | FU25: =FC25 -> 17.50 | FV25: 21.15 | FW25: =ABS(FV25-FU25) -> 3.65 | FZ25: =IF(FM25<=FP25,FU25,FU25+(FT25*FW25)) -> 17.50 | GC25: 15.69066559 | GE25: 0.0% | GG25: 2334.18 | GH25: 18287.22 | GI25: 1167.09 | GJ25: 1167.09 | GK25: 0.01 | GL25: 0.01 | GM25: 38.49 | GN25: 77.44 | GO25: 6% | GQ25: 3557.01 | GR25: 2204.80 | GS25: 1778.51 | GT25: 1778.51 | GU25: 1778.51 | GV25: 0.0111 | GW25: 0.0111 | GX25: 0.01 | GY25: 55.48 | GZ25: 55.48 | HA25: 47.35 | HB25: 19.42 | HC25: 19.42 | HD25: 870 | HE25: 326.678518 | HF25: 870.4079032 | HG25: 17.5 | HH25: 17.5 | HI25: 870 | HJ25: =HI25/HF25 -> 1 | HK25: 870 | HL25: 0.5 | HM25: 1.18 | HO25: =HS25/HQ25 -> 50.61% | HP25: 326.7 | HQ25: 645.5 | HR25: =HP25/HQ25 -> 50.61% | HS25: 326.68 | HT25: 0.00 | HU25: =HQ25*(1-HR25) -> 318.79 | HV25: =IF((HT25/HU25)>1,1,HT25/HU25) -> 0.00% | HW25: 17.50 | HX25: 21.15 | HY25: =ABS(HX25-HW25) -> 3.65 | IB25: =IF(HO25<=HR25,HW25,HW25+(HV25*HY25)) -> 17.50 | IE25: 15.69066559 | II25: 2334.18 | IJ25: 18287.22
B26: =IF($AL$5=1,$C26/10,IF($AL$5=2,$C26/10,IF($AL$5=3,0.25,IF($AL$5=4,$C26/10,)))) -> 50% | C26: 5 | D26: -177 | E26: -15 | G26: 6 | H26: 6 | I26: =IF(Geg_dP<AB26,ROUND(((IF('Briza 22 & 26'!$M$4="High Perform. 208/230V (US/EU)",cal!HK26,H26)/Watts)/((Tr_cool-Tv_cool)*1.163))*FlowH2O,IF(UnitsNo=1,0,IF(UnitsNo=2,2))),"") -> 3 | J26: 0.0 | K26: 0.0 | L26: =IF(Geg_dP<$AB26,0,"") -> 0.0 | M26: 0.0 | N26: 0 | O26: 0.00 | U26: 0 | X26: 0.980228 | Y26: 1.29011 | Z26: 1.13171 | AA26: 0.980228 | AB26: 40.05 | AC26: 0.980228 | AD26: 1.29011 | AE26: 1.13171 | AF26: =AF25+((AF27-AF25)/2) -> 26.00 | AG26: 0.980228 | AH26: 1.29011 | AI26: 1.13171 | AJ26: =AJ25+((AJ27-AJ25)/2) -> 43.50 | AK26: 0.980228 | AL26: 1.29011 | AM26: 1.13171 | AN26: =AN25+((AN27-AN25)/2) -> 40.05 | AO26: 1.047198867 | AP26: 1.20218749 | AQ26: 1.158454135 | AR26: 104.00 | AV26: 1000 | AZ26: 1000 | BD26: 1000 | BH26: 1000 | BZ26: 0.00E+00 | CA26: 0.00E+00 | CB26: 0.00E+00 | CC26: 0.00E+00 | CD26: 0.00E+00 | CE26: 0.00E+00 | CF26: =IF($BK$17="11",CT26,IF($BK$17="21",CT26,IF($BK$17="12",DV26,IF($BK$17="22",DV26,IF($BK$17="13",EJ26,IF($BK$17="23",EJ26,IF($BK$17="14",DH26,IF($BK$17="24",DH26,IF($BK$17="31",0,IF($BK$17="41",0,IF($BK$17="32",0,IF($BK$17="42",0,IF($BK$17="33",0,IF($BK$17="43",0,IF($BK$17="34",DH26,IF($BK$17="44",DH26,)))))))))))))))) -> 0.00E+00 | CG26: 0.00E+00 | CH26: 0.00E+00 | CI26: 0.00E+00 | CJ26: 0.00E+00 | CK26: 0.00E+00 | CL26: 0.00E+00 | CM26: 0.00E+00 | EF26: 3.37E-05 | EG26: -3.33E-02 | EH26: -4.49E+00 | EI26: 7.94E+02 | EK26: -4.88E-08 | EL26: 7.78E-05 | EM26: 1.25E-02 | EN26: 2.90E+01 | EO26: -6E-05 | EP26: -9E-02 | EQ26: 1E+03 | EZ26: =IF($BK$17="11",FA26,IF($BK$17="21",FA26,IF($BK$17="12",FC26,IF($BK$17="22",FC26,IF($BK$17="13",FD26,IF($BK$17="23",FD26,IF($BK$17="14",FB26,IF($BK$17="24",FB26,IF($BK$17="31",FE26,IF($BK$17="41",FE26,IF($BK$17="32",FG26,IF($BK$17="42",FG26,IF($BK$17="33",FH26,IF($BK$17="43",FH26,IF($BK$17="34",FF26,IF($BK$17="44",FF26,)))))))))))))))) -> 17.0 | FA26: =((FA27-FA25)/2)+FA25 -> 17 | FB26: 17 | FC26: 17 | FD26: =IF($GC26<=$FC26,$FC26,IF($FM26<=$FP26,$FC26,$FZ26)) -> 17 | FJ26: 0.0 | FK26: 1.18 | FM26: =FQ26/FO26 -> 0.00% | FN26: =((FN27-FN25)/2)+FN25 -> 391.5 | FO26: =((FO27-FO25)/2)+FO25 -> 796.9 | FP26: =FN26/FO26 -> 49.12% | FQ26: 0.00 | FR26: 0.00 | FS26: 405.43 | FT26: 0.00% | FU26: =FC26 -> 17.00 | FV26: 21.15 | FW26: =ABS(FV26-FU26) -> 4.15 | FZ26: =IF(FM26<=FP26,FU26,FU26+(FT26*FW26)) -> 17.00 | GC26: 15.69066559 | GE26: 0.0% | GG26: 2334.18 | GI26: 1167.09 | GJ26: 1167.09 | GK26: 0.01 | GL26: 0.01 | GM26: 38.49 | GQ26: 3557.01 | GS26: 1778.51 | GT26: 1778.51 | GV26: 0.0111 | GW26: 0.0111 | GY26: 55.48 | HB26: 19.42 | HD26: 6 | HE26: 0 | HF26: 5.852743676 | HG26: 17.0 | HH26: 17 | HI26: =IF(Geg_dP<$AB26,((HF26/Watts)/(IF((237.3*LN((RH*EXP(17.27*(Tl_cool/(Tl_cool+237.3))))))/(17.27-LN((RH*EXP(17.27*(Tl_cool/(Tl_cool+237.3))))))<HH26,1,IF(1/(1+((2258*((0.622/((101325/(1*611*EXP(17.27*(HH26/(HH26+237.3))))))-1)*1000-(0.622/((101325/(RH*611*EXP(17.27*(Tl_cool/(Tl_cool+237.3))))))-1)*1000))/(1005*(Tavg_cold-Tl_cool))))>1,1,1/(1+((2258*((0.622/((101325/(1*611*EXP(17.27*(HH26/(HH26+237.3))))))-1)*1000-(0.622/((101325/(RH*611*EXP(17.27*(Tl_cool/(Tl_cool+237.3))))))-1)*1000))/(1005*(Tavg_cold-Tl_cool))))))))*Watts,"") -> 6 | HJ26: 1 | HK26: 6 | HL26: 0.0 | HM26: 1.18 | HO26: 0.00% | HP26: =((HP27-HP25)/2)+HP25 -> 391.5 | HQ26: =((HQ27-HQ25)/2)+HQ25 -> 796.9 | HR26: =HP26/HQ26 -> 49.12% | HS26: 0.00 | HT26: 0.00 | HU26: 405.43 | HV26: 0.00% | HW26: 17.00 | HX26: 21.15 | HY26: =ABS(HX26-HW26) -> 4.15 | IB26: =IF(HO26<=HR26,HW26,HW26+(HV26*HY26)) -> 17.00 | IE26: 15.69066559 | II26: 2334.18
B27: =IF($AL$5=1,$C27/10,IF($AL$5=2,$C27/10,IF($AL$5=3,0.5,IF($AL$5=4,$C27/10,)))) -> 60% | C27: 6 | D27: 5635 | E27: 485 | F27: 6.1 | G27: 1146 | H27: 1146 | I27: =IF(Geg_dP<AB27,ROUND(((IF('Briza 22 & 26'!$M$4="High Perform. 208/230V (US/EU)",cal!HK27,H27)/Watts)/((Tr_cool-Tv_cool)*1.163))*FlowH2O,IF(UnitsNo=1,0,IF(UnitsNo=2,2))),"") -> 493 | J27: 6.3 | K27: 39.0 | L27: =IF(Geg_dP<$AB27,IF(CalcNo="12",$ET27,IF(CalcNo="22",$ET27,IF(CalcNo="13",$EU27,IF(CalcNo="23",$EU27,IF(CalcNo="11",$ER27,IF(CalcNo="21",$ER27,IF(CalcNo="14",$ES27,IF(CalcNo="24",$ES27,IF(CalcNo="32",$EX27,IF(CalcNo="42",$EX27,IF(CalcNo="33",$EY27,IF(CalcNo="43",$EY27,IF(CalcNo="31",$EV27,IF(CalcNo="41",$EV27,IF(CalcNo="34",$EW27,IF(CalcNo="44",$EW27,)))))))))))))))),"") -> 47.0 | M27: 17.7 | N27: 456 | O27: 0.77 | P27: 56.3 | Q27: 24.9 | R27: 19.5 | S27: 17.0 | T27: 78% | U27: 833 | V27: 0.14 | W27: 2.512 | X27: 0.980228 | Y27: 1.29011 | Z27: 1.13171 | AA27: 0.980228 | AB27: 52.22 | AC27: 0.980228 | AD27: 1.29011 | AE27: 1.13171 | AF27: 35.00 | AG27: 0.980228 | AH27: 1.29011 | AI27: 1.13171 | AJ27: 60.00 | AK27: 0.980228 | AL27: 1.29011 | AM27: 1.13171 | AN27: 52.22 | AO27: 1.047198867 | AP27: 1.20218749 | AQ27: 1.158454135 | AR27: 155.00 | AV27: 1000 | AZ27: 1000 | BD27: 1000 | BH27: 1000 | BK27: =IF($BK$17="11",BN27,IF($BK$17="21",BQ27,IF($BK$17="12",BN27,IF($BK$17="22",BQ27,IF($BK$17="13",BN27,IF($BK$17="23",BQ27,IF($BK$17="14",BN27,IF($BK$17="24",BQ27,IF($BK$17="31",BT27,IF($BK$17="41",BW27,IF($BK$17="32",BT27,IF($BK$17="42",BW27,IF($BK$17="33",BT27,IF($BK$17="43",BW27,IF($BK$17="34",BT27,IF($BK$17="44",BW27,)))))))))))))))) -> -3.65E-03 | BL27: =IF($BK$17="11",BO27,IF($BK$17="21",BR27,IF($BK$17="12",BO27,IF($BK$17="22",BR27,IF($BK$17="13",BO27,IF($BK$17="23",BR27,IF($BK$17="14",BO27,IF($BK$17="24",BR27,IF($BK$17="31",BU27,IF($BK$17="41",BX27,IF($BK$17="32",BU27,IF($BK$17="42",BX27,IF($BK$17="33",BU27,IF($BK$17="43",BX27,IF($BK$17="34",BU27,IF($BK$17="44",BX27,)))))))))))))))) -> -2.34E-03 | BN27: -3.65E-03 | BO27: -2.34E-03 | BQ27: -3.49E-03 | BR27: =BO27 -> -2.34E-03 | BT27: 0 | BU27: 0 | BW27: 0 | BX27: 0 | BZ27: 0.00E+00 | CA27: 2.96E-06 | CB27: -3.41E-04 | CC27: -1.53E-02 | CD27: -6.88E+00 | CE27: 4.56E+02 | CF27: 0.00E+00 | CG27: -9.63E-08 | CH27: 8.00E-05 | CI27: 1.34E-03 | CJ27: 9.59E+00 | CK27: -2.26E-04 | CL27: -3.29E-01 | CM27: 1.03E+03 | CO27: 1.55E-05 | CP27: -2.62E-04 | CQ27: -7.22E-02 | CR27: -6.62E+00 | CS27: 3.15E+02 | CU27: -9.91E-08 | CV27: 6.76E-05 | CW27: 2.46E-03 | CX27: 6.79E+00 | CY27: -2.51E-04 | CZ27: -1.25E-01 | DA27: 8.36E+02 | DC27: 2.29E-05 | DD27: -2.81E-03 | DE27: 6.31E-02 | DF27: -6.89E+00 | DG27: 5.04E+02 | DI27: -9.39E-08 | DJ27: 8.30E-05 | DK27: 5.06E-03 | DL27: 1.10E+01 | DM27: -8.29E-05 | DN27: -2.25E-01 | DO27: 1.07E+03 | DQ27: 2.96E-06 | DR27: -3.41E-04 | DS27: -1.53E-02 | DT27: -6.88E+00 | DU27: 4.56E+02 | DW27: -9.63E-08 | DX27: 8.00E-05 | DY27: 1.34E-03 | DZ27: 9.59E+00 | EA27: -2.26E-04 | EB27: -3.29E-01 | EC27: 1.03E+03 | EE27: 1.32E-06 | EF27: -3.68E-04 | EG27: 1.44E-02 | EH27: -4.35E+00 | EI27: 9.48E+02 | EK27: -4.25E-08 | EL27: 8.41E-05 | EM27: 1.77E-02 | EN27: 3.90E+01 | EO27: -6E-05 | EP27: -1E-01 | EQ27: 2E+03 | ER27: 47 | ET27: 47 | EV27: =ER27-5 -> 42 | EZ27: 17.5 | FA27: =Tavg_cold -> 17 | FB27: 17.5 | FC27: 17.5 | FD27: 17.5 | FJ27: 0.5 | FK27: 1.18 | FM27: 48.11% | FN27: =DU27 -> 456.2 | FO27: =EI27 -> 948.3 | FP27: =FN27/FO27 -> 48.11% | FQ27: 456.23 | FR27: 0.00 | FS27: 492.08 | FT27: 0.00% | FU27: 17.50 | FV27: 21.15 | FW27: 3.65 | FZ27: =IF(FM27<=FP27,FU27,FU27+(FT27*FW27)) -> 17.50 | GC27: 15.69066559 | GE27: 0.0% | GG27: 2334.18 | GH27: 16649.31 | GI27: 1167.09 | GJ27: 1167.09 | GK27: 0.01 | GL27: 0.01 | GM27: 38.49 | GN27: 75.42 | GO27: 7% | GQ27: 3557.01 | GR27: 2267.91 | GS27: 1778.51 | GT27: 1778.51 | GU27: 1778.51 | GV27: 0.0111 | GW27: 0.0111 | GX27: 0.01 | GY27: 55.48 | GZ27: 55.48 | HA27: 47.82 | HB27: 19.42 | HC27: 19.42 | HD27: 1146 | HE27: 456.231213 | HF27: 1145.886622 | HG27: 17.5 | HH27: 17.50 | HI27: 1146 | HJ27: 1 | HK27: 1146 | HL27: 0.5 | HM27: 1.18 | HO27: 48.11% | HP27: 456.2 | HQ27: 948.3 | HR27: =HP27/HQ27 -> 48.11% | HS27: 456.23 | HT27: 0.00 | HU27: 492.08 | HV27: 0.00% | HW27: 17.50 | HX27: 21.15 | HY27: 3.65 | IB27: 17.50 | IE27: 15.69066559 | II27: 2334.18 | IJ27: 16649.31
B28: =IF($AL$5=1,$C28/10,IF($AL$5=2,$C28/10,IF($AL$5=3,0.75,IF($AL$5=4,$C28/10,)))) -> 70% | C28: 7 | D28: -177 | E28: -15 | G28: 6 | H28: 6 | I28: =IF(Geg_dP<AB28,ROUND(((IF('Briza 22 & 26'!$M$4="High Perform. 208/230V (US/EU)",cal!HK28,H28)/Watts)/((Tr_cool-Tv_cool)*1.163))*FlowH2O,IF(UnitsNo=1,0,IF(UnitsNo=2,2))),"") -> 3 | J28: 0.0 | K28: 0.0 | L28: =IF(Geg_dP<$AB28,0,"") -> 0.0 | M28: 0.0 | N28: 0 | O28: 0.00 | U28: 0 | X28: 0.980228 | Y28: 1.29011 | Z28: 1.13171 | AA28: 0.980228 | AB28: 69.05 | AC28: 0.980228 | AD28: 1.29011 | AE28: 1.13171 | AF28: =AF27+((AF29-AF27)/2) -> 48.00 | AG28: 0.980228 | AH28: 1.29011 | AI28: 1.13171 | AJ28: =AJ27+((AJ29-AJ27)/2) -> 80.00 | AK28: 0.980228 | AL28: 1.29011 | AM28: 1.13171 | AN28: =AN27+((AN29-AN27)/2) -> 69.05 | AO28: 1.047198867 | AP28: 1.20218749 | AQ28: 1.158454135 | AR28: =AR27+((AR29-AR27)/2) -> 180.60 | AV28: 1000 | AZ28: 1000 | BD28: 1000 | BH28: 1000 | BZ28: 0.00E+00 | CA28: 0.00E+00 | CB28: 0.00E+00 | CC28: 0.00E+00 | CD28: 0.00E+00 | CE28: 0.00E+00 | CF28: 0.00E+00 | CG28: 0.00E+00 | CH28: 0.00E+00 | CI28: 0.00E+00 | CJ28: 0.00E+00 | CK28: 0.00E+00 | CL28: 0.00E+00 | CM28: 0.00E+00 | EE28: 1.23E-06 | EF28: -4.03E-04 | EG28: 2.35E-02 | EH28: -4.15E+00 | EI28: 1.09E+03 | EK28: -6.28E-08 | EL28: 1.33E-04 | EM28: 9.33E-03 | EN28: 4.76E+01 | EO28: -7E-05 | EP28: -3E-02 | EQ28: 2E+03 | EZ28: =IF($BK$17="11",FA28,IF($BK$17="21",FA28,IF($BK$17="12",FC28,IF($BK$17="22",FC28,IF($BK$17="13",FD28,IF($BK$17="23",FD28,IF($BK$17="14",FB28,IF($BK$17="24",FB28,IF($BK$17="31",FE28,IF($BK$17="41",FE28,IF($BK$17="32",FG28,IF($BK$17="42",FG28,IF($BK$17="33",FH28,IF($BK$17="43",FH28,IF($BK$17="34",FF28,IF($BK$17="44",FF28,)))))))))))))))) -> 17.0 | FA28: =((FA29-FA27)/2)+FA27 -> 17 | FB28: 17 | FC28: 17 | FD28: 17 | FJ28: 0.0 | FK28: 1.18 | FM28: 0.00% | FN28: =((FN29-FN27)/2)+FN27 -> 517.7 | FO28: =((FO29-FO27)/2)+FO27 -> 1086.5 | FP28: =FN28/FO28 -> 47.65% | FQ28: 0.00 | FR28: 0.00 | FS28: 568.79 | FT28: 0.00% | FU28: 17.00 | FV28: 21.15 | FW28: 4.15 | FZ28: 17.00 | GC28: 15.69066559 | GE28: 0.0% | GG28: 2334.18 | GI28: 1167.09 | GJ28: 1167.09 | GK28: 0.01 | GL28: 0.01 | GM28: 38.49 | GQ28: 3557.01 | GS28: 1778.51 | GT28: 1778.51 | GV28: 0.0111 | GW28: 0.0111 | GY28: 55.48 | HB28: 19.42 | HD28: 6 | HE28: 0 | HF28: 5.852743676 | HG28: 17.0 | HH28: 17 | HI28: 6 | HJ28: 1 | HK28: 6 | HL28: 0.0 | HM28: 1.18 | HO28: 0.00% | HP28: =((HP29-HP27)/2)+HP27 -> 517.7 | HQ28: 1086.5 | HR28: =HP28/HQ28 -> 47.65% | HS28: 0.00 | HT28: 0.00 | HU28: 568.79 | HV28: 0.00% | HW28: 17.00 | HX28: 21.15 | HY28: 4.15 | IB28: 17.00 | IE28: 15.69066559 | II28: 2334.18
B29: =IF($AL$5=1,$C29/10,IF($AL$5=2,$C29/10,IF($AL$5=3,1,IF($AL$5=4,$C29/10,)))) -> 80% | C29: 8 | D29: 6744 | E29: 580 | F29: 8.5 | G29: 1372 | H29: 1372 | I29: =IF(Geg_dP<AB29,ROUND(((IF('Briza 22 & 26'!$M$4="High Perform. 208/230V (US/EU)",cal!HK29,H29)/Watts)/((Tr_cool-Tv_cool)*1.163))*FlowH2O,IF(UnitsNo=1,0,IF(UnitsNo=2,2))),"") -> 590 | J29: 8.8 | K29: 45.0 | L29: =IF(Geg_dP<$AB29,IF(CalcNo="12",$ET29,IF(CalcNo="22",$ET29,IF(CalcNo="13",$EU29,IF(CalcNo="23",$EU29,IF(CalcNo="11",$ER29,IF(CalcNo="21",$ER29,IF(CalcNo="14",$ES29,IF(CalcNo="24",$ES29,IF(CalcNo="32",$EX29,IF(CalcNo="42",$EX29,IF(CalcNo="33",$EY29,IF(CalcNo="43",$EY29,IF(CalcNo="31",$EV29,IF(CalcNo="41",$EV29,IF(CalcNo="34",$EW29,IF(CalcNo="44",$EW29,)))))))))))))))),"") -> 53.0 | M29: 31.9 | N29: 579 | O29: 0.98 | P29: 54.2 | Q29: 24.4 | R29: 20.0 | S29: 17.1 | T29: 76% | U29: 1003 | V29: 0.20 | W29: 2.369 | X29: 0.980228 | Y29: 1.29011 | Z29: 1.13171 | AA29: 0.980228 | AB29: 85.88 | AC29: 0.980228 | AD29: 1.29011 | AE29: 1.13171 | AF29: 61.00 | AG29: 0.980228 | AH29: 1.29011 | AI29: 1.13171 | AJ29: 100.00 | AK29: 0.980228 | AL29: 1.29011 | AM29: 1.13171 | AN29: 85.88 | AO29: 1.047198867 | AP29: 1.20218749 | AQ29: 1.158454135 | AR29: 206.20 | AV29: 1000 | AZ29: 1000 | BD29: 1000 | BH29: 1000 | BK29: =IF($BK$17="11",BN29,IF($BK$17="21",BQ29,IF($BK$17="12",BN29,IF($BK$17="22",BQ29,IF($BK$17="13",BN29,IF($BK$17="23",BQ29,IF($BK$17="14",BN29,IF($BK$17="24",BQ29,IF($BK$17="31",BT29,IF($BK$17="41",BW29,IF($BK$17="32",BT29,IF($BK$17="42",BW29,IF($BK$17="33",BT29,IF($BK$17="43",BW29,IF($BK$17="34",BT29,IF($BK$17="44",BW29,)))))))))))))))) -> 8.92E+00 | BL29: 6.19E+00 | BM29: 7.48E-05 | BN29: 8.92E+00 | BO29: 6.19E+00 | BP29: 7.48E-05 | BQ29: 4.13E+00 | BR29: =BO29 -> 6.19E+00 | BS29: =+BP29 -> 7.48E-05 | BT29: 0 | BU29: 0 | BV29: 0 | BW29: 0 | BX29: 0 | BY29: 0 | BZ29: 0.00E+00 | CA29: 1.97E-08 | CB29: 5.16E-05 | CC29: -2.08E-02 | CD29: -5.09E+00 | CE29: 5.79E+02 | CF29: 0.00E+00 | CG29: -8.84E-08 | CH29: 9.02E-05 | CI29: 4.02E-03 | CJ29: 1.65E+01 | CK29: -1.74E-04 | CL29: -4.07E-01 | CM29: 1.30E+03 | CO29: 8.79E-06 | CP29: -8.25E-04 | CQ29: -1.43E-02 | CR29: -5.16E+00 | CS29: 4.35E+02 | CU29: -8.66E-08 | CV29: 8.20E-05 | CW29: 3.86E-03 | CX29: 1.15E+01 | CY29: -2.17E-04 | CZ29: -1.56E-01 | DA29: 1.08E+03 | DC29: 1.67E-06 | DD29: -4.10E-04 | DE29: 1.22E-02 | DF29: -5.38E+00 | DG29: 6.70E+02 | DI29: -9.00E-08 | DJ29: 9.97E-05 | DK29: 9.14E-03 | DL29: 1.98E+01 | DM29: -4.45E-05 | DN29: -2.95E-01 | DO29: 1.38E+03 | DQ29: 1.97E-08 | DR29: 5.16E-05 | DS29: -2.08E-02 | DT29: -5.09E+00 | DU29: 5.79E+02 | DW29: -8.84E-08 | DX29: 9.02E-05 | DY29: 4.02E-03 | DZ29: 1.65E+01 | EA29: =-0.000173540207 -> -1.74E-04 | EB29: -4.07E-01 | EC29: 1.30E+03 | EE29: 1.14E-06 | EF29: -4.39E-04 | EG29: 3.27E-02 | EH29: -3.95E+00 | EI29: 1.22E+03 | EK29: -8.31E-08 | EL29: 1.82E-04 | EM29: 9.53E-04 | EN29: 5.61E+01 | EO29: -8E-05 | EP29: 7E-02 | EQ29: 2E+03 | ER29: 53 | ET29: 53 | EV29: =ER29-5 -> 48 | EZ29: 17.5 | FA29: =Tavg_cold -> 17 | FB29: =IF($GC29<=$FC29,$FC29,IF($FM29<=$FP29,$FC29,$FZ29)) -> 17.5 | FC29: 17.5 | FD29: =IF($GC29<=$FC29,$FC29,IF($FM29<=$FP29,$FC29,$FZ29)) -> 17.5 | FJ29: 0.5 | FK29: 1.18 | FM29: 47.29% | FN29: =DU29 -> 579.2 | FO29: =EI29 -> 1224.7 | FP29: =FP30 -> 55.59% | FQ29: 579.16 | FR29: 0.00 | FS29: 543.87 | FT29: 0.00% | FU29: 17.50 | FV29: 21.15 | FW29: 3.65 | FZ29: 17.50 | GC29: 15.69066559 | GE29: 0.0% | GG29: 2334.18 | GH29: 15077.06 | GI29: 1167.09 | GJ29: 1167.09 | GK29: 0.01 | GL29: 0.01 | GM29: 38.49 | GN29: 73.31 | GO29: 8% | GQ29: 3557.01 | GR29: 2328.35 | GS29: 1778.51 | GT29: 1778.51 | GU29: 1778.51 | GV29: 0.0111 | GW29: 0.0111 | GX29: 0.01 | GY29: 55.48 | GZ29: 55.48 | HA29: 48.26 | HB29: 19.42 | HC29: 19.42 | HD29: 1372 | HE29: 579.161661 | HF29: 1371.899766 | HG29: 17.5 | HH29: 17.5 | HI29: 1372 | HJ29: 1 | HK29: 1372 | HL29: 0.5 | HM29: 1.18 | HO29: 47.29% | HP29: 579.2 | HQ29: 1224.7 | HR29: =HR30 -> 55.59% | HS29: 579.16 | HT29: 0.00 | HU29: 543.87 | HV29: 0.00% | HW29: 17.50 | HX29: 21.15 | HY29: 3.65 | IB29: 17.50 | IE29: 15.69066559 | II29: 2334.18 | IJ29: 15077.06
B30: 100% | C30: 10 | D30: 7515 | E30: 646 | F30: 10.3 | G30: 1533 | H30: 1533 | I30: =IF(Geg_dP<AB30,ROUND(((IF('Briza 22 & 26'!$M$4="High Perform. 208/230V (US/EU)",cal!HK30,H30)/Watts)/((Tr_cool-Tv_cool)*1.163))*FlowH2O,IF(UnitsNo=1,0,IF(UnitsNo=2,2))),"") -> 659 | J30: 10.7 | K30: 49.0 | L30: =IF(Geg_dP<$AB30,IF(CalcNo="12",$ET30,IF(CalcNo="22",$ET30,IF(CalcNo="13",$EU30,IF(CalcNo="23",$EU30,IF(CalcNo="11",$ER30,IF(CalcNo="21",$ER30,IF(CalcNo="14",$ES30,IF(CalcNo="24",$ES30,IF(CalcNo="32",$EX30,IF(CalcNo="42",$EX30,IF(CalcNo="33",$EY30,IF(CalcNo="43",$EY30,IF(CalcNo="31",$EV30,IF(CalcNo="41",$EV30,IF(CalcNo="34",$EW30,IF(CalcNo="44",$EW30,)))))))))))))))),"") -> 57.0 | M30: =IF(Geg_dP<$AB30,($CF30*(($N30*CFMs)^4))+($CG30*(($N30*CFMs)^3))+($CH30*(($N30*CFMs)^2))+($CI30*($N30*CFMs))+$CJ30,"") -> 46.4 | N30: 681 | O30: 1.15 | P30: 52.4 | Q30: 23.9 | R30: 20.3 | S30: 17.2 | T30: 75% | U30: 1119 | V30: 0.25 | W30: 2.251 | X30: 0.980228 | Y30: 1.29011 | Z30: 1.13171 | AA30: 0.980228 | AB30: 115.48 | AC30: 0.980228 | AD30: 1.29011 | AE30: 1.13171 | AF30: 82.00 | AG30: 0.980228 | AH30: 1.29011 | AI30: 1.13171 | AJ30: 136.00 | AK30: 0.980228 | AL30: 1.29011 | AM30: 1.13171 | AN30: 115.48 | AO30: 1.047198867 | AP30: 1.20218749 | AQ30: 1.158454135 | AR30: =AR29 -> 206.20 | AV30: 1000 | AZ30: 1000 | BD30: 1000 | BH30: 1000 | BK30: -1.01E+02 | BL30: 1.20E+01 | BM30: 1.83E+00 | BN30: -1.01E+02 | BO30: 1.20E+01 | BP30: 1.83E+00 | BQ30: 4.28E+01 | BR30: =BO30 -> 1.20E+01 | BS30: =+BP30 -> 1.83E+00 | BT30: 0 | BU30: 0 | BV30: 0 | BW30: 0 | BX30: 0 | BY30: 0 | BZ30: 0.00E+00 | CA30: -1.14E-06 | CB30: 2.72E-04 | CC30: -2.69E-02 | CD30: -4.49E+00 | CE30: 6.81E+02 | CF30: 0.00E+00 | CG30: -4.00E-07 | CH30: 2.77E-04 | CI30: 9.20E-03 | CJ30: 2.40E+01 | CK30: -1.26E-04 | CL30: -4.60E-01 | CM30: 1.49E+03 | CO30: 2.57E-06 | CP30: -3.87E-04 | CQ30: -3.58E-03 | CR30: -4.85E+00 | CS30: 5.20E+02 | CU30: -4.04E-07 | CV30: 2.52E-04 | CW30: 1.16E-02 | CX30: 1.57E+01 | CY30: -1.70E-04 | CZ30: -1.89E-01 | DA30: 1.24E+03 | DC30: 8.45E-07 | DD30: -2.68E-04 | DE30: 1.49E-02 | DF30: -4.87E+00 | DG30: 7.86E+02 | DI30: -3.12E-07 | DJ30: 2.26E-04 | DK30: 4.33E-02 | DL30: 2.78E+01 | DM30: 4.12E-05 | DN30: -4.10E-01 | DO30: 1.61E+03 | DQ30: -1.14E-06 | DR30: 2.72E-04 | DS30: -2.69E-02 | DT30: -4.49E+00 | DU30: 6.81E+02 | DW30: -4.00E-07 | DX30: 2.77E-04 | DY30: 9.20E-03 | DZ30: 2.40E+01 | EA30: -1.26E-04 | EB30: -4.60E-01 | EC30: 1.49E+03 | ED30: =ED29 -> 0 | EE30: 1.14E-06 | EF30: -4.39E-04 | EG30: 3.27E-02 | EH30: -3.95E+00 | EI30: 1.22E+03 | EJ30: =EJ29 -> 0 | EK30: -8.31E-08 | EL30: 1.82E-04 | EM30: 9.53E-04 | EN30: 5.61E+01 | EO30: -8E-05 | EP30: 7E-02 | EQ30: 2E+03 | ER30: 57 | ET30: 57 | EV30: =ER30-5 -> 52 | EZ30: 17.5 | FA30: =Tavg_cold -> 17 | FB30: =IF($GC30<=$FC30,$FC30,IF($FM30<=$FP30,$FC30,$FZ30)) -> 17.5 | FC30: 17.5 | FD30: =IF($GC30<=$FC30,$FC30,IF($FM30<=$FP30,$FC30,$FZ30)) -> 17.5 | FJ30: 0.5 | FK30: 1.18 | FM30: 55.59% | FN30: =DU30 -> 680.8 | FO30: =EI30 -> 1224.7 | FP30: =FN30/FO30 -> 55.59% | FQ30: 680.80 | FR30: 0.00 | FS30: 543.87 | FT30: 0.00% | FU30: 17.50 | FV30: 21.15 | FW30: 3.65 | FZ30: 17.50 | GC30: 15.69066559 | GE30: 0.0% | GG30: 2334.18 | GH30: 13830.65 | GI30: 1167.09 | GJ30: 1167.09 | GK30: 0.01 | GL30: 0.01 | GM30: 38.49 | GN30: 71.49 | GO30: 8% | GQ30: 3557.01 | GR30: 2379.05 | GS30: 1778.51 | GT30: 1778.51 | GU30: 1778.51 | GV30: 0.0111 | GW30: 0.0111 | GX30: 0.01 | GY30: 55.48 | GZ30: 55.48 | HA30: 48.61 | HB30: 19.42 | HC30: 19.42 | HD30: 1533 | HE30: 680.796721 | HF30: 1532.740617 | HG30: 17.5 | HH30: 17.5 | HI30: 1533 | HJ30: 1 | HK30: 1533 | HL30: 0.5 | HM30: 1.18 | HO30: 55.59% | HP30: 680.8 | HQ30: 1224.7 | HR30: =HP30/HQ30 -> 55.59% | HS30: 680.80 | HT30: 0.00 | HU30: 543.87 | HV30: 0.00% | HW30: 17.50 | HX30: 21.15 | HY30: 3.65 | IB30: 17.50 | IE30: 15.69066559 | II30: 2334.18 | IJ30: 13830.65
B31: =IF(LangNo=1,NL!A31,IF(LangNo=2,EN!A31,IF(LangNo=3,DE!A31,IF(LangNo=4,FR!A31,IF(LangNo=5,NR!A31,IF(LangNo=6,SP!A31,IF(LangNo=7,SW!A31,IF(LangNo=8,TS!A31,IF(LangNo=9,ExtraTaal1!A31,IF(LangNo=10,ExtraTaal2!A31,IF(LangNo=11,ExtraTaal3!A31,))))))))))) -> Briza 22 (230V) height 54,5 cm, width 22 cm, length 95 cm (Type 04) | AA31: 0 | AB31: m³/h | AC31: n-value | AD31: n-value | AE31: n-value | AF31: m³/h | AG31: n-value | AH31: n-value | AI31: n-value | AJ31: m³/h | AK31: n-value | AL31: n-value | AM31: n-value | AN31: m³/h | AO31: n-value | AP31: n-value | AQ31: n-value | AR31: m³/h | AS31: n-value | AT31: n-value | AU31: n-value | AV31: m³/h | AW31: n-value | AX31: n-value | AY31: n-value | AZ31: m³/h | BA31: n-value | BB31: n-value | BC31: n-value | BD31: m³/h | BE31: n-value | BF31: n-value | BG31: n-value | BH31: m³/h | BJ31: =IF($BK$17="11",BO31,IF($BK$17="21",BR31,IF($BK$17="12",BO31,IF($BK$17="22",BR31,IF($BK$17="13",BO31,IF($BK$17="23",BR31,IF($BK$17="14",BO31,IF($BK$17="24",BR31,IF($BK$17="31",BU31,IF($BK$17="41",BX31,IF($BK$17="32",BU31,IF($BK$17="42",BX31,IF($BK$17="33",BU31,IF($BK$17="43",BX31,IF($BK$17="34",BU31,IF($BK$17="44",BX31,)))))))))))))))) -> 22 | BK31: =(BN31+IF(CaseNo=1,0,IF(CaseNo=2,$BN$2,)))*MilInch -> 54.5 | BL31: =(BJ31+IF(CaseNo=1,0,IF(CaseNo=2,$BN$3,)))*MilInch -> 22 | BM31: =(BP31+IF(CaseNo=1,0,IF(CaseNo=2,$BN$4,)))*MilInch -> 75 | BN31: 54.5 | BO31: 22 | BP31: 75 | BQ31: 54.5 | BR31: 22 | BS31: 75 | BT31: 54.5 | BU31: 26 | BV31: 75 | BW31: 54.5 | BX31: 26 | BY31: 75 | BZ31: =CF31 -> T04 | CF31: T04 | CN31: =CF31 -> T04 | DB31: =CF31 -> T04 | DP31: =CF31 -> T04 | ED31: =CF31 -> T04 | ER31: T04 | FA31: =ER31 -> T04 | HD31: =H31 -> 0 | HF31: =IF(Geg_dP<$AB31,((($BL$18*($HE31/Cubics)^4+$BL$19*($HE31/Cubics)^3+$BL$20*($HE31/Cubics)^2+$BL$21*($HE31/Cubics)^1+$BL$22)*((CF_Regime_Cool_noExp)^$Y31)))*CF_Addit*Watts*CF_Altit,Lim_dP) ->  | HL31: T04
B32: =IF($AL$5=1,$C32/10,IF($AL$5=2,$C32/10,IF($AL$5=3,0,IF($AL$5=4,$C32/10,)))) -> 20% | C32: 2 | D32: =IF(Geg_dP<AB32,((($BK$32*($N32/Cubics)^4+$BK$33*($N32/Cubics)^3+$BK$35*($N32/Cubics)^2+$BK$37*($N32/Cubics)^1+$BK$38)*((CF_Regime_Heat_noExp)^$AA32)))*CF_Addit*Watts*CF_Altit,Lim_dP) -> 3211 | E32: =IF(Geg_dP<$AB32,ROUND((($D32/Watts)/((Tv_heat-Tr_heat)*1.163))*FlowH2O,IF(UnitsNo=1,0,IF(UnitsNo=2,2))),"") -> 276 | F32: =IF(Geg_dP<$AB32,IF((($BM$32*(E32/FlowH2O)^$BM$33))*kPa>0,(($BM$32*(E32/FlowH2O)^$BM$33))*kPa,0),"") -> 2.6 | G32: =IF(Geg_dP<$AB32,((($BL$32*($N32/Cubics)^4+$BL$33*($N32/Cubics)^3+$BL$35*($N32/Cubics)^2+$BL$37*($N32/Cubics)^1+$BL$38)*((CF_Regime_Cool_noExp)^$Y32)))*CF_Addit*Watts*CF_Altit,Lim_dP) -> 747 | H32: =IF(Geg_dP<$AB32,((G32/Watts)/(IF((237.3*LN((RH*EXP(17.27*(Tl_cool/(Tl_cool+237.3))))))/(17.27-LN((RH*EXP(17.27*(Tl_cool/(Tl_cool+237.3))))))<EZ32,1,IF(1/(1+((2258*((0.622/((101325/(1*611*EXP(17.27*(EZ32/(EZ32+237.3))))))-1)*1000-(0.622/((101325/(RH*611*EXP(17.27*(Tl_cool/(Tl_cool+237.3))))))-1)*1000))/(1005*(Tavg_cold-Tl_cool))))>1,1,1/(1+((2258*((0.622/((101325/(1*611*EXP(17.27*(EZ32/(EZ32+237.3))))))-1)*1000-(0.622/((101325/(RH*611*EXP(17.27*(Tl_cool/(Tl_cool+237.3))))))-1)*1000))/(1005*(Tavg_cold-Tl_cool))))))))*Watts,"") -> 747 | I32: =IF(Geg_dP<AB32,ROUND(((IF('Briza 22 & 26'!$M$4="High Perform. 208/230V (US/EU)",cal!HK32,H32)/Watts)/((Tr_cool-Tv_cool)*1.163))*FlowH2O,IF(UnitsNo=1,0,IF(UnitsNo=2,2))),"") -> 321 | J32: =IF(Geg_dP<$AB32,IF((($BM$37*(I32/FlowH2O)^$BM$38))*kPa>0,(($BM$37*(I32/FlowH2O)^$BM$38))*kPa,0),"") -> 3.4 | K32: =IF(Geg_dP<AB32,IF($L32-8<0,0,$L32-8),"") -> 22.0 | L32: =IF(Geg_dP<$AB32,IF(CalcNo="12",$ET32,IF(CalcNo="22",$ET32,IF(CalcNo="13",$EU32,IF(CalcNo="23",$EU32,IF(CalcNo="11",$ER32,IF(CalcNo="21",$ER32,IF(CalcNo="14",$ES32,IF(CalcNo="24",$ES32,IF(CalcNo="32",$EX32,IF(CalcNo="42",$EX32,IF(CalcNo="33",$EY32,IF(CalcNo="43",$EY32,IF(CalcNo="31",$EV32,IF(CalcNo="41",$EV32,IF(CalcNo="34",$EW32,IF(CalcNo="44",$EW32,)))))))))))))))),"") -> 30.0 | M32: =IF(Geg_dP<$AB32,($CF32*(($N32/Cubics)^4))+($CG32*(($N32/Cubics)^3))+($CH32*(($N32/Cubics)^2))+($CI32*($N32/Cubics))+$CJ32,"") -> 3.9 | N32: =IF(Geg_dP<$AB32,(BZ32*Geg_dP^5+CA32*Geg_dP^4+CB32*Geg_dP^3+CC32*Geg_dP^2+CD32*Geg_dP+CE32)*CF_Case*Cubics,"") -> 247 | O32: =IF(Geg_dP<$AB32,(($N32/Cubics)/3600)/(($BJ$39/100)*($BP$39/100))*FeetMins,"") -> 0.33 | P32: =IF(Geg_dP<$AB32,((($D32/Watts)/(((p_atm*0.028964)/(8.31447*(20+273.15)))*(($N32/3600)/Cubics)*(1005+1870*((0.622)/(((p_atm)/($E$14*pvs_heat_in))-1)))))+Tl_heat)*Celc1+Celc2,"") -> 58.1 | Q32: =IF(Geg_dP<$AB32,(27.8*LN(($GN32+36)/45.5))*Celc1+Celc2,"") -> 25.4 | R32: =IF(Geg_dP<$AB32,(Tl_cool-(($G32/Watts)/(1006*$N32*kgss)))*Celc1+Celc2,"") -> 18.0 | S32: =IF(Geg_dP<$AB32,IF((27.8*LN(($HA32+36)/45.5))*Celc1+Celc2>R32,R32,(27.8*LN(($HA32+36)/45.5))*Celc1+Celc2),"") -> 16.5 | T32: =IF(Geg_dP<$AB32,IF($H32>$G32,1,IF(($GT32/$GR32)<0,0,$GT32/$GR32)),"") -> 86% | U32: =IF(Geg_dP<$AB32,$CK32*($N32/Cubics)^2+$CL32*($N32/Cubics)^1+$CM32,"") -> 417 | V32: =M32/((N32/Cubics)/3.6) -> 0.06 | W32: =(G32/Watts)/(N32/Cubics) -> 3.021 | X32: 1.03062 | Y32: 1.073 | Z32: 1.14154 | AA32: 1.03062 | AB32: 11.6 | AC32: 1.03062 | AD32: 1.073 | AE32: 1.14154 | AF32: 5.50 | AG32: 1.03062 | AH32: 1.073 | AI32: 1.14154 | AJ32: 7.00 | AK32: 1.03062 | AL32: 1.073 | AM32: 1.14154 | AN32: 11.60 | AO32: 1.01274699 | AP32: 1.411878985 | AQ32: 1.124002259 | AR32: 21.22 | AV32: 1000 | AZ32: 1000 | BD32: 1000 | BH32: 1000 | BK32: =IF($BK$17="11",BN32,IF($BK$17="21",BQ32,IF($BK$17="12",BN32,IF($BK$17="22",BQ32,IF($BK$17="13",BN32,IF($BK$17="23",BQ32,IF($BK$17="14",BN32,IF($BK$17="24",BQ32,IF($BK$17="31",BT32,IF($BK$17="41",BW32,IF($BK$17="32",BT32,IF($BK$17="42",BW32,IF($BK$17="33",BT32,IF($BK$17="43",BW32,IF($BK$17="34",BT32,IF($BK$17="44",BW32,)))))))))))))))) -> 0.00E+00 | BL32: 0.00E+00 | BM32: 8.71E-05 | BP32: =BP37 -> 8.71E-05 | BR32: =BO32 -> 0 | BS32: 1.08E-04 | BT32: 0 | BU32: 0 | BV32: 0 | BW32: 0 | BX32: 0 | BY32: 0 | BZ32: =IF($BK$17="11",CN32,IF($BK$17="21",CN32,IF($BK$17="12",DP32,IF($BK$17="22",DP32,IF($BK$17="13",ED32,IF($BK$17="23",ED32,IF($BK$17="14",DB32,IF($BK$17="24",DB32,IF($BK$17="31",0,IF($BK$17="41",0,IF($BK$17="32",0,IF($BK$17="42",0,IF($BK$17="33",0,IF($BK$17="43",0,IF($BK$17="34",DB32,IF($BK$17="44",DB32,)))))))))))))))) -> 0.00E+00 | CA32: 4.11E-03 | CB32: =IF($BK$17="11",CP32,IF($BK$17="21",CP32,IF($BK$17="12",DR32,IF($BK$17="22",DR32,IF($BK$17="13",EF32,IF($BK$17="23",EF32,IF($BK$17="14",DD32,IF($BK$17="24",DD32,IF($BK$17="31",0,IF($BK$17="41",0,IF($BK$17="32",0,IF($BK$17="42",0,IF($BK$17="33",0,IF($BK$17="43",0,IF($BK$17="34",DD32,IF($BK$17="44",DD32,)))))))))))))))) -> -1.23E-01 | CC32: 1.07E+00 | CD32: -1.92E+01 | CE32: 2.47E+02 | CF32: 0.00E+00 | CG32: -5.41E-08 | CH32: 2.49E-05 | CI32: 1.28E-03 | CJ32: 2.92E+00 | CK32: -4.37E-05 | CL32: -3.72E-01 | CM32: 5.12E+02 | CO32: -2.86E-02 | CP32: 3.87E-01 | CQ32: -1.61E+00 | CR32: -1.69E+01 | CS32: 1.08E+02 | CU32: -1.53E-07 | CV32: 3.85E-05 | CW32: 4.03E-05 | CX32: 2.15E+00 | CY32: =-0.000556186953 -> -5.56E-04 | CZ32: -5.94E-02 | DA32: 3.43E+02 | DC32: 3.08E-02 | DD32: -3.00E-01 | DE32: -4.04E-01 | DF32: -1.77E+01 | DG32: 1.85E+02 | DI32: -1.32E-07 | DJ32: 4.41E-05 | DK32: -3.71E-04 | DL32: 2.58E+00 | DM32: -1.83E-04 | DN32: -1.06E-01 | DO32: 3.87E+02 | DQ32: 4.11E-03 | DR32: -1.23E-01 | DS32: 1.07E+00 | DT32: -1.92E+01 | DU32: 2.47E+02 | DW32: -5.41E-08 | DX32: 2.49E-05 | DY32: 1.28E-03 | DZ32: 2.92E+00 | EA32: =-0.0000436554554 -> -4.37E-05 | EB32: -3.72E-01 | EC32: 5.12E+02 | EE32: 4.72E-04 | EF32: -1.46E-02 | EG32: -9.36E-02 | EH32: -1.31E+01 | EI32: 4.16E+02 | EK32: -7.26E-08 | EL32: 5.41E-05 | EM32: 1.35E-04 | EN32: 8.43E+00 | EO32: 6E-05 | EP32: -1E-01 | EQ32: 7E+02 | ER32: 30 | ET32: 30 | EV32: =ER32-5 -> 25 | EZ32: =IF($BK$17="11",FA32,IF($BK$17="21",FA32,IF($BK$17="12",FC32,IF($BK$17="22",FC32,IF($BK$17="13",FD32,IF($BK$17="23",FD32,IF($BK$17="14",FB32,IF($BK$17="24",FB32,IF($BK$17="31",FE32,IF($BK$17="41",FE32,IF($BK$17="32",FG32,IF($BK$17="42",FG32,IF($BK$17="33",FH32,IF($BK$17="43",FH32,IF($BK$17="34",FF32,IF($BK$17="44",FF32,)))))))))))))))) -> 17.5 | FA32: =Tavg_cold -> 17 | FB32: =IF($GC32<=$FC32,$FC32,IF($FM32<=$FP32,$FC32,$FZ32)) -> 17.5 | FC32: =IF($N32>$FN32,Tavg_cold+(0.5*(Tr_cool-Tavg_cold)),Tavg_cold+($FJ32*(Tr_cool-Tavg_cold))) -> 17.5 | FD32: =IF($GC32<=$FC32,$FC32,IF($FM32<=$FP32,$FC32,$FZ32)) -> 17.5 | FJ32: =0.5*(1-((FN32-N32)/FN32)) -> 0.5 | FK32: =(0.025*Tl_cool)+0.5 -> 1.18 | FM32: =FQ32/FO32 -> 59.37% | FN32: =DU32 -> 247.2 | FO32: =EI32 -> 416.4 | FP32: =FN32/FO32 -> 59.37% | FQ32: =N32/Cubics -> 247.22 | FR32: =IF(FQ32-(FP32*FO32)<=0,0,FQ32-(FP32*FO32)) -> 0.00 | FS32: =FO32*(1-FP32) -> 169.17 | FT32: =IF((FR32/FS32)>1,1,FR32/FS32) -> 0.00% | FU32: 17.50 | FV32: =Tr_cool*FK32 -> 21.15 | FW32: 3.65 | FZ32: 17.50 | GC32: =(237.3*LN((RH*EXP(17.27*(Tl_cool/(Tl_cool+237.3))))))/(17.27-LN((RH*EXP(17.27*(Tl_cool/(Tl_cool+237.3)))))) -> 15.69066559 | GE32: =(H32-G32)/H32 -> 0.0% | GG32: =(611*EXP(17.27*(Tl_heat/(Tl_heat+237.7)))) -> 2334.18 | GH32: =(611*EXP(17.27*((($P32-Celc2)/Celc1)/((($P32-Celc2)/Celc1)+237.7)))) -> 18180.84 | GI32: =RH*$GG32 -> 1167.09 | GJ32: =(GL32*p_atm)/(GL32+0.622) -> 1167.09 | GK32: =0.622*($GI32/(p_atm-$GI32)) -> 0.01 | GL32: 0.01 | GM32: =(1.005*Tl_heat)+($GK32*(2500+(1.87*Tl_heat))) -> 38.49 | GN32: =(1.005*(($P32-Celc2)/Celc1))+($GL32*(2500+(1.87*(($P32-Celc2)/Celc1)))) -> 77.32 | GO32: 6% | GQ32: =(611*EXP(17.27*(Tl_cool/(Tl_cool+237.7)))) -> 3557.01 | GR32: =(611*EXP(17.27*((($R32-Celc2)/Celc1)/((($R32-Celc2)/Celc1)+237.7)))) -> 2063.49 | GS32: =RH*$GQ32 -> 1778.51 | GT32: =(GW32*p_atm)/(GW32+0.622) -> 1778.51 | GU32: =T32*GR32 -> 1778.51 | GV32: =0.622*($GS32/(p_atm-$GS32)) -> 0.0111 | GW32: =IF(H32=G32,GV32,(0.53475935828878*($GZ32-(1.005*(($R32-Celc2)/Celc1))))/(1336.8983957219)) -> 0.0111 | GX32: =0.622*($GU32/(p_atm-$GU32)) -> 0.01 | GY32: =(1.005*Tl_cool)+($GV32*(2500+(1.87*Tl_cool))) -> 55.48 | GZ32: =GY32-((((H32-G32)/Watts)/1000)/(N32/$L$15)) -> 55.48 | HA32: =(1.005*(($R32-Celc2)/Celc1))+($GX32*(2500+(1.87*(($R32-Celc2)/Celc1)))) -> 46.27 | HB32: 19.42 | HC32: 19.42 | HD32: =H32 -> 747 | HE32: 247.220183 | HF32: =IF(Geg_dP<$AB32,((($BL$32*($HE32/Cubics)^4+$BL$33*($HE32/Cubics)^3+$BL$35*($HE32/Cubics)^2+$BL$37*($HE32/Cubics)^1+$BL$38)*((CF_Regime_Cool_noExp)^$Y32)))*CF_Addit*Watts*CF_Altit,Lim_dP) -> 746.8295456 | HG32: 17.5 | HH32: 17.5 | HI32: 747 | HJ32: 1 | HK32: 747 | HL32: =0.5*(1-((HP32-HE32)/HP32)) -> 0.5 | HM32: =(0.025*Tl_cool)+0.5 -> 1.18 | HO32: =HS32/HQ32 -> 59.37% | HP32: =DU32 -> 247.2 | HQ32: 416.4 | HR32: =HP32/HQ32 -> 59.37% | HS32: 247.22 | HT32: =IF(HS32-(HR32*HQ32)<=0,0,HS32-(HR32*HQ32)) -> 0.00 | HU32: =HQ32*(1-HR32) -> 169.17 | HV32: =IF((HT32/HU32)>1,1,HT32/HU32) -> 0.00% | HW32: 17.50 | HX32: =Tr_cool*HM32 -> 21.15 | HY32: =ABS(HX32-HW32) -> 3.65 | IB32: =IF(HO32<=HR32,HW32,HW32+(HV32*HY32)) -> 17.50 | IE32: =(237.3*LN((RH*EXP(17.27*(Tl_cool/(Tl_cool+237.3))))))/(17.27-LN((RH*EXP(17.27*(Tl_cool/(Tl_cool+237.3)))))) -> 15.69066559 | IG32: =(BG32-BF32)/BG32 ->  | II32: =(611*EXP(17.27*(Tl_heat/(Tl_heat+237.7)))) -> 2334.18 | IJ32: =(611*EXP(17.27*((($P32-Celc2)/Celc1)/((($P32-Celc2)/Celc1)+237.7)))) -> 18180.84
B33: =IF($AL$5=1,$C33/10,IF($AL$5=2,$C33/10,IF($AL$5=3,0,IF($AL$5=4,$C33/10,)))) -> 40% | C33: 4 | D33: 5520 | E33: 475 | F33: 6.9 | G33: 1266 | H33: 1266 | I33: =IF(Geg_dP<AB33,ROUND(((IF('Briza 22 & 26'!$M$4="High Perform. 208/230V (US/EU)",cal!HK33,H33)/Watts)/((Tr_cool-Tv_cool)*1.163))*FlowH2O,IF(UnitsNo=1,0,IF(UnitsNo=2,2))),"") -> 544 | J33: 8.9 | K33: 29.5 | L33: =IF(Geg_dP<$AB33,IF(CalcNo="12",$ET33,IF(CalcNo="22",$ET33,IF(CalcNo="13",$EU33,IF(CalcNo="23",$EU33,IF(CalcNo="11",$ER33,IF(CalcNo="21",$ER33,IF(CalcNo="14",$ES33,IF(CalcNo="24",$ES33,IF(CalcNo="32",$EX33,IF(CalcNo="42",$EX33,IF(CalcNo="33",$EY33,IF(CalcNo="43",$EY33,IF(CalcNo="31",$EV33,IF(CalcNo="41",$EV33,IF(CalcNo="34",$EW33,IF(CalcNo="44",$EW33,)))))))))))))))),"") -> 37.5 | M33: 9.9 | N33: 413 | O33: 0.55 | P33: 59.2 | Q33: 25.6 | R33: 17.9 | S33: 16.4 | T33: 87% | U33: 624 | V33: 0.09 | W33: 3.066 | X33: 1.03062 | Y33: =IF($BK$17="11",AD33,IF($BK$17="21",AD33,IF($BK$17="12",AL33,IF($BK$17="22",AL33,IF($BK$17="13",AP33,IF($BK$17="23",AP33,IF($BK$17="14",AH33,IF($BK$17="24",AH33,IF($BK$17="31",AT33,IF($BK$17="41",AT33,IF($BK$17="32",BB33,IF($BK$17="42",BB33,IF($BK$17="33",BF33,IF($BK$17="43",BF33,IF($BK$17="34",AX33,IF($BK$17="44",AX33,)))))))))))))))) -> 1.073 | Z33: =IF($BK$17="11",AE33,IF($BK$17="21",AE33,IF($BK$17="12",AM33,IF($BK$17="22",AM33,IF($BK$17="13",AQ33,IF($BK$17="23",AQ33,IF($BK$17="14",AI33,IF($BK$17="24",AI33,IF($BK$17="31",AU33,IF($BK$17="41",AU33,IF($BK$17="32",BC33,IF($BK$17="42",BC33,IF($BK$17="33",BG33,IF($BK$17="43",BG33,IF($BK$17="34",AY33,IF($BK$17="44",AY33,)))))))))))))))) -> 1.14154 | AA33: 1.03062 | AB33: 30.34 | AC33: 1.03062 | AD33: 1.073 | AE33: 1.14154 | AF33: 18.00 | AG33: 1.03062 | AH33: 1.073 | AI33: 1.14154 | AJ33: 27.00 | AK33: 1.03062 | AL33: 1.073 | AM33: 1.14154 | AN33: 30.34 | AO33: 1.01274699 | AP33: 1.411878985 | AQ33: 1.124002259 | AR33: 75.20 | AV33: 1000 | AZ33: 1000 | BD33: 1000 | BH33: 1000 | BK33: 0.00E+00 | BL33: 0.00E+00 | BM33: 1.83E+00 | BP33: =BP38 -> 1.83E+00 | BQ33: 8.31E-07 | BR33: =BO33 -> 0 | BS33: 1.84E+00 | BT33: 0 | BU33: 0 | BV33: 0 | BW33: 0 | BX33: 0 | BY33: 0 | BZ33: 0.00E+00 | CA33: 3.36E-05 | CB33: =IF($BK$17="11",CP33,IF($BK$17="21",CP33,IF($BK$17="12",DR33,IF($BK$17="22",DR33,IF($BK$17="13",EF33,IF($BK$17="23",EF33,IF($BK$17="14",DD33,IF($BK$17="24",DD33,IF($BK$17="31",0,IF($BK$17="41",0,IF($BK$17="32",0,IF($BK$17="42",0,IF($BK$17="33",0,IF($BK$17="43",0,IF($BK$17="34",DD33,IF($BK$17="44",DD33,)))))))))))))))) -> -1.53E-03 | CC33: -6.38E-02 | CD33: -9.87E+00 | CE33: 4.13E+02 | CF33: 0.00E+00 | CG33: -4.75E-08 | CH33: 3.79E-05 | CI33: 3.13E-03 | CJ33: 5.44E+00 | CK33: -1.35E-04 | CL33: -3.19E-01 | CM33: 7.79E+02 | CO33: 6.66E-04 | CP33: -1.70E-02 | CQ33: 1.74E-02 | CR33: -1.26E+01 | CS33: 2.56E+02 | CU33: -1.18E-07 | CV33: 5.97E-05 | CW33: -3.94E-04 | CX33: 3.90E+00 | CY33: -2.08E-04 | CZ33: -1.15E-01 | DA33: 5.90E+02 | DC33: 5.90E-04 | DD33: -3.48E-02 | DE33: 5.23E-01 | DF33: -1.67E+01 | DG33: 4.58E+02 | DI33: -3.20E-08 | DJ33: 2.94E-05 | DK33: 5.22E-03 | DL33: 5.50E+00 | DM33: -1.03E-05 | DN33: -1.84E-01 | DO33: 7.27E+02 | DQ33: 3.36E-05 | DR33: -1.53E-03 | DS33: -6.38E-02 | DT33: -9.87E+00 | DU33: 4.13E+02 | DW33: -4.75E-08 | DX33: 3.79E-05 | DY33: 3.13E-03 | DZ33: 5.44E+00 | EA33: =-0.000134794778 -> -1.35E-04 | EB33: -3.19E-01 | EC33: 7.79E+02 | EE33: 3.40E-05 | EF33: -4.91E-03 | EG33: 1.58E-01 | EH33: -9.76E+00 | EI33: 8.74E+02 | EK33: -3.36E-08 | EL33: 5.48E-05 | EM33: 9.11E-03 | EN33: 1.91E+01 | EO33: -4E-05 | EP33: -8E-02 | EQ33: 1E+03 | ER33: 37.5 | ET33: 37.5 | EV33: =ER33-5 -> 32.5 | EZ33: 17.5 | FA33: =Tavg_cold -> 17 | FB33: 17.5 | FC33: 17.5 | FD33: =IF($GC33<=$FC33,$FC33,IF($FM33<=$FP33,$FC33,$FZ33)) -> 17.5 | FJ33: 0.5 | FK33: 1.18 | FM33: =FQ33/FO33 -> 47.24% | FN33: =DU33 -> 412.8 | FO33: =EI33 -> 873.8 | FP33: =FN33/FO33 -> 47.24% | FQ33: 412.80 | FR33: 0.00 | FS33: =FO33*(1-FP33) -> 460.96 | FT33: =IF((FR33/FS33)>1,1,FR33/FS33) -> 0.00% | FU33: 17.50 | FV33: 21.15 | FW33: 3.65 | FZ33: 17.50 | GC33: 15.69066559 | GE33: 0.0% | GG33: 2334.18 | GH33: 19165.53 | GI33: 1167.09 | GJ33: 1167.09 | GK33: 0.01 | GL33: 0.01 | GM33: 38.49 | GN33: 78.47 | GO33: 6% | GQ33: 3557.01 | GR33: 2046.26 | GS33: 1778.51 | GT33: 1778.51 | GU33: 1778.51 | GV33: 0.0111 | GW33: 0.0111 | GX33: 0.01 | GY33: 55.48 | GZ33: 55.48 | HA33: 46.13 | HB33: 19.42 | HC33: 19.42 | HD33: 1266 | HE33: 412.802491 | HF33: 1265.575132 | HG33: 17.5 | HH33: 17.5 | HI33: 1266 | HJ33: 1 | HK33: 1266 | HL33: 0.5 | HM33: 1.18 | HO33: =HS33/HQ33 -> 47.24% | HP33: 412.8 | HQ33: 873.8 | HR33: =HP33/HQ33 -> 47.24% | HS33: 412.80 | HT33: 0.00 | HU33: =HQ33*(1-HR33) -> 460.96 | HV33: =IF((HT33/HU33)>1,1,HT33/HU33) -> 0.00% | HW33: 17.50 | HX33: 21.15 | HY33: 3.65 | IB33: 17.50 | IE33: 15.69066559 | II33: 2334.18 | IJ33: 19165.53
B34: =IF($AL$5=1,$C34/10,IF($AL$5=2,$C34/10,IF($AL$5=3,0.25,IF($AL$5=4,$C34/10,)))) -> 50% | C34: 5 | D34: -829 | E34: -71 | G34: -169 | H34: -169 | I34: =IF(Geg_dP<AB34,ROUND(((IF('Briza 22 & 26'!$M$4="High Perform. 208/230V (US/EU)",cal!HK34,H34)/Watts)/((Tr_cool-Tv_cool)*1.163))*FlowH2O,IF(UnitsNo=1,0,IF(UnitsNo=2,2))),"") -> -73 | K34: 0.0 | L34: =IF(Geg_dP<$AB34,0,"") -> 0.0 | M34: 0.0 | N34: 0 | O34: 0.00 | U34: 0 | X34: 1.03062 | Y34: 1.073 | Z34: 1.14154 | AA34: 1.03062 | AB34: 43.94 | AC34: 1.03062 | AD34: 1.073 | AE34: 1.14154 | AF34: =AF33+((AF35-AF33)/2) -> 28.00 | AG34: 1.03062 | AH34: 1.073 | AI34: 1.14154 | AJ34: =AJ33+((AJ35-AJ33)/2) -> 43.50 | AK34: 1.03062 | AL34: 1.073 | AM34: 1.14154 | AN34: =AN33+((AN35-AN33)/2) -> 43.94 | AO34: 1.01274699 | AP34: 1.411878985 | AQ34: 1.124002259 | AR34: 106.00 | AV34: 1000 | AZ34: 1000 | BD34: 1000 | BH34: 1000 | BZ34: 0.00E+00 | CA34: 0.00E+00 | CB34: 0.00E+00 | CC34: 0.00E+00 | CD34: 0.00E+00 | CE34: 0.00E+00 | CF34: 0.00E+00 | CG34: 0.00E+00 | CH34: 0.00E+00 | CI34: 0.00E+00 | CJ34: 0.00E+00 | CK34: 0.00E+00 | CL34: 0.00E+00 | CM34: 0.00E+00 | EF34: 6.50E-06 | EG34: -4.10E-02 | EH34: -5.69E+00 | EI34: 1.06E+03 | EK34: -2.80E-08 | EL34: 5.42E-05 | EM34: 1.82E-02 | EN34: 2.91E+01 | EO34: -3E-05 | EP34: -1E-01 | EQ34: 1E+03 | EZ34: 17.0 | FA34: =((FA35-FA33)/2)+FA33 -> 17 | FB34: 17 | FC34: 17 | FD34: 17 | FJ34: 0.0 | FK34: 1.18 | FM34: 0.00% | FN34: =((FN35-FN33)/2)+FN33 -> 488.8 | FO34: =((FO35-FO33)/2)+FO33 -> 1068.6 | FP34: =FN34/FO34 -> 45.74% | FQ34: 0.00 | FR34: 0.00 | FS34: 579.78 | FT34: 0.00% | FU34: 17.00 | FV34: 21.15 | FW34: 4.15 | FZ34: 17.00 | GC34: 15.69066559 | GE34: 0.0% | GG34: 2334.18 | GI34: 1167.09 | GJ34: 1167.09 | GK34: 0.01 | GL34: 0.01 | GM34: 38.49 | GQ34: 3557.01 | GS34: 1778.51 | GT34: 1778.51 | GV34: 0.0111 | GW34: 0.0111 | GY34: 55.48 | HB34: 19.42 | HD34: -169 | HE34: 0 | HF34: -168.8769906 | HG34: 17.0 | HH34: 17 | HI34: -169 | HJ34: 1 | HK34: -169 | HL34: 0.0 | HM34: 1.18 | HO34: 0.00% | HP34: =((HP35-HP33)/2)+HP33 -> 488.8 | HQ34: =((HQ35-HQ33)/2)+HQ33 -> 1068.6 | HR34: =HP34/HQ34 -> 45.74% | HS34: 0.00 | HT34: 0.00 | HU34: 579.78 | HV34: 0.00% | HW34: 17.00 | HX34: 21.15 | HY34: 4.15 | IB34: 17.00 | IE34: 15.69066559 | II34: 2334.18
B35: =IF($AL$5=1,$C35/10,IF($AL$5=2,$C35/10,IF($AL$5=3,0.5,IF($AL$5=4,$C35/10,)))) -> 60% | C35: 6 | D35: 7360 | E35: 633 | F35: 11.7 | G35: 1675 | H35: 1675 | I35: =IF(Geg_dP<AB35,ROUND(((IF('Briza 22 & 26'!$M$4="High Perform. 208/230V (US/EU)",cal!HK35,H35)/Watts)/((Tr_cool-Tv_cool)*1.163))*FlowH2O,IF(UnitsNo=1,0,IF(UnitsNo=2,2))),"") -> 720 | J35: 14.8 | K35: 37.0 | L35: =IF(Geg_dP<$AB35,IF(CalcNo="12",$ET35,IF(CalcNo="22",$ET35,IF(CalcNo="13",$EU35,IF(CalcNo="23",$EU35,IF(CalcNo="11",$ER35,IF(CalcNo="21",$ER35,IF(CalcNo="14",$ES35,IF(CalcNo="24",$ES35,IF(CalcNo="32",$EX35,IF(CalcNo="42",$EX35,IF(CalcNo="33",$EY35,IF(CalcNo="43",$EY35,IF(CalcNo="31",$EV35,IF(CalcNo="41",$EV35,IF(CalcNo="34",$EW35,IF(CalcNo="44",$EW35,)))))))))))))))),"") -> 45.0 | M35: 20.6 | N35: 565 | O35: 0.75 | P35: 58.2 | Q35: 25.4 | R35: 18.2 | S35: 16.5 | T35: 85% | U35: 798 | V35: 0.13 | W35: 2.966 | X35: 1.03062 | Y35: 1.073 | Z35: 1.14154 | AA35: 1.03062 | AB35: 57.54 | AC35: 1.03062 | AD35: 1.073 | AE35: 1.14154 | AF35: 38.00 | AG35: 1.03062 | AH35: 1.073 | AI35: 1.14154 | AJ35: 60.00 | AK35: 1.03062 | AL35: 1.073 | AM35: 1.14154 | AN35: 57.54 | AO35: 1.01274699 | AP35: 1.411878985 | AQ35: 1.124002259 | AR35: 159.32 | AV35: 1000 | AZ35: 1000 | BD35: 1000 | BH35: 1000 | BK35: =IF($BK$17="11",BN35,IF($BK$17="21",BQ35,IF($BK$17="12",BN35,IF($BK$17="22",BQ35,IF($BK$17="13",BN35,IF($BK$17="23",BQ35,IF($BK$17="14",BN35,IF($BK$17="24",BQ35,IF($BK$17="31",BT35,IF($BK$17="41",BW35,IF($BK$17="32",BT35,IF($BK$17="42",BW35,IF($BK$17="33",BT35,IF($BK$17="43",BW35,IF($BK$17="34",BT35,IF($BK$17="44",BW35,)))))))))))))))) -> -3.21E-03 | BL35: =IF($BK$17="11",BO35,IF($BK$17="21",BR35,IF($BK$17="12",BO35,IF($BK$17="22",BR35,IF($BK$17="13",BO35,IF($BK$17="23",BR35,IF($BK$17="14",BO35,IF($BK$17="24",BR35,IF($BK$17="31",BU35,IF($BK$17="41",BX35,IF($BK$17="32",BU35,IF($BK$17="42",BX35,IF($BK$17="33",BU35,IF($BK$17="43",BX35,IF($BK$17="34",BU35,IF($BK$17="44",BX35,)))))))))))))))) -> -2.51E-03 | BN35: -3.21E-03 | BO35: -2.51E-03 | BQ35: -3.18E-03 | BR35: =BO35 -> -2.51E-03 | BT35: 0 | BU35: 0 | BV35: 0 | BW35: 0 | BX35: 0 | BY35: 0 | BZ35: 0.00E+00 | CA35: -1.58E-05 | CB35: 2.09E-03 | CC35: -1.19E-01 | CD35: -6.30E+00 | CE35: 5.65E+02 | CF35: 0.00E+00 | CG35: -4.19E-08 | CH35: 4.58E-05 | CI35: 6.65E-03 | CJ35: 9.78E+00 | CK35: -1.44E-04 | CL35: -3.63E-01 | CM35: 1.05E+03 | CO35: 3.16E-05 | CP35: -1.42E-03 | CQ35: -3.51E-02 | CR35: -9.53E+00 | CS35: 4.27E+02 | CU35: -7.82E-08 | CV35: 6.38E-05 | CW35: 1.66E-03 | CX35: 7.00E+00 | CY35: -1.19E-04 | CZ35: -1.55E-01 | DA35: 8.39E+02 | DC35: -6.80E-06 | DD35: 1.00E-03 | DE35: -9.35E-02 | DF35: -7.77E+00 | DG35: 6.92E+02 | DI35: -4.25E-08 | DJ35: 4.89E-05 | DK35: 9.60E-03 | DL35: 1.11E+01 | DM35: -8.54E-06 | DN35: -2.49E-01 | DO35: 1.06E+03 | DQ35: -1.58E-05 | DR35: 2.09E-03 | DS35: -1.19E-01 | DT35: -6.30E+00 | DU35: 5.65E+02 | DW35: -4.19E-08 | DX35: 4.58E-05 | DY35: 6.65E-03 | DZ35: 9.78E+00 | EA35: -1.44E-04 | EB35: -3.63E-01 | EC35: 1.05E+03 | EE35: 1.33E-06 | EF35: -3.66E-04 | EG35: 1.03E-02 | EH35: -5.50E+00 | EI35: 1.26E+03 | EK35: -2.24E-08 | EL35: 5.36E-05 | EM35: 2.74E-02 | EN35: 3.90E+01 | EO35: -8E-06 | EP35: -2E-01 | EQ35: 2E+03 | ER35: 45 | ET35: 45 | EV35: =ER35-5 -> 40 | EZ35: 17.5 | FA35: =Tavg_cold -> 17 | FB35: 17.5 | FC35: 17.5 | FD35: 17.5 | FJ35: 0.5 | FK35: 1.18 | FM35: 44.71% | FN35: =DU35 -> 564.8 | FO35: =EI35 -> 1263.4 | FP35: =FN35/FO35 -> 44.71% | FQ35: 564.84 | FR35: 0.00 | FS35: 698.59 | FT35: 0.00% | FU35: 17.50 | FV35: 21.15 | FW35: 3.65 | FZ35: 17.50 | GC35: 15.69066559 | GE35: 0.0% | GG35: 2334.18 | GH35: 18289.29 | GI35: 1167.09 | GJ35: 1167.09 | GK35: 0.01 | GL35: 0.01 | GM35: 38.49 | GN35: 77.45 | GO35: 6% | GQ35: 3557.01 | GR35: 2084.89 | GS35: 1778.51 | GT35: 1778.51 | GU35: 1778.51 | GV35: 0.0111 | GW35: 0.0111 | GX35: 0.01 | GY35: 55.48 | GZ35: 55.48 | HA35: 46.44 | HB35: 19.42 | HC35: 19.42 | HD35: 1675 | HE35: 564.841279 | HF35: 1675.075514 | HG35: 17.5 | HH35: 17.5 | HI35: 1675 | HJ35: 1 | HK35: 1675 | HL35: 0.5 | HM35: 1.18 | HO35: 44.71% | HP35: 564.8 | HQ35: 1263.4 | HR35: =HP35/HQ35 -> 44.71% | HS35: 564.84 | HT35: 0.00 | HU35: 698.59 | HV35: 0.00% | HW35: 17.50 | HX35: 21.15 | HY35: 3.65 | IB35: 17.50 | IE35: 15.69066559 | II35: 2334.18 | IJ35: 18289.29
B36: =IF($AL$5=1,$C36/10,IF($AL$5=2,$C36/10,IF($AL$5=3,0.75,IF($AL$5=4,$C36/10,)))) -> 70% | C36: 7 | D36: -829 | E36: -71 | G36: -169 | H36: -169 | I36: =IF(Geg_dP<AB36,ROUND(((IF('Briza 22 & 26'!$M$4="High Perform. 208/230V (US/EU)",cal!HK36,H36)/Watts)/((Tr_cool-Tv_cool)*1.163))*FlowH2O,IF(UnitsNo=1,0,IF(UnitsNo=2,2))),"") -> -73 | K36: 0.0 | L36: =IF(Geg_dP<$AB36,0,"") -> 0.0 | M36: 0.0 | N36: 0 | O36: 0.00 | U36: 0 | X36: 1.03062 | Y36: 1.073 | Z36: 1.14154 | AA36: 1.03062 | AB36: 74.17 | AC36: 1.03062 | AD36: 1.073 | AE36: 1.14154 | AF36: =AF35+((AF37-AF35)/2) -> 51.50 | AG36: 1.03062 | AH36: 1.073 | AI36: 1.14154 | AJ36: =AJ35+((AJ37-AJ35)/2) -> 81.00 | AK36: 1.03062 | AL36: 1.073 | AM36: 1.14154 | AN36: =AN35+((AN37-AN35)/2) -> 74.17 | AO36: 1.01274699 | AP36: 1.411878985 | AQ36: 1.124002259 | AR36: 184.00 | AV36: 1000 | AZ36: 1000 | BD36: 1000 | BH36: 1000 | BZ36: 0.00E+00 | CA36: 0.00E+00 | CB36: 0.00E+00 | CC36: 0.00E+00 | CD36: 0.00E+00 | CE36: 0.00E+00 | CF36: 0.00E+00 | CG36: 0.00E+00 | CH36: 0.00E+00 | CI36: 0.00E+00 | CJ36: 0.00E+00 | CK36: 0.00E+00 | CL36: 0.00E+00 | CM36: 0.00E+00 | EE36: -1.41E-07 | EF36: -6.21E-05 | EG36: -1.11E-03 | EH36: -4.26E+00 | EI36: 1.37E+03 | EK36: -6.29E-08 | EL36: 1.33E-04 | EM36: 8.21E-03 | EN36: 4.79E+01 | EO36: -1E-04 | EP36: 4E-02 | EQ36: 2E+03 | EZ36: 17 | FA36: =((FA37-FA35)/2)+FA35 -> 17 | FB36: 17 | FC36: 17 | FD36: 17 | FJ36: 0.0 | FK36: 1.18 | FM36: 0.00% | FN36: =((FN37-FN35)/2)+FN35 -> 635.9 | FO36: =((FO37-FO35)/2)+FO35 -> 1368.0 | FP36: =FN36/FO36 -> 46.48% | FQ36: 0.00 | FR36: 0.00 | FS36: 732.17 | FT36: 0.00% | FU36: 17.00 | FV36: 21.15 | FW36: 4.15 | FZ36: 17.00 | GC36: 15.69066559 | GE36: 0.0% | GG36: 2334.18 | GI36: 1167.09 | GJ36: 1167.09 | GK36: 0.01 | GL36: 0.01 | GM36: 38.49 | GQ36: 3557.01 | GS36: 1778.51 | GT36: 1778.51 | GV36: 0.0111 | GW36: 0.0111 | GY36: 55.48 | HB36: 19.42 | HD36: -169 | HE36: 0 | HF36: -168.8769906 | HG36: 17.0 | HH36: 17 | HI36: -169 | HJ36: 1 | HK36: -169 | HL36: 0.0 | HM36: 1.18 | HO36: 0.00% | HP36: =((FN37-FN35)/2)+HP35 -> 635.9 | HQ36: 1372.2 | HR36: =HP36/HQ36 -> 46.34% | HS36: 0.00 | HT36: 0.00 | HU36: 736.36 | HV36: 0.00% | HW36: 17.00 | HX36: 21.15 | HY36: 4.15 | IB36: 17.00 | IE36: 15.69066559 | II36: 2334.18
B37: =IF($AL$5=1,$C37/10,IF($AL$5=2,$C37/10,IF($AL$5=3,1,IF($AL$5=4,$C37/10,)))) -> 80% | C37: 8 | D37: 8837 | E37: 760 | F37: 16.3 | G37: 2000 | H37: 2000 | I37: =IF(Geg_dP<AB37,ROUND(((IF('Briza 22 & 26'!$M$4="High Perform. 208/230V (US/EU)",cal!HK37,H37)/Watts)/((Tr_cool-Tv_cool)*1.163))*FlowH2O,IF(UnitsNo=1,0,IF(UnitsNo=2,2))),"") -> 860 | J37: 20.5 | K37: 42.5 | L37: =IF(Geg_dP<$AB37,IF(CalcNo="12",$ET37,IF(CalcNo="22",$ET37,IF(CalcNo="13",$EU37,IF(CalcNo="23",$EU37,IF(CalcNo="11",$ER37,IF(CalcNo="21",$ER37,IF(CalcNo="14",$ES37,IF(CalcNo="24",$ES37,IF(CalcNo="32",$EX37,IF(CalcNo="42",$EX37,IF(CalcNo="33",$EY37,IF(CalcNo="43",$EY37,IF(CalcNo="31",$EV37,IF(CalcNo="41",$EV37,IF(CalcNo="34",$EW37,IF(CalcNo="44",$EW37,)))))))))))))))),"") -> 50.5 | M37: 35.9 | N37: 707 | O37: 0.94 | P37: 56.7 | Q37: 25.0 | R37: 18.6 | S37: 16.7 | T37: 83% | U37: 947 | V37: 0.18 | W37: 2.829 | X37: 1.03062 | Y37: 1.073 | Z37: 1.14154 | AA37: 1.03062 | AB37: 90.8 | AC37: 1.03062 | AD37: 1.073 | AE37: 1.14154 | AF37: 65.00 | AG37: 1.03062 | AH37: 1.073 | AI37: 1.14154 | AJ37: 102.00 | AK37: 1.03062 | AL37: 1.073 | AM37: 1.14154 | AN37: 90.80 | AO37: 1.01274699 | AP37: 1.411878985 | AQ37: 1.124002259 | AR37: 213.40 | AV37: 1000 | AZ37: 1000 | BD37: 1000 | BH37: 1000 | BK37: =IF($BK$17="11",BN37,IF($BK$17="21",BQ37,IF($BK$17="12",BN37,IF($BK$17="22",BQ37,IF($BK$17="13",BN37,IF($BK$17="23",BQ37,IF($BK$17="14",BN37,IF($BK$17="24",BQ37,IF($BK$17="31",BT37,IF($BK$17="41",BW37,IF($BK$17="32",BT37,IF($BK$17="42",BW37,IF($BK$17="33",BT37,IF($BK$17="43",BW37,IF($BK$17="34",BT37,IF($BK$17="44",BW37,)))))))))))))))) -> 9.83E+00 | BL37: 7.35E+00 | BM37: 8.71E-05 | BN37: 9.83E+00 | BO37: 7.35E+00 | BP37: 8.71E-05 | BQ37: 4.41E+00 | BR37: =BO37 -> 7.35E+00 | BS37: =+BP37 -> 8.71E-05 | BT37: 0 | BU37: 0 | BV37: 0 | BW37: 0 | BX37: 0 | BY37: 0 | BZ37: 0.00E+00 | CA37: -6.85E-06 | CB37: 1.35E-03 | CC37: -9.82E-02 | CD37: -4.59E+00 | CE37: 7.07E+02 | CF37: 0.00E+00 | CG37: -4.49E-08 | CH37: 5.67E-05 | CI37: 9.28E-03 | CJ37: 1.69E+01 | CK37: -9.80E-05 | CL37: -4.35E-01 | CM37: 1.30E+03 | CO37: 1.80E-06 | CP37: -9.08E-05 | CQ37: -2.57E-02 | CR37: -7.54E+00 | CS37: 5.90E+02 | CU37: -6.74E-08 | CV37: 7.52E-05 | CW37: 2.51E-03 | CX37: 1.20E+01 | CY37: -1.09E-04 | CZ37: -1.86E-01 | DA37: 1.09E+03 | DC37: -2.64E-06 | DD37: 7.00E-04 | DE37: -8.13E-02 | DF37: -4.79E+00 | DG37: 8.86E+02 | DI37: -3.74E-08 | DJ37: 5.41E-05 | DK37: 1.70E-02 | DL37: 2.00E+01 | DM37: -1.13E-05 | DN37: -2.97E-01 | DO37: 1.37E+03 | DQ37: -6.85E-06 | DR37: 1.35E-03 | DS37: -9.82E-02 | DT37: -4.59E+00 | DU37: 7.07E+02 | DW37: -4.49E-08 | DX37: 5.67E-05 | DY37: 9.28E-03 | DZ37: 1.69E+01 | EA37: =-0.0000980174159 -> -9.80E-05 | EB37: -4.35E-01 | EC37: 1.30E+03 | ED37: 2.80E-08 | EE37: -1.28E-05 | EF37: 1.82E-03 | EG37: -1.05E-01 | EH37: -1.02E+00 | EI37: 1.47E+03 | EK37: -1.03E-07 | EL37: 2.13E-04 | EM37: -1.10E-02 | EN37: 5.67E+01 | EO37: -3E-04 | EP37: 2E-01 | EQ37: 2E+03 | ER37: 50.5 | ET37: 50.5 | EV37: =ER37-5 -> 45.5 | EZ37: 17.5 | FA37: =Tavg_cold -> 17 | FB37: 17.5 | FC37: 17.5 | FD37: 17.5 | FJ37: 0.5 | FK37: 1.18 | FM37: 48.00% | FN37: =DU37 -> 706.9 | FO37: =EI37 -> 1472.6 | FP37: =FP38 -> 54.97% | FQ37: 706.89 | FR37: 0.00 | FS37: 663.14 | FT37: 0.00% | FU37: 17.50 | FV37: 21.15 | FW37: 3.65 | FZ37: 17.50 | GC37: 15.69066559 | GE37: 0.0% | GG37: 2334.18 | GH37: 16999.11 | GI37: 1167.09 | GJ37: 1167.09 | GK37: 0.01 | GL37: 0.01 | GM37: 38.49 | GN37: 75.87 | GO37: 7% | GQ37: 3557.01 | GR37: 2138.50 | GS37: 1778.51 | GT37: 1778.51 | GU37: 1778.51 | GV37: 0.0111 | GW37: 0.0111 | GX37: 0.01 | GY37: 55.48 | GZ37: 55.48 | HA37: 46.85 | HB37: 19.42 | HC37: 19.42 | HD37: 2000 | HE37: 706.88795 | HF37: 1999.864655 | HG37: 17.5 | HH37: 17.5 | HI37: 2000 | HJ37: 1 | HK37: 2000 | HL37: 0.5 | HM37: 1.18 | HO37: 48.00% | HP37: 706.9 | HQ37: 1472.6 | HR37: =HR38 -> 54.97% | HS37: 706.89 | HT37: 0.00 | HU37: 663.14 | HV37: 0.00% | HW37: 17.50 | HX37: 21.15 | HY37: 3.65 | IB37: 17.50 | IE37: 15.69066559 | II37: 2334.18 | IJ37: 16999.11
B38: 100% | C38: 10 | D38: 9758 | E38: 839 | F38: 19.6 | G38: 2200 | H38: 2200 | I38: =IF(Geg_dP<AB38,ROUND(((IF('Briza 22 & 26'!$M$4="High Perform. 208/230V (US/EU)",cal!HK38,H38)/Watts)/((Tr_cool-Tv_cool)*1.163))*FlowH2O,IF(UnitsNo=1,0,IF(UnitsNo=2,2))),"") -> 946 | J38: 24.4 | K38: 46.5 | L38: =IF(Geg_dP<$AB38,IF(CalcNo="12",$ET38,IF(CalcNo="22",$ET38,IF(CalcNo="13",$EU38,IF(CalcNo="23",$EU38,IF(CalcNo="11",$ER38,IF(CalcNo="21",$ER38,IF(CalcNo="14",$ES38,IF(CalcNo="24",$ES38,IF(CalcNo="32",$EX38,IF(CalcNo="42",$EX38,IF(CalcNo="33",$EY38,IF(CalcNo="43",$EY38,IF(CalcNo="31",$EV38,IF(CalcNo="41",$EV38,IF(CalcNo="34",$EW38,IF(CalcNo="44",$EW38,)))))))))))))))),"") -> 54.5 | M38: =IF(Geg_dP<$AB38,($CF38*(($N38*CFMs)^4))+($CG38*(($N38*CFMs)^3))+($CH38*(($N38*CFMs)^2))+($CI38*($N38*CFMs))+$CJ38,"") -> 51.2 | N38: 809 | O38: 1.08 | P38: 55.4 | Q38: 24.7 | R38: 18.9 | S38: 16.8 | T38: 81% | U38: 1049 | V38: 0.23 | W38: 2.717 | X38: 1.03062 | Y38: 1.073 | Z38: 1.14154 | AA38: 1.03062 | AB38: 120.18 | AC38: 1.03062 | AD38: 1.073 | AE38: 1.14154 | AF38: 86.00 | AG38: 1.03062 | AH38: 1.073 | AI38: 1.14154 | AJ38: 139.00 | AK38: 1.03062 | AL38: 1.073 | AM38: 1.14154 | AN38: 120.18 | AO38: 1.01274699 | AP38: 1.411878985 | AQ38: 1.124002259 | AR38: =AR37 -> 213.40 | AV38: 1000 | AZ38: 1000 | BD38: 1000 | BH38: 1000 | BK38: -4.59E+02 | BL38: -3.07E+02 | BM38: 1.83E+00 | BN38: -4.59E+02 | BO38: -3.07E+02 | BP38: 1.83E+00 | BQ38: 3.87E+01 | BR38: =BO38 -> -3.07E+02 | BS38: =+BP38 -> 1.83E+00 | BT38: 0 | BU38: 0 | BV38: 0 | BW38: 0 | BX38: 0 | BY38: 0 | BZ38: 0.00E+00 | CA38: -3.22E-06 | CB38: 7.98E-04 | CC38: -6.89E-02 | CD38: -4.21E+00 | CE38: 8.09E+02 | CF38: 0.00E+00 | CG38: -1.90E-07 | CH38: 1.63E-04 | CI38: 2.27E-02 | CJ38: 2.40E+01 | CK38: -5.78E-05 | CL38: -5.07E-01 | CM38: 1.50E+03 | CO38: -2.34E-06 | CP38: 5.99E-04 | CQ38: -6.37E-02 | CR38: -5.43E+00 | CS38: 6.87E+02 | CU38: -2.71E-07 | CV38: 2.07E-04 | CW38: 1.19E-02 | CX38: 1.64E+01 | CY38: -8.93E-05 | CZ38: -2.16E-01 | DA38: 1.25E+03 | DC38: -1.71E-06 | DD38: 5.74E-04 | DE38: -7.88E-02 | DF38: -2.60E+00 | DG38: 9.90E+02 | DI38: -3.49E-07 | DJ38: 2.88E-04 | DK38: 2.03E-02 | DL38: 2.99E+01 | DM38: -1.23E-04 | DN38: -2.61E-01 | DO38: 1.59E+03 | DQ38: -3.22E-06 | DR38: 7.98E-04 | DS38: -6.89E-02 | DT38: -4.21E+00 | DU38: 8.09E+02 | DW38: -1.90E-07 | DX38: 1.63E-04 | DY38: 2.27E-02 | DZ38: 2.40E+01 | EA38: -5.78E-05 | EB38: -5.07E-01 | EC38: 1.50E+03 | ED38: =ED37 -> 2.80E-08 | EE38: -1.28E-05 | EF38: 1.82E-03 | EG38: -1.05E-01 | EH38: -1.02E+00 | EI38: 1.47E+03 | EJ38: =EJ37 -> 0 | EK38: -1.03E-07 | EL38: 2.13E-04 | EM38: -1.10E-02 | EN38: 5.67E+01 | EO38: -3E-04 | EP38: 2E-01 | EQ38: 2E+03 | ER38: 54.5 | ET38: 54.5 | EV38: =ER38-5 -> 49.5 | EZ38: 17.5 | FA38: =Tavg_cold -> 17 | FB38: 17.5 | FC38: 17.5 | FD38: 17.5 | FJ38: 0.5 | FK38: 1.18 | FM38: 54.97% | FN38: =DU38 -> 809.5 | FO38: =EI38 -> 1472.6 | FP38: =FN38/FO38 -> 54.97% | FQ38: 809.50 | FR38: 0.00 | FS38: 663.14 | FT38: 0.00% | FU38: =FC38 -> 17.50 | FV38: 21.15 | FW38: =ABS(FV38-FU38) -> 3.65 | FZ38: =IF(FM38<=FP38,FU38,FU38+(FT38*FW38)) -> 17.50 | GC38: 15.69066559 | GE38: 0.0% | GG38: 2334.18 | GH38: 15971.58 | GI38: 1167.09 | GJ38: 1167.09 | GK38: 0.01 | GL38: 0.01 | GM38: 38.49 | GN38: 74.53 | GO38: 7% | GQ38: 3557.01 | GR38: 2183.27 | GS38: 1778.51 | GT38: 1778.51 | GU38: 1778.51 | GV38: 0.0111 | GW38: 0.0111 | GX38: 0.01 | GY38: 55.48 | GZ38: 55.48 | HA38: 47.19 | HB38: 19.42 | HC38: 19.42 | HD38: 2200 | HE38: 809.495999 | HF38: 2199.744152 | HG38: 17.5 | HH38: 17.5 | HI38: 2200 | HJ38: 1 | HK38: 2200 | HL38: 0.5 | HM38: 1.18 | HO38: 54.97% | HP38: 809.5 | HQ38: 1472.6 | HR38: =HP38/HQ38 -> 54.97% | HS38: 809.50 | HT38: 0.00 | HU38: 663.14 | HV38: 0.00% | HW38: 17.50 | HX38: 21.15 | HY38: =ABS(HX38-HW38) -> 3.65 | IB38: =IF(HO38<=HR38,HW38,HW38+(HV38*HY38)) -> 17.50 | IE38: 15.69066559 | II38: 2334.18 | IJ38: 15971.58
B39: =IF(LangNo=1,NL!A39,IF(LangNo=2,EN!A39,IF(LangNo=3,DE!A39,IF(LangNo=4,FR!A39,IF(LangNo=5,NR!A39,IF(LangNo=6,SP!A39,IF(LangNo=7,SW!A39,IF(LangNo=8,TS!A39,IF(LangNo=9,ExtraTaal1!A39,IF(LangNo=10,ExtraTaal2!A39,IF(LangNo=11,ExtraTaal3!A39,))))))))))) -> Briza 22 (230V) height 54,5 cm, width 22 cm, length 125 cm (Type 06) | AA39: 0 | AB39: m³/h | AC39: n-value | AD39: n-value | AE39: n-value | AF39: m³/h | AG39: n-value | AH39: n-value | AI39: n-value | AJ39: m³/h | AK39: n-value | AL39: n-value | AM39: n-value | AN39: m³/h | AO39: n-value | AP39: n-value | AQ39: n-value | AR39: m³/h | AS39: n-value | AT39: n-value | AU39: n-value | AV39: =AF39 -> m³/h | AW39: n-value | AX39: n-value | AY39: n-value | AZ39: =AJ39 -> m³/h | BA39: n-value | BB39: n-value | BC39: n-value | BD39: =AN39 -> m³/h | BE39: n-value | BF39: n-value | BG39: n-value | BH39: =AR39 -> m³/h | BJ39: =IF($BK$17="11",BO39,IF($BK$17="21",BR39,IF($BK$17="12",BO39,IF($BK$17="22",BR39,IF($BK$17="13",BO39,IF($BK$17="23",BR39,IF($BK$17="14",BO39,IF($BK$17="24",BR39,IF($BK$17="31",BU39,IF($BK$17="41",BX39,IF($BK$17="32",BU39,IF($BK$17="42",BX39,IF($BK$17="33",BU39,IF($BK$17="43",BX39,IF($BK$17="34",BU39,IF($BK$17="44",BX39,)))))))))))))))) -> 22 | BK39: =(BN39+IF(CaseNo=1,0,IF(CaseNo=2,$BN$2,)))*MilInch -> 54.5 | BL39: =(BJ39+IF(CaseNo=1,0,IF(CaseNo=2,$BN$3,)))*MilInch -> 22 | BM39: =(BP39+IF(CaseNo=1,0,IF(CaseNo=2,$BN$4,)))*MilInch -> 95 | BN39: 54.5 | BO39: 22 | BP39: 95 | BQ39: 54.5 | BR39: 22 | BS39: 95 | BT39: 54.5 | BU39: 26 | BV39: 95 | BW39: 54.5 | BX39: 26 | BY39: 95 | BZ39: =CF39 -> T06 | CF39: T06 | CN39: =CF39 -> T06 | DB39: =CF39 -> T06 | DP39: =CF39 -> T06 | ED39: =CF39 -> T06 | ER39: T06 | FA39: =ER39 -> T06 | HD39: 0 | HF39: =IF(Geg_dP<$AB39,((($BL$18*($HE39/Cubics)^4+$BL$19*($HE39/Cubics)^3+$BL$20*($HE39/Cubics)^2+$BL$21*($HE39/Cubics)^1+$BL$22)*((CF_Regime_Cool_noExp)^$Y39)))*CF_Addit*Watts*CF_Altit,Lim_dP) ->  | HL39: T06
B40: =IF($AL$5=1,$C40/10,IF($AL$5=2,$C40/10,IF($AL$5=3,0,IF($AL$5=4,$C40/10,)))) -> 20% | C40: 2 | D40: =IF(Geg_dP<AB40,((($BK$40*($N40/Cubics)^4+$BK$41*($N40/Cubics)^3+$BK$43*($N40/Cubics)^2+$BK$45*($N40/Cubics)^1+$BK$46)*((CF_Regime_Heat_noExp)^$AA40)))*CF_Addit*Watts*CF_Altit,Lim_dP) -> 4291 | E40: =IF(Geg_dP<$AB40,ROUND((($D40/Watts)/((Tv_heat-Tr_heat)*1.163))*FlowH2O,IF(UnitsNo=1,0,IF(UnitsNo=2,2))),"") -> 369 | F40: =IF(Geg_dP<$AB40,IF((($BM$40*(E40/FlowH2O)^$BM$41))*kPa>0,(($BM$40*(E40/FlowH2O)^$BM$41))*kPa,0),"") -> 1.5 | G40: =IF(Geg_dP<$AB40,((($BL$40*($N40/Cubics)^4+$BL$41*($N40/Cubics)^3+$BL$43*($N40/Cubics)^2+$BL$45*($N40/Cubics)^1+$BL$46)*((CF_Regime_Cool_noExp)^$Y40)))*CF_Addit*Watts*CF_Altit,Lim_dP) -> 787 | H40: =IF(Geg_dP<$AB40,((G40/Watts)/(IF((237.3*LN((RH*EXP(17.27*(Tl_cool/(Tl_cool+237.3))))))/(17.27-LN((RH*EXP(17.27*(Tl_cool/(Tl_cool+237.3))))))<EZ40,1,IF(1/(1+((2258*((0.622/((101325/(1*611*EXP(17.27*(EZ40/(EZ40+237.3))))))-1)*1000-(0.622/((101325/(RH*611*EXP(17.27*(Tl_cool/(Tl_cool+237.3))))))-1)*1000))/(1005*(Tavg_cold-Tl_cool))))>1,1,1/(1+((2258*((0.622/((101325/(1*611*EXP(17.27*(EZ40/(EZ40+237.3))))))-1)*1000-(0.622/((101325/(RH*611*EXP(17.27*(Tl_cool/(Tl_cool+237.3))))))-1)*1000))/(1005*(Tavg_cold-Tl_cool))))))))*Watts,"") -> 787 | I40: =IF(Geg_dP<AB40,ROUND(((IF('Briza 22 & 26'!$M$4="High Perform. 208/230V (US/EU)",cal!HK40,H40)/Watts)/((Tr_cool-Tv_cool)*1.163))*FlowH2O,IF(UnitsNo=1,0,IF(UnitsNo=2,2))),"") -> 339 | J40: =IF(Geg_dP<$AB40,IF((($BM$45*(I40/FlowH2O)^$BM$46))*kPa>0,(($BM$45*(I40/FlowH2O)^$BM$46))*kPa,0),"") -> 1.3 | K40: =IF(Geg_dP<AB40,IF($L40-8<0,0,$L40-8),"") -> 28.0 | L40: =IF(Geg_dP<$AB40,IF(CalcNo="12",$ET40,IF(CalcNo="22",$ET40,IF(CalcNo="13",$EU40,IF(CalcNo="23",$EU40,IF(CalcNo="11",$ER40,IF(CalcNo="21",$ER40,IF(CalcNo="14",$ES40,IF(CalcNo="24",$ES40,IF(CalcNo="32",$EX40,IF(CalcNo="42",$EX40,IF(CalcNo="33",$EY40,IF(CalcNo="43",$EY40,IF(CalcNo="31",$EV40,IF(CalcNo="41",$EV40,IF(CalcNo="34",$EW40,IF(CalcNo="44",$EW40,)))))))))))))))),"") -> 36.0 | M40: =IF(Geg_dP<$AB40,($CF40*(($N40/Cubics)^4))+($CG40*(($N40/Cubics)^3))+($CH40*(($N40/Cubics)^2))+($CI40*($N40/Cubics))+$CJ40,"") -> 7.2 | N40: =IF(Geg_dP<$AB40,(BZ40*Geg_dP^5+CA40*Geg_dP^4+CB40*Geg_dP^3+CC40*Geg_dP^2+CD40*Geg_dP+CE40)*CF_Case*Cubics,"") -> 334 | O40: =IF(Geg_dP<$AB40,(($N40/Cubics)/3600)/(($BJ$47/100)*($BP$47/100))*FeetMins,"") -> 0.34 | P40: =IF(Geg_dP<$AB40,((($D40/Watts)/(((p_atm*0.028964)/(8.31447*(20+273.15)))*(($N40/3600)/Cubics)*(1005+1870*((0.622)/(((p_atm)/($E$14*pvs_heat_in))-1)))))+Tl_heat)*Celc1+Celc2,"") -> 57.7 | Q40: =IF(Geg_dP<$AB40,(27.8*LN(($GN40+36)/45.5))*Celc1+Celc2,"") -> 25.3 | R40: =IF(Geg_dP<$AB40,(Tl_cool-(($G40/Watts)/(1006*$N40*kgss)))*Celc1+Celc2,"") -> 20.0 | S40: =IF(Geg_dP<$AB40,IF((27.8*LN(($HA40+36)/45.5))*Celc1+Celc2>R40,R40,(27.8*LN(($HA40+36)/45.5))*Celc1+Celc2),"") -> 17.1 | T40: =IF(Geg_dP<$AB40,IF($H40>$G40,1,IF(($GT40/$GR40)<0,0,$GT40/$GR40)),"") -> 76% | U40: =IF(Geg_dP<$AB40,$CK40*($N40/Cubics)^2+$CL40*($N40/Cubics)^1+$CM40,"") -> 433 | V40: =M40/((N40/Cubics)/3.6) -> 0.08 | W40: =(G40/Watts)/(N40/Cubics) -> 2.359 | X40: 0.993243 | Y40: 1.23546 | Z40: 1.10433 | AA40: 0.993243 | AB40: 9.56 | AC40: 0.993243 | AD40: 1.23546 | AE40: 1.10433 | AF40: 8.20 | AG40: 0.993243 | AH40: 1.23546 | AI40: 1.10433 | AJ40: 8.00 | AK40: 0.993243 | AL40: 1.23546 | AM40: 1.10433 | AN40: 9.56 | AO40: 1.02885737 | AP40: 1.53481394 | AQ40: 1.140112639 | AR40: 20.50 | AS40: 0.993243 | AT40: 1.23546 | AU40: 1.10433 | AV40: 8.20 | AW40: 0.993243 | AX40: 1.23546 | AY40: 1.10433 | AZ40: 8.00 | BA40: 0.9933058029 | BB40: 1.234980045 | BC40: 1.104561071 | BD40: 9.56 | BE40: 0.9756960835 | BF40: 1.019942961 | BG40: 1.086951352 | BH40: 20.50 | BK40: =IF($BK$17="11",BN40,IF($BK$17="21",BQ40,IF($BK$17="12",BN40,IF($BK$17="22",BQ40,IF($BK$17="13",BN40,IF($BK$17="23",BQ40,IF($BK$17="14",BN40,IF($BK$17="24",BQ40,IF($BK$17="31",BT40,IF($BK$17="41",BW40,IF($BK$17="32",BT40,IF($BK$17="42",BW40,IF($BK$17="33",BT40,IF($BK$17="43",BW40,IF($BK$17="34",BT40,IF($BK$17="44",BW40,)))))))))))))))) -> 0.00E+00 | BL40: 0.00E+00 | BM40: 2.76E-05 | BP40: =BP45 -> 2.76E-05 | BR40: =BO40 -> 0 | BS40: 1.51E-04 | BV40: =BV45 -> 2.31E-05 | BY40: =BS40 -> 1.51E-04 | BZ40: =IF($BK$17="11",CN40,IF($BK$17="21",CN40,IF($BK$17="12",DP40,IF($BK$17="22",DP40,IF($BK$17="13",ED40,IF($BK$17="23",ED40,IF($BK$17="14",DB40,IF($BK$17="24",DB40,IF($BK$17="31",CN40,IF($BK$17="41",CN40,IF($BK$17="32",DP40,IF($BK$17="42",DP40,IF($BK$17="33",ED40,IF($BK$17="43",ED40,IF($BK$17="34",DB40,IF($BK$17="44",DB40,)))))))))))))))) -> 0.00E+00 | CA40: 5.30E-02 | CB40: -1.21E+00 | CC40: 8.04E+00 | CD40: -4.11E+01 | CE40: 3.34E+02 | CF40: 0.00E+00 | CG40: -1.48E-08 | CH40: 1.05E-05 | CI40: 2.47E-03 | CJ40: 5.80E+00 | CK40: -1.76E-04 | CL40: -1.61E-01 | CM40: 5.07E+02 | CO40: -6.01E-04 | CP40: 5.15E-02 | CQ40: -5.42E-01 | CR40: -2.03E+01 | CS40: 1.77E+02 | CU40: -2.19E-08 | CV40: 7.07E-06 | CW40: 2.32E-03 | CX40: 4.89E+00 | CY40: -3.27E-04 | CZ40: 2.14E-02 | DA40: 3.40E+02 | DC40: -1.87E-02 | DD40: 3.33E-01 | DE40: -2.10E+00 | DF40: -2.35E+01 | DG40: 2.76E+02 | DI40: 3.05E-09 | DJ40: 2.14E-06 | DK40: 2.96E-03 | DL40: 5.43E+00 | DM40: 2.53E-04 | DN40: -1.43E-01 | DO40: 4.81E+02 | DQ40: 5.30E-02 | DR40: -1.21E+00 | DS40: 8.04E+00 | DT40: -4.11E+01 | DU40: 3.34E+02 | DW40: -1.48E-08 | DX40: 1.05E-05 | DY40: 2.47E-03 | DZ40: 5.80E+00 | EA40: -1.76E-04 | EB40: -1.61E-01 | EC40: 5.07E+02 | EE40: 1.50E-03 | EF40: -6.35E-02 | EG40: 6.01E-01 | EH40: -1.95E+01 | EI40: 4.91E+02 | EK40: -5.85E-08 | EL40: 5.07E-05 | EM40: -1.53E-03 | EN40: 9.28E+00 | EO40: 1E-05 | EP40: -1E-01 | EQ40: 7E+02 | ER40: 36 | ET40: 36 | EV40: =EX40 -> 35.5 | EX40: 35.5 | EZ40: =IF($BK$17="11",FA40,IF($BK$17="21",FA40,IF($BK$17="12",FC40,IF($BK$17="22",FC40,IF($BK$17="13",FD40,IF($BK$17="23",FD40,IF($BK$17="14",FB40,IF($BK$17="24",FB40,IF($BK$17="31",FE40,IF($BK$17="41",FE40,IF($BK$17="32",FG40,IF($BK$17="42",FG40,IF($BK$17="33",FH40,IF($BK$17="43",FH40,IF($BK$17="34",FF40,IF($BK$17="44",FF40,)))))))))))))))) -> 17.5 | FA40: =Tavg_cold -> 17 | FB40: =IF($GC40<=$FC40,$FC40,IF($FM40<=$FP40,$FC40,$FZ40)) -> 17.5 | FC40: =IF($N40>$FN40,Tavg_cold+(0.5*(Tr_cool-Tavg_cold)),Tavg_cold+($FJ40*(Tr_cool-Tavg_cold))) -> 17.5 | FD40: =IF($GC40<=$FC40,$FC40,IF($FM40<=$FP40,$FC40,$FZ40)) -> 17.5 | FE40: =FH40*1.04 -> 18.2 | FF40: =IF($GC40<=$FU40,$FU40,IF($FM40<=$FP40,Tavg_cold,$GA40)) -> 17.5 | FG40: =FH40*1.05 -> 18.375 | FH40: =IF($GC40<=$FU40,$FU40,IF($FM40<=$FP40,Tavg_cold,$GA40)) -> 17.5 | FJ40: =0.5*(1-((FN40-N40)/FN40)) -> 0.5 | FK40: =(0.025*Tl_cool)+0.5 -> 1.18 | FL40: =(0.13*Tl_cool)-2.04 -> 1.47 | FM40: =FQ40/FO40 -> 67.94% | FN40: =DU40 -> 333.9 | FO40: =EI40 -> 491.4 | FP40: =FN40/FO40 -> 67.94% | FQ40: =N40/Cubics -> 333.86 | FR40: =IF(FQ40-(FP40*FO40)<=0,0,FQ40-(FP40*FO40)) -> 0.00 | FS40: =FO40*(1-FP40) -> 157.56 | FT40: =IF((FR40/FS40)>1,1,FR40/FS40) -> 0.00% | FU40: =FC40 -> 17.50 | FV40: =Tr_cool*FK40 -> 21.15 | FW40: =ABS(FV40-FU40) -> 3.65 | FX40: =Tv_cool*FL40 -> 23.52 | FY40: =ABS(FX40-FU40) -> 6.02 | FZ40: =IF(FM40<=FP40,FU40,FU40+(FT40*FW40)) -> 17.50 | GA40: =FU40+(FT40*FY40) -> 17.50 | GC40: =(237.3*LN((RH*EXP(17.27*(Tl_cool/(Tl_cool+237.3))))))/(17.27-LN((RH*EXP(17.27*(Tl_cool/(Tl_cool+237.3)))))) -> 15.69066559 | GE40: =(H40-G40)/H40 -> 0.0% | GG40: =(611*EXP(17.27*(Tl_heat/(Tl_heat+237.7)))) -> 2334.18 | GH40: =(611*EXP(17.27*((($P40-Celc2)/Celc1)/((($P40-Celc2)/Celc1)+237.7)))) -> 17848.34 | GI40: =RH*$GG40 -> 1167.09 | GJ40: =(GL40*p_atm)/(GL40+0.622) -> 1167.09 | GK40: =0.622*($GI40/(p_atm-$GI40)) -> 0.01 | GL40: 0.01 | GM40: =(1.005*Tl_heat)+($GK40*(2500+(1.87*Tl_heat))) -> 38.49 | GN40: =(1.005*(($P40-Celc2)/Celc1))+($GL40*(2500+(1.87*(($P40-Celc2)/Celc1)))) -> 76.92 | GO40: 7% | GQ40: =(611*EXP(17.27*(Tl_cool/(Tl_cool+237.7)))) -> 3557.01 | GR40: =(611*EXP(17.27*((($R40-Celc2)/Celc1)/((($R40-Celc2)/Celc1)+237.7)))) -> 2332.68 | GS40: =RH*$GQ40 -> 1778.51 | GT40: =(GW40*p_atm)/(GW40+0.622) -> 1778.51 | GU40: =T40*GR40 -> 1778.51 | GV40: =0.622*($GS40/(p_atm-$GS40)) -> 0.0111 | GW40: =IF(H40=G40,GV40,(0.53475935828878*($GZ40-(1.005*(($R40-Celc2)/Celc1))))/(1336.8983957219)) -> 0.0111 | GX40: =0.622*($GU40/(p_atm-$GU40)) -> 0.01 | GY40: =(1.005*Tl_cool)+($GV40*(2500+(1.87*Tl_cool))) -> 55.48 | GZ40: =GY40-((((H40-G40)/Watts)/1000)/(N40/$L$15)) -> 55.48 | HA40: =(1.005*(($R40-Celc2)/Celc1))+($GX40*(2500+(1.87*(($R40-Celc2)/Celc1)))) -> 48.29 | HB40: 19.42 | HC40: 19.42 | HD40: =H40 -> 787 | HE40: 333.863698 | HF40: =IF(Geg_dP<$AB40,((($BL$40*($HE40/Cubics)^4+$BL$41*($HE40/Cubics)^3+$BL$43*($HE40/Cubics)^2+$BL$45*($HE40/Cubics)^1+$BL$46)*((CF_Regime_Cool_noExp)^$Y40)))*CF_Addit*Watts*CF_Altit,Lim_dP) -> 787.4651303 | HG40: 17.5 | HH40: 17.5 | HI40: 787 | HJ40: 1 | HK40: 787 | HL40: =0.5*(1-((HP40-HE40)/HP40)) -> 0.5 | HM40: =(0.025*Tl_cool)+0.5 -> 1.18 | HN40: =(0.13*Tl_cool)-2.04 -> 1.47 | HO40: =HS40/HQ40 -> 67.94% | HP40: =DU40 -> 333.9 | HQ40: 491.4 | HR40: =HP40/HQ40 -> 67.94% | HS40: 333.86 | HT40: =IF(HS40-(HR40*HQ40)<=0,0,HS40-(HR40*HQ40)) -> 0.00 | HU40: =HQ40*(1-HR40) -> 157.56 | HV40: =IF((HT40/HU40)>1,1,HT40/HU40) -> 0.00% | HW40: 17.50 | HX40: =Tr_cool*HM40 -> 21.15 | HY40: =ABS(HX40-HW40) -> 3.65 | HZ40: =Tv_cool*HN40 -> 23.52 | IA40: =ABS(HZ40-HW40) -> 6.02 | IB40: =IF(HO40<=HR40,HW40,HW40+(HV40*HY40)) -> 17.50 | IC40: =HW40+(HV40*IA40) -> 17.50 | IE40: =(237.3*LN((RH*EXP(17.27*(Tl_cool/(Tl_cool+237.3))))))/(17.27-LN((RH*EXP(17.27*(Tl_cool/(Tl_cool+237.3)))))) -> 15.69066559 | IG40: =(BG40-BF40)/BG40 -> 6.2% | II40: =(611*EXP(17.27*(Tl_heat/(Tl_heat+237.7)))) -> 2334.18 | IJ40: =(611*EXP(17.27*((($P40-Celc2)/Celc1)/((($P40-Celc2)/Celc1)+237.7)))) -> 17848.34
B41: =IF($AL$5=1,$C41/10,IF($AL$5=2,$C41/10,IF($AL$5=3,0,IF($AL$5=4,$C41/10,)))) -> 40% | C41: 4 | D41: 7376 | E41: 634 | F41: 4.2 | G41: 1367 | H41: 1367 | I41: =IF(Geg_dP<AB41,ROUND(((IF('Briza 22 & 26'!$M$4="High Perform. 208/230V (US/EU)",cal!HK41,H41)/Watts)/((Tr_cool-Tv_cool)*1.163))*FlowH2O,IF(UnitsNo=1,0,IF(UnitsNo=2,2))),"") -> 588 | J41: 3.7 | K41: 36.0 | L41: =IF(Geg_dP<$AB41,IF(CalcNo="12",$ET41,IF(CalcNo="22",$ET41,IF(CalcNo="13",$EU41,IF(CalcNo="23",$EU41,IF(CalcNo="11",$ER41,IF(CalcNo="21",$ER41,IF(CalcNo="14",$ES41,IF(CalcNo="24",$ES41,IF(CalcNo="32",$EX41,IF(CalcNo="42",$EX41,IF(CalcNo="33",$EY41,IF(CalcNo="43",$EY41,IF(CalcNo="31",$EV41,IF(CalcNo="41",$EV41,IF(CalcNo="34",$EW41,IF(CalcNo="44",$EW41,)))))))))))))))),"") -> 44.0 | M41: 17.5 | N41: 614 | O41: 0.62 | P41: 55.2 | Q41: 24.6 | R41: 20.4 | S41: 17.3 | T41: 74% | U41: 646 | V41: 0.10 | W41: 2.225 | X41: 0.993243 | Y41: 1.23546 | Z41: 1.10433 | AA41: 0.993243 | AB41: 30.18 | AC41: 0.993243 | AD41: 1.23546 | AE41: 1.10433 | AF41: 24.00 | AG41: 0.993243 | AH41: 1.23546 | AI41: 1.10433 | AJ41: 34.00 | AK41: 0.993243 | AL41: 1.23546 | AM41: 1.10433 | AN41: 30.18 | AO41: 1.02885737 | AP41: 1.53481394 | AQ41: 1.140112639 | AR41: 74.38 | AS41: 0.993243 | AT41: 1.23546 | AU41: 1.10433 | AV41: 24.00 | AW41: 0.993243 | AX41: 1.23546 | AY41: 1.10433 | AZ41: 34.00 | BA41: 0.9933058029 | BB41: 1.234980045 | BC41: 1.104561071 | BD41: 30.18 | BE41: 0.9756960835 | BF41: 1.019942961 | BG41: 1.086951352 | BH41: 74.38 | BK41: 0.00E+00 | BL41: 0.00E+00 | BM41: 1.85E+00 | BP41: =BP46 -> 1.85E+00 | BR41: =BO41 -> 0 | BS41: 1.82E+00 | BV41: =BV46 -> 1.88E+00 | BY41: =BS41 -> 1.82E+00 | BZ41: 0.00E+00 | CA41: 1.16E-03 | CB41: -7.13E-02 | CC41: 1.18E+00 | CD41: -2.17E+01 | CE41: 6.14E+02 | CF41: 0.00E+00 | CG41: -2.50E-08 | CH41: 2.77E-05 | CI41: 4.08E-03 | CJ41: 1.03E+01 | CK41: -1.30E-04 | CL41: -1.58E-01 | CM41: 7.92E+02 | CO41: 4.68E-04 | CP41: -2.06E-02 | CQ41: 2.24E-01 | CR41: -1.62E+01 | CS41: 3.95E+02 | CU41: -1.73E-10 | CV41: 4.36E-06 | CW41: 6.82E-03 | CX41: 9.27E+00 | CY41: -2.34E-04 | CZ41: 2.46E-02 | DA41: 5.80E+02 | DC41: -9.40E-05 | DD41: 7.10E-03 | DE41: -2.67E-01 | DF41: -1.32E+01 | DG41: 6.33E+02 | DI41: -9.97E-09 | DJ41: 1.23E-05 | DK41: 8.16E-03 | DL41: 1.32E+01 | DM41: 1.04E-04 | DN41: -1.77E-01 | DO41: 9.05E+02 | DQ41: 1.16E-03 | DR41: -7.13E-02 | DS41: 1.18E+00 | DT41: -2.17E+01 | DU41: 6.14E+02 | DW41: -2.50E-08 | DX41: 2.77E-05 | DY41: 4.08E-03 | DZ41: 1.03E+01 | EA41: -1.30E-04 | EB41: -1.58E-01 | EC41: 7.92E+02 | EE41: 2.52E-05 | EF41: -4.03E-03 | EG41: 1.51E-01 | EH41: -1.30E+01 | EI41: 1.05E+03 | EK41: -2.52E-08 | EL41: 4.65E-05 | EM41: 7.33E-03 | EN41: 2.33E+01 | EO41: -2E-05 | EP41: -8E-02 | EQ41: 1E+03 | ER41: 44 | ET41: 44 | EV41: =EX41 -> 46 | EX41: 46 | EZ41: 17.5 | FA41: =Tavg_cold -> 17 | FB41: 17.5 | FC41: 17.5 | FD41: 17.5 | FE41: =FH41*1.04 -> 18.2 | FF41: 17.5 | FG41: =FH41*1.05 -> 18.375 | FH41: 17.5 | FJ41: 0.5 | FK41: 1.18 | FL41: 1.47 | FM41: =FQ41/FO41 -> 58.24% | FN41: =DU41 -> 614.4 | FO41: =EI41 -> 1055.0 | FP41: =FN41/FO41 -> 58.24% | FQ41: 614.42 | FR41: 0.00 | FS41: =FO41*(1-FP41) -> 440.54 | FT41: =IF((FR41/FS41)>1,1,FR41/FS41) -> 0.00% | FU41: =FC41 -> 17.50 | FV41: 21.15 | FW41: =ABS(FV41-FU41) -> 3.65 | FX41: 23.52 | FY41: =ABS(FX41-FU41) -> 6.02 | FZ41: =IF(FM41<=FP41,FU41,FU41+(FT41*FW41)) -> 17.50 | GA41: 17.50 | GC41: 15.69066559 | GE41: 0.0% | GG41: 2334.18 | GH41: 15863.04 | GI41: 1167.09 | GJ41: 1167.09 | GK41: 0.01 | GL41: 0.01 | GM41: 38.49 | GN41: 74.39 | GO41: 7% | GQ41: 3557.01 | GR41: 2390.57 | GS41: 1778.51 | GT41: 1778.51 | GU41: 1778.51 | GV41: 0.0111 | GW41: 0.0111 | GX41: 0.01 | GY41: 55.48 | GZ41: 55.48 | HA41: 48.69 | HB41: 19.42 | HC41: 19.42 | HD41: 1367 | HE41: 614.416243 | HF41: 1367.091505 | HG41: 17.5 | HH41: 17.5 | HI41: 1367 | HJ41: 1 | HK41: 1367 | HL41: 0.5 | HM41: 1.18 | HN41: 1.47 | HO41: =HS41/HQ41 -> 58.24% | HP41: 614.4 | HQ41: 1055.0 | HR41: =HP41/HQ41 -> 58.24% | HS41: 614.42 | HT41: 0.00 | HU41: =HQ41*(1-HR41) -> 440.54 | HV41: =IF((HT41/HU41)>1,1,HT41/HU41) -> 0.00% | HW41: 17.50 | HX41: 21.15 | HY41: =ABS(HX41-HW41) -> 3.65 | HZ41: =Tv_cool*HN41 -> 23.52 | IA41: =ABS(HZ41-HW41) -> 6.02 | IB41: =IF(HO41<=HR41,HW41,HW41+(HV41*HY41)) -> 17.50 | IC41: =HW41+(HV41*IA41) -> 17.50 | IE41: 15.69066559 | IG41: 6.2% | II41: 2334.18 | IJ41: 15863.04
B42: =IF($AL$5=1,$C42/10,IF($AL$5=2,$C42/10,IF($AL$5=3,0.25,IF($AL$5=4,$C42/10,)))) -> 50% | C42: 5 | D42: 150 | E42: 13 | F42: 0.0 | G42: 61 | H42: 61 | I42: =IF(Geg_dP<AB42,ROUND(((IF('Briza 22 & 26'!$M$4="High Perform. 208/230V (US/EU)",cal!HK42,H42)/Watts)/((Tr_cool-Tv_cool)*1.163))*FlowH2O,IF(UnitsNo=1,0,IF(UnitsNo=2,2))),"") -> 26 | J42: 0.0 | K42: 0.0 | L42: =IF(Geg_dP<$AB42,0,"") -> 0.0 | M42: 0.0 | N42: 0 | O42: 0.00 | U42: 0 | X42: 0.993243 | Y42: 1.23546 | Z42: 1.10433 | AA42: 0.993243 | AB42: 44.26 | AC42: 0.993243 | AD42: 1.23546 | AE42: 1.10433 | AF42: =AF41+((AF43-AF41)/2) -> 36.00 | AG42: 0.993243 | AH42: 1.23546 | AI42: 1.10433 | AJ42: =AJ41+((AJ43-AJ41)/2) -> 54.50 | AK42: 0.993243 | AL42: 1.23546 | AM42: 1.10433 | AN42: =AN41+((AN43-AN41)/2) -> 44.26 | AO42: 1.02885737 | AP42: 1.53481394 | AQ42: 1.140112639 | AR42: 103.00 | AS42: 0.993243 | AT42: 1.23546 | AU42: 1.10433 | AV42: 36.00 | AW42: 0.993243 | AX42: 1.23546 | AY42: 1.10433 | AZ42: 54.50 | BA42: 0.9933058029 | BB42: 1.234980045 | BC42: 1.104561071 | BD42: 44.26 | BE42: 0.9756960835 | BF42: 1.019942961 | BG42: 1.086951352 | BH42: 103.00 | BZ42: 0.00E+00 | CA42: 0.00E+00 | CB42: 0.00E+00 | CC42: 0.00E+00 | CD42: 0.00E+00 | CE42: 0.00E+00 | CF42: 0.00E+00 | CG42: 0.00E+00 | CH42: 0.00E+00 | CI42: 0.00E+00 | CJ42: 0.00E+00 | CK42: 0.00E+00 | CL42: 0.00E+00 | CM42: 0.00E+00 | EF42: -1.98E-04 | EG42: -1.26E-02 | EH42: -8.88E+00 | EI42: 1.27E+03 | EK42: -2.47E-08 | EL42: 5.50E-05 | EM42: 8.75E-03 | EN42: 3.66E+01 | EO42: -2E-05 | EP42: -1E-01 | EQ42: 1E+03 | EZ42: 17.0 | FA42: =((FA43-FA41)/2)+FA41 -> 17 | FB42: 17 | FC42: 17 | FD42: 17 | FE42: =((FE43-FE41)/2)+FE41 -> 18.2 | FF42: 17 | FG42: =((FG43-FG41)/2)+FG41 -> 18.375 | FH42: 17 | FJ42: 0.0 | FK42: 1.18 | FL42: 1.47 | FM42: 0.00% | FN42: =((FN43-FN41)/2)+FN41 -> 727.1 | FO42: =((FO43-FO41)/2)+FO41 -> 1277.3 | FP42: =FN42/FO42 -> 56.93% | FQ42: 0.00 | FR42: 0.00 | FS42: 550.13 | FT42: 0.00% | FU42: =FC42 -> 17.00 | FV42: 21.15 | FW42: =ABS(FV42-FU42) -> 4.15 | FX42: 23.52 | FY42: =ABS(FX42-FU42) -> 6.52 | FZ42: =IF(FM42<=FP42,FU42,FU42+(FT42*FW42)) -> 17.00 | GA42: 17.00 | GC42: 15.69066559 | GE42: 0.0% | GG42: 2334.18 | GI42: 1167.09 | GJ42: 1167.09 | GK42: 0.01 | GL42: 0.01 | GM42: 38.49 | GQ42: 3557.01 | GS42: 1778.51 | GT42: 1778.51 | GV42: 0.0111 | GW42: 0.0111 | GY42: 55.48 | HB42: 19.42 | HD42: 61 | HE42: 0 | HF42: 60.77215315 | HG42: 17.0 | HH42: 17 | HI42: 61 | HJ42: 1 | HK42: 61 | HL42: 0.0 | HM42: 1.18 | HN42: 1.47 | HO42: 0.00% | HP42: =((HP43-HP41)/2)+HP41 -> 727.1 | HQ42: =((HQ43-HQ41)/2)+HQ41 -> 1277.3 | HR42: =HP42/HQ42 -> 56.93% | HS42: 0.00 | HT42: 0.00 | HU42: 550.13 | HV42: 0.00% | HW42: 17.00 | HX42: 21.15 | HY42: =ABS(HX42-HW42) -> 4.15 | HZ42: 23.52 | IA42: =ABS(HZ42-HW42) -> 6.52 | IB42: =IF(HO42<=HR42,HW42,HW42+(HV42*HY42)) -> 17.00 | IC42: 17.00 | IE42: 15.69066559 | IG42: 6.2% | II42: 2334.18
B43: =IF($AL$5=1,$C43/10,IF($AL$5=2,$C43/10,IF($AL$5=3,0.5,IF($AL$5=4,$C43/10,)))) -> 60% | C43: 6 | D43: 9595 | E43: 825 | F43: 6.8 | G43: 1812 | H43: 1812 | I43: =IF(Geg_dP<AB43,ROUND(((IF('Briza 22 & 26'!$M$4="High Perform. 208/230V (US/EU)",cal!HK43,H43)/Watts)/((Tr_cool-Tv_cool)*1.163))*FlowH2O,IF(UnitsNo=1,0,IF(UnitsNo=2,2))),"") -> 779 | J43: 6.2 | K43: 43.0 | L43: =IF(Geg_dP<$AB43,IF(CalcNo="12",$ET43,IF(CalcNo="22",$ET43,IF(CalcNo="13",$EU43,IF(CalcNo="23",$EU43,IF(CalcNo="11",$ER43,IF(CalcNo="21",$ER43,IF(CalcNo="14",$ES43,IF(CalcNo="24",$ES43,IF(CalcNo="32",$EX43,IF(CalcNo="42",$EX43,IF(CalcNo="33",$EY43,IF(CalcNo="43",$EY43,IF(CalcNo="31",$EV43,IF(CalcNo="41",$EV43,IF(CalcNo="34",$EW43,IF(CalcNo="44",$EW43,)))))))))))))))),"") -> 51.0 | M43: 35.7 | N43: 840 | O43: 0.85 | P43: 53.5 | Q43: 24.2 | R43: 20.6 | S43: 17.3 | T43: 73% | U43: 828 | V43: 0.15 | W43: 2.158 | X43: 0.993243 | Y43: 1.23546 | Z43: 1.10433 | AA43: 0.993243 | AB43: 58.34 | AC43: 0.993243 | AD43: 1.23546 | AE43: 1.10433 | AF43: 48.00 | AG43: 0.993243 | AH43: 1.23546 | AI43: 1.10433 | AJ43: 75.00 | AK43: 0.993243 | AL43: 1.23546 | AM43: 1.10433 | AN43: 58.34 | AO43: 1.02885737 | AP43: 1.53481394 | AQ43: 1.140112639 | AR43: 152.28 | AS43: 0.993243 | AT43: 1.23546 | AU43: 1.10433 | AV43: 48.00 | AW43: 0.993243 | AX43: 1.23546 | AY43: 1.10433 | AZ43: 75.00 | BA43: 0.9933058029 | BB43: 1.234980045 | BC43: 1.104561071 | BD43: 58.34 | BE43: 0.9756960835 | BF43: 1.019942961 | BG43: 1.086951352 | BH43: 152.28 | BK43: =IF($BK$17="11",BN43,IF($BK$17="21",BQ43,IF($BK$17="12",BN43,IF($BK$17="22",BQ43,IF($BK$17="13",BN43,IF($BK$17="23",BQ43,IF($BK$17="14",BN43,IF($BK$17="24",BQ43,IF($BK$17="31",BT43,IF($BK$17="41",BW43,IF($BK$17="32",BT43,IF($BK$17="42",BW43,IF($BK$17="33",BT43,IF($BK$17="43",BW43,IF($BK$17="34",BT43,IF($BK$17="44",BW43,)))))))))))))))) -> -1.29E-03 | BL43: =IF($BK$17="11",BO43,IF($BK$17="21",BR43,IF($BK$17="12",BO43,IF($BK$17="22",BR43,IF($BK$17="13",BO43,IF($BK$17="23",BR43,IF($BK$17="14",BO43,IF($BK$17="24",BR43,IF($BK$17="31",BU43,IF($BK$17="41",BX43,IF($BK$17="32",BU43,IF($BK$17="42",BX43,IF($BK$17="33",BU43,IF($BK$17="43",BX43,IF($BK$17="34",BU43,IF($BK$17="44",BX43,)))))))))))))))) -> -3.58E-04 | BN43: -1.29E-03 | BO43: -3.58E-04 | BQ43: -7.17E-04 | BR43: =BO43 -> -3.58E-04 | BT43: -8.33E-04 | BU43: -4.58E-04 | BW43: =BQ43 -> -7.17E-04 | BX43: =BU43 -> -4.58E-04 | BZ43: 0.00E+00 | CA43: 1.43E-05 | CB43: -2.05E-03 | CC43: 5.00E-02 | CD43: -1.24E+01 | CE43: 8.40E+02 | CF43: 0.00E+00 | CG43: -3.32E-08 | CH43: 4.56E-05 | CI43: 6.26E-03 | CJ43: 1.80E+01 | CK43: -9.96E-05 | CL43: -2.06E-01 | CM43: 1.07E+03 | CO43: -1.81E-05 | CP43: 2.52E-03 | CQ43: -1.23E-01 | CR43: -1.06E+01 | CS43: 6.20E+02 | CU43: -9.61E-09 | CV43: 1.52E-05 | CW43: 1.03E-02 | CX43: 1.68E+01 | CY43: -1.82E-04 | CZ43: 1.23E-02 | DA43: 8.17E+02 | DC43: 4.52E-07 | DD43: 1.67E-04 | DE43: -5.67E-02 | DF43: -9.65E+00 | DG43: 9.78E+02 | DI43: -6.39E-09 | DJ43: 1.18E-05 | DK43: 1.89E-02 | DL43: 2.72E+01 | DM43: 9.29E-05 | DN43: -2.40E-01 | DO43: 1.30E+03 | DQ43: 1.43E-05 | DR43: -2.05E-03 | DS43: 5.00E-02 | DT43: -1.24E+01 | DU43: 8.40E+02 | DW43: -3.32E-08 | DX43: 4.56E-05 | DY43: 6.26E-03 | DZ43: 1.80E+01 | EA43: -9.96E-05 | EB43: -2.06E-01 | EC43: 1.07E+03 | EE43: 7.96E-07 | EF43: -2.65E-04 | EG43: 8.34E-03 | EH43: -7.63E+00 | EI43: 1.50E+03 | EK43: -2.41E-08 | EL43: 6.36E-05 | EM43: 1.02E-02 | EN43: 4.99E+01 | EO43: -2E-05 | EP43: -1E-01 | EQ43: 2E+03 | ER43: 51 | ET43: 51 | EV43: =EX43 -> 53.5 | EX43: 53.5 | EZ43: 17.5 | FA43: =Tavg_cold -> 17 | FB43: 17.5 | FC43: 17.5 | FD43: 17.5 | FE43: 18.2 | FF43: 17.5 | FG43: =FH43*1.05 -> 18.375 | FH43: 17.5 | FJ43: 0.5 | FK43: 1.18 | FL43: 1.47 | FM43: 56.01% | FN43: =DU43 -> 839.9 | FO43: =EI43 -> 1499.6 | FP43: =FN43/FO43 -> 56.01% | FQ43: 839.85 | FR43: 0.00 | FS43: 659.73 | FT43: 0.00% | FU43: 17.50 | FV43: 21.15 | FW43: 3.65 | FX43: 23.52 | FY43: 6.02 | FZ43: 17.50 | GA43: 17.50 | GC43: 15.69066559 | GE43: 0.0% | GG43: 2334.18 | GH43: 14613.12 | GI43: 1167.09 | GJ43: 1167.09 | GK43: 0.01 | GL43: 0.01 | GM43: 38.49 | GN43: 72.65 | GO43: 8% | GQ43: 3557.01 | GR43: 2420.13 | GS43: 1778.51 | GT43: 1778.51 | GU43: 1778.51 | GV43: 0.0111 | GW43: 0.0111 | GX43: 0.01 | GY43: 55.48 | GZ43: 55.48 | HA43: 48.90 | HB43: 19.42 | HC43: 19.42 | HD43: 1812 | HE43: 839.852548 | HF43: 1812.31382 | HG43: 17.5 | HH43: 17.5 | HI43: 1812 | HJ43: 1 | HK43: 1812 | HL43: 0.5 | HM43: 1.18 | HN43: 1.47 | HO43: 56.01% | HP43: 839.9 | HQ43: 1499.6 | HR43: =HP43/HQ43 -> 56.01% | HS43: 839.85 | HT43: 0.00 | HU43: 659.73 | HV43: 0.00% | HW43: 17.50 | HX43: 21.15 | HY43: 3.65 | HZ43: 23.52 | IA43: 6.02 | IB43: 17.50 | IC43: 17.50 | IE43: 15.69066559 | IG43: 6.2% | II43: 2334.18 | IJ43: 14613.12
B44: =IF($AL$5=1,$C44/10,IF($AL$5=2,$C44/10,IF($AL$5=3,0.75,IF($AL$5=4,$C44/10,)))) -> 70% | C44: 7 | D44: 150 | E44: 13 | F44: 0.0 | G44: 61 | H44: 61 | I44: =IF(Geg_dP<AB44,ROUND(((IF('Briza 22 & 26'!$M$4="High Perform. 208/230V (US/EU)",cal!HK44,H44)/Watts)/((Tr_cool-Tv_cool)*1.163))*FlowH2O,IF(UnitsNo=1,0,IF(UnitsNo=2,2))),"") -> 26 | J44: 0.0 | K44: 0.0 | L44: =IF(Geg_dP<$AB44,0,"") -> 0.0 | M44: 0.0 | N44: 0 | O44: 0.00 | U44: 0 | X44: 0.993243 | Y44: 1.23546 | Z44: 1.10433 | AA44: 0.993243 | AB44: 77.16 | AC44: 0.993243 | AD44: 1.23546 | AE44: 1.10433 | AF44: =AF43+((AF45-AF43)/2) -> 64.50 | AG44: 0.993243 | AH44: 1.23546 | AI44: 1.10433 | AJ44: =AJ43+((AJ45-AJ43)/2) -> 99.50 | AK44: 0.993243 | AL44: 1.23546 | AM44: 1.10433 | AN44: =AN43+((AN45-AN43)/2) -> 77.16 | AO44: 1.02885737 | AP44: 1.53481394 | AQ44: 1.140112639 | AR44: 177.00 | AS44: 0.993243 | AT44: 1.23546 | AU44: 1.10433 | AV44: 64.50 | AW44: 0.993243 | AX44: 1.23546 | AY44: 1.10433 | AZ44: 99.50 | BA44: 0.9933058029 | BB44: 1.234980045 | BC44: 1.104561071 | BD44: 77.16 | BE44: 0.9756960835 | BF44: 1.019942961 | BG44: 1.086951352 | BH44: 177.00 | BZ44: 0.00E+00 | CA44: 0.00E+00 | CB44: 0.00E+00 | CC44: 0.00E+00 | CD44: 0.00E+00 | CE44: 0.00E+00 | CF44: 0.00E+00 | CG44: 0.00E+00 | CH44: 0.00E+00 | CI44: 0.00E+00 | CJ44: 0.00E+00 | CK44: 0.00E+00 | CL44: 0.00E+00 | CM44: 0.00E+00 | EE44: -2.74E-06 | EF44: 7.17E-04 | EG44: -6.49E-02 | EH44: -4.70E+00 | EI44: 1.59E+03 | EK44: -4.65E-08 | EL44: 1.07E-04 | EM44: 3.63E-03 | EN44: 6.36E+01 | EO44: -1E-04 | EP44: 5E-02 | EQ44: 2E+03 | EZ44: 17 | FA44: =((FA45-FA43)/2)+FA43 -> 17 | FB44: 17 | FC44: 17 | FD44: 17 | FE44: =((FE45-FE43)/2)+FE43 -> 18.2 | FF44: 17 | FG44: =((FG45-FG43)/2)+FG43 -> 18.375 | FH44: 17 | FJ44: 0.0 | FK44: 1.18 | FL44: 1.47 | FM44: 0.00% | FN44: =((FN45-FN43)/2)+FN43 -> 955.7 | FO44: =((FO45-FO43)/2)+FO43 -> 1587.9 | FP44: =FN44/FO44 -> 60.19% | FQ44: 0.00 | FR44: 0.00 | FS44: 632.16 | FT44: 0.00% | FU44: 17.00 | FV44: 21.15 | FW44: 4.15 | FX44: 23.52 | FY44: 6.52 | FZ44: 17.00 | GA44: 17.00 | GC44: 15.69066559 | GE44: 0.0% | GG44: 2334.18 | GI44: 1167.09 | GJ44: 1167.09 | GK44: 0.01 | GL44: 0.01 | GM44: 38.49 | GQ44: 3557.01 | GS44: 1778.51 | GT44: 1778.51 | GV44: 0.0111 | GW44: 0.0111 | GY44: 55.48 | HB44: 19.42 | HD44: 61 | HE44: 0 | HF44: 60.77215315 | HG44: 17.0 | HH44: 17 | HI44: 61 | HJ44: 1 | HK44: 61 | HL44: 0.0 | HM44: 1.18 | HN44: 1.47 | HO44: 0.00% | HP44: =((HP45-HP43)/2)+HP43 -> 955.7 | HQ44: 1592.5 | HR44: =HP44/HQ44 -> 60.02% | HS44: 0.00 | HT44: 0.00 | HU44: 636.71 | HV44: 0.00% | HW44: 17.00 | HX44: 21.15 | HY44: 4.15 | HZ44: 23.52 | IA44: 6.52 | IB44: 17.00 | IC44: 17.00 | IE44: 15.69066559 | IG44: 6.2% | II44: 2334.18
B45: =IF($AL$5=1,$C45/10,IF($AL$5=2,$C45/10,IF($AL$5=3,1,IF($AL$5=4,$C45/10,)))) -> 80% | C45: 8 | D45: 11634 | E45: 1000 | F45: 9.8 | G45: 2251 | H45: 2251 | I45: =IF(Geg_dP<AB45,ROUND(((IF('Briza 22 & 26'!$M$4="High Perform. 208/230V (US/EU)",cal!HK45,H45)/Watts)/((Tr_cool-Tv_cool)*1.163))*FlowH2O,IF(UnitsNo=1,0,IF(UnitsNo=2,2))),"") -> 968 | J45: 9.2 | K45: 49.0 | L45: =IF(Geg_dP<$AB45,IF(CalcNo="12",$ET45,IF(CalcNo="22",$ET45,IF(CalcNo="13",$EU45,IF(CalcNo="23",$EU45,IF(CalcNo="11",$ER45,IF(CalcNo="21",$ER45,IF(CalcNo="14",$ES45,IF(CalcNo="24",$ES45,IF(CalcNo="32",$EX45,IF(CalcNo="42",$EX45,IF(CalcNo="33",$EY45,IF(CalcNo="43",$EY45,IF(CalcNo="31",$EV45,IF(CalcNo="41",$EV45,IF(CalcNo="34",$EW45,IF(CalcNo="44",$EW45,)))))))))))))))),"") -> 57.0 | M45: 62.8 | N45: 1072 | O45: 1.08 | P45: 51.9 | Q45: 23.8 | R45: 20.8 | S45: 17.4 | T45: 73% | U45: 990 | V45: 0.21 | W45: 2.101 | X45: 0.993243 | Y45: 1.23546 | Z45: 1.10433 | AA45: 0.993243 | AB45: 95.98 | AC45: 0.993243 | AD45: 1.23546 | AE45: 1.10433 | AF45: 81.00 | AG45: 0.993243 | AH45: 1.23546 | AI45: 1.10433 | AJ45: 124.00 | AK45: 0.993243 | AL45: 1.23546 | AM45: 1.10433 | AN45: 95.98 | AO45: 1.02885737 | AP45: 1.53481394 | AQ45: 1.140112639 | AR45: 214.28 | AS45: 0.993243 | AT45: 1.23546 | AU45: 1.10433 | AV45: 81.00 | AW45: 0.993243 | AX45: 1.23546 | AY45: 1.10433 | AZ45: 124.00 | BA45: 0.9933058029 | BB45: 1.234980045 | BC45: 1.104561071 | BD45: 95.98 | BE45: 0.9756960835 | BF45: 1.019942961 | BG45: 1.086951352 | BH45: 214.28 | BK45: =IF($BK$17="11",BN45,IF($BK$17="21",BQ45,IF($BK$17="12",BN45,IF($BK$17="22",BQ45,IF($BK$17="13",BN45,IF($BK$17="23",BQ45,IF($BK$17="14",BN45,IF($BK$17="24",BQ45,IF($BK$17="31",BT45,IF($BK$17="41",BW45,IF($BK$17="32",BT45,IF($BK$17="42",BW45,IF($BK$17="33",BT45,IF($BK$17="43",BW45,IF($BK$17="34",BT45,IF($BK$17="44",BW45,)))))))))))))))) -> 7.44E+00 | BL45: 4.45E+00 | BM45: 2.76E-05 | BN45: 7.44E+00 | BO45: 4.45E+00 | BP45: 2.76E-05 | BQ45: 2.91E+00 | BR45: =BO45 -> 4.45E+00 | BS45: =+BP45 -> 2.76E-05 | BT45: 8.09E+00 | BU45: 5.76E+00 | BV45: 2.31E-05 | BW45: =BQ45 -> 2.91E+00 | BX45: =BU45 -> 5.76E+00 | BY45: =+BV45 -> 2.31E-05 | BZ45: 0.00E+00 | CA45: 1.82E-06 | CB45: -4.92E-04 | CC45: 1.91E-02 | CD45: -9.80E+00 | CE45: 1.07E+03 | CF45: 0.00E+00 | CG45: -2.62E-08 | CH45: 4.60E-05 | CI45: 1.17E-02 | CJ45: 2.98E+01 | CK45: -8.85E-05 | CL45: -2.35E-01 | CM45: 1.34E+03 | CO45: 1.33E-05 | CP45: -2.02E-03 | CQ45: 8.77E-02 | CR45: -1.16E+01 | CS45: 8.68E+02 | CU45: -1.74E-08 | CV45: 3.08E-05 | CW45: 1.16E-02 | CX45: 2.88E+01 | CY45: -1.61E-04 | CZ45: 6.67E-03 | DA45: 1.06E+03 | DC45: -6.64E-07 | DD45: 2.36E-04 | DE45: -4.19E-02 | DF45: -7.28E+00 | DG45: 1.27E+03 | DI45: -8.57E-09 | DJ45: 2.01E-05 | DK45: 2.57E-02 | DL45: 4.98E+01 | DM45: 7.20E-05 | DN45: -2.72E-01 | DO45: 1.66E+03 | DQ45: 1.82E-06 | DR45: -4.92E-04 | DS45: 1.91E-02 | DT45: -9.80E+00 | DU45: 1.07E+03 | DW45: -2.62E-08 | DX45: 4.60E-05 | DY45: 1.17E-02 | DZ45: 2.98E+01 | EA45: =-0.0000885022581 -> -8.85E-05 | EB45: -2.35E-01 | EC45: 1.34E+03 | ED45: 4.29E-08 | EE45: -2.23E-05 | EF45: 3.83E-03 | EG45: -2.55E-01 | EH45: 5.89E-01 | EI45: 1.68E+03 | EJ45: =0.0000000000349978885 -> 3.50E-11 | EK45: -1.84E-07 | EL45: 2.75E-04 | EM45: -5.00E-02 | EN45: 8.18E+01 | EO45: -3E-04 | EP45: 2E-01 | EQ45: 2E+03 | ER45: 57 | ET45: 57 | EV45: =EX45 -> 58.5 | EX45: 58.5 | EZ45: 17.5 | FA45: =Tavg_cold -> 17 | FB45: 17.5 | FC45: 17.5 | FD45: 17.5 | FE45: 18.2 | FF45: 17.5 | FG45: =FH45*1.05 -> 18.375 | FH45: 17.5 | FJ45: 0.5 | FK45: 1.18 | FL45: 1.47 | FM45: 63.93% | FN45: =DU45 -> 1071.6 | FO45: =EI45 -> 1676.2 | FP45: =FP46 -> 73.14% | FQ45: 1071.65 | FR45: 0.00 | FS45: 450.17 | FT45: 0.00% | FU45: 17.50 | FV45: 21.15 | FW45: 3.65 | FX45: 23.52 | FY45: 6.02 | FZ45: 17.50 | GA45: 17.50 | GC45: 15.69066559 | GE45: 0.0% | GG45: 2334.18 | GH45: 13472.65 | GI45: 1167.09 | GJ45: 1167.09 | GK45: 0.01 | GL45: 0.01 | GM45: 38.49 | GN45: 70.95 | GO45: 9% | GQ45: 3557.01 | GR45: 2445.64 | GS45: 1778.51 | GT45: 1778.51 | GU45: 1778.51 | GV45: 0.0111 | GW45: 0.0111 | GX45: 0.01 | GY45: 55.48 | GZ45: 55.48 | HA45: 49.07 | HB45: 19.42 | HC45: 19.42 | HD45: 2251 | HE45: 1071.6468 | HF45: 2251.015032 | HG45: 17.5 | HH45: 17.5 | HI45: 2251 | HJ45: 1 | HK45: 2251 | HL45: 0.5 | HM45: 1.18 | HN45: 1.47 | HO45: 63.93% | HP45: 1071.6 | HQ45: 1676.2 | HR45: =HR46 -> 73.14% | HS45: 1071.65 | HT45: 0.00 | HU45: 450.17 | HV45: 0.00% | HW45: 17.50 | HX45: 21.15 | HY45: 3.65 | HZ45: 23.52 | IA45: 6.02 | IB45: 17.50 | IC45: 17.50 | IE45: 15.69066559 | IG45: 6.2% | II45: 2334.18 | IJ45: 13472.65
B46: 100% | C46: 10 | D46: 12856 | E46: 1105 | F46: 11.7 | G46: 2533 | H46: 2533 | I46: =IF(Geg_dP<AB46,ROUND(((IF('Briza 22 & 26'!$M$4="High Perform. 208/230V (US/EU)",cal!HK46,H46)/Watts)/((Tr_cool-Tv_cool)*1.163))*FlowH2O,IF(UnitsNo=1,0,IF(UnitsNo=2,2))),"") -> 1089 | J46: 11.4 | K46: 52.5 | L46: =IF(Geg_dP<$AB46,IF(CalcNo="12",$ET46,IF(CalcNo="22",$ET46,IF(CalcNo="13",$EU46,IF(CalcNo="23",$EU46,IF(CalcNo="11",$ER46,IF(CalcNo="21",$ER46,IF(CalcNo="14",$ES46,IF(CalcNo="24",$ES46,IF(CalcNo="32",$EX46,IF(CalcNo="42",$EX46,IF(CalcNo="33",$EY46,IF(CalcNo="43",$EY46,IF(CalcNo="31",$EV46,IF(CalcNo="41",$EV46,IF(CalcNo="34",$EW46,IF(CalcNo="44",$EW46,)))))))))))))))),"") -> 60.5 | M46: =IF(Geg_dP<$AB46,($CF46*(($N46*CFMs)^4))+($CG46*(($N46*CFMs)^3))+($CH46*(($N46*CFMs)^2))+($CI46*($N46*CFMs))+$CJ46,"") -> 88.5 | N46: 1226 | O46: 1.24 | P46: 50.8 | Q46: 23.5 | R46: 20.9 | S46: 17.4 | T46: 72% | U46: 1090 | V46: 0.26 | W46: 2.066 | X46: 0.993243 | Y46: 1.23546 | Z46: 1.10433 | AA46: 0.993243 | AB46: 126.06 | AC46: 0.993243 | AD46: 1.23546 | AE46: 1.10433 | AF46: 107.00 | AG46: 0.993243 | AH46: 1.23546 | AI46: 1.10433 | AJ46: 153.00 | AK46: 0.993243 | AL46: 1.23546 | AM46: 1.10433 | AN46: 126.06 | AO46: 1.02885737 | AP46: 1.53481394 | AQ46: 1.140112639 | AR46: =AR45 -> 214.28 | AS46: 0.993243 | AT46: 1.23546 | AU46: 1.10433 | AV46: 107.00 | AW46: 0.993243 | AX46: 1.23546 | AY46: 1.10433 | AZ46: 153.00 | BA46: 0.9933058029 | BB46: 1.234980045 | BC46: 1.104561071 | BD46: 126.06 | BE46: 0.9756960835 | BF46: 1.019942961 | BG46: 1.086951352 | BH46: 214.28 | BK46: 8.49E+01 | BL46: 1.21E+02 | BM46: 1.85E+00 | BN46: 8.49E+01 | BO46: 1.21E+02 | BP46: 1.85E+00 | BQ46: 7.01E+02 | BR46: =BO46 -> 1.21E+02 | BS46: =+BP46 -> 1.85E+00 | BT46: 1.40E+02 | BU46: 9.13E+01 | BV46: 1.88E+00 | BW46: =BQ46 -> 7.01E+02 | BX46: =BU46 -> 9.13E+01 | BY46: =+BV46 -> 1.88E+00 | BZ46: 0.00E+00 | CA46: -6.26E-07 | CB46: 1.33E-04 | CC46: -2.04E-02 | CD46: -7.83E+00 | CE46: 1.23E+03 | CF46: 0.00E+00 | CG46: -1.15E-07 | CH46: 1.35E-04 | CI46: 2.87E-02 | CJ46: 4.11E+01 | CK46: -8.67E-05 | CL46: -2.43E-01 | CM46: 1.52E+03 | CO46: 3.14E-06 | CP46: -5.56E-04 | CQ46: 1.94E-02 | CR46: -9.04E+00 | CS46: 1.02E+03 | CU46: -1.08E-07 | CV46: 1.28E-04 | CW46: 1.79E-02 | CX46: 3.79E+01 | CY46: -1.32E-04 | CZ46: -2.85E-02 | DA46: 1.25E+03 | DC46: -3.49E-06 | DD46: 8.63E-04 | DE46: -7.67E-02 | DF46: -5.52E+00 | DG46: 1.49E+03 | DI46: 8.04E-08 | DJ46: -1.51E-04 | DK46: 1.75E-01 | DL46: 5.54E+01 | DM46: -4.51E-05 | DN46: -7.19E-02 | DO46: 1.83E+03 | DQ46: -6.26E-07 | DR46: 1.33E-04 | DS46: -2.04E-02 | DT46: -7.83E+00 | DU46: 1.23E+03 | DW46: -1.15E-07 | DX46: 1.35E-04 | DY46: 2.87E-02 | DZ46: 4.11E+01 | EA46: -8.67E-05 | EB46: -2.43E-01 | EC46: 1.52E+03 | ED46: =ED45 -> 4.29E-08 | EE46: -2.23E-05 | EF46: 3.83E-03 | EG46: -2.55E-01 | EH46: 5.89E-01 | EI46: 1.68E+03 | EJ46: =EJ45 -> 3.50E-11 | EK46: -1.84E-07 | EL46: 2.75E-04 | EM46: -5.00E-02 | EN46: 8.18E+01 | EO46: -3E-04 | EP46: 2E-01 | EQ46: 2E+03 | ER46: 60.5 | ET46: 60.5 | EV46: =EX46 -> 61.5 | EX46: 61.5 | EZ46: 17.5 | FA46: =Tavg_cold -> 17 | FB46: 17.5 | FC46: 17.5 | FD46: 17.5 | FE46: 18.2 | FF46: 17.5 | FG46: =FH46*1.05 -> 18.375 | FH46: 17.5 | FJ46: 0.5 | FK46: 1.18 | FL46: 1.47 | FM46: 73.14% | FN46: =DU46 -> 1226.1 | FO46: =EI46 -> 1676.2 | FP46: =FN46/FO46 -> 73.14% | FQ46: 1226.08 | FR46: 0.00 | FS46: 450.17 | FT46: 0.00% | FU46: 17.50 | FV46: 21.15 | FW46: 3.65 | FX46: 23.52 | FY46: 6.02 | FZ46: 17.50 | GA46: 17.50 | GC46: 15.69066559 | GE46: 0.0% | GG46: 2334.18 | GH46: 12771.02 | GI46: 1167.09 | GJ46: 1167.09 | GK46: 0.01 | GL46: 0.01 | GM46: 38.49 | GN46: 69.84 | GO46: 9% | GQ46: 3557.01 | GR46: 2461.29 | GS46: 1778.51 | GT46: 1778.51 | GU46: 1778.51 | GV46: 0.0111 | GW46: 0.0111 | GX46: 0.01 | GY46: 55.48 | GZ46: 55.48 | HA46: 49.18 | HB46: 19.42 | HC46: 19.42 | HD46: 2533 | HE46: 1226.07638 | HF46: 2532.55705 | HG46: 17.5 | HH46: 17.5 | HI46: 2533 | HJ46: 1 | HK46: 2533 | HL46: 0.5 | HM46: 1.18 | HN46: 1.47 | HO46: 73.14% | HP46: 1226.1 | HQ46: 1676.2 | HR46: =HP46/HQ46 -> 73.14% | HS46: 1226.08 | HT46: 0.00 | HU46: 450.17 | HV46: 0.00% | HW46: 17.50 | HX46: 21.15 | HY46: 3.65 | HZ46: 23.52 | IA46: 6.02 | IB46: 17.50 | IC46: 17.50 | IE46: 15.69066559 | IG46: 6.2% | II46: 2334.18 | IJ46: 12771.02
B47: =IF(LangNo=1,NL!A47,IF(LangNo=2,EN!A47,IF(LangNo=3,DE!A47,IF(LangNo=4,FR!A47,IF(LangNo=5,NR!A47,IF(LangNo=6,SP!A47,IF(LangNo=7,SW!A47,IF(LangNo=8,TS!A47,IF(LangNo=9,ExtraTaal1!A47,IF(LangNo=10,ExtraTaal2!A47,IF(LangNo=11,ExtraTaal3!A47,))))))))))) -> Briza 22 (230V) height 54,5 cm, width 22 cm, length 155 cm (Type 08) | AA47: 0 | AB47: m³/h | AC47: n-value | AD47: n-value | AE47: n-value | AF47: m³/h | AG47: n-value | AH47: n-value | AI47: n-value | AJ47: m³/h | AK47: n-value | AL47: n-value | AM47: n-value | AN47: m³/h | AO47: n-value | AP47: n-value | AQ47: n-value | AR47: m³/h | AS47: n-value | AT47: n-value | AU47: n-value | AV47: m³/h | AW47: n-value | AX47: n-value | AY47: n-value | AZ47: m³/h | BA47: n-value | BB47: n-value | BC47: n-value | BD47: m³/h | BE47: n-value | BF47: n-value | BG47: n-value | BH47: m³/h | BJ47: =IF($BK$17="11",BO47,IF($BK$17="21",BR47,IF($BK$17="12",BO47,IF($BK$17="22",BR47,IF($BK$17="13",BO47,IF($BK$17="23",BR47,IF($BK$17="14",BO47,IF($BK$17="24",BR47,IF($BK$17="31",BU47,IF($BK$17="41",BX47,IF($BK$17="32",BU47,IF($BK$17="42",BX47,IF($BK$17="33",BU47,IF($BK$17="43",BX47,IF($BK$17="34",BU47,IF($BK$17="44",BX47,)))))))))))))))) -> 22 | BK47: =(BN47+IF(CaseNo=1,0,IF(CaseNo=2,$BN$2,)))*MilInch -> 54.5 | BL47: =(BJ47+IF(CaseNo=1,0,IF(CaseNo=2,$BN$3,)))*MilInch -> 22 | BM47: =(BP47+IF(CaseNo=1,0,IF(CaseNo=2,$BN$4,)))*MilInch -> 125 | BN47: 54.5 | BO47: 22 | BP47: 125 | BQ47: 54.5 | BR47: 22 | BS47: 125 | BT47: 54.5 | BU47: 26 | BV47: 125 | BW47: 54.5 | BX47: 26 | BY47: 125 | BZ47: =CF47 -> T08 | CF47: T08 | CN47: =CF47 -> T08 | DB47: =CF47 -> T08 | DP47: =CF47 -> T08 | ED47: =CF47 -> T08 | ER47: T08 | FA47: =ER47 -> T08 | HD47: 0 | HF47: =IF(Geg_dP<$AB47,((($BL$18*($HE47/Cubics)^4+$BL$19*($HE47/Cubics)^3+$BL$20*($HE47/Cubics)^2+$BL$21*($HE47/Cubics)^1+$BL$22)*((CF_Regime_Cool_noExp)^$Y47)))*CF_Addit*Watts*CF_Altit,Lim_dP) ->  | HL47: T08
B48: =IF($AL$5=1,$C48/10,IF($AL$5=2,$C48/10,IF($AL$5=3,0,IF($AL$5=4,$C48/10,)))) -> 20% | C48: 2 | D48: =IF(Geg_dP<AB48,(($BK$48*($N48/Cubics)^4+$BK$49*($N48/Cubics)^3+$BK$51*($N48/Cubics)^2+$BK$53*($N48/Cubics)^1+$BK$54)*(CF_Regime_Heat_noExp^$AA48))*CF_Addit*Watts*CF_Altit,Lim_dP) -> 4329 | E48: =IF(Geg_dP<$AB48,ROUND((($D48/Watts)/((Tv_heat-Tr_heat)*1.163))*FlowH2O,IF(UnitsNo=1,0,IF(UnitsNo=2,2))),"") -> 372 | F48: =IF(Geg_dP<$AB48,IF((($BM$48*(E48/FlowH2O)^$BM$49))*kPa>0,(($BM$48*(E48/FlowH2O)^$BM$49))*kPa,0),"") -> 1.3 | G48: =IF(Geg_dP<$AB48,((($BL$48*($N48/Cubics)^4+$BL$49*($N48/Cubics)^3+$BL$51*($N48/Cubics)^2+$BL$53*($N48/Cubics)^1+$BL$54)*((CF_Regime_Cool_noExp)^$Y48)))*CF_Addit*Watts*CF_Altit,Lim_dP) -> 851 | H48: =IF(Geg_dP<$AB48,((G48/Watts)/(IF((237.3*LN((RH*EXP(17.27*(Tl_cool/(Tl_cool+237.3))))))/(17.27-LN((RH*EXP(17.27*(Tl_cool/(Tl_cool+237.3))))))<EZ48,1,IF(1/(1+((2258*((0.622/((101325/(1*611*EXP(17.27*(EZ48/(EZ48+237.3))))))-1)*1000-(0.622/((101325/(RH*611*EXP(17.27*(Tl_cool/(Tl_cool+237.3))))))-1)*1000))/(1005*(Tavg_cold-Tl_cool))))>1,1,1/(1+((2258*((0.622/((101325/(1*611*EXP(17.27*(EZ48/(EZ48+237.3))))))-1)*1000-(0.622/((101325/(RH*611*EXP(17.27*(Tl_cool/(Tl_cool+237.3))))))-1)*1000))/(1005*(Tavg_cold-Tl_cool))))))))*Watts,"") -> 851 | I48: =IF(Geg_dP<AB48,ROUND(((IF('Briza 22 & 26'!$M$4="High Perform. 208/230V (US/EU)",cal!HK48,H48)/Watts)/((Tr_cool-Tv_cool)*1.163))*FlowH2O,IF(UnitsNo=1,0,IF(UnitsNo=2,2))),"") -> 366 | J48: =IF(Geg_dP<$AB48,IF((($BM$53*(I48/FlowH2O)^$BM$54))*kPa>0,(($BM$53*(I48/FlowH2O)^$BM$54))*kPa,0),"") -> 1.2 | K48: =IF(Geg_dP<AB48,IF($L48-8<0,0,$L48-8),"") -> 25.0 | L48: =IF(Geg_dP<$AB48,IF(CalcNo="12",$ET48,IF(CalcNo="22",$ET48,IF(CalcNo="13",$EU48,IF(CalcNo="23",$EU48,IF(CalcNo="11",$ER48,IF(CalcNo="21",$ER48,IF(CalcNo="14",$ES48,IF(CalcNo="24",$ES48,IF(CalcNo="32",$EX48,IF(CalcNo="42",$EX48,IF(CalcNo="33",$EY48,IF(CalcNo="43",$EY48,IF(CalcNo="31",$EV48,IF(CalcNo="41",$EV48,IF(CalcNo="34",$EW48,IF(CalcNo="44",$EW48,)))))))))))))))),"") -> 33.0 | M48: =IF(Geg_dP<$AB48,($CF48*(($N48/Cubics)^4))+($CG48*(($N48/Cubics)^3))+($CH48*(($N48/Cubics)^2))+($CI48*($N48/Cubics))+$CJ48,"") -> 7.2 | N48: =IF(Geg_dP<$AB48,(BZ48*Geg_dP^5+CA48*Geg_dP^4+CB48*Geg_dP^3+CC48*Geg_dP^2+CD48*Geg_dP+CE48)*CF_Case*Cubics,"") -> 392 | O48: =IF(Geg_dP<$AB48,(($N48/Cubics)/3600)/(($BJ$55/100)*($BP$55/100))*FeetMins,"") -> 0.32 | P48: =IF(Geg_dP<$AB48,((($D48/Watts)/(((p_atm*0.028964)/(8.31447*(20+273.15)))*(($N48/3600)/Cubics)*(1005+1870*((0.622)/(((p_atm)/($E$14*pvs_heat_in))-1)))))+Tl_heat)*Celc1+Celc2,"") -> 52.4 | Q48: =IF(Geg_dP<$AB48,(27.8*LN(($GN48+36)/45.5))*Celc1+Celc2,"") -> 23.9 | R48: =IF(Geg_dP<$AB48,(Tl_cool-(($G48/Watts)/(1006*$N48*kgss)))*Celc1+Celc2,"") -> 20.6 | S48: =IF(Geg_dP<$AB48,IF((27.8*LN(($HA48+36)/45.5))*Celc1+Celc2>R48,R48,(27.8*LN(($HA48+36)/45.5))*Celc1+Celc2),"") -> 17.3 | T48: =IF(Geg_dP<$AB48,IF($H48>$G48,1,IF(($GT48/$GR48)<0,0,$GT48/$GR48)),"") -> 74% | U48: =IF(Geg_dP<$AB48,$CK48*($N48/Cubics)^2+$CL48*($N48/Cubics)^1+$CM48,"") -> 431 | V48: =M48/((N48/Cubics)/3.6) -> 0.07 | W48: =(G48/Watts)/(N48/Cubics) -> 2.170 | X48: 0.98023 | Y48: 1.29011 | Z48: 1.0896 | AA48: 0.98023 | AB48: 9.5 | AC48: 0.98023 | AD48: 1.29011 | AE48: 1.0896 | AF48: 8.00 | AG48: 0.98023 | AH48: 1.29011 | AI48: 1.0896 | AJ48: 7.00 | AK48: 0.98023 | AL48: 1.29011 | AM48: 1.0896 | AN48: 9.50 | AO48: 1.011514498 | AP48: 1.356068627 | AQ48: 1.09 | AR48: 22.60 | AS48: 0.98023 | AT48: 1.29011 | AU48: 1.0896 | AV48: 8.00 | AW48: 0.98023 | AX48: 1.29011 | AY48: 1.0896 | AZ48: 7.00 | BA48: 0.9802277199 | BB48: 1.290111693 | BC48: 1.091482988 | BD48: 9.50 | BE48: 0.9834917128 | BF48: 0.9132397253 | BG48: 1.094746981 | BH48: 22.60 | BK48: =IF($BK$17="11",BN48,IF($BK$17="21",BQ48,IF($BK$17="12",BN48,IF($BK$17="22",BQ48,IF($BK$17="13",BN48,IF($BK$17="23",BQ48,IF($BK$17="14",BN48,IF($BK$17="24",BQ48,IF($BK$17="31",BT48,IF($BK$17="41",BW48,IF($BK$17="32",BT48,IF($BK$17="42",BW48,IF($BK$17="33",BT48,IF($BK$17="43",BW48,IF($BK$17="34",BT48,IF($BK$17="44",BW48,)))))))))))))))) -> 0.00E+00 | BL48: 0.00E+00 | BM48: 2.31E-06 | BP48: =BP53 -> 2.31E-06 | BR48: =BO48 -> 0 | BS48: 1.67E-04 | BV48: =BV53 -> 1.45E-07 | BY48: =BS48 -> 1.67E-04 | BZ48: =IF($BK$17="11",CN48,IF($BK$17="21",CN48,IF($BK$17="12",DP48,IF($BK$17="22",DP48,IF($BK$17="13",ED48,IF($BK$17="23",ED48,IF($BK$17="14",DB48,IF($BK$17="24",DB48,IF($BK$17="31",CN48,IF($BK$17="41",CN48,IF($BK$17="32",DP48,IF($BK$17="42",DP48,IF($BK$17="33",ED48,IF($BK$17="43",ED48,IF($BK$17="34",DB48,IF($BK$17="44",DB48,)))))))))))))))) -> 0.00E+00 | CA48: 2.04E-02 | CB48: =IF($BK$17="11",CP48,IF($BK$17="21",CP48,IF($BK$17="12",DR48,IF($BK$17="22",DR48,IF($BK$17="13",EF48,IF($BK$17="23",EF48,IF($BK$17="14",DD48,IF($BK$17="24",DD48,IF($BK$17="31",CP48,IF($BK$17="41",CP48,IF($BK$17="32",DR48,IF($BK$17="42",DR48,IF($BK$17="33",EF48,IF($BK$17="43",EF48,IF($BK$17="34",DD48,IF($BK$17="44",DD48,)))))))))))))))) -> -4.81E-01 | CC48: =IF($BK$17="11",CQ48,IF($BK$17="21",CQ48,IF($BK$17="12",DS48,IF($BK$17="22",DS48,IF($BK$17="13",EG48,IF($BK$17="23",EG48,IF($BK$17="14",DE48,IF($BK$17="24",DE48,IF($BK$17="31",CQ48,IF($BK$17="41",CQ48,IF($BK$17="32",DS48,IF($BK$17="42",DS48,IF($BK$17="33",EG48,IF($BK$17="43",EG48,IF($BK$17="34",DE48,IF($BK$17="44",DE48,)))))))))))))))) -> 3.05E+00 | CD48: =IF($BK$17="11",CR48,IF($BK$17="21",CR48,IF($BK$17="12",DT48,IF($BK$17="22",DT48,IF($BK$17="13",EH48,IF($BK$17="23",EH48,IF($BK$17="14",DF48,IF($BK$17="24",DF48,IF($BK$17="31",CR48,IF($BK$17="41",CR48,IF($BK$17="32",DT48,IF($BK$17="42",DT48,IF($BK$17="33",EH48,IF($BK$17="43",EH48,IF($BK$17="34",DF48,IF($BK$17="44",DF48,)))))))))))))))) -> -3.42E+01 | CE48: =IF($BK$17="11",CS48,IF($BK$17="21",CS48,IF($BK$17="12",DU48,IF($BK$17="22",DU48,IF($BK$17="13",EI48,IF($BK$17="23",EI48,IF($BK$17="14",DG48,IF($BK$17="24",DG48,IF($BK$17="31",CS48,IF($BK$17="41",CS48,IF($BK$17="32",DU48,IF($BK$17="42",DU48,IF($BK$17="33",EI48,IF($BK$17="43",EI48,IF($BK$17="34",DG48,IF($BK$17="44",DG48,)))))))))))))))) -> 3.92E+02 | CF48: =IF($BK$17="11",CT48,IF($BK$17="21",CT48,IF($BK$17="12",DV48,IF($BK$17="22",DV48,IF($BK$17="13",EJ48,IF($BK$17="23",EJ48,IF($BK$17="14",DH48,IF($BK$17="24",DH48,IF($BK$17="31",CT48,IF($BK$17="41",CT48,IF($BK$17="32",DV48,IF($BK$17="42",DV48,IF($BK$17="33",EJ48,IF($BK$17="43",EJ48,IF($BK$17="34",DH48,IF($BK$17="44",DH48,)))))))))))))))) -> 0.00E+00 | CG48: =IF($BK$17="11",CU48,IF($BK$17="21",CU48,IF($BK$17="12",DW48,IF($BK$17="22",DW48,IF($BK$17="13",EK48,IF($BK$17="23",EK48,IF($BK$17="14",DI48,IF($BK$17="24",DI48,IF($BK$17="31",CU48,IF($BK$17="41",CU48,IF($BK$17="32",DW48,IF($BK$17="42",DW48,IF($BK$17="33",EK48,IF($BK$17="43",EK48,IF($BK$17="34",DI48,IF($BK$17="44",DI48,)))))))))))))))) -> -2.46E-08 | CH48: =IF($BK$17="11",CV48,IF($BK$17="21",CV48,IF($BK$17="12",DX48,IF($BK$17="22",DX48,IF($BK$17="13",EL48,IF($BK$17="23",EL48,IF($BK$17="14",DJ48,IF($BK$17="24",DJ48,IF($BK$17="31",CV48,IF($BK$17="41",CV48,IF($BK$17="32",DX48,IF($BK$17="42",DX48,IF($BK$17="33",EL48,IF($BK$17="43",EL48,IF($BK$17="34",DJ48,IF($BK$17="44",DJ48,)))))))))))))))) -> 1.96E-05 | CI48: =IF($BK$17="11",CW48,IF($BK$17="21",CW48,IF($BK$17="12",DY48,IF($BK$17="22",DY48,IF($BK$17="13",EM48,IF($BK$17="23",EM48,IF($BK$17="14",DK48,IF($BK$17="24",DK48,IF($BK$17="31",CW48,IF($BK$17="41",CW48,IF($BK$17="32",DY48,IF($BK$17="42",DY48,IF($BK$17="33",EM48,IF($BK$17="43",EM48,IF($BK$17="34",DK48,IF($BK$17="44",DK48,)))))))))))))))) -> -2.23E-04 | CJ48: =IF($BK$17="11",CX48,IF($BK$17="21",CX48,IF($BK$17="12",DZ48,IF($BK$17="22",DZ48,IF($BK$17="13",EN48,IF($BK$17="23",EN48,IF($BK$17="14",DL48,IF($BK$17="24",DL48,IF($BK$17="31",CX48,IF($BK$17="41",CX48,IF($BK$17="32",DZ48,IF($BK$17="42",DZ48,IF($BK$17="33",EN48,IF($BK$17="43",EN48,IF($BK$17="34",DL48,IF($BK$17="44",DL48,)))))))))))))))) -> 5.81E+00 | CK48: =IF($BK$17="11",CY48,IF($BK$17="21",CY48,IF($BK$17="12",EA48,IF($BK$17="22",EA48,IF($BK$17="13",EO48,IF($BK$17="23",EO48,IF($BK$17="14",DM48,IF($BK$17="24",DM48,IF($BK$17="31",CY48,IF($BK$17="41",CY48,IF($BK$17="32",EA48,IF($BK$17="42",EA48,IF($BK$17="33",EO48,IF($BK$17="43",EO48,IF($BK$17="34",DM48,IF($BK$17="44",DM48,)))))))))))))))) -> -1.74E-04 | CL48: =IF($BK$17="11",CZ48,IF($BK$17="21",CZ48,IF($BK$17="12",EB48,IF($BK$17="22",EB48,IF($BK$17="13",EP48,IF($BK$17="23",EP48,IF($BK$17="14",DN48,IF($BK$17="24",DN48,IF($BK$17="31",CZ48,IF($BK$17="41",CZ48,IF($BK$17="32",EB48,IF($BK$17="42",EB48,IF($BK$17="33",EP48,IF($BK$17="43",EP48,IF($BK$17="34",DN48,IF($BK$17="44",DN48,)))))))))))))))) -> -1.07E-01 | CM48: =IF($BK$17="11",DA48,IF($BK$17="21",DA48,IF($BK$17="12",EC48,IF($BK$17="22",EC48,IF($BK$17="13",EQ48,IF($BK$17="23",EQ48,IF($BK$17="14",DO48,IF($BK$17="24",DO48,IF($BK$17="31",DA48,IF($BK$17="41",DA48,IF($BK$17="32",EC48,IF($BK$17="42",EC48,IF($BK$17="33",EQ48,IF($BK$17="43",EQ48,IF($BK$17="34",DO48,IF($BK$17="44",DO48,)))))))))))))))) -> 4.99E+02 | CQ48: 7.11E-15 | CR48: -4.04E+01 | CS48: 3.23E+02 | CV48: -3.07E-07 | CW48: 1.77E-03 | CX48: 4.36E+00 | CZ48: -2.19E-01 | DA48: 3.62E+02 | DC48: 3.88E-02 | DD48: -3.62E-01 | DE48: -7.80E-01 | DF48: -3.24E+01 | DG48: 3.31E+02 | DI48: -3.26E-08 | DJ48: 2.16E-05 | DK48: -1.55E-04 | DL48: 5.23E+00 | DM48: -1.48E-04 | DN48: -3.20E-02 | DO48: 3.93E+02 | DQ48: 2.04E-02 | DR48: -4.81E-01 | DS48: 3.05E+00 | DT48: -3.42E+01 | DU48: 3.92E+02 | DW48: -2.46E-08 | DX48: 1.96E-05 | DY48: -2.23E-04 | DZ48: 5.81E+00 | EA48: =-0.000174063503 -> -1.74E-04 | EB48: -1.07E-01 | EC48: 4.99E+02 | EE48: 1.74E-03 | EF48: -7.79E-02 | EG48: 7.26E-01 | EH48: -2.42E+01 | EI48: 7.01E+02 | EK48: -2.85E-08 | EL48: 3.97E-05 | EM48: -3.15E-03 | EN48: 1.75E+01 | EO48: -2E-05 | EP48: -5E-02 | EQ48: 7E+02 | ER48: 33 | ET48: 33 | EV48: =EX48 -> 33 | EX48: 33 | EZ48: =IF($BK$17="11",FA48,IF($BK$17="21",FA48,IF($BK$17="12",FC48,IF($BK$17="22",FC48,IF($BK$17="13",FD48,IF($BK$17="23",FD48,IF($BK$17="14",FB48,IF($BK$17="24",FB48,IF($BK$17="31",FE48,IF($BK$17="41",FE48,IF($BK$17="32",FG48,IF($BK$17="42",FG48,IF($BK$17="33",FH48,IF($BK$17="43",FH48,IF($BK$17="34",FF48,IF($BK$17="44",FF48,)))))))))))))))) -> 17.5 | FA48: =Tavg_cold -> 17 | FB48: =IF($GC48<=$FC48,$FC48,IF($FM48<=$FP48,$FC48,$FZ48)) -> 17.5 | FC48: =IF($N48>$FN48,Tavg_cold+(0.5*(Tr_cool-Tavg_cold)),Tavg_cold+($FJ48*(Tr_cool-Tavg_cold))) -> 17.5 | FD48: =IF($GC48<=$FC48,$FC48,IF($FM48<=$FP48,$FC48,$FZ48)) -> 17.5 | FE48: =FH48*1.04 -> 18.2 | FF48: =IF($GC48<=$FU48,$FU48,IF($FM48<=$FP48,Tavg_cold,$GA48)) -> 17.5 | FG48: =FH48*1.05 -> 18.375 | FH48: =IF($GC48<=$FU48,$FU48,IF($FM48<=$FP48,Tavg_cold,$GA48)) -> 17.5 | FJ48: =0.5*(1-((FN48-N48)/FN48)) -> 0.5 | FK48: =(0.025*Tl_cool)+0.5 -> 1.18 | FL48: =(0.13*Tl_cool)-2.04 -> 1.47 | FM48: =FQ48/FO48 -> 55.91% | FN48: =DU48 -> 392.2 | FO48: =EI48 -> 701.4 | FP48: =FN48/FO48 -> 55.91% | FQ48: =N48/Cubics -> 392.20 | FR48: =IF(FQ48-(FP48*FO48)<=0,0,FQ48-(FP48*FO48)) -> 0.00 | FS48: =FO48*(1-FP48) -> 309.23 | FT48: =IF((FR48/FS48)>1,1,FR48/FS48) -> 0.00% | FU48: 17.50 | FV48: =Tr_cool*FK48 -> 21.15 | FW48: 3.65 | FX48: =Tv_cool*FL48 -> 23.52 | FY48: 6.02 | FZ48: 17.50 | GA48: =FU48+(FT48*FY48) -> 17.50 | GC48: =(237.3*LN((RH*EXP(17.27*(Tl_cool/(Tl_cool+237.3))))))/(17.27-LN((RH*EXP(17.27*(Tl_cool/(Tl_cool+237.3)))))) -> 15.69066559 | GE48: =(H48-G48)/H48 -> 0.0% | GG48: =(611*EXP(17.27*(Tl_heat/(Tl_heat+237.7)))) -> 2334.18 | GH48: =(611*EXP(17.27*((($P48-Celc2)/Celc1)/((($P48-Celc2)/Celc1)+237.7)))) -> 13829.89 | GI48: =RH*$GG48 -> 1167.09 | GJ48: =(GL48*p_atm)/(GL48+0.622) -> 1167.09 | GK48: =0.622*($GI48/(p_atm-$GI48)) -> 0.01 | GL48: 0.01 | GM48: =(1.005*Tl_heat)+($GK48*(2500+(1.87*Tl_heat))) -> 38.49 | GN48: =(1.005*(($P48-Celc2)/Celc1))+($GL48*(2500+(1.87*(($P48-Celc2)/Celc1)))) -> 71.49 | GO48: 8% | GQ48: =(611*EXP(17.27*(Tl_cool/(Tl_cool+237.7)))) -> 3557.01 | GR48: =(611*EXP(17.27*((($R48-Celc2)/Celc1)/((($R48-Celc2)/Celc1)+237.7)))) -> 2414.76 | GS48: =RH*$GQ48 -> 1778.51 | GT48: =(GW48*p_atm)/(GW48+0.622) -> 1778.51 | GU48: =T48*GR48 -> 1778.51 | GV48: =0.622*($GS48/(p_atm-$GS48)) -> 0.0111 | GW48: =IF(H48=G48,GV48,(0.53475935828878*($GZ48-(1.005*(($R48-Celc2)/Celc1))))/(1336.8983957219)) -> 0.0111 | GX48: =0.622*($GU48/(p_atm-$GU48)) -> 0.01 | GY48: =(1.005*Tl_cool)+($GV48*(2500+(1.87*Tl_cool))) -> 55.48 | GZ48: =GY48-((((H48-G48)/Watts)/1000)/(N48/$L$15)) -> 55.48 | HA48: =(1.005*(($R48-Celc2)/Celc1))+($GX48*(2500+(1.87*(($R48-Celc2)/Celc1)))) -> 48.86 | HB48: 19.42 | HC48: 19.42 | HD48: =H48 -> 851 | HE48: 392.201869 | HF48: =IF(Geg_dP<$AB48,((($BL$48*($HE48/Cubics)^4+$BL$49*($HE48/Cubics)^3+$BL$51*($HE48/Cubics)^2+$BL$53*($HE48/Cubics)^1+$BL$54)*((CF_Regime_Cool_noExp)^$Y48)))*CF_Addit*Watts*CF_Altit,Lim_dP) -> 851.0865494 | HG48: 17.5 | HH48: 17.5 | HI48: 851 | HJ48: 1 | HK48: 851 | HL48: =0.5*(1-((HP48-HE48)/HP48)) -> 0.5 | HM48: =(0.025*Tl_cool)+0.5 -> 1.18 | HN48: =(0.13*Tl_cool)-2.04 -> 1.47 | HO48: =HS48/HQ48 -> 55.91% | HP48: =DU48 -> 392.2 | HQ48: 701.4 | HR48: =HP48/HQ48 -> 55.91% | HS48: 392.20 | HT48: =IF(HS48-(HR48*HQ48)<=0,0,HS48-(HR48*HQ48)) -> 0.00 | HU48: =HQ48*(1-HR48) -> 309.23 | HV48: =IF((HT48/HU48)>1,1,HT48/HU48) -> 0.00% | HW48: 17.50 | HX48: =Tr_cool*HM48 -> 21.15 | HY48: =ABS(HX48-HW48) -> 3.65 | HZ48: =Tv_cool*HN48 -> 23.52 | IA48: =ABS(HZ48-HW48) -> 6.02 | IB48: =IF(HO48<=HR48,HW48,HW48+(HV48*HY48)) -> 17.50 | IC48: =HW48+(HV48*IA48) -> 17.50 | IE48: =(237.3*LN((RH*EXP(17.27*(Tl_cool/(Tl_cool+237.3))))))/(17.27-LN((RH*EXP(17.27*(Tl_cool/(Tl_cool+237.3)))))) -> 15.69066559 | IG48: =(BG48-BF48)/BG48 -> 16.6% | II48: =(611*EXP(17.27*(Tl_heat/(Tl_heat+237.7)))) -> 2334.18 | IJ48: =(611*EXP(17.27*((($P48-Celc2)/Celc1)/((($P48-Celc2)/Celc1)+237.7)))) -> 13829.89
B49: =IF($AL$5=1,$C49/10,IF($AL$5=2,$C49/10,IF($AL$5=3,0,IF($AL$5=4,$C49/10,)))) -> 40% | C49: 4 | D49: =IF(Geg_dP<AB49,((($BK$48*($N49/Cubics)^4+$BK$49*($N49/Cubics)^3+$BK$51*($N49/Cubics)^2+$BK$53*($N49/Cubics)^1+$BK$54)*((CF_Regime_Heat_noExp)^$AA49)))*CF_Addit*Watts*CF_Altit,Lim_dP) -> 7707 | E49: 663 | F49: 4.6 | G49: 1533 | H49: 1533 | I49: =IF(Geg_dP<AB49,ROUND(((IF('Briza 22 & 26'!$M$4="High Perform. 208/230V (US/EU)",cal!HK49,H49)/Watts)/((Tr_cool-Tv_cool)*1.163))*FlowH2O,IF(UnitsNo=1,0,IF(UnitsNo=2,2))),"") -> 659 | J49: 4.6 | K49: 34.0 | L49: =IF(Geg_dP<$AB49,IF(CalcNo="12",$ET49,IF(CalcNo="22",$ET49,IF(CalcNo="13",$EU49,IF(CalcNo="23",$EU49,IF(CalcNo="11",$ER49,IF(CalcNo="21",$ER49,IF(CalcNo="14",$ES49,IF(CalcNo="24",$ES49,IF(CalcNo="32",$EX49,IF(CalcNo="42",$EX49,IF(CalcNo="33",$EY49,IF(CalcNo="43",$EY49,IF(CalcNo="31",$EV49,IF(CalcNo="41",$EV49,IF(CalcNo="34",$EW49,IF(CalcNo="44",$EW49,)))))))))))))))),"") -> 42.0 | M49: 17.8 | N49: 706 | O49: 0.58 | P49: 52.0 | Q49: 23.8 | R49: 20.6 | S49: 17.3 | T49: 74% | U49: 642 | V49: 0.09 | W49: 2.169 | X49: 0.98023 | Y49: 1.29011 | Z49: 1.0896 | AA49: 0.98023 | AB49: 28.38 | AC49: 0.98023 | AD49: 1.29011 | AE49: 1.0896 | AF49: 20.00 | AG49: 0.98023 | AH49: 1.29011 | AI49: 1.0896 | AJ49: 27.00 | AK49: 0.98023 | AL49: 1.29011 | AM49: 1.0896 | AN49: 28.38 | AO49: 1.011514498 | AP49: 1.356068627 | AQ49: 1.09 | AR49: 77.72 | AS49: 0.98023 | AT49: 1.29011 | AU49: 1.0896 | AV49: 20.00 | AW49: 0.98023 | AX49: 1.29011 | AY49: 1.0896 | AZ49: 27.00 | BA49: 0.9802277199 | BB49: 1.290111693 | BC49: 1.091482988 | BD49: 28.38 | BE49: 0.9834917128 | BF49: 0.9132397253 | BG49: 1.094746981 | BH49: 77.72 | BK49: 0.00E+00 | BL49: 0.00E+00 | BM49: 2.23E+00 | BP49: =BP54 -> 2.23E+00 | BR49: =BO49 -> 0 | BS49: 1.83E+00 | BV49: =BV54 -> 2.51E+00 | BY49: =BS49 -> 1.83E+00 | BZ49: 0.00E+00 | CA49: 5.03E-04 | CB49: -2.94E-02 | CC49: 3.63E-01 | CD49: -2.05E+01 | CE49: 7.06E+02 | CF49: 0.00E+00 | CG49: -2.44E-08 | CH49: 3.23E-05 | CI49: -6.71E-04 | CJ49: 1.08E+01 | CK49: -1.13E-04 | CL49: -9.63E-02 | CM49: 7.66E+02 | CP49: 1.78E-15 | CQ49: -1.14E-13 | CR49: -2.97E+01 | CS49: 5.95E+02 | CV49: -2.29E-06 | CW49: 7.32E-03 | CX49: 7.63E+00 | CY49: -8.64E-05 | CZ49: -4.48E-02 | DA49: 5.87E+02 | DC49: 1.50E-03 | DD49: -8.37E-02 | DE49: 1.16E+00 | DF49: -2.65E+01 | DG49: 7.56E+02 | DI49: -2.42E-08 | DJ49: 3.16E-05 | DK49: 1.51E-03 | DL49: 1.12E+01 | DM49: -2.35E-05 | DN49: -9.27E-02 | DO49: 7.34E+02 | DQ49: 5.03E-04 | DR49: -2.94E-02 | DS49: 3.63E-01 | DT49: -2.05E+01 | DU49: 7.06E+02 | DW49: -2.44E-08 | DX49: 3.23E-05 | DY49: -6.71E-04 | DZ49: 1.08E+01 | EA49: =-0.000112966808 -> -1.13E-04 | EB49: -9.63E-02 | EC49: 7.66E+02 | EE49: 5.51E-05 | EF49: -8.31E-03 | EG49: 2.74E-01 | EH49: -1.45E+01 | EI49: 1.41E+03 | EK49: -1.55E-08 | EL49: 4.17E-05 | EM49: 4.98E-03 | EN49: 3.84E+01 | EO49: -2E-05 | EP49: -2E-02 | EQ49: 1E+03 | ER49: 42 | ET49: 42 | EV49: =EX49 -> 44.5 | EX49: 44.5 | EZ49: 17.5 | FA49: =Tavg_cold -> 17 | FB49: 17.5 | FC49: 17.5 | FD49: 17.5 | FE49: =FH49*1.04 -> 18.2 | FF49: 17.5 | FG49: =FH49*1.05 -> 18.375 | FH49: 17.5 | FJ49: 0.5 | FK49: 1.18 | FL49: 1.47 | FM49: =FQ49/FO49 -> 50.18% | FN49: =DU49 -> 706.5 | FO49: =EI49 -> 1407.9 | FP49: =FN49/FO49 -> 50.18% | FQ49: 706.45 | FR49: 0.00 | FS49: =FO49*(1-FP49) -> 701.44 | FT49: =IF((FR49/FS49)>1,1,FR49/FS49) -> 0.00% | FU49: 17.50 | FV49: 21.15 | FW49: 3.65 | FX49: 23.52 | FY49: 6.02 | FZ49: 17.50 | GA49: 17.50 | GC49: 15.69066559 | GE49: 0.0% | GG49: 2334.18 | GH49: 13577.73 | GI49: 1167.09 | GJ49: 1167.09 | GK49: 0.01 | GL49: 0.01 | GM49: 38.49 | GN49: 71.11 | GO49: 9% | GQ49: 3557.01 | GR49: 2415.04 | GS49: 1778.51 | GT49: 1778.51 | GU49: 1778.51 | GV49: 0.0111 | GW49: 0.0111 | GX49: 0.01 | GY49: 55.48 | GZ49: 55.48 | HA49: 48.86 | HB49: 19.42 | HC49: 19.42 | HD49: 1533 | HE49: 706.450383 | HF49: 1532.565735 | HG49: 17.5 | HH49: 17.5 | HI49: 1533 | HJ49: 1 | HK49: 1533 | HL49: 0.5 | HM49: 1.18 | HN49: 1.47 | HO49: =HS49/HQ49 -> 50.18% | HP49: 706.5 | HQ49: 1407.9 | HR49: =HP49/HQ49 -> 50.18% | HS49: 706.45 | HT49: 0.00 | HU49: =HQ49*(1-HR49) -> 701.44 | HV49: =IF((HT49/HU49)>1,1,HT49/HU49) -> 0.00% | HW49: 17.50 | HX49: 21.15 | HY49: 3.65 | HZ49: 23.52 | IA49: 6.02 | IB49: 17.50 | IC49: 17.50 | IE49: 15.69066559 | IG49: 16.6% | II49: 2334.18 | IJ49: 13577.73
B50: =IF($AL$5=1,$C50/10,IF($AL$5=2,$C50/10,IF($AL$5=3,0.25,IF($AL$5=4,$C50/10,)))) -> 50% | C50: 5 | D50: -78 | E50: -7 | G50: -33 | H50: -33 | I50: =IF(Geg_dP<AB50,ROUND(((IF('Briza 22 & 26'!$M$4="High Perform. 208/230V (US/EU)",cal!HK50,H50)/Watts)/((Tr_cool-Tv_cool)*1.163))*FlowH2O,IF(UnitsNo=1,0,IF(UnitsNo=2,2))),"") -> -14 | K50: 0.0 | L50: =IF(Geg_dP<$AB50,0,"") -> 0.0 | M50: 0.0 | N50: 0 | O50: 0.00 | U50: 0 | X50: 0.98023 | Y50: 1.29011 | Z50: 1.0896 | AA50: 0.98023 | AB50: 41.81 | AC50: 0.98023 | AD50: 1.29011 | AE50: 1.0896 | AF50: =AF49+((AF51-AF49)/2) -> 30.00 | AG50: 0.98023 | AH50: 1.29011 | AI50: 1.0896 | AJ50: =AJ49+((AJ51-AJ49)/2) -> 43.00 | AK50: 0.98023 | AL50: 1.29011 | AM50: 1.0896 | AN50: =AN49+((AN51-AN49)/2) -> 41.81 | AO50: 1.011514498 | AP50: 1.356068627 | AQ50: 1.09 | AR50: =AR49+((AR51-AR49)/2) -> 120.87 | AS50: 0.98023 | AT50: 1.29011 | AU50: 1.0896 | AV50: 30.00 | AW50: 0.98023 | AX50: 1.29011 | AY50: 1.0896 | AZ50: 43.00 | BA50: 0.9802277199 | BB50: 1.290111693 | BC50: 1.091482988 | BD50: 41.81 | BE50: 0.9834917128 | BF50: 0.9132397253 | BG50: 1.094746981 | BH50: 120.87 | BZ50: 0.00E+00 | CA50: 0.00E+00 | CB50: 0.00E+00 | CC50: 0.00E+00 | CD50: 0.00E+00 | CE50: 0.00E+00 | CF50: 0.00E+00 | CG50: 0.00E+00 | CH50: 0.00E+00 | CI50: 0.00E+00 | CJ50: 0.00E+00 | CK50: 0.00E+00 | CL50: 0.00E+00 | CM50: 0.00E+00 | EF50: -2.54E-05 | EG50: -5.94E-02 | EH50: -8.63E+00 | EI50: 1.73E+03 | EK50: -1.45E-08 | EL50: 4.69E-05 | EM50: 7.85E-03 | EN50: 5.90E+01 | EO50: -2E-05 | EP50: -3E-02 | EQ50: 1E+03 | EZ50: 17.0 | FA50: =((FA51-FA49)/2)+FA49 -> 17 | FB50: 17 | FC50: 17 | FD50: 17 | FE50: =((FE51-FE49)/2)+FE49 -> 18.2 | FF50: 17 | FG50: =((FG51-FG49)/2)+FG49 -> 18.375 | FH50: 17 | FJ50: 0.0 | FK50: 1.18 | FL50: 1.47 | FM50: 0.00% | FN50: =((FN51-FN49)/2)+FN49 -> 848.2 | FO50: =((FO51-FO49)/2)+FO49 -> 1740.9 | FP50: =FN50/FO50 -> 48.72% | FQ50: 0.00 | FR50: 0.00 | FS50: 892.68 | FT50: 0.00% | FU50: 17.00 | FV50: 21.15 | FW50: 4.15 | FX50: 23.52 | FY50: 6.52 | FZ50: 17.00 | GA50: 17.00 | GC50: 15.69066559 | GE50: 0.0% | GG50: 2334.18 | GI50: 1167.09 | GJ50: 1167.09 | GK50: 0.01 | GL50: 0.01 | GM50: 38.49 | GQ50: 3557.01 | GS50: 1778.51 | GT50: 1778.51 | GV50: 0.0111 | GW50: 0.0111 | GY50: 55.48 | HB50: 19.42 | HD50: -33 | HE50: 0 | HF50: -32.84190222 | HG50: 17.0 | HH50: 17 | HI50: =IF(Geg_dP<$AB50,((HF50/Watts)/(IF((237.3*LN((RH*EXP(17.27*(Tl_cool/(Tl_cool+237.3))))))/(17.27-LN((RH*EXP(17.27*(Tl_cool/(Tl_cool+237.3))))))<HH50,1,IF(1/(1+((2258*((0.622/((101325/(1*611*EXP(17.27*(HH50/(HH50+237.3))))))-1)*1000-(0.622/((101325/(RH*611*EXP(17.27*(Tl_cool/(Tl_cool+237.3))))))-1)*1000))/(1005*(Tavg_cold-Tl_cool))))>1,1,1/(1+((2258*((0.622/((101325/(1*611*EXP(17.27*(HH50/(HH50+237.3))))))-1)*1000-(0.622/((101325/(RH*611*EXP(17.27*(Tl_cool/(Tl_cool+237.3))))))-1)*1000))/(1005*(Tavg_cold-Tl_cool))))))))*Watts,"") -> -33 | HJ50: 1 | HK50: -33 | HL50: 0.0 | HM50: 1.18 | HN50: 1.47 | HO50: 0.00% | HP50: =((HP51-HP49)/2)+HP49 -> 848.2 | HQ50: =((HQ51-HQ49)/2)+HQ49 -> 1740.9 | HR50: =HP50/HQ50 -> 48.72% | HS50: 0.00 | HT50: 0.00 | HU50: 892.68 | HV50: 0.00% | HW50: 17.00 | HX50: 21.15 | HY50: 4.15 | HZ50: 23.52 | IA50: 6.52 | IB50: 17.00 | IC50: 17.00 | IE50: 15.69066559 | IG50: 16.6% | II50: 2334.18
B51: =IF($AL$5=1,$C51/10,IF($AL$5=2,$C51/10,IF($AL$5=3,0.5,IF($AL$5=4,$C51/10,)))) -> 60% | C51: 6 | D51: 10638 | E51: 915 | F51: 9.5 | G51: 2127 | H51: 2127 | I51: =IF(Geg_dP<AB51,ROUND(((IF('Briza 22 & 26'!$M$4="High Perform. 208/230V (US/EU)",cal!HK51,H51)/Watts)/((Tr_cool-Tv_cool)*1.163))*FlowH2O,IF(UnitsNo=1,0,IF(UnitsNo=2,2))),"") -> 914 | J51: 9.5 | K51: 41.0 | L51: =IF(Geg_dP<$AB51,IF(CalcNo="12",$ET51,IF(CalcNo="22",$ET51,IF(CalcNo="13",$EU51,IF(CalcNo="23",$EU51,IF(CalcNo="11",$ER51,IF(CalcNo="21",$ER51,IF(CalcNo="14",$ES51,IF(CalcNo="24",$ES51,IF(CalcNo="32",$EX51,IF(CalcNo="42",$EX51,IF(CalcNo="33",$EY51,IF(CalcNo="43",$EY51,IF(CalcNo="31",$EV51,IF(CalcNo="41",$EV51,IF(CalcNo="34",$EW51,IF(CalcNo="44",$EW51,)))))))))))))))),"") -> 49.0 | M51: 37.1 | N51: 990 | O51: 0.81 | P51: 51.5 | Q51: 23.7 | R51: 20.6 | S51: 17.3 | T51: 73% | U51: 835 | V51: 0.13 | W51: 2.149 | X51: 0.98023 | Y51: 1.29011 | Z51: 1.0896 | AA51: 0.98023 | AB51: 55.24 | AC51: 0.98023 | AD51: 1.29011 | AE51: 1.0896 | AF51: 40.00 | AG51: 0.98023 | AH51: 1.29011 | AI51: 1.0896 | AJ51: 59.00 | AK51: 0.98023 | AL51: 1.29011 | AM51: 1.0896 | AN51: 55.24 | AO51: 1.011514498 | AP51: 1.356068627 | AQ51: 1.09 | AR51: 164.02 | AS51: 0.98023 | AT51: 1.29011 | AU51: 1.0896 | AV51: 40.00 | AW51: 0.98023 | AX51: 1.29011 | AY51: 1.0896 | AZ51: 59.00 | BA51: 0.9802277199 | BB51: 1.290111693 | BC51: 1.091482988 | BD51: 55.24 | BE51: 0.9834917128 | BF51: 0.9132397253 | BG51: 1.094746981 | BH51: 164.02 | BK51: =IF($BK$17="11",BN51,IF($BK$17="21",BQ51,IF($BK$17="12",BN51,IF($BK$17="22",BQ51,IF($BK$17="13",BN51,IF($BK$17="23",BQ51,IF($BK$17="14",BN51,IF($BK$17="24",BQ51,IF($BK$17="31",BT51,IF($BK$17="41",BW51,IF($BK$17="32",BT51,IF($BK$17="42",BW51,IF($BK$17="33",BT51,IF($BK$17="43",BW51,IF($BK$17="34",BT51,IF($BK$17="44",BW51,)))))))))))))))) -> -3.94E-04 | BL51: =IF($BK$17="11",BO51,IF($BK$17="21",BR51,IF($BK$17="12",BO51,IF($BK$17="22",BR51,IF($BK$17="13",BO51,IF($BK$17="23",BR51,IF($BK$17="14",BO51,IF($BK$17="24",BR51,IF($BK$17="31",BU51,IF($BK$17="41",BX51,IF($BK$17="32",BU51,IF($BK$17="42",BX51,IF($BK$17="33",BU51,IF($BK$17="43",BX51,IF($BK$17="34",BU51,IF($BK$17="44",BX51,)))))))))))))))) -> -2.47E-04 | BN51: -3.94E-04 | BO51: -2.47E-04 | BQ51: -5.92E-04 | BR51: =BO51 -> -2.47E-04 | BT51: -2.32E-04 | BU51: -2.44E-04 | BW51: =BQ51 -> -5.92E-04 | BX51: =BU51 -> -2.44E-04 | BZ51: 0.00E+00 | CA51: 3.81E-05 | CB51: -4.24E-03 | CC51: 7.24E-02 | CD51: -1.44E+01 | CE51: 9.90E+02 | CF51: 0.00E+00 | CG51: -1.95E-08 | CH51: 3.59E-05 | CI51: 1.40E-03 | CJ51: 1.94E+01 | CK51: -6.13E-05 | CL51: -1.44E-01 | CM51: 1.04E+03 | CP51: -1.61E-02 | CQ51: 7.90E-01 | CR51: -2.89E+01 | CS51: 8.74E+02 | CV51: -2.93E-06 | CW51: 2.05E-02 | CX51: 1.12E+01 | CY51: -9.32E-05 | CZ51: -4.97E-02 | DA51: 8.34E+02 | DC51: 2.98E-05 | DD51: -4.26E-03 | DE51: 1.05E-01 | DF51: -1.69E+01 | DG51: 1.17E+03 | DI51: -1.78E-08 | DJ51: 3.65E-05 | DK51: 4.89E-03 | DL51: 2.26E+01 | DM51: -1.09E-05 | DN51: -1.32E-01 | DO51: 1.07E+03 | DQ51: 3.81E-05 | DR51: -4.24E-03 | DS51: 7.24E-02 | DT51: -1.44E+01 | DU51: 9.90E+02 | DW51: -1.95E-08 | DX51: 3.59E-05 | DY51: 1.40E-03 | DZ51: 1.94E+01 | EA51: -6.13E-05 | EB51: -1.44E-01 | EC51: 1.04E+03 | EE51: 3.26E-06 | EF51: -1.09E-03 | EG51: 7.90E-02 | EH51: -1.06E+01 | EI51: 2.07E+03 | EK51: -1.36E-08 | EL51: 5.22E-05 | EM51: 1.07E-02 | EN51: 7.97E+01 | EO51: -2E-05 | EP51: -5E-02 | EQ51: 2E+03 | ER51: 49 | ET51: 49 | EV51: =EX51 -> 51.5 | EX51: 51.5 | EZ51: 17.5 | FA51: =Tavg_cold -> 17 | FB51: 17.5 | FC51: 17.5 | FD51: 17.5 | FE51: 18.2 | FF51: 17.5 | FG51: =FH51*1.05 -> 18.375 | FH51: 17.5 | FJ51: 0.5 | FK51: 1.18 | FL51: 1.47 | FM51: 47.74% | FN51: =DU51 -> 990.0 | FO51: =EI51 -> 2073.9 | FP51: =FN51/FO51 -> 47.74% | FQ51: 990.00 | FR51: 0.00 | FS51: 1083.92 | FT51: 0.00% | FU51: 17.50 | FV51: 21.15 | FW51: 3.65 | FX51: 23.52 | FY51: 6.02 | FZ51: 17.50 | GA51: 17.50 | GC51: 15.69066559 | GE51: 0.0% | GG51: 2334.18 | GH51: 13260.92 | GI51: 1167.09 | GJ51: 1167.09 | GK51: 0.01 | GL51: 0.01 | GM51: 38.49 | GN51: 70.62 | GO51: 9% | GQ51: 3557.01 | GR51: 2424.28 | GS51: 1778.51 | GT51: 1778.51 | GU51: 1778.51 | GV51: 0.0111 | GW51: 0.0111 | GX51: 0.01 | GY51: 55.48 | GZ51: 55.48 | HA51: 48.93 | HB51: 19.42 | HC51: 19.42 | HD51: 2127 | HE51: 990.001542 | HF51: 2127.041386 | HG51: 17.5 | HH51: 17.5 | HI51: 2127 | HJ51: 1 | HK51: 2127 | HL51: 0.5 | HM51: 1.18 | HN51: 1.47 | HO51: 47.74% | HP51: 990.0 | HQ51: 2073.9 | HR51: =HP51/HQ51 -> 47.74% | HS51: 990.00 | HT51: 0.00 | HU51: 1083.92 | HV51: 0.00% | HW51: 17.50 | HX51: 21.15 | HY51: 3.65 | HZ51: 23.52 | IA51: 6.02 | IB51: 17.50 | IC51: 17.50 | IE51: 15.69066559 | IG51: 16.6% | II51: 2334.18 | IJ51: 13260.92
B52: =IF($AL$5=1,$C52/10,IF($AL$5=2,$C52/10,IF($AL$5=3,0.75,IF($AL$5=4,$C52/10,)))) -> 70% | C52: 7 | D52: -78 | E52: -7 | G52: -33 | H52: -33 | I52: =IF(Geg_dP<AB52,ROUND(((IF('Briza 22 & 26'!$M$4="High Perform. 208/230V (US/EU)",cal!HK52,H52)/Watts)/((Tr_cool-Tv_cool)*1.163))*FlowH2O,IF(UnitsNo=1,0,IF(UnitsNo=2,2))),"") -> -14 | K52: 0.0 | L52: =IF(Geg_dP<$AB52,0,"") -> 0.0 | M52: 0.0 | N52: 0 | O52: 0.00 | U52: 0 | X52: 0.98023 | Y52: 1.29011 | Z52: 1.0896 | AA52: 0.98023 | AB52: 72.12 | AC52: 0.98023 | AD52: 1.29011 | AE52: 1.0896 | AF52: =AF51+((AF53-AF51)/2) -> 55.00 | AG52: 0.98023 | AH52: 1.29011 | AI52: 1.0896 | AJ52: =AJ51+((AJ53-AJ51)/2) -> 79.00 | AK52: 0.98023 | AL52: 1.29011 | AM52: 1.0896 | AN52: =AN51+((AN53-AN51)/2) -> 72.12 | AO52: 1.011514498 | AP52: 1.356068627 | AQ52: 1.09 | AR52: 187.00 | AS52: 0.98023 | AT52: 1.29011 | AU52: 1.0896 | AV52: 55.00 | AW52: 0.98023 | AX52: 1.29011 | AY52: 1.0896 | AZ52: 79.00 | BA52: 0.9802277199 | BB52: 1.290111693 | BC52: 1.091482988 | BD52: 72.12 | BE52: 0.9834917128 | BF52: 0.9132397253 | BG52: 1.094746981 | BH52: 187.00 | BZ52: 0.00E+00 | CA52: 0.00E+00 | CB52: 0.00E+00 | CC52: 0.00E+00 | CD52: 0.00E+00 | CE52: 0.00E+00 | CF52: 0.00E+00 | CG52: 0.00E+00 | CH52: 0.00E+00 | CI52: 0.00E+00 | CJ52: 0.00E+00 | CK52: 0.00E+00 | CL52: 0.00E+00 | CM52: 0.00E+00 | EE52: 5.03E-07 | EF52: -3.29E-04 | EG52: 1.89E-02 | EH52: -7.63E+00 | EI52: 2.31E+03 | EK52: -2.09E-08 | EL52: 8.31E-05 | EM52: -1.15E-03 | EN52: 9.48E+01 | EO52: -2E-05 | EP52: -4E-03 | EQ52: 2E+03 | EZ52: 17 | FA52: =((FA53-FA51)/2)+FA51 -> 17 | FB52: 17 | FC52: 17 | FD52: =IF($GC52<=$FC52,$FC52,IF($FM52<=$FP52,$FC52,$FZ52)) -> 17 | FE52: =((FE53-FE51)/2)+FE51 -> 18.2 | FF52: 17 | FG52: =((FG53-FG51)/2)+FG51 -> 18.375 | FH52: 17 | FJ52: 0.0 | FK52: 1.18 | FL52: 1.47 | FM52: 0.00% | FN52: =((FN53-FN51)/2)+FN51 -> 1121.1 | FO52: =((FO53-FO51)/2)+FO51 -> 2299.9 | FP52: =FN52/FO52 -> 48.75% | FQ52: 0.00 | FR52: 0.00 | FS52: 1178.82 | FT52: 0.00% | FU52: 17.00 | FV52: 21.15 | FW52: 4.15 | FX52: 23.52 | FY52: 6.52 | FZ52: 17.00 | GA52: 17.00 | GC52: 15.69066559 | GE52: 0.0% | GG52: 2334.18 | GI52: 1167.09 | GJ52: 1167.09 | GK52: 0.01 | GL52: 0.01 | GM52: 38.49 | GQ52: 3557.01 | GS52: 1778.51 | GT52: 1778.51 | GV52: 0.0111 | GW52: 0.0111 | GY52: 55.48 | HB52: 19.42 | HD52: -33 | HE52: 0 | HF52: -32.84190222 | HG52: 17.0 | HH52: 17 | HI52: -33 | HJ52: 1 | HK52: -33 | HL52: 0.0 | HM52: 1.18 | HN52: 1.47 | HO52: 0.00% | HP52: =((HP53-HP51)/2)+HP51 -> 1121.1 | HQ52: 2306.8 | HR52: =HP52/HQ52 -> 48.60% | HS52: 0.00 | HT52: 0.00 | HU52: 1185.69 | HV52: 0.00% | HW52: 17.00 | HX52: 21.15 | HY52: 4.15 | HZ52: 23.52 | IA52: 6.52 | IB52: 17.00 | IC52: 17.00 | IE52: 15.69066559 | IG52: 16.6% | II52: 2334.18
B53: =IF($AL$5=1,$C53/10,IF($AL$5=2,$C53/10,IF($AL$5=3,1,IF($AL$5=4,$C53/10,)))) -> 80% | C53: 8 | D53: 13250 | E53: 1139 | F53: 15.5 | G53: 2660 | H53: 2660 | I53: =IF(Geg_dP<AB53,ROUND(((IF('Briza 22 & 26'!$M$4="High Perform. 208/230V (US/EU)",cal!HK53,H53)/Watts)/((Tr_cool-Tv_cool)*1.163))*FlowH2O,IF(UnitsNo=1,0,IF(UnitsNo=2,2))),"") -> 1143 | J53: 15.6 | K53: 47.0 | L53: =IF(Geg_dP<$AB53,IF(CalcNo="12",$ET53,IF(CalcNo="22",$ET53,IF(CalcNo="13",$EU53,IF(CalcNo="23",$EU53,IF(CalcNo="11",$ER53,IF(CalcNo="21",$ER53,IF(CalcNo="14",$ES53,IF(CalcNo="24",$ES53,IF(CalcNo="32",$EX53,IF(CalcNo="42",$EX53,IF(CalcNo="33",$EY53,IF(CalcNo="43",$EY53,IF(CalcNo="31",$EV53,IF(CalcNo="41",$EV53,IF(CalcNo="34",$EW53,IF(CalcNo="44",$EW53,)))))))))))))))),"") -> 55.0 | M53: 65.8 | N53: 1252 | O53: 1.02 | P53: 51.1 | Q53: 23.5 | R53: 20.7 | S53: 17.4 | T53: 73% | U53: 999 | V53: 0.19 | W53: 2.124 | X53: 0.98023 | Y53: 1.29011 | Z53: 1.0896 | AA53: 0.98023 | AB53: 89 | AC53: 0.98023 | AD53: 1.29011 | AE53: 1.0896 | AF53: 70.00 | AG53: 0.98023 | AH53: 1.29011 | AI53: 1.0896 | AJ53: 99.00 | AK53: 0.98023 | AL53: 1.29011 | AM53: 1.0896 | AN53: 89.00 | AO53: 1.011514498 | AP53: 1.356068627 | AQ53: 1.09 | AR53: 213.64 | AS53: 0.98023 | AT53: 1.29011 | AU53: 1.0896 | AV53: 70.00 | AW53: 0.98023 | AX53: 1.29011 | AY53: 1.0896 | AZ53: 99.00 | BA53: 0.9802277199 | BB53: 1.290111693 | BC53: 1.091482988 | BD53: 89.00 | BE53: 0.9834917128 | BF53: 0.9132397253 | BG53: 1.094746981 | BH53: 213.64 | BK53: =IF($BK$17="11",BN53,IF($BK$17="21",BQ53,IF($BK$17="12",BN53,IF($BK$17="22",BQ53,IF($BK$17="13",BN53,IF($BK$17="23",BQ53,IF($BK$17="14",BN53,IF($BK$17="24",BQ53,IF($BK$17="31",BT53,IF($BK$17="41",BW53,IF($BK$17="32",BT53,IF($BK$17="42",BW53,IF($BK$17="33",BT53,IF($BK$17="43",BW53,IF($BK$17="34",BT53,IF($BK$17="44",BW53,)))))))))))))))) -> 6.55E+00 | BL53: 4.72E+00 | BM53: 2.31E-06 | BN53: 6.55E+00 | BO53: 4.72E+00 | BP53: 2.31E-06 | BQ53: 3.45E+00 | BR53: =BO53 -> 4.72E+00 | BS53: =+BP53 -> 2.31E-06 | BT53: 7.32E+00 | BU53: 5.45E+00 | BV53: 1.45E-07 | BW53: =BQ53 -> 3.45E+00 | BX53: =BU53 -> 5.45E+00 | BY53: =+BV53 -> 1.45E-07 | BZ53: 0.00E+00 | CA53: 1.05E-05 | CB53: -2.07E-03 | CC53: 9.60E-02 | CD53: -1.31E+01 | CE53: 1.25E+03 | CF53: 0.00E+00 | CG53: -1.93E-08 | CH53: 4.36E-05 | CI53: 1.61E-03 | CJ53: 3.33E+01 | CK53: -5.40E-05 | CL53: -1.70E-01 | CM53: 1.30E+03 | CP53: -2.22E-03 | CQ53: 1.70E-01 | CR53: -1.78E+01 | CS53: 1.15E+03 | CV53: 5.05E-06 | CW53: 2.14E-02 | CX53: 2.13E+01 | CY53: -6.12E-05 | CZ53: -7.21E-02 | DA53: 1.08E+03 | DC53: 4.37E-06 | DD53: -1.10E-03 | DE53: 4.53E-02 | DF53: -1.33E+01 | DG53: 1.53E+03 | DI53: -1.53E-08 | DJ53: 3.91E-05 | DK53: 1.22E-02 | DL53: 3.96E+01 | DM53: 5.61E-06 | DN53: -1.80E-01 | DO53: 1.38E+03 | DQ53: 1.05E-05 | DR53: -2.07E-03 | DS53: 9.60E-02 | DT53: -1.31E+01 | DU53: 1.25E+03 | DW53: -1.93E-08 | DX53: 4.36E-05 | DY53: 1.61E-03 | DZ53: 3.33E+01 | EA53: =-0.0000539743298 -> -5.40E-05 | EB53: -1.70E-01 | EC53: 1.30E+03 | ED53: 3.89E-08 | EE53: -1.83E-05 | EF53: 2.76E-03 | EG53: -1.83E-01 | EH53: -1.56E+00 | EI53: 2.53E+03 | EK53: -2.82E-08 | EL53: 1.14E-04 | EM53: -1.30E-02 | EN53: 1.10E+02 | EO53: -2E-05 | EP53: 4E-02 | EQ53: 2E+03 | ER53: 55 | ET53: 55 | EV53: =EX53 -> 57 | EX53: 57 | EZ53: 17.5 | FA53: =Tavg_cold -> 17 | FB53: 17.5 | FC53: 17.5 | FD53: 17.5 | FE53: 18.2 | FF53: 17.5 | FG53: =FH53*1.05 -> 18.375 | FH53: 17.5 | FJ53: 0.5 | FK53: 1.18 | FL53: 1.47 | FM53: 49.57% | FN53: =DU53 -> 1252.2 | FO53: =EI53 -> 2525.9 | FP53: =FP54 -> 56.86% | FQ53: 1252.22 | FR53: 0.00 | FS53: 1089.81 | FT53: 0.00% | FU53: 17.50 | FV53: 21.15 | FW53: 3.65 | FX53: 23.52 | FY53: 6.02 | FZ53: 17.50 | GA53: 17.50 | GC53: 15.69066559 | GE53: 0.0% | GG53: 2334.18 | GH53: 12949.66 | GI53: 1167.09 | GJ53: 1167.09 | GK53: 0.01 | GL53: 0.01 | GM53: 38.49 | GN53: 70.13 | GO53: 9% | GQ53: 3557.01 | GR53: 2435.23 | GS53: 1778.51 | GT53: 1778.51 | GU53: 1778.51 | GV53: 0.0111 | GW53: 0.0111 | GX53: 0.01 | GY53: 55.48 | GZ53: 55.48 | HA53: 49.00 | HB53: 19.42 | HC53: 19.42 | HD53: 2660 | HE53: 1252.21545 | HF53: 2659.531774 | HG53: 17.5 | HH53: 17.5 | HI53: 2660 | HJ53: 1 | HK53: 2660 | HL53: 0.5 | HM53: 1.18 | HN53: 1.47 | HO53: 49.57% | HP53: 1252.2 | HQ53: 2525.9 | HR53: =HR54 -> 56.86% | HS53: 1252.22 | HT53: 0.00 | HU53: 1089.81 | HV53: 0.00% | HW53: 17.50 | HX53: 21.15 | HY53: 3.65 | HZ53: 23.52 | IA53: 6.02 | IB53: 17.50 | IC53: 17.50 | IE53: 15.69066559 | IG53: 16.6% | II53: 2334.18 | IJ53: 12949.66
B54: 100% | C54: 10 | D54: 15025 | E54: 1292 | F54: 20.5 | G54: 3023 | H54: 3023 | I54: =IF(Geg_dP<AB54,ROUND(((IF('Briza 22 & 26'!$M$4="High Perform. 208/230V (US/EU)",cal!HK54,H54)/Watts)/((Tr_cool-Tv_cool)*1.163))*FlowH2O,IF(UnitsNo=1,0,IF(UnitsNo=2,2))),"") -> 1300 | J54: 20.8 | K54: 51.0 | L54: =IF(Geg_dP<$AB54,IF(CalcNo="12",$ET54,IF(CalcNo="22",$ET54,IF(CalcNo="13",$EU54,IF(CalcNo="23",$EU54,IF(CalcNo="11",$ER54,IF(CalcNo="21",$ER54,IF(CalcNo="14",$ES54,IF(CalcNo="24",$ES54,IF(CalcNo="32",$EX54,IF(CalcNo="42",$EX54,IF(CalcNo="33",$EY54,IF(CalcNo="43",$EY54,IF(CalcNo="31",$EV54,IF(CalcNo="41",$EV54,IF(CalcNo="34",$EW54,IF(CalcNo="44",$EW54,)))))))))))))))),"") -> 59.0 | M54: =IF(Geg_dP<$AB54,($CF54*(($N54*CFMs)^4))+($CG54*(($N54*CFMs)^3))+($CH54*(($N54*CFMs)^2))+($CI54*($N54*CFMs))+$CJ54,"") -> 95.0 | N54: 1436 | O54: 1.17 | P54: 50.7 | Q54: 23.5 | R54: 20.7 | S54: 17.4 | T54: 73% | U54: 1126 | V54: 0.24 | W54: 2.105 | X54: 0.98023 | Y54: 1.29011 | Z54: 1.0896 | AA54: 0.98023 | AB54: 119.78 | AC54: 0.98023 | AD54: 1.29011 | AE54: 1.0896 | AF54: 90.00 | AG54: 0.98023 | AH54: 1.29011 | AI54: 1.0896 | AJ54: 134.00 | AK54: 0.98023 | AL54: 1.29011 | AM54: 1.0896 | AN54: 119.78 | AO54: 1.011514498 | AP54: 1.356068627 | AQ54: 1.09 | AR54: =AR53 -> 213.64 | AS54: 0.98023 | AT54: 1.29011 | AU54: 1.0896 | AV54: 90.00 | AW54: 0.98023 | AX54: 1.29011 | AY54: 1.0896 | AZ54: 134.00 | BA54: 0.9802277199 | BB54: 1.290111693 | BC54: 1.091482988 | BD54: 119.78 | BE54: 0.9834917128 | BF54: 0.9132397253 | BG54: 1.094746981 | BH54: 213.64 | BK54: -4.46E+01 | BL54: -6.73E+01 | BM54: 2.23E+00 | BN54: -4.46E+01 | BO54: -6.73E+01 | BP54: 2.23E+00 | BQ54: 2.85E+02 | BR54: =BO54 -> -6.73E+01 | BS54: =+BP54 -> 2.23E+00 | BT54: -3.87E+01 | BU54: -2.29E+01 | BV54: 2.51E+00 | BW54: =BQ54 -> 2.85E+02 | BX54: =BU54 -> -2.29E+01 | BY54: =+BV54 -> 2.51E+00 | BZ54: 0.00E+00 | CA54: 2.23E-06 | CB54: -6.05E-04 | CC54: 3.27E-02 | CD54: -1.08E+01 | CE54: 1.44E+03 | CF54: 0.00E+00 | CG54: -8.81E-08 | CH54: 1.34E-04 | CI54: 6.16E-03 | CJ54: 4.76E+01 | CK54: -3.04E-05 | CL54: -2.18E-01 | CM54: 1.50E+03 | CP54: -1.37E-03 | CQ54: 1.38E-01 | CR54: -1.62E+01 | CS54: 1.33E+03 | CV54: 1.59E-05 | CW54: 4.37E-02 | CX54: 2.94E+01 | CY54: -4.87E-05 | CZ54: -8.83E-02 | DA54: 1.24E+03 | DC54: -1.38E-07 | DD54: -3.40E-05 | DE54: -1.46E-02 | DF54: -1.00E+01 | DG54: 1.76E+03 | DI54: -8.35E-08 | DJ54: 1.41E-04 | DK54: 2.10E-02 | DL54: 5.83E+01 | DM54: -6.03E-06 | DN54: -1.87E-01 | DO54: 1.59E+03 | DQ54: 2.23E-06 | DR54: -6.05E-04 | DS54: 3.27E-02 | DT54: -1.08E+01 | DU54: 1.44E+03 | DW54: -8.81E-08 | DX54: 1.34E-04 | DY54: 6.16E-03 | DZ54: 4.76E+01 | EA54: -3.04E-05 | EB54: -2.18E-01 | EC54: 1.50E+03 | ED54: =ED53 -> 3.89E-08 | EE54: -1.83E-05 | EF54: 2.76E-03 | EG54: -1.83E-01 | EH54: -1.56E+00 | EI54: 2.53E+03 | EJ54: =EJ53 -> 0 | EK54: -2.82E-08 | EL54: 1.14E-04 | EM54: -1.30E-02 | EN54: 1.10E+02 | EO54: -2E-05 | EP54: 4E-02 | EQ54: 2E+03 | ER54: 59 | ET54: 59 | EV54: =EX54 -> 59.5 | EX54: 59.5 | EZ54: 17.5 | FA54: =Tavg_cold -> 17 | FB54: 17.5 | FC54: 17.5 | FD54: 17.5 | FE54: 18.2 | FF54: 17.5 | FG54: =FH54*1.05 -> 18.375 | FH54: 17.5 | FJ54: 0.5 | FK54: 1.18 | FL54: 1.47 | FM54: 56.86% | FN54: =DU54 -> 1436.1 | FO54: =EI54 -> 2525.9 | FP54: =FN54/FO54 -> 56.86% | FQ54: 1436.14 | FR54: 0.00 | FS54: 1089.81 | FT54: 0.00% | FU54: =FC54 -> 17.50 | FV54: 21.15 | FW54: =ABS(FV54-FU54) -> 3.65 | FX54: 23.52 | FY54: =ABS(FX54-FU54) -> 6.02 | FZ54: =IF(FM54<=FP54,FU54,FU54+(FT54*FW54)) -> 17.50 | GA54: 17.50 | GC54: 15.69066559 | GE54: 0.0% | GG54: 2334.18 | GH54: 12728.46 | GI54: 1167.09 | GJ54: 1167.09 | GK54: 0.01 | GL54: 0.01 | GM54: 38.49 | GN54: 69.77 | GO54: 9% | GQ54: 3557.01 | GR54: 2443.62 | GS54: 1778.51 | GT54: 1778.51 | GU54: 1778.51 | GV54: 0.0111 | GW54: 0.0111 | GX54: 0.01 | GY54: 55.48 | GZ54: 55.48 | HA54: 49.06 | HB54: 19.42 | HC54: 19.42 | HD54: 3023 | HE54: 1436.13516 | HF54: 3023.135287 | HG54: 17.5 | HH54: 17.5 | HI54: 3023 | HJ54: 1 | HK54: 3023 | HL54: 0.5 | HM54: 1.18 | HN54: 1.47 | HO54: 56.86% | HP54: 1436.1 | HQ54: 2525.9 | HR54: =HP54/HQ54 -> 56.86% | HS54: 1436.14 | HT54: 0.00 | HU54: 1089.81 | HV54: 0.00% | HW54: 17.50 | HX54: 21.15 | HY54: =ABS(HX54-HW54) -> 3.65 | HZ54: 23.52 | IA54: =ABS(HZ54-HW54) -> 6.02 | IB54: =IF(HO54<=HR54,HW54,HW54+(HV54*HY54)) -> 17.50 | IC54: 17.50 | IE54: 15.69066559 | IG54: 16.6% | II54: 2334.18 | IJ54: 12728.46
B55: =IF(LangNo=1,NL!A55,IF(LangNo=2,EN!A55,IF(LangNo=3,DE!A55,IF(LangNo=4,FR!A55,IF(LangNo=5,NR!A55,IF(LangNo=6,SP!A55,IF(LangNo=7,SW!A55,IF(LangNo=8,TS!A55,IF(LangNo=9,ExtraTaal1!A55,IF(LangNo=10,ExtraTaal2!A55,IF(LangNo=11,ExtraTaal3!A55,))))))))))) -> Briza 22 (230V) height 54,5 cm, width 22 cm, length 190 cm (Type 10) | AA55: 0 | AB55: m³/h | AC55: n-value | AD55: n-value | AE55: n-value | AF55: m³/h | AG55: n-value | AH55: n-value | AI55: n-value | AJ55: m³/h | AK55: n-value | AL55: n-value | AM55: n-value | AN55: m³/h | AO55: n-value | AP55: n-value | AQ55: n-value | AR55: m³/h | AS55: n-value | AT55: n-value | AU55: n-value | AV55: m³/h | AW55: n-value | AX55: n-value | AY55: n-value | AZ55: m³/h | BA55: n-value | BB55: n-value | BC55: n-value | BD55: m³/h | BE55: n-value | BF55: n-value | BG55: n-value | BH55: m³/h | BJ55: =IF($BK$17="11",BO55,IF($BK$17="21",BR55,IF($BK$17="12",BO55,IF($BK$17="22",BR55,IF($BK$17="13",BO55,IF($BK$17="23",BR55,IF($BK$17="14",BO55,IF($BK$17="24",BR55,IF($BK$17="31",BU55,IF($BK$17="41",BX55,IF($BK$17="32",BU55,IF($BK$17="42",BX55,IF($BK$17="33",BU55,IF($BK$17="43",BX55,IF($BK$17="34",BU55,IF($BK$17="44",BX55,)))))))))))))))) -> 22 | BK55: =(BN55+IF(CaseNo=1,0,IF(CaseNo=2,$BN$2,)))*MilInch -> 54.5 | BL55: =(BJ55+IF(CaseNo=1,0,IF(CaseNo=2,$BN$3,)))*MilInch -> 22 | BM55: =(BP55+IF(CaseNo=1,0,IF(CaseNo=2,$BN$4,)))*MilInch -> 155 | BN55: 54.5 | BO55: 22 | BP55: 155 | BQ55: 54.5 | BR55: 22 | BS55: 155 | BT55: 54.5 | BU55: 26 | BV55: 155 | BW55: 54.5 | BX55: 26 | BY55: 155 | BZ55: =CF55 -> T10 | CF55: T10 | CN55: =CF55 -> T10 | DB55: =CF55 -> T10 | DP55: =CF55 -> T10 | ED55: =CF55 -> T10 | ER55: T10 | FA55: =ER55 -> T10 | HD55: 0 | HF55: =IF(Geg_dP<$AB55,((($BL$18*($HE55/Cubics)^4+$BL$19*($HE55/Cubics)^3+$BL$20*($HE55/Cubics)^2+$BL$21*($HE55/Cubics)^1+$BL$22)*((CF_Regime_Cool_noExp)^$Y55)))*CF_Addit*Watts*CF_Altit,Lim_dP) ->  | HL55: T10
B56: =IF($AL$5=1,$C56/10,IF($AL$5=2,$C56/10,IF($AL$5=3,0,IF($AL$5=4,$C56/10,)))) -> 20% | C56: 2 | D56: =IF(Geg_dP<AB56,((($BK$56*($N56/Cubics)^4+$BK$57*($N56/Cubics)^3+$BK$59*($N56/Cubics)^2+$BK$61*($N56/Cubics)^1+$BK$62)*((CF_Regime_Heat_noExp)^$AA56)))*CF_Addit*Watts*CF_Altit,Lim_dP) -> 7002 | E56: =IF(Geg_dP<$AB56,ROUND((($D56/Watts)/((Tv_heat-Tr_heat)*1.163))*FlowH2O,IF(UnitsNo=1,0,IF(UnitsNo=2,2))),"") -> 602 | F56: =IF(Geg_dP<$AB56,IF((($BM$56*(E56/FlowH2O)^$BM$57))*kPa>0,(($BM$56*(E56/FlowH2O)^$BM$57))*kPa,0),"") -> 3.9 | G56: =IF(Geg_dP<$AB56,((($BL$56*($N56/Cubics)^4+$BL$57*($N56/Cubics)^3+$BL$59*($N56/Cubics)^2+$BL$61*($N56/Cubics)^1+$BL$62)*((CF_Regime_Cool_noExp)^$Y56)))*CF_Addit*Watts*CF_Altit,Lim_dP) -> 1450 | H56: =IF(Geg_dP<$AB56,((G56/Watts)/(IF((237.3*LN((RH*EXP(17.27*(Tl_cool/(Tl_cool+237.3))))))/(17.27-LN((RH*EXP(17.27*(Tl_cool/(Tl_cool+237.3))))))<EZ56,1,IF(1/(1+((2258*((0.622/((101325/(1*611*EXP(17.27*(EZ56/(EZ56+237.3))))))-1)*1000-(0.622/((101325/(RH*611*EXP(17.27*(Tl_cool/(Tl_cool+237.3))))))-1)*1000))/(1005*(Tavg_cold-Tl_cool))))>1,1,1/(1+((2258*((0.622/((101325/(1*611*EXP(17.27*(EZ56/(EZ56+237.3))))))-1)*1000-(0.622/((101325/(RH*611*EXP(17.27*(Tl_cool/(Tl_cool+237.3))))))-1)*1000))/(1005*(Tavg_cold-Tl_cool))))))))*Watts,"") -> 1450 | I56: =IF(Geg_dP<AB56,ROUND(((IF('Briza 22 & 26'!$M$4="High Perform. 208/230V (US/EU)",cal!HK56,H56)/Watts)/((Tr_cool-Tv_cool)*1.163))*FlowH2O,IF(UnitsNo=1,0,IF(UnitsNo=2,2))),"") -> 623 | J56: =IF(Geg_dP<$AB56,IF((($BM$61*(I56/FlowH2O)^$BM$62))*kPa>0,(($BM$61*(I56/FlowH2O)^$BM$62))*kPa,0),"") -> 4.1 | K56: =IF(Geg_dP<AB56,IF($L56-8<0,0,$L56-8),"") -> 31.5 | L56: =IF(Geg_dP<$AB56,IF(CalcNo="12",$ET56,IF(CalcNo="22",$ET56,IF(CalcNo="13",$EU56,IF(CalcNo="23",$EU56,IF(CalcNo="11",$ER56,IF(CalcNo="21",$ER56,IF(CalcNo="14",$ES56,IF(CalcNo="24",$ES56,IF(CalcNo="32",$EX56,IF(CalcNo="42",$EX56,IF(CalcNo="33",$EY56,IF(CalcNo="43",$EY56,IF(CalcNo="31",$EV56,IF(CalcNo="41",$EV56,IF(CalcNo="34",$EW56,IF(CalcNo="44",$EW56,)))))))))))))))),"") -> 39.5 | M56: =IF(Geg_dP<$AB56,($CF56*(($N56/Cubics)^4))+($CG56*(($N56/Cubics)^3))+($CH56*(($N56/Cubics)^2))+($CI56*($N56/Cubics))+$CJ56,"") -> 11.1 | N56: =IF(Geg_dP<$AB56,(BZ56*Geg_dP^5+CA56*Geg_dP^4+CB56*Geg_dP^3+CC56*Geg_dP^2+CD56*Geg_dP+CE56)*CF_Case*Cubics,"") -> 549 | O56: =IF(Geg_dP<$AB56,(($N56/Cubics)/3600)/(($BJ$63/100)*($BP$63/100))*FeetMins,"") -> 0.36 | P56: =IF(Geg_dP<$AB56,((($D56/Watts)/(((p_atm*0.028964)/(8.31447*(20+273.15)))*(($N56/3600)/Cubics)*(1005+1870*((0.622)/(((p_atm)/($E$14*pvs_heat_in))-1)))))+Tl_heat)*Celc1+Celc2,"") -> 57.4 | Q56: =IF(Geg_dP<$AB56,(27.8*LN(($GN56+36)/45.5))*Celc1+Celc2,"") -> 25.2 | R56: =IF(Geg_dP<$AB56,(Tl_cool-(($G56/Watts)/(1006*$N56*kgss)))*Celc1+Celc2,"") -> 19.1 | S56: =IF(Geg_dP<$AB56,IF((27.8*LN(($HA56+36)/45.5))*Celc1+Celc2>R56,R56,(27.8*LN(($HA56+36)/45.5))*Celc1+Celc2),"") -> 16.9 | T56: =IF(Geg_dP<$AB56,IF($H56>$G56,1,IF(($GT56/$GR56)<0,0,$GT56/$GR56)),"") -> 80% | U56: =IF(Geg_dP<$AB56,$CK56*($N56/Cubics)^2+$CL56*($N56/Cubics)^1+$CM56,"") -> 430 | V56: =M56/((N56/Cubics)/3.6) -> 0.07 | W56: =(G56/Watts)/(N56/Cubics) -> 2.641 | X56: 0.981618 | Y56: 1.2733 | Z56: 1.09292 | AA56: 0.981618 | AB56: 6.48225 | AC56: 0.981618 | AD56: 1.2733 | AE56: 1.09292 | AF56: 5.00 | AG56: 0.981618 | AH56: 1.2733 | AI56: 1.09292 | AJ56: 8.00 | AK56: 0.981618 | AL56: 1.2733 | AM56: 1.09292 | AN56: 6.48 | AO56: 0.9954742158 | AP56: 1.174754877 | AQ56: 1.106729484 | AR56: 22.43 | AS56: 0.981618 | AT56: 1.2733 | AU56: 1.09292 | AV56: 5.00 | AW56: 0.981618 | AX56: 1.2733 | AY56: 1.09292 | AZ56: 8.00 | BA56: 1.004971696 | BB56: 1.238562404 | BC56: 1.116226965 | BD56: 6.48 | BE56: 0.9693677324 | BF56: 1.070246709 | BG56: 1.080623001 | BH56: 22.43 | BK56: =IF($BK$17="11",BN56,IF($BK$17="21",BQ56,IF($BK$17="12",BN56,IF($BK$17="22",BQ56,IF($BK$17="13",BN56,IF($BK$17="23",BQ56,IF($BK$17="14",BN56,IF($BK$17="24",BQ56,IF($BK$17="31",BT56,IF($BK$17="41",BW56,IF($BK$17="32",BT56,IF($BK$17="42",BW56,IF($BK$17="33",BT56,IF($BK$17="43",BW56,IF($BK$17="34",BT56,IF($BK$17="44",BW56,)))))))))))))))) -> 0.00E+00 | BL56: 0.00E+00 | BM56: 3.37E-05 | BP56: =BP61 -> 3.37E-05 | BR56: =BO56 -> 0 | BS56: 2.00E-04 | BV56: =BV61 -> 1.62E-05 | BY56: =BS56 -> 2.00E-04 | BZ56: =IF($BK$17="11",CN56,IF($BK$17="21",CN56,IF($BK$17="12",DP56,IF($BK$17="22",DP56,IF($BK$17="13",ED56,IF($BK$17="23",ED56,IF($BK$17="14",DB56,IF($BK$17="24",DB56,IF($BK$17="31",CN56,IF($BK$17="41",CN56,IF($BK$17="32",DP56,IF($BK$17="42",DP56,IF($BK$17="33",ED56,IF($BK$17="43",ED56,IF($BK$17="34",DB56,IF($BK$17="44",DB56,)))))))))))))))) -> 0.00E+00 | CA56: 0.00E+00 | CB56: =IF($BK$17="11",CP56,IF($BK$17="21",CP56,IF($BK$17="12",DR56,IF($BK$17="22",DR56,IF($BK$17="13",EF56,IF($BK$17="23",EF56,IF($BK$17="14",DD56,IF($BK$17="24",DD56,IF($BK$17="31",CP56,IF($BK$17="41",CP56,IF($BK$17="32",DR56,IF($BK$17="42",DR56,IF($BK$17="33",EF56,IF($BK$17="43",EF56,IF($BK$17="34",DD56,IF($BK$17="44",DD56,)))))))))))))))) -> -8.27E-01 | CC56: =IF($BK$17="11",CQ56,IF($BK$17="21",CQ56,IF($BK$17="12",DS56,IF($BK$17="22",DS56,IF($BK$17="13",EG56,IF($BK$17="23",EG56,IF($BK$17="14",DE56,IF($BK$17="24",DE56,IF($BK$17="31",CQ56,IF($BK$17="41",CQ56,IF($BK$17="32",DS56,IF($BK$17="42",DS56,IF($BK$17="33",EG56,IF($BK$17="43",EG56,IF($BK$17="34",DE56,IF($BK$17="44",DE56,)))))))))))))))) -> 7.40E+00 | CD56: =IF($BK$17="11",CR56,IF($BK$17="21",CR56,IF($BK$17="12",DT56,IF($BK$17="22",DT56,IF($BK$17="13",EH56,IF($BK$17="23",EH56,IF($BK$17="14",DF56,IF($BK$17="24",DF56,IF($BK$17="31",CR56,IF($BK$17="41",CR56,IF($BK$17="32",DT56,IF($BK$17="42",DT56,IF($BK$17="33",EH56,IF($BK$17="43",EH56,IF($BK$17="34",DF56,IF($BK$17="44",DF56,)))))))))))))))) -> -5.37E+01 | CE56: =IF($BK$17="11",CS56,IF($BK$17="21",CS56,IF($BK$17="12",DU56,IF($BK$17="22",DU56,IF($BK$17="13",EI56,IF($BK$17="23",EI56,IF($BK$17="14",DG56,IF($BK$17="24",DG56,IF($BK$17="31",CS56,IF($BK$17="41",CS56,IF($BK$17="32",DU56,IF($BK$17="42",DU56,IF($BK$17="33",EI56,IF($BK$17="43",EI56,IF($BK$17="34",DG56,IF($BK$17="44",DG56,)))))))))))))))) -> 5.49E+02 | CF56: =IF($BK$17="11",CT56,IF($BK$17="21",CT56,IF($BK$17="12",DV56,IF($BK$17="22",DV56,IF($BK$17="13",EJ56,IF($BK$17="23",EJ56,IF($BK$17="14",DH56,IF($BK$17="24",DH56,IF($BK$17="31",CT56,IF($BK$17="41",CT56,IF($BK$17="32",DV56,IF($BK$17="42",DV56,IF($BK$17="33",EJ56,IF($BK$17="43",EJ56,IF($BK$17="34",DH56,IF($BK$17="44",DH56,)))))))))))))))) -> 0.00E+00 | CG56: =IF($BK$17="11",CU56,IF($BK$17="21",CU56,IF($BK$17="12",DW56,IF($BK$17="22",DW56,IF($BK$17="13",EK56,IF($BK$17="23",EK56,IF($BK$17="14",DI56,IF($BK$17="24",DI56,IF($BK$17="31",CU56,IF($BK$17="41",CU56,IF($BK$17="32",DW56,IF($BK$17="42",DW56,IF($BK$17="33",EK56,IF($BK$17="43",EK56,IF($BK$17="34",DI56,IF($BK$17="44",DI56,)))))))))))))))) -> 1.70E-07 | CH56: =IF($BK$17="11",CV56,IF($BK$17="21",CV56,IF($BK$17="12",DX56,IF($BK$17="22",DX56,IF($BK$17="13",EL56,IF($BK$17="23",EL56,IF($BK$17="14",DJ56,IF($BK$17="24",DJ56,IF($BK$17="31",CV56,IF($BK$17="41",CV56,IF($BK$17="32",DX56,IF($BK$17="42",DX56,IF($BK$17="33",EL56,IF($BK$17="43",EL56,IF($BK$17="34",DJ56,IF($BK$17="44",DJ56,)))))))))))))))) -> -2.30E-04 | CI56: =IF($BK$17="11",CW56,IF($BK$17="21",CW56,IF($BK$17="12",DY56,IF($BK$17="22",DY56,IF($BK$17="13",EM56,IF($BK$17="23",EM56,IF($BK$17="14",DK56,IF($BK$17="24",DK56,IF($BK$17="31",CW56,IF($BK$17="41",CW56,IF($BK$17="32",DY56,IF($BK$17="42",DY56,IF($BK$17="33",EM56,IF($BK$17="43",EM56,IF($BK$17="34",DK56,IF($BK$17="44",DK56,)))))))))))))))) -> 1.06E-01 | CJ56: =IF($BK$17="11",CX56,IF($BK$17="21",CX56,IF($BK$17="12",DZ56,IF($BK$17="22",DZ56,IF($BK$17="13",EN56,IF($BK$17="23",EN56,IF($BK$17="14",DL56,IF($BK$17="24",DL56,IF($BK$17="31",CX56,IF($BK$17="41",CX56,IF($BK$17="32",DZ56,IF($BK$17="42",DZ56,IF($BK$17="33",EN56,IF($BK$17="43",EN56,IF($BK$17="34",DL56,IF($BK$17="44",DL56,)))))))))))))))) -> -6.20E+00 | CK56: =IF($BK$17="11",CY56,IF($BK$17="21",CY56,IF($BK$17="12",EA56,IF($BK$17="22",EA56,IF($BK$17="13",EO56,IF($BK$17="23",EO56,IF($BK$17="14",DM56,IF($BK$17="24",DM56,IF($BK$17="31",CY56,IF($BK$17="41",CY56,IF($BK$17="32",EA56,IF($BK$17="42",EA56,IF($BK$17="33",EO56,IF($BK$17="43",EO56,IF($BK$17="34",DM56,IF($BK$17="44",DM56,)))))))))))))))) -> 0.00E+00 | CL56: =IF($BK$17="11",CZ56,IF($BK$17="21",CZ56,IF($BK$17="12",EB56,IF($BK$17="22",EB56,IF($BK$17="13",EP56,IF($BK$17="23",EP56,IF($BK$17="14",DN56,IF($BK$17="24",DN56,IF($BK$17="31",CZ56,IF($BK$17="41",CZ56,IF($BK$17="32",EB56,IF($BK$17="42",EB56,IF($BK$17="33",EP56,IF($BK$17="43",EP56,IF($BK$17="34",DN56,IF($BK$17="44",DN56,)))))))))))))))) -> -1.10E-01 | CM56: =IF($BK$17="11",DA56,IF($BK$17="21",DA56,IF($BK$17="12",EC56,IF($BK$17="22",EC56,IF($BK$17="13",EQ56,IF($BK$17="23",EQ56,IF($BK$17="14",DO56,IF($BK$17="24",DO56,IF($BK$17="31",DA56,IF($BK$17="41",DA56,IF($BK$17="32",EC56,IF($BK$17="42",EC56,IF($BK$17="33",EQ56,IF($BK$17="43",EQ56,IF($BK$17="34",DO56,IF($BK$17="44",DO56,)))))))))))))))) -> 4.90E+02 | CP56: -8.44E+00 | CQ56: 2.53E+01 | CR56: -5.57E+01 | CS56: 3.50E+02 | CW56: 2.95E-03 | CX56: 7.01E+00 | CZ56: -7.45E-02 | DA56: 3.49E+02 | DC56: 1.75E-02 | DD56: -3.10E-01 | DE56: 1.51E+00 | DF56: -4.49E+01 | DG56: 4.03E+02 | DI56: -2.14E-08 | DJ56: 1.59E-05 | DK56: 5.61E-04 | DL56: 8.42E+00 | DM56: -1.06E-04 | DN56: 1.29E-03 | DO56: 4.99E+02 | DR56: -8.27E-01 | DS56: 7.40E+00 | DT56: -5.37E+01 | DU56: 5.49E+02 | DW56: 1.70E-07 | DX56: -2.30E-04 | DY56: 1.06E-01 | DZ56: -6.20E+00 | EB56: -1.10E-01 | EC56: 4.90E+02 | EF56: 6.87E-02 | EG56: -1.22E+00 | EH56: -3.03E+01 | EI56: 9.01E+02 | EK56: 9.20E-08 | EL56: -1.90E-04 | EM56: 1.38E-01 | EN56: -1.14E+01 | EP56: -2E-02 | EQ56: 6E+02 | ER56: 39.5 | ET56: 39.5 | EV56: =EX56 -> 37 | EX56: 37 | EZ56: =IF($BK$17="11",FA56,IF($BK$17="21",FA56,IF($BK$17="12",FC56,IF($BK$17="22",FC56,IF($BK$17="13",FD56,IF($BK$17="23",FD56,IF($BK$17="14",FB56,IF($BK$17="24",FB56,IF($BK$17="31",FE56,IF($BK$17="41",FE56,IF($BK$17="32",FG56,IF($BK$17="42",FG56,IF($BK$17="33",FH56,IF($BK$17="43",FH56,IF($BK$17="34",FF56,IF($BK$17="44",FF56,)))))))))))))))) -> 17.5 | FA56: =Tavg_cold -> 17 | FB56: =IF($GC56<=$FC56,$FC56,IF($FM56<=$FP56,$FC56,$FZ56)) -> 17.5 | FC56: =IF($N56>$FN56,Tavg_cold+(0.5*(Tr_cool-Tavg_cold)),Tavg_cold+($FJ56*(Tr_cool-Tavg_cold))) -> 17.5 | FD56: =IF($GC56<=$FC56,$FC56,IF($FM56<=$FP56,$FC56,$FZ56)) -> 17.5 | FE56: =FH56*1.04 -> 18.2 | FF56: =IF($GC56<=$FU56,$FU56,IF($FM56<=$FP56,Tavg_cold,$GA56)) -> 17.5 | FG56: =FH56*1.05 -> 18.375 | FH56: =IF($GC56<=$FU56,$FU56,IF($FM56<=$FP56,Tavg_cold,$GA56)) -> 17.5 | FJ56: =0.5*(1-((FN56-N56)/FN56)) -> 0.5 | FK56: =(0.025*Tl_cool)+0.3075 -> 0.98 | FL56: =(0.13*Tl_cool)-2.04 -> 1.47 | FM56: =FQ56/FO56 -> 60.89% | FN56: =DU56 -> 548.9 | FO56: =EI56 -> 901.5 | FP56: =FN56/FO56 -> 60.89% | FQ56: =N56/Cubics -> 548.89 | FR56: =IF(FQ56-(FP56*FO56)<=0,0,FQ56-(FP56*FO56)) -> 0.00 | FS56: =FO56*(1-FP56) -> 352.58 | FT56: =IF((FR56/FS56)>1,1,FR56/FS56) -> 0.00% | FU56: =FC56 -> 17.50 | FV56: =Tr_cool*FK56 -> 17.69 | FW56: =ABS(FV56-FU56) -> 0.19 | FX56: =Tv_cool*FL56 -> 23.52 | FY56: =ABS(FX56-FU56) -> 6.02 | FZ56: =IF(FM56<=FP56,FU56,FU56+(FT56*FW56)) -> 17.50 | GA56: =FU56+(FT56*FY56) -> 17.50 | GC56: =(237.3*LN((RH*EXP(17.27*(Tl_cool/(Tl_cool+237.3))))))/(17.27-LN((RH*EXP(17.27*(Tl_cool/(Tl_cool+237.3)))))) -> 15.69066559 | GE56: =(H56-G56)/H56 -> 0.0% | GG56: =(611*EXP(17.27*(Tl_heat/(Tl_heat+237.7)))) -> 2334.18 | GH56: =(611*EXP(17.27*((($P56-Celc2)/Celc1)/((($P56-Celc2)/Celc1)+237.7)))) -> 17611.76 | GI56: =RH*$GG56 -> 1167.09 | GJ56: =(GL56*p_atm)/(GL56+0.622) -> 1167.09 | GK56: =0.622*($GI56/(p_atm-$GI56)) -> 0.01 | GL56: 0.01 | GM56: =(1.005*Tl_heat)+($GK56*(2500+(1.87*Tl_heat))) -> 38.49 | GN56: =(1.005*(($P56-Celc2)/Celc1))+($GL56*(2500+(1.87*(($P56-Celc2)/Celc1)))) -> 76.63 | GO56: 7% | GQ56: =(611*EXP(17.27*(Tl_cool/(Tl_cool+237.7)))) -> 3557.01 | GR56: =(611*EXP(17.27*((($R56-Celc2)/Celc1)/((($R56-Celc2)/Celc1)+237.7)))) -> 2214.30 | GS56: =RH*$GQ56 -> 1778.51 | GT56: =(GW56*p_atm)/(GW56+0.622) -> 1778.51 | GU56: =T56*GR56 -> 1778.51 | GV56: =0.622*($GS56/(p_atm-$GS56)) -> 0.0111 | GW56: =IF(H56=G56,GV56,(0.53475935828878*($GZ56-(1.005*(($R56-Celc2)/Celc1))))/(1336.8983957219)) -> 0.0111 | GX56: =0.622*($GU56/(p_atm-$GU56)) -> 0.01 | GY56: =(1.005*Tl_cool)+($GV56*(2500+(1.87*Tl_cool))) -> 55.48 | GZ56: =GY56-((((H56-G56)/Watts)/1000)/(N56/$L$15)) -> 55.48 | HA56: =(1.005*(($R56-Celc2)/Celc1))+($GX56*(2500+(1.87*(($R56-Celc2)/Celc1)))) -> 47.43 | HB56: 19.42 | HC56: 19.42 | HD56: =H56 -> 1450 | HE56: 548.888779 | HF56: =IF(Geg_dP<$AB56,((($BL$56*($HE56/Cubics)^4+$BL$57*($HE56/Cubics)^3+$BL$59*($HE56/Cubics)^2+$BL$61*($HE56/Cubics)^1+$BL$62)*((CF_Regime_Cool_noExp)^$Y56)))*CF_Addit*Watts*CF_Altit,Lim_dP) -> 1449.707636 | HG56: 17.5 | HH56: 17.5 | HI56: 1450 | HJ56: 1 | HK56: 1450 | HL56: =0.5*(1-((HP56-HE56)/HP56)) -> 0.5 | HM56: =(0.025*Tl_cool)+0.3075 -> 0.98 | HN56: =(0.13*Tl_cool)-2.04 -> 1.47 | HO56: =HS56/HQ56 -> 60.89% | HP56: =DU56 -> 548.9 | HQ56: 901.5 | HR56: =HP56/HQ56 -> 60.89% | HS56: 548.89 | HT56: =IF(HS56-(HR56*HQ56)<=0,0,HS56-(HR56*HQ56)) -> 0.00 | HU56: =HQ56*(1-HR56) -> 352.58 | HV56: =IF((HT56/HU56)>1,1,HT56/HU56) -> 0.00% | HW56: 17.50 | HX56: =Tr_cool*HM56 -> 17.69 | HY56: =ABS(HX56-HW56) -> 0.19 | HZ56: =Tv_cool*HN56 -> 23.52 | IA56: =ABS(HZ56-HW56) -> 6.02 | IB56: =IF(HO56<=HR56,HW56,HW56+(HV56*HY56)) -> 17.50 | IC56: =HW56+(HV56*IA56) -> 17.50 | IE56: =(237.3*LN((RH*EXP(17.27*(Tl_cool/(Tl_cool+237.3))))))/(17.27-LN((RH*EXP(17.27*(Tl_cool/(Tl_cool+237.3)))))) -> 15.69066559 | IG56: =(BG56-BF56)/BG56 -> 1.0% | II56: =(611*EXP(17.27*(Tl_heat/(Tl_heat+237.7)))) -> 2334.18 | IJ56: =(611*EXP(17.27*((($P56-Celc2)/Celc1)/((($P56-Celc2)/Celc1)+237.7)))) -> 17611.76
B57: =IF($AL$5=1,$C57/10,IF($AL$5=2,$C57/10,IF($AL$5=3,0,IF($AL$5=4,$C57/10,)))) -> 40% | C57: 4 | D57: 12039 | E57: 1035 | F57: 10.4 | G57: 2486 | H57: 2486 | I57: =IF(Geg_dP<AB57,ROUND(((IF('Briza 22 & 26'!$M$4="High Perform. 208/230V (US/EU)",cal!HK57,H57)/Watts)/((Tr_cool-Tv_cool)*1.163))*FlowH2O,IF(UnitsNo=1,0,IF(UnitsNo=2,2))),"") -> 1069 | J57: 11.1 | K57: 39.0 | L57: =IF(Geg_dP<$AB57,IF(CalcNo="12",$ET57,IF(CalcNo="22",$ET57,IF(CalcNo="13",$EU57,IF(CalcNo="23",$EU57,IF(CalcNo="11",$ER57,IF(CalcNo="21",$ER57,IF(CalcNo="14",$ES57,IF(CalcNo="24",$ES57,IF(CalcNo="32",$EX57,IF(CalcNo="42",$EX57,IF(CalcNo="33",$EY57,IF(CalcNo="43",$EY57,IF(CalcNo="31",$EV57,IF(CalcNo="41",$EV57,IF(CalcNo="34",$EW57,IF(CalcNo="44",$EW57,)))))))))))))))),"") -> 47.0 | M57: 25.9 | N57: 972 | O57: 0.65 | P57: 56.3 | Q57: 24.9 | R57: 19.4 | S57: 16.9 | T57: 79% | U57: =IF(Geg_dP<$AB57,$CK57*($N57/Cubics)^2+$CL57*($N57/Cubics)^1+$CM57,"") -> 695 | V57: 0.10 | W57: 2.557 | X57: 0.981618 | Y57: 1.2733 | Z57: 1.09292 | AA57: 0.981618 | AB57: 25.5595 | AC57: 0.981618 | AD57: 1.2733 | AE57: 1.09292 | AF57: 17.00 | AG57: 0.981618 | AH57: 1.2733 | AI57: 1.09292 | AJ57: 32.00 | AK57: 0.981618 | AL57: 1.2733 | AM57: 1.09292 | AN57: 25.56 | AO57: 0.9954742158 | AP57: 1.174754877 | AQ57: 1.106729484 | AR57: 68.15 | AS57: 0.981618 | AT57: 1.2733 | AU57: 1.09292 | AV57: 17.00 | AW57: 0.981618 | AX57: 1.2733 | AY57: 1.09292 | AZ57: 32.00 | BA57: 1.004971696 | BB57: 1.238562404 | BC57: 1.116226965 | BD57: 25.56 | BE57: 0.9693677324 | BF57: 1.070246709 | BG57: 1.080623001 | BH57: 68.15 | BK57: 0.00E+00 | BL57: 0.00E+00 | BM57: 1.82E+00 | BP57: =BP62 -> 1.82E+00 | BR57: =BO57 -> 0 | BS57: 1.83E+00 | BV57: =BV62 -> 1.93E+00 | BY57: =BS57 -> 1.83E+00 | BZ57: 0.00E+00 | CA57: 0.00E+00 | CB57: -2.07E-02 | CC57: 4.48E-01 | CD57: -2.99E+01 | CE57: 9.72E+02 | CF57: 0.00E+00 | CG57: -1.73E-08 | CH57: 3.10E-05 | CI57: -6.08E-03 | CJ57: 1.84E+01 | CK57: 0.00E+00 | CL57: -5.67E-02 | CM57: 7.50E+02 | CP57: 1.55E-01 | CQ57: -2.46E+00 | CR57: -2.48E+01 | CS57: 7.75E+02 | CW57: 8.18E-03 | CX57: 1.28E+01 | CZ57: -4.66E-02 | DA57: 5.84E+02 | DC57: 4.17E-04 | DD57: -2.14E-02 | DE57: 1.46E-01 | DF57: -2.38E+01 | DG57: 9.18E+02 | DI57: -8.76E-09 | DJ57: 1.73E-05 | DK57: 3.44E-03 | DL57: 1.99E+01 | DM57: 3.25E-05 | DN57: -1.10E-01 | DO57: 9.16E+02 | DR57: -2.07E-02 | DS57: 4.48E-01 | DT57: -2.99E+01 | DU57: 9.72E+02 | DW57: -1.73E-08 | DX57: 3.10E-05 | DY57: -6.08E-03 | DZ57: 1.84E+01 | EB57: -5.67E-02 | EC57: 7.50E+02 | EF57: -1.46E-03 | EG57: 9.20E-03 | EH57: -1.83E+01 | EI57: 1.80E+03 | EK57: 1.24E-08 | EL57: -5.14E-05 | EM57: 9.85E-02 | EN57: 9.80E+00 | EP57: -5E-02 | EQ57: 1E+03 | ER57: 47 | ET57: 47 | EV57: =EX57 -> 46.5 | EX57: 46.5 | EZ57: 17.5 | FA57: =Tavg_cold -> 17 | FB57: 17.5 | FC57: 17.5 | FD57: 17.5 | FE57: =FH57*1.04 -> 18.2 | FF57: 17.5 | FG57: =FH57*1.05 -> 18.375 | FH57: 17.5 | FJ57: 0.5 | FK57: 0.98 | FL57: 1.47 | FM57: =FQ57/FO57 -> 54.09% | FN57: =DU57 -> 972.3 | FO57: =EI57 -> 1797.4 | FP57: =FN57/FO57 -> 54.09% | FQ57: 972.29 | FR57: 0.00 | FS57: =FO57*(1-FP57) -> 825.10 | FT57: =IF((FR57/FS57)>1,1,FR57/FS57) -> 0.00% | FU57: 17.50 | FV57: 17.69 | FW57: 0.19 | FX57: 23.52 | FY57: 6.02 | FZ57: 17.50 | GA57: 17.50 | GC57: 15.69066559 | GE57: 0.0% | GG57: 2334.18 | GH57: 16719.65 | GI57: 1167.09 | GJ57: 1167.09 | GK57: 0.01 | GL57: 0.01 | GM57: 38.49 | GN57: 75.51 | GO57: 7% | GQ57: 3557.01 | GR57: 2249.00 | GS57: 1778.51 | GT57: 1778.51 | GU57: 1778.51 | GV57: 0.0111 | GW57: 0.0111 | GX57: 0.01 | GY57: 55.48 | GZ57: 55.48 | HA57: 47.68 | HB57: 19.42 | HC57: 19.42 | HD57: 2486 | HE57: 972.290465 | HF57: 2486.166474 | HG57: 17.5 | HH57: 17.5 | HI57: 2486 | HJ57: 1 | HK57: 2486 | HL57: 0.5 | HM57: 0.98 | HN57: 1.47 | HO57: =HS57/HQ57 -> 54.09% | HP57: 972.3 | HQ57: 1797.4 | HR57: =HP57/HQ57 -> 54.09% | HS57: 972.29 | HT57: 0.00 | HU57: =HQ57*(1-HR57) -> 825.10 | HV57: =IF((HT57/HU57)>1,1,HT57/HU57) -> 0.00% | HW57: 17.50 | HX57: 17.69 | HY57: 0.19 | HZ57: 23.52 | IA57: 6.02 | IB57: 17.50 | IC57: 17.50 | IE57: 15.69066559 | IG57: 1.0% | II57: 2334.18 | IJ57: 16719.65
B58: =IF($AL$5=1,$C58/10,IF($AL$5=2,$C58/10,IF($AL$5=3,0.25,IF($AL$5=4,$C58/10,)))) -> 50% | C58: 5 | D58: 5 | E58: 0 | F58: 0.0 | G58: -5 | H58: -5 | I58: =IF(Geg_dP<AB58,ROUND(((IF('Briza 22 & 26'!$M$4="High Perform. 208/230V (US/EU)",cal!HK58,H58)/Watts)/((Tr_cool-Tv_cool)*1.163))*FlowH2O,IF(UnitsNo=1,0,IF(UnitsNo=2,2))),"") -> -2 | K58: 0.0 | L58: =IF(Geg_dP<$AB58,0,"") -> 0.0 | M58: 0.0 | N58: 0 | O58: 0.00 | U58: =IF(Geg_dP<$AB58,$CK58*($N58/Cubics)^2+$CL58*($N58/Cubics)^1+$CM58,"") -> 0 | X58: 0.981618 | Y58: 1.2733 | Z58: 1.09292 | AA58: 0.981618 | AB58: 42.8137 | AC58: 0.981618 | AD58: 1.2733 | AE58: 1.09292 | AF58: =AF57+((AF59-AF57)/2) -> 27.70 | AG58: 0.981618 | AH58: 1.2733 | AI58: 1.09292 | AJ58: =AJ57+((AJ59-AJ57)/2) -> 51.00 | AK58: 0.981618 | AL58: 1.2733 | AM58: 1.09292 | AN58: =AN57+((AN59-AN57)/2) -> 42.81 | AO58: 0.9954742158 | AP58: 1.174754877 | AQ58: 1.106729484 | AR58: =AR57+((AR59-AR57)/2) -> 99.86 | AS58: 0.981618 | AT58: 1.2733 | AU58: 1.09292 | AV58: 27.70 | AW58: 0.981618 | AX58: 1.2733 | AY58: 1.09292 | AZ58: 51.00 | BA58: 1.004971696 | BB58: 1.238562404 | BC58: 1.116226965 | BD58: 42.81 | BE58: 0.9693677324 | BF58: 1.070246709 | BG58: 1.080623001 | BH58: 99.86 | BZ58: 0.00E+00 | CA58: 0.00E+00 | CB58: 0.00E+00 | CC58: 0.00E+00 | CD58: 0.00E+00 | CE58: 0.00E+00 | CF58: 0.00E+00 | CG58: 0.00E+00 | CH58: 0.00E+00 | CI58: 0.00E+00 | CJ58: 0.00E+00 | CK58: 0.00E+00 | CL58: 0.00E+00 | CM58: 0.00E+00 | EF58: -5.82E-04 | EG58: -3.64E-02 | EH58: -1.38E+01 | EI58: 2.18E+03 | EK58: 7.56E-09 | EL58: -3.46E-05 | EM58: 9.58E-02 | EN58: 3.29E+01 | EP58: -8E-02 | EQ58: 1E+03 | EZ58: 17.00 | FA58: =((FA59-FA57)/2)+FA57 -> 17 | FB58: 17 | FC58: 17 | FD58: 17 | FE58: =((FE59-FE57)/2)+FE57 -> 18.2 | FF58: 17 | FG58: =((FG59-FG57)/2)+FG57 -> 18.375 | FH58: 17 | FJ58: 0.0 | FK58: 0.98 | FL58: 1.47 | FM58: 0.00% | FN58: =((FN59-FN57)/2)+FN57 -> 1159.6 | FO58: =((FO59-FO57)/2)+FO57 -> 2184.8 | FP58: =FN58/FO58 -> 53.07% | FQ58: 0.00 | FR58: 0.00 | FS58: 1025.25 | FT58: 0.00% | FU58: 17.00 | FV58: 17.69 | FW58: 0.69 | FX58: 23.52 | FY58: 6.52 | FZ58: 17.00 | GA58: 17.00 | GC58: 15.69066559 | GE58: 0.0% | GG58: 2334.18 | GI58: 1167.09 | GJ58: 1167.09 | GK58: 0.01 | GL58: 0.01 | GM58: 38.49 | GQ58: 3557.01 | GS58: 1778.51 | GT58: 1778.51 | GV58: 0.0111 | GW58: 0.0111 | GY58: 55.48 | HB58: 19.42 | HD58: -5 | HE58: 0 | HF58: -4.909427237 | HG58: 17.0 | HH58: 17.0 | HI58: -5 | HJ58: 1 | HK58: -5 | HL58: 0.0 | HM58: 0.98 | HN58: 1.47 | HO58: 0.00% | HP58: =((HP59-HP57)/2)+HP57 -> 1159.6 | HQ58: =((HQ59-HQ57)/2)+HQ57 -> 2184.8 | HR58: =HP58/HQ58 -> 53.07% | HS58: 0.00 | HT58: 0.00 | HU58: 1025.25 | HV58: 0.00% | HW58: 17.00 | HX58: 17.69 | HY58: 0.69 | HZ58: 23.52 | IA58: 6.52 | IB58: 17.00 | IC58: 17.00 | IE58: 15.69066559 | IG58: 1.0% | II58: 2334.18
B59: =IF($AL$5=1,$C59/10,IF($AL$5=2,$C59/10,IF($AL$5=3,0.5,IF($AL$5=4,$C59/10,)))) -> 60% | C59: 6 | D59: 16233 | E59: 1396 | F59: 18.0 | G59: 3341 | H59: 3341 | I59: =IF(Geg_dP<AB59,ROUND(((IF('Briza 22 & 26'!$M$4="High Perform. 208/230V (US/EU)",cal!HK59,H59)/Watts)/((Tr_cool-Tv_cool)*1.163))*FlowH2O,IF(UnitsNo=1,0,IF(UnitsNo=2,2))),"") -> 1436 | J59: 18.9 | K59: 46.5 | L59: =IF(Geg_dP<$AB59,IF(CalcNo="12",$ET59,IF(CalcNo="22",$ET59,IF(CalcNo="13",$EU59,IF(CalcNo="23",$EU59,IF(CalcNo="11",$ER59,IF(CalcNo="21",$ER59,IF(CalcNo="14",$ES59,IF(CalcNo="24",$ES59,IF(CalcNo="32",$EX59,IF(CalcNo="42",$EX59,IF(CalcNo="33",$EY59,IF(CalcNo="43",$EY59,IF(CalcNo="31",$EV59,IF(CalcNo="41",$EV59,IF(CalcNo="34",$EW59,IF(CalcNo="44",$EW59,)))))))))))))))),"") -> 54.5 | M59: 52.8 | N59: 1347 | O59: 0.90 | P59: 55.4 | Q59: 24.7 | R59: 19.6 | S59: 17.0 | T59: 78% | U59: =IF(Geg_dP<$AB59,$CK59*($N59/Cubics)^2+$CL59*($N59/Cubics)^1+$CM59,"") -> 836 | V59: 0.14 | W59: 2.481 | X59: 0.981618 | Y59: 1.2733 | Z59: 1.09292 | AA59: 0.981618 | AB59: 60.0679 | AC59: 0.981618 | AD59: 1.2733 | AE59: 1.09292 | AF59: 38.40 | AG59: 0.981618 | AH59: 1.2733 | AI59: 1.09292 | AJ59: 70.00 | AK59: 0.981618 | AL59: 1.2733 | AM59: 1.09292 | AN59: 60.07 | AO59: 0.9954742158 | AP59: 1.174754877 | AQ59: 1.106729484 | AR59: 131.57 | AS59: 0.981618 | AT59: 1.2733 | AU59: 1.09292 | AV59: 38.40 | AW59: 0.981618 | AX59: 1.2733 | AY59: 1.09292 | AZ59: 70.00 | BA59: 1.004971696 | BB59: 1.238562404 | BC59: 1.116226965 | BD59: 60.07 | BE59: 0.9693677324 | BF59: 1.070246709 | BG59: 1.080623001 | BH59: 131.57 | BK59: =IF($BK$17="11",BN59,IF($BK$17="21",BQ59,IF($BK$17="12",BN59,IF($BK$17="22",BQ59,IF($BK$17="13",BN59,IF($BK$17="23",BQ59,IF($BK$17="14",BN59,IF($BK$17="24",BQ59,IF($BK$17="31",BT59,IF($BK$17="41",BW59,IF($BK$17="32",BT59,IF($BK$17="42",BW59,IF($BK$17="33",BT59,IF($BK$17="43",BW59,IF($BK$17="34",BT59,IF($BK$17="44",BW59,)))))))))))))))) -> -4.98E-04 | BL59: =IF($BK$17="11",BO59,IF($BK$17="21",BR59,IF($BK$17="12",BO59,IF($BK$17="22",BR59,IF($BK$17="13",BO59,IF($BK$17="23",BR59,IF($BK$17="14",BO59,IF($BK$17="24",BR59,IF($BK$17="31",BU59,IF($BK$17="41",BX59,IF($BK$17="32",BU59,IF($BK$17="42",BX59,IF($BK$17="33",BU59,IF($BK$17="43",BX59,IF($BK$17="34",BU59,IF($BK$17="44",BX59,)))))))))))))))) -> -4.22E-04 | BN59: -4.98E-04 | BO59: -4.22E-04 | BQ59: -6.06E-04 | BR59: =BO59 -> -4.22E-04 | BT59: -1.48E-04 | BU59: -1.26E-04 | BW59: =BQ59 -> -6.06E-04 | BX59: =BU59 -> -1.26E-04 | BZ59: 0.00E+00 | CA59: 0.00E+00 | CB59: 1.79E-04 | CC59: -3.16E-02 | CD59: -2.01E+01 | CE59: 1.35E+03 | CF59: 0.00E+00 | CG59: 1.28E-08 | CH59: -4.86E-05 | CI59: 7.67E-02 | CJ59: 6.45E+00 | CK59: 0.00E+00 | CL59: -1.21E-01 | CM59: 1.00E+03 | CP59: 1.27E-02 | CQ59: -5.33E-01 | CR59: -1.84E+01 | CS59: 1.18E+03 | CW59: 1.61E-02 | CX59: 2.24E+01 | CZ59: =-0.118203123 -> -1.18E-01 | DA59: 8.91E+02 | DC59: 4.73E-05 | DD59: -5.83E-03 | DE59: 1.60E-01 | DF59: -1.87E+01 | DG59: 1.43E+03 | DI59: -9.46E-09 | DJ59: 2.51E-05 | DK59: 6.84E-03 | DL59: 4.18E+01 | DM59: 4.64E-05 | DN59: -1.76E-01 | DO59: 1.32E+03 | DR59: 1.79E-04 | DS59: -3.16E-02 | DT59: -2.01E+01 | DU59: 1.35E+03 | DW59: 1.28E-08 | DX59: -4.86E-05 | DY59: 7.67E-02 | DZ59: 6.45E+00 | EB59: -1.21E-01 | EC59: 1.00E+03 | EF59: 3.00E-04 | EG59: -8.21E-02 | EH59: -9.33E+00 | EI59: 2.57E+03 | EK59: 2.72E-09 | EL59: -1.77E-05 | EM59: 9.30E-02 | EN59: 5.60E+01 | EP59: -1E-01 | EQ59: 2E+03 | ER59: 54.5 | ET59: 54.5 | EV59: =EX59 -> 54 | EX59: 54 | EZ59: 17.5 | FA59: =Tavg_cold -> 17 | FB59: 17.5 | FC59: 17.5 | FD59: 17.5 | FE59: 18.2 | FF59: 17.5 | FG59: =FH59*1.05 -> 18.375 | FH59: 17.5 | FJ59: 0.5 | FK59: 0.98 | FL59: 1.47 | FM59: 52.36% | FN59: =DU59 -> 1346.8 | FO59: =EI59 -> 2572.2 | FP59: =FN59/FO59 -> 52.36% | FQ59: 1346.83 | FR59: 0.00 | FS59: 1225.40 | FT59: 0.00% | FU59: 17.50 | FV59: 17.69 | FW59: 0.19 | FX59: 23.52 | FY59: 6.02 | FZ59: 17.50 | GA59: 17.50 | GC59: 15.69066559 | GE59: 0.0% | GG59: 2334.18 | GH59: 15967.97 | GI59: 1167.09 | GJ59: 1167.09 | GK59: 0.01 | GL59: 0.01 | GM59: 38.49 | GN59: 74.53 | GO59: 7% | GQ59: 3557.01 | GR59: 2280.95 | GS59: 1778.51 | GT59: 1778.51 | GU59: 1778.51 | GV59: 0.0111 | GW59: 0.0111 | GX59: 0.01 | GY59: 55.48 | GZ59: 55.48 | HA59: 47.92 | HB59: 19.42 | HC59: 19.42 | HD59: 3341 | HE59: 1346.83436 | HF59: 3340.878052 | HG59: 17.5 | HH59: 17.5 | HI59: 3341 | HJ59: 1 | HK59: 3341 | HL59: 0.5 | HM59: 0.98 | HN59: 1.47 | HO59: 52.36% | HP59: 1346.8 | HQ59: 2572.2 | HR59: =HP59/HQ59 -> 52.36% | HS59: 1346.83 | HT59: 0.00 | HU59: 1225.40 | HV59: 0.00% | HW59: 17.50 | HX59: 17.69 | HY59: 0.19 | HZ59: 23.52 | IA59: 6.02 | IB59: 17.50 | IC59: 17.50 | IE59: 15.69066559 | IG59: 1.0% | II59: 2334.18 | IJ59: 15967.97
B60: =IF($AL$5=1,$C60/10,IF($AL$5=2,$C60/10,IF($AL$5=3,0.75,IF($AL$5=4,$C60/10,)))) -> 70% | C60: 7 | D60: 5 | E60: 0 | F60: 0.0 | G60: -5 | H60: -5 | I60: =IF(Geg_dP<AB60,ROUND(((IF('Briza 22 & 26'!$M$4="High Perform. 208/230V (US/EU)",cal!HK60,H60)/Watts)/((Tr_cool-Tv_cool)*1.163))*FlowH2O,IF(UnitsNo=1,0,IF(UnitsNo=2,2))),"") -> -2 | K60: 0.0 | L60: =IF(Geg_dP<$AB60,0,"") -> 0.0 | M60: 0.0 | N60: 0 | O60: 0.00 | U60: =IF(Geg_dP<$AB60,$CK60*($N60/Cubics)^2+$CL60*($N60/Cubics)^1+$CM60,"") -> 0 | X60: 0.981618 | Y60: 1.2733 | Z60: 1.09292 | AA60: 0.981618 | AB60: 68.7432 | AC60: 0.981618 | AD60: 1.2733 | AE60: 1.09292 | AF60: =AF59+((AF61-AF59)/2) -> 51.70 | AG60: 0.981618 | AH60: 1.2733 | AI60: 1.09292 | AJ60: =AJ59+((AJ61-AJ59)/2) -> 92.50 | AK60: 0.981618 | AL60: 1.2733 | AM60: 1.09292 | AN60: =AN59+((AN61-AN59)/2) -> 68.74 | AO60: 0.9954742158 | AP60: 1.174754877 | AQ60: 1.106729484 | AR60: 210.00 | AS60: 0.981618 | AT60: 1.2733 | AU60: 1.09292 | AV60: 51.70 | AW60: 0.981618 | AX60: 1.2733 | AY60: 1.09292 | AZ60: 92.50 | BA60: 1.004971696 | BB60: 1.238562404 | BC60: 1.116226965 | BD60: 68.74 | BE60: 0.9693677324 | BF60: 1.070246709 | BG60: 1.080623001 | BH60: 210.00 | BZ60: 0.00E+00 | CA60: 0.00E+00 | CB60: 0.00E+00 | CC60: 0.00E+00 | CD60: 0.00E+00 | CE60: 0.00E+00 | CF60: 0.00E+00 | CG60: 0.00E+00 | CH60: 0.00E+00 | CI60: 0.00E+00 | CJ60: 0.00E+00 | CK60: 0.00E+00 | CL60: 0.00E+00 | CM60: 0.00E+00 | EF60: -9.87E-06 | EG60: -1.44E-02 | EH60: -1.01E+01 | EI60: 2.80E+03 | EK60: 1.36E-09 | EL60: -2.16E-05 | EM60: 1.31E-01 | EN60: 6.37E+01 | EP60: -1E-01 | EQ60: 2E+03 | EZ60: 17 | FA60: =((FA61-FA59)/2)+FA59 -> 17 | FB60: 17 | FC60: 17 | FD60: 17 | FE60: =((FE61-FE59)/2)+FE59 -> 18.2 | FF60: 17 | FG60: =((FG61-FG59)/2)+FG59 -> 18.375 | FH60: 17 | FJ60: 0.0 | FK60: 0.98 | FL60: 1.47 | FM60: 0.00% | FN60: =((FN61-FN59)/2)+FN59 -> 1523.6 | FO60: =((FO61-FO59)/2)+FO59 -> 2797.3 | FP60: =FN60/FO60 -> 54.47% | FQ60: 0.00 | FR60: 0.00 | FS60: 1273.64 | FT60: 0.00% | FU60: 17.00 | FV60: 17.69 | FW60: 0.69 | FX60: 23.52 | FY60: 6.52 | FZ60: 17.00 | GA60: 17.00 | GC60: 15.69066559 | GE60: 0.0% | GG60: 2334.18 | GI60: 1167.09 | GJ60: 1167.09 | GK60: 0.01 | GL60: 0.01 | GM60: 38.49 | GQ60: 3557.01 | GS60: 1778.51 | GT60: 1778.51 | GV60: 0.0111 | GW60: 0.0111 | GY60: 55.48 | HB60: 19.42 | HD60: -5 | HE60: 0 | HF60: -4.909427237 | HG60: 17.0 | HH60: 17.0 | HI60: -5 | HJ60: 1 | HK60: -5 | HL60: 0.0 | HM60: 0.98 | HN60: 1.47 | HO60: 0.00% | HP60: =((HP61-HP59)/2)+HP59 -> 1523.6 | HQ60: 2797.3 | HR60: =HP60/HQ60 -> 54.47% | HS60: 0.00 | HT60: 0.00 | HU60: 1273.64 | HV60: 0.00% | HW60: 17.00 | HX60: 17.69 | HY60: 0.69 | HZ60: 23.52 | IA60: 6.52 | IB60: 17.00 | IC60: 17.00 | IE60: 15.69066559 | IG60: 1.0% | II60: 2334.18
B61: =IF($AL$5=1,$C61/10,IF($AL$5=2,$C61/10,IF($AL$5=3,1,IF($AL$5=4,$C61/10,)))) -> 80% | C61: 8 | D61: 19968 | E61: 1717 | F61: 26.2 | G61: 4094 | H61: 4094 | I61: =IF(Geg_dP<AB61,ROUND(((IF('Briza 22 & 26'!$M$4="High Perform. 208/230V (US/EU)",cal!HK61,H61)/Watts)/((Tr_cool-Tv_cool)*1.163))*FlowH2O,IF(UnitsNo=1,0,IF(UnitsNo=2,2))),"") -> 1760 | J61: 27.4 | K61: 52.0 | L61: =IF(Geg_dP<$AB61,IF(CalcNo="12",$ET61,IF(CalcNo="22",$ET61,IF(CalcNo="13",$EU61,IF(CalcNo="23",$EU61,IF(CalcNo="11",$ER61,IF(CalcNo="21",$ER61,IF(CalcNo="14",$ES61,IF(CalcNo="24",$ES61,IF(CalcNo="32",$EX61,IF(CalcNo="42",$EX61,IF(CalcNo="33",$EY61,IF(CalcNo="43",$EY61,IF(CalcNo="31",$EV61,IF(CalcNo="41",$EV61,IF(CalcNo="34",$EW61,IF(CalcNo="44",$EW61,)))))))))))))))),"") -> 60.0 | M61: 93.0 | N61: 1700 | O61: 1.13 | P61: 54.5 | Q61: 24.4 | R61: 19.8 | S61: 17.1 | T61: 77% | U61: =IF(Geg_dP<$AB61,($CK61*($N61/Cubics)^2)+($CL61*($N61/Cubics)^1)+$CM61,"") -> 964 | V61: 0.20 | W61: 2.408 | X61: 0.981618 | Y61: 1.2733 | Z61: 1.09292 | AA61: 0.981618 | AB61: 77.4185 | AC61: 0.981618 | AD61: 1.2733 | AE61: 1.09292 | AF61: 65.00 | AG61: 0.981618 | AH61: 1.2733 | AI61: 1.09292 | AJ61: 115.00 | AK61: 0.981618 | AL61: 1.2733 | AM61: 1.09292 | AN61: 77.42 | AO61: 0.9954742158 | AP61: 1.174754877 | AQ61: 1.106729484 | AR61: 220.36 | AS61: 0.981618 | AT61: 1.2733 | AU61: 1.09292 | AV61: 65.00 | AW61: 0.981618 | AX61: 1.2733 | AY61: 1.09292 | AZ61: 115.00 | BA61: 1.004971696 | BB61: 1.238562404 | BC61: 1.116226965 | BD61: 77.42 | BE61: 0.9693677324 | BF61: 1.070246709 | BG61: 1.080623001 | BH61: 220.36 | BK61: =IF($BK$17="11",BN61,IF($BK$17="21",BQ61,IF($BK$17="12",BN61,IF($BK$17="22",BQ61,IF($BK$17="13",BN61,IF($BK$17="23",BQ61,IF($BK$17="14",BN61,IF($BK$17="24",BQ61,IF($BK$17="31",BT61,IF($BK$17="41",BW61,IF($BK$17="32",BT61,IF($BK$17="42",BW61,IF($BK$17="33",BT61,IF($BK$17="43",BW61,IF($BK$17="34",BT61,IF($BK$17="44",BW61,)))))))))))))))) -> 7.53E+00 | BL61: 5.61E+00 | BM61: 3.37E-05 | BN61: 7.53E+00 | BO61: 5.61E+00 | BP61: 3.37E-05 | BQ61: 3.87E+00 | BR61: =BO61 -> 5.61E+00 | BS61: =+BP61 -> 3.37E-05 | BT61: 7.15E+00 | BU61: 5.42E+00 | BV61: 1.62E-05 | BW61: =BQ61 -> 3.87E+00 | BX61: =BU61 -> 5.42E+00 | BY61: =+BV61 -> 1.62E-05 | BZ61: 0.00E+00 | CA61: 0.00E+00 | CB61: -6.73E-04 | CC61: 2.88E-02 | CD61: -1.70E+01 | CE61: 1.70E+03 | CF61: 0.00E+00 | CG61: 3.81E-09 | CH61: -2.19E-05 | CI61: 6.33E-02 | CJ61: 3.00E+01 | CK61: 0.00E+00 | CL61: -2.05E-01 | CM61: 1.31E+03 | CP61: 9.44E-04 | CQ61: -1.17E-01 | CR61: -1.70E+01 | CS61: 1.56E+03 | CW61: 2.52E-02 | CX61: 3.67E+01 | CZ61: =-0.100252812 -> -1.00E-01 | DA61: 1.12E+03 | DC61: 7.30E-06 | DD61: -1.49E-03 | DE61: 6.26E-02 | DF61: -1.46E+01 | DG61: 1.88E+03 | DI61: -9.23E-09 | DJ61: 3.11E-05 | DK61: 9.42E-03 | DL61: 7.40E+01 | DM61: 4.00E-05 | DN61: -2.02E-01 | DO61: 1.67E+03 | DR61: -6.73E-04 | DS61: 2.88E-02 | DT61: -1.70E+01 | DU61: 1.70E+03 | DW61: 3.81E-09 | DX61: -2.19E-05 | DY61: 6.33E-02 | DZ61: 3.00E+01 | EB61: -2.05E-01 | EC61: 1.31E+03 | EF61: -3.20E-04 | EG61: 5.33E-02 | EH61: -1.10E+01 | EI61: 3.02E+03 | EL61: -2.55E-05 | EM61: 1.68E-01 | EN61: 7.14E+01 | EP61: -2E-01 | EQ61: 2E+03 | ER61: 60 | ET61: 60 | EV61: =EX61 -> 59.5 | EX61: 59.5 | EZ61: 17.5 | FA61: =Tavg_cold -> 17 | FB61: 17.5 | FC61: 17.5 | FD61: 17.5 | FE61: 18.2 | FF61: 17.5 | FG61: =FH61*1.05 -> 18.375 | FH61: 17.5 | FJ61: 0.5 | FK61: 0.98 | FL61: 1.47 | FM61: 56.26% | FN61: =DU61 -> 1700.5 | FO61: =EI61 -> 3022.3 | FP61: =FP62 -> 63.60% | FQ61: 1700.46 | FR61: 0.00 | FS61: 1100.00 | FT61: 0.00% | FU61: 17.50 | FV61: 17.69 | FW61: 0.19 | FX61: 23.52 | FY61: 6.02 | FZ61: 17.50 | GA61: 17.50 | GC61: 15.69066559 | GE61: 0.0% | GG61: 2334.18 | GH61: 15286.37 | GI61: 1167.09 | GJ61: 1167.09 | GK61: 0.01 | GL61: 0.01 | GM61: 38.49 | GN61: 73.60 | GO61: 8% | GQ61: 3557.01 | GR61: 2311.71 | GS61: 1778.51 | GT61: 1778.51 | GU61: 1778.51 | GV61: 0.0111 | GW61: 0.0111 | GX61: 0.01 | GY61: 55.48 | GZ61: 55.48 | HA61: 48.14 | HB61: 19.42 | HC61: 19.42 | HD61: 4094 | HE61: 1700.45593 | HF61: 4094.300762 | HG61: 17.5 | HH61: 17.5 | HI61: 4094 | HJ61: 1 | HK61: 4094 | HL61: 0.5 | HM61: 0.98 | HN61: 1.47 | HO61: 56.26% | HP61: 1700.5 | HQ61: 3022.3 | HR61: =HR62 -> 63.60% | HS61: 1700.46 | HT61: 0.00 | HU61: 1100.00 | HV61: 0.00% | HW61: 17.50 | HX61: 17.69 | HY61: 0.19 | HZ61: 23.52 | IA61: 6.02 | IB61: 17.50 | IC61: 17.50 | IE61: 15.69066559 | IG61: 1.0% | II61: 2334.18 | IJ61: 15286.37
